{"text_format":"1","workbook":"xlsx","n_sheets":57,"sheets":["Leveransplan","Anvisningar","Kontaktuppgifter","Definitioner","Leveranstider","Lathund - BISobjekt","Arkivservice - Analog leverans","Projektuppgifter","Etappbeskrivning ","Leveranshistorik","0 Erfarenhetsdrift","0 3D-modell","0 Väg","0 Modellfiler","4.1 Bankropp","4.2 Kanalisation","5.1 Bro","5.2 Tunnel o bergslänt","5.3 Övriga byggnadsverk","6.1 GELD inkl RTU","6.2 Hjälpkraftssystem","6.3 Kontaktledningssystem","6.4 Kraftförsörjningsanläggning","6.5 Lågspänningssystem","6.6 Matarledningssystem","6.7 Nätstation","7.1 Resenärsstation","7.2a Teknikbyggnad (Järnväg)","7.2b Teknikbyggnad (Telekom)","7.3 Tillträdesskydd o brandlarm","8.1 Signalsystem","9.1 Banöverbyggnad","9.2 Geodetiskt stomnät","9.3 Sidoanläggning","10.1 Radio och telefoni","10.2 Siter och kabelanl","11.1 Trafikinformationsanl","12.1 Övrig BIS-leverans","13.1 Trafikstyrningssystem","14.1 Fordonsöverv. detektor","14.2 Kamerabevakning","15.1 Admin. o funkt. företeelse","15.2 Baskarta","15.3 Byggnad","15.4 Mark","15.5 Miljö","15.6 Plankorsning","15.7 Pumpsystem","15.8 Rangerbangård","15.10 Underlag till linjeboken","15.11 Underlag till säk.plan","15.12 JNB","15.13 Tågplan","Tillkomna dok.","Levererat till extern part ","Ändringslogg","Ändra inte!"],"not_rendered":{"charts":0,"images":6,"macros":0,"external_links":2,"defined_names":41,"comments":44,"pivot_tables":0},"unopened":[],"bounds":{"document_bytes":16777216,"sheet_cells":100000,"rows_first":2000,"rows_last":500,"rows_between":2000,"halvings":0,"cell_chars":16384,"cell_head_chars":4096},"cells_cut":0,"cells_raw":0,"read":"whole","date_system":"1900"}

{"sheet":"Leveransplan","index":0,"n_rows":12,"n_cols":1,"rows_kept":12,"cut":false,"hidden":false,"merged":[[5,0,5,1]]}
[]
["TMALL 0344 Data om anläggningen - Leveransplan - Järnväg"]
["Version 27.0"]
["Datum: 2025-11-01"]
[]
["Leveransplanen bygger på kravdokumentet TDOK 2016:0407 Data om anläggningen - Data och dokumentation till förvaltande system - Järnväg, Version 24.\n\nLeveranstiderna i projektuppgiftsflikens kolumn E, avser när leverans senast ska ske från projekt till mottagande förvaltning."]
[]
[" -- Projekt som redan börjat använda en tidigare version av leveransplan behöver inte byta till denna version. Är du osäker, kontakta din indatakoordinator. Kontollera däremot med senare versioner, om krav tillkommit/slopats. Detta ser man lättas i ändringsloggen i den senaste versionen av leveransplanen eller i TDOK 2016:0407."]
[" -- Projekt ska leverera samtliga data/dokument som gäller vid ett tidskrav. Undantag för dokumentation till ProjectWise/Förvaltning Järnväg och Ebba som levereras per teknikslag."]
[" -- Leveranstidkrav till mottagande förvaltning är det senaste datum när mottagande förvaltning eller IT-system behöver data. Leveransen genomförs av projektet enligt Trafikverkets fastställda krav. Leveranstidkraven ställs på projektet, inte mot extern leverantör, enligt TDOK 2016:0411."]
[" -- De krav och riktlinjer som hänvisas till i denna mall ska endast betraktas som stöd för projektet. Det är projektets ansvar att hålla sig uppdaterad med aktuella krav i TDOK 2016:0407 Data om anläggningen - Data och dokumentation till förvaltande system - Järnväg."]
[" -- Det finns ca 40 flikar i leveransplanen. Det gör att alla flikar inte är synliga längst ner på skärmen samtidigt. Istället är man tvungen att använda pilen längst ner till vänster på sidan för att stega sig igenom alla flikar eller högerklicka på pilen för att få fram en vallista över samtliga filkar."]

{"sheet":"Anvisningar","index":1,"n_rows":45,"n_cols":3,"rows_kept":45,"cut":false,"hidden":false,"merged":[[2,1,2,2],[4,1,4,2],[42,1,42,2],[44,1,44,2],[14,1,14,2],[15,1,15,2],[18,1,18,2]]}
[null,"Tips för hur projektet bör använda leveransplanen"]
[]
[null,"För att redigera i leveransplanen - Klicka på Redigera arbetsbok, gör ändringarna och spara och stäng filen sedan. Om man väljer att checka ut filen ska ny version väljas när man checkar in dokumentet igen. Var uppmärksam på om dokumentet är utcheckat innan du öppnar det. Vänta tills filen checkats in innan du öppnar den. Detta för att undvika att en kopia skapas. "]
[]
[null," - Även uppgift om slopning av anläggning ska levereras till mottagande förvaltning.\n - Dokumentation över GOP (Godkännandeprocessen) ska inte levereras till mottagande förvaltning, utan ska enbart levereras  till diariet."]
[null,"OBS! Relevant data/dokumentation kopplat till miljö ska levereras enligt flik 15.5 Miljö"]
[]
[null,"1.","En initial leveransplan, där fliken Projektuppgifter i leveransplanen ska vara ifylld med projektuppgifter, datum, roller samt planerade ingående teknikområden ska tas fram enligt GÅ-processen. Observera! Den här fliken måste uppdateras när det sker förändringar i nästkommande flikar."]
[null,"2.","Dölj flikar som inte berör projektet.  Ställa dig på flikens namn, högerklicka och välj \"Dölj\". Ångrar du dig, ställa dig på valfritt fliknamn och välja \"Ta fram\"."]
[null,"3.","Öppna valda flikar och sätt JA/NEJ för samtliga rader i kolumnen \"Aktuellt att uppdateras av projektet\", för  dokument som projektet ska leverera. "]
[null,"4.","Skicka epost med en länk till var i Projektportalen leveransplanen ligger till indatakoordinering@trafikverket.se. Dessa uppgifter behöver indatakoordineringen tidigt."]
[null,"5.","Kontakta er indatakoordinator om ni har frågor kring ifyllandet av leveransplanen eller dess användning. "]
[null,"6.","Alla förändringar avseende tider och innehåll ska meddelas Indatakoordinatorn."]
[null,"7.","Projektet bestämmer hur leveransplanen lämpligast fylls i. Eftersom projekt är olika kan det variera vem som är bäst lämpad att fylla i den. Projektledare ansvarar för att det sker.  För mindre projekt räcker det med en leveransplan. För större projekt kan flera leveransplaner med fördel upprättas, tex en per etapp eller entreprenad. Möjlighet finns också att duplicera flikar, tex vid olika inkopplingsdatum, enligt bilden nedan. \nVid behov tag stöd av din indatakoordinator eller indatakoordinering@trafikverket.se. "]
[null,"Mer information om förvaltningsdata finns här (länken fungerar bara internt inom Trafikverket): "]
[null,"Samlad information om in- och utleverans av förvaltningsdata."]
[]
[]
[null,"Projektet måste hämta/beställa befintlig förvaltningsdata ur respektive förvaltande system och uppdatera dessa. Detta beskrivs i TDOK 2016:0411 Data om anläggningen - Hantering av data och dokumentation till/från förvaltande system - Järnväg. \nOBS! Nulägeslista (BIS) som utgör underlag för slopnings- och ändringslistor ska beställas för leverans så sent inpå framtagandet av listorna som möjligt, detta för att minimera risken att underlagen innehåller inaktuell data.\n"]
[]
[null,"Färgerna i tabellerna har följande betydelse:"]
[null,null,"Fylls i av projektet"]
[null,null,"Fylls i av mottagande förvaltning"]
[null,null,"Fältet ska inte fyllas i"]
[]
[]
[null,"Flikarnas numrering motsvarar kapitelnumreringen i TDOK 2016:0407."]
[]
[]
[]
[null,"Hantering av filnamn och länk till levererad fil"]
[null,"Här ska man lägga en länk till leverad fil."]
[]
[null,"Men det finns undantag!!"]
[null,"* Flera blad i samma ritningsserie kan med fördel läggas in på samma rad enligt nedan om det är samma dokumenttyper på handlingarna."]
[]
[]
[]
[]
[]
[null,"* Signal: Här räcker det med en rad per ä-not och anläggning"]
[null,"* Kraftförsörjningsanläggning: En separat ritningsförteckning kan bifogas leveransplanen"]
[null,"* Special för riktigt stora projekt: För stora mängder filer till Ebba och PW/FJ accepteras dokument-set i leveransplanen i det fall det finns en dokumentförteckning i dokument-setet."]
[]
[null,"Har du frågor, kontakta projektets indatakoordinator."]

{"sheet":"Kontaktuppgifter","index":2,"n_rows":37,"n_cols":4,"rows_kept":37,"cut":false,"hidden":false,"merged":[[19,0,19,2],[7,0,7,2],[8,0,10,2],[11,0,12,0],[12,1,12,2],[15,0,18,0],[15,1,15,2],[16,1,17,2],[18,1,18,2],[13,1,13,2],[14,1,14,2],[20,0,20,2],[22,1,22,2],[23,0,23,2],[24,0,36,0],[29,1,29,2],[36,1,36,2],[33,1,33,2],[34,1,34,2],[21,1,21,2],[25,1,25,2],[26,1,26,2],[27,1,27,2],[32,1,32,2],[35,1,35,2]]}
["Kontaktuppgifter"]
[]
["Kontaktuppgift för frågor om leveranser \n(TDOK 2016:0407, TDOK 2016:0411, TMALL 0344): ",null,null,"indatakoordinering@trafikverket.se "]
[]
["Kontaktuppgift för frågor inom ett visst teknikområde kontakta: "]
["Teknikområdesgrupp","Teknikområde","Delområde","Kontaktuppgift - Innehåll i data/dokumentation"]
["Bankropp",null,null,"bankropp@trafikverket.se"]
["Byggnadsverk",null,null,"byggnadsverk.jvg_batman@trafikverket.se"]
["Elkraftssystem",null,null,"elkraft@trafikverket.se"]
[null,null,null,"kopplingsschema@trafikverket.se "]
[null,null,null,"geld.systemforvaltning@trafikverket.se "]
["Fastighetsinstallationer","Fastighetsteknik","Plattformsutrustning, hissar och rulltrappor samt entrébyggnader","resenarsanlaggning@trafikverket.se"]
[null,"Passagesystem",null,"tilltrade@trafikverket.se "]
["Signalsystem","Ställverksdokumentation för ställverk 85, 95 och 11",null,"signalsystem.datorstallverk@trafikverket.se"]
[null,null,null,"teknisk.sakerhetsstyrning.iv@trafikverket.se "]
["Spårsystem","Geodetiskt stomnät",null,"geodesi.jarnvagsdata@trafikverket.se "]
[null,"Banöverbyggnad",null,"tillstandspar@trafikverket.se "]
[null,null,null,"teknisk.sakerhetsstyrning.iv@trafikverket.se "]
[null,"Bangårds- och sidoanläggning",null,"tillstandspar@trafikverket.se "]
["Telekominfrastruktur",null,null,"Kontakta utsedd Uppdragsledare IKT se TDOK 2015:0015"]
["Trafikinformationsanläggning",null,null,"akj.trafikinformation@trafikverket.se "]
["Trafiknät","Spårnät",null,"forvaltningsdata.jarnvag@trafikverket.se"]
["Tågledningssystem","Trafikstyrningssystem",null,"inlasningssamordnare@trafikverket.se "]
["Övervakningssystem",null,null,"roger.bystrom@trafikverket.se"]
["Övrigt","Administrativ och funktionell företeelse","Funktionell företeelse","forvaltningsdata.jarnvag@trafikverket.se"]
[null,"Baskarta",null,"indatakoordinering@trafikverket.se"]
[null,"Byggnad",null,"lev.forvaltningsdata.byggnad@trafikverket.se"]
[null,"Geografiska modellfiler",null,"indatakoordinering@trafikverket.se"]
[null,"JNB",null,"jnb.infrastruktur@trafikverket.se"]
[null,"Mark",null,"bankropp@trafikverket.se"]
[null,"Miljö","Övergripande om miljö","jarnvag_anlaggningmiljo@trafikverket.se"]
[null,"Miljö","Förorenade områden","fororenade.omraden@trafikverket.se "]
[null,"Plankorsning",null,"plankorsning@trafikverket.se "]
[null,"Rangerbangård"]
[null,"Tågplan",null,"trafikplanering.anlaggningsforandringar@trafikverket.se"]
[null,"Underlag till linjeboken",null,"linjeboken@trafikverket.se"]
[null,"Underlag till säkerhetsplan, driftplats",null,"forvalta.sakerhetsdok@trafikverket.se"]

{"sheet":"Definitioner","index":3,"n_rows":19,"n_cols":2,"rows_kept":19,"cut":false,"hidden":false,"merged":[[3,0,3,1],[8,0,8,1],[14,0,14,1]]}
["Definitioner"]
[]
["Begrepp","Definition/förklaring"]
["Roller"]
["Indatakoordinator","Bistår projekten med svar på frågor om data och dokumentation till förvaltande system. Koordinerar mottagandet av förvaltningsdata samt gör uppföljning av planerade och genomförda leveranser."]
["Mottagande förvaltning","Den organisation som tar emot leveranser till sitt förvaltande system."]
["Mottagandekoordinator (MK)","Avser den person som är ansvarig för att koordinera mottagandet av ansvar, anläggning och förvaltningsdata vid ny eller förändrad infrastruktur. \nSe TDOK 2012:1198 Mottagandekoordinator - Rollbeskrivning."]
["Överlämnandekoordinator (ÖK)","Avser den person som koordinerar överlämnandet av ansvar, anläggning och förvaltningsdata vid ny eller förändrad infrastruktur. Se TDOK 2012:1170 Överlämnandekoordinator - Rollbeskrivning"]
["Förvaltande system"]
["Förvaltande system","De system/databaser/lagringsplatser där data om anläggningen förvaltas/lagras."]
["MWL","Miljöwebb Landskap"]
["PW/FJ","ProjectWise/Förvaltning järnväg"]
["PW/FU","ProjectWise/Förvaltning underhåll"]
["PW/ICT","ProjectWise/ICT"]
["Leveranstider"]
["Bygghandling","Handling som fastställts att gälla som underlag för utförande. Bygghandlingen utgör en redovisning för hur ett projekt ska genomföras och innefattar alla handlingar som är nödvändiga för produktion av byggnaden eller anläggningen."]
["Inkoppling","Aktivitet som utgör det sista skedet vid ibruktagande och som innebär att anläggningen slutligen kan upplåtas för trafik"]
["Inläsning","Tidpunkten då den nya och/eller förändrade järnvägsanläggningens anläggningsdata läses in i tågledningssystemet med förändrad funktionalitet och godkänt överlämnande till respektive TC."]
["Slutbesiktning","Vid en slutbesiktning besiktas att arbetet är slutfört enligt kontrakt. En slutbesiktning ska om inte parterna avtalat om annat, verkställas vid kontraktstidens utgång, eller om entreprenaden färdigställs senare, utan dröjsmål efter det att entreprenaden anmälts vara fastställd. "]

{"sheet":"Leveranstider","index":4,"n_rows":28,"n_cols":22,"rows_kept":28,"cut":false,"hidden":false,"merged":[[14,18,15,18],[18,18,20,18],[21,18,22,18],[11,18,13,18]]}
[]
[null,null,null,null,null,null,null,null,null,null,null,null,null,null,null,null,null,null,"Leveranstid järnvägsanläggning","Teknikområde","Bakgrund till tidskravet","System"]
[null,null,null,null,null,null,null,null,null,null,null,null,null,null,null,null,null,null,"Senast 30 april 20-32 månader före inkoppling","Övrigt\n","Tågtrafik planeras i tågplan med 8 till 20 månaders framförhållning\nFör att sammanställa planeringsförutsättningarna behöver uppgifter komma till JNB ytterligare 12 månader före, dvs 20 till 32 månader. \nJNB är Trafikverkets produktkatalog, dvs vilka tjänster vi tillhandahåller.\n","Järnvägsnätsbeskrivningen (JNB)"]
[null,null,null,null,null,null,null,null,null,null,null,null,null,null,null,null,null,null,"Senast 30 september 15-27 månader före inkoppling","Övrigt\n","Tiden ”Senast 30 september 15-27 månader före inkoppling” bygger på att vi skall kunna leverera en anläggningsmodell i februari dels för vårt eget planeringssystem men även som underlag inför ansökan för järnvägsföretagen. För det behöver vi några månader för att hinna analysera de uppgifter vi fått in, ställa eventuella kompletterande frågor samt bygga det i vår anläggningsmodell.\n","Tågplan"]
[null,null,null,null,null,null,null,null,null,null,null,null,null,null,null,null,null,null,"2 veckor efter utjämningsberäkning av stompunktsetablering ","Geodetiskt stomnät","Det geodetiska stomnätet är referensen för lägesbestämning av spår och spårnära objekt i Trafikverkets järnvägsanläggning. Om någon förändrar stomnätet är det därför av yttersta vikt att den nya information kan nå ut till samtliga som har ett behov av att använda stomnätet i det aktuella området. Därför ska den som har förändrat stomnätet leverera den nya stomnätsberäkningen (enligt TMALL 0344) till förvaltningen för Trafikverkets geodetiska stomnät senast två veckor efter att man har utfört utjämningsberäkningen.  \nI ett och samma område kan flera olika aktörer utföra åtgärder samtidigt och för olika projekt. Därför räcker det inte att endast hantera ny stompunktsinformation inom det projekt som har förändrat informationen utan den behöver levereras skyndsamt (inom två veckor) till förvaltningen, som är ”spindeln i nätet” i distributionen/hanteringen av denna information.\n\n","ProjectWise, Förvaltning järnväg"]
[null,null,null,null,null,null,null,null,null,null,null,null,null,null,null,null,null,null,"Vid färdig bygghandling, senast 6 månader före inkoppling","Radio och telefoni\nSiter och kabelanläggning","Informationen behövs för att kunna planera inför kommande tjänster som behövs vid driftsättning av våra olika kommunikationsnät. Informationen behövs för att kunna bygga upp infrastruktur i vårt planerings och inventarie system IVAR. När vi har siter, kablar, elförsörjning 48V m.m. så kan vi planera för vår utrustning och tjänster som behövs för att kunna driftsätta anläggningen.\n\nAtt informationen behövs vid vad man kallar ”färdig bygghandling, senast 6 månader för inkoppling” är för att det ska vara så nära den slutliga anläggningen som möjligt. Några exempel på tjänster är för signalanläggningen, växelvärme, GELD, plattformsnät mm för  järnväg. För väg är det främst i komplexa anläggningar olika styr och säkerhetssystem mm. Alla dessa funktioner behöver kommunikation så utan den blir det ingen driftsättning av anläggningen.\n\n\n","ProjectWise, Förvaltning järnväg"]
[null,null,null,null,null,null,null,null,null,null,null,null,null,null,null,null,null,null,"Vid färdig bygghandling, senast 6 månader före inkoppling \nOBS! det viktiga är att leveransen sker INNAN BYGGSTART. (dvs senast vid färdig bygghandling)","Trafikinformation","Underhåll behöver få information om anläggningen INNAN BYGGSTART. Detta för att hinna kontrollera om anläggningen är projekterad på rätt sätt INNAN byggstart. Genom att Underhåll får granska bygghandlingarna senast när dessa är klara kan man undvika felprojektering. ","ProjectWise/Förvaltning Järnväg/Förvaltningsdata Leveranser/ _Resenärsinformation (BH)/ Bandel, projektnamn"]
[null,null,null,null,null,null,null,null,null,null,null,null,null,null,null,null,null,null,"6 månader före inkoppling","Bro\nTunnel och bergslänt\nBanöverbyggnad\nSpårnät\nSidoanläggning\nAdministrativ och funktionell företeelse\nLågspänningssystem\nSignalsystem\nFordonsövervakande detektorer\n","Informationen används för att skapa upp spårnätet i Trafikverkets baninformations- och geografiska informationssystem, systemen BIS och GAD. I BIS läggs också tillhörande signalanläggning in. Resultatet används senare i processen för trafikplanering/trafikstyrning respektive kapacitetsplanering (görs i systemen SNTL respektive MPK). \nTrafiknätet, som det är upplagt i BIS, är också referens för att relatera anläggningsobjekten till rätt position i förhållande till spårnätet. \nDen främsta orsaken till leveranstidkravet -6m (6 månader innan inkoppling) är kravet på att hinna förbereda Trafikledningssystem (dagens samt kommande system) inför inkoppling. Därför är det endast trafikledningspåverkande leveransobjekt som ingår i -6 månader (se nedan). Övriga leveransobjekt lämnas till leveranser efter inkoppling.\nDet är ett antal olika arbetssteg efter dataleverans som måste hinna genomföras innan inkoppling. Utförande av dessa delas mellan VO Underhåll (Järnvägsdata) och VO Trafik.\n\nProcessen ser ut enligt följande: \n-6m innan inkoppling –> Leverans/Mottagning kontroll (10 dgr)\n-6m - -2m innan inkoppling –>  Ärendehandläggning. Uppdatering spårnät, Signalanläggning, ATC, RoS, OI, samt uppdatering av vissa, för trafikering, nödvändiga objekt och indelningar.\n- 2m innan inkoppling -> Leverans till Trafik för deras handläggning \nDag för Inkoppling – förutom aktiviteter kopplade till trafikledning uppdateras även BIS (nuBIS) – BIS projektet checkas in -  för att återspegla den fysiska anläggningen som den ser ut efter inkoppling. ","BIS / NTL / MPK"]
[null,null,null,null,null,null,null,null,null,null,null,null,null,null,null,null,null,null,"6 månader före inkoppling","Plankorsning","Aktiviteten Ny plankorsning reserverar det femsiffriga id-numret i BIS och är det allra första steget för att skapa en ny plankorsning. I aktiviteten behöver preliminära geografiska data anges så att den blivande plankorsningen kan visas på en karta. Dessa data kommer senare att skrivas över när det exakta läget är fastställt. Först då kommer plankorsningen att visas i andra it-system.\n\nDenna aktivitet behöver ske för att leveranser 6 mån före inkoppling ska kunna registreras i BIS.","PLK web"]
[null,null,null,null,null,null,null,null,null,null,null,null,null,null,null,null,null,null,"4 månader före inläsning","Trafikstyrningssystem","Informationen behövs tidigt för att hinna utföra granskning av underlag, bildremisser och FAT-tester etc. Informationen används i dagens tågledningssystem för att kunna styra trafik.","Tågledningssystemet"]
[null,null,null,null,null,null,null,null,null,null,null,null,null,null,null,null,null,null,"4 månader före plankorsningen tagits i bruk för vägtrafik","Plankorsning","Informationen behövs för att myndighetsbeslut ska hinna handläggas och beslutas innan förändring tagits i bruk.\n","PLK web"]
[null,null,null,null,null,null,null,null,null,null,null,null,null,null,null,null,null,null,"10 veckor före inkoppling","Signalsystem","Informationen används för att projektera order och indikering och för att bygga trafikledningsystemets trafikbilder.\n(Ställverksuppgifter till BIS som behövs för NTL och MPK)\n","BIS"]
[null,null,null,null,null,null,null,null,null,null,null,null,null,null,null,null,null,null,null,"Siter och kabelanläggning","Informationen används för att kunna planera förvaltning och driftsättning av kommunikationsnäten. \n10 v före inkoppling ska kabeln vara inmätt med koordinater och det ska finnas protokoll på mätningar av kabeln. Det är information som inte finns vid färdig bygghandling men som vi behöver för förvaltning av kabeln när anläggningen tas i drift. Var den ligger i backen behövs för kabelutsättningar så att kabeln inte grävs av. Protokoll som ex verifierar att kabeln är inte är skadad samt att den inte har för hög dämpning som gör dem obrukbara för de flesta kommunikationssystem, bifogas.\n","ProjectWise, ICT"]
[null,null,null,null,null,null,null,null,null,null,null,null,null,null,null,null,null,null,null,"Elkraftsystem\nTillträdesskydd och brandlarm\nSignalsystem","10 v före inkoppling ska kabeln vara inmätt med koordinater och det ska finnas protokoll på mätningar av kabeln. Det är information som inte finns vid färdig bygghandling men som vi behöver för förvaltning av kabeln när anläggningen tas i drift. Var den ligger i backen behövs för kabelutsättningar så att kabeln inte grävs av.","ProjectWise, ICT"]
[null,null,null,null,null,null,null,null,null,null,null,null,null,null,null,null,null,null,"2 månader före inkoppling","Underlag till linjeboken","Informationen behövs för att kunna planera datum för versionsändring. Ändringen läggs ut på Trafikverkets webbsida tre veckor före inkoppling. \n\nLinjebokens två månader inkoppling är satt för att kunna planera tidpunkt för versionsändring. Oftast har information om inkopplingar angetts tidigare men uppgifterna som ligger till grund för ändringarna behövs två månader före inkoppling. \n","Underlag till linjeboken"]
[null,null,null,null,null,null,null,null,null,null,null,null,null,null,null,null,null,null,null,"Underlag till säkerhetsplan","Informationen behövs för att framställa en säkerhetsplan för trafikledning och järnvägsföretag, där vissa villkor finns för trafikering.\n\nLeverans 2 månader före inkoppling behövs för att ha förutsättningar för att uppdatera säkerhetsplaner i god tid och få dom publicerade i dokumentcenter, samt ge verksamheten en chans att implementera ev förändringar i god tid innan förändringen träder i kraft.\n","Underlag till säkerhetsplan, driftplats"]
[null,null,null,null,null,null,null,null,null,null,null,null,null,null,null,null,null,null,"1 månad före inkoppling\n","Bro\nTunnel \nÖvriga byggnadsverk\nBankropp","För att teknikspecialist/ teknikingenjör ska ha tid att genomföra aktivitet 1 enligt Rutinbeskrivning TDOK 2018:0200. Kontrollera att: \n\n• Konstruktionsredovisning är kopplad i BATMAN\n• Tekniska uppgifter är registrerade och skickade för fastställelse\n• Uppgifter om konstruktiv indelning är registrerade och skickade för fastställelse\n• Bärighet är registrerad och skickad för fastställelse\n• Passager, exkl. vägnätsanknytning, är registrerade och skickade för fastställelse.  \n\nDärmed har teknikspecialist/ teknikingenjör chans att hinna göra aktivitet 2 (fastställa tekniska uppgifter) enligt TDOK 2018:0200 senast 2 veckor före inkoppling.\nUnderhåll ska fastställa bärighet och uppgifter om konstruktiv indelning senast dagen före inkoppling. För att hinna detta måste övriga tekniska uppgifter vara fastställda senast två veckor före inkoppling.\n","BATMAN"]
[null,null,null,null,null,null,null,null,null,null,null,null,null,null,null,null,null,null,"2 veckor före inkoppling","Kontaktledningssystem","Informationen behövs för att kunna ta elanläggning i drift efter ombyggnation eller nybyggnation. Eldriftledningens geldsystem kan behöva uppdateras och ev ritas om samt att kopplingsschemor för felavhjälpning och underhåll ska finnas tillgängliga så fort anläggningen tas i bruk. \n\nKopplings- och grupp-schema (kontaktledning) behövs 14 dagar före inkoppling för att kopplingsschemafunktionen ska ha en rimlig tid för att rita om kopplingsschemat, och därefter GELD systemförvaltning ska hinna uppdatera sin Geld-bild. Samtidigt som man ska hinna fånga upp eventuella sena ändringar i projekten.\n","ProjectWise, Förvaltning järnväg"]
[null,null,null,null,null,null,null,null,null,null,null,null,null,null,null,null,null,null,"Dagen för inkoppling","Bro\nTunnel \nÖvriga byggnadsverk\n","Huvudinspektioner för bro, tunnel och övriga byggnadsverk måste vara registrerad.\n","BATMAN"]
[null,null,null,null,null,null,null,null,null,null,null,null,null,null,null,null,null,null,null,"Signalsystem","Datorställverksdokumentation behövs för akut felavhjälpning.\nEnligt TRVINFRA 00301, bilaga 4, paket 3 (Ställverk 95): Detta är filer som används för att ladda på mjukvara på signalställverket och eventuell radioblockscentral.\nOm exempelvis hårdvaran går sönder så behöver ny mjukvara läsas på och därav måste vi ha detta tillgängligt dagen för inkoppling.\n\nEnligt TRVINFRA 00301, bilaga 4, paket 6 (Ställverk 95): Detta är filer som används för att läsa på data på Eurobaliser som finns ute i spåret.\n\n ","EBBA samt fysiskt lagrat i anläggningen."]
[null,null,null,null,null,null,null,null,null,null,null,null,null,null,null,null,null,null,null,"Fordonsövervakande detektorer","Informationen (installationsprotokoll) behövs för att skapa/uppdatera detektorer i RFID-systemet, vilket måste finnas på plats vid inkoppling. \nRFID-systemet = Detektorsystem för identifiering av enskilt fordonsnummer.\n","EBBA"]
[null,null,null,null,null,null,null,null,null,null,null,null,null,null,null,null,null,null,"1 vecka efter inkoppling","Bro\nÖvriga byggnadsverk\nBanöverbyggnad\nBankropp\nSidoanläggning\nAdministrativ och funktionell företeelse\nHjälpkraftssystem\nKontaktledningssystem\nLågspänningssystem\nKraftförsörjningsanläggning\nSignalsystem\n","Informationen behövs för besiktning, felanmälan. För att UH bandata ska kunna ajorhålla anläggningen inför slutbesiktning.","BIS"]
[null,null,null,null,null,null,null,null,null,null,null,null,null,null,null,null,null,null,null,"Signalsystem","Programfiler för signalanläggningen behövs tillgängliga för UH-entreprenören egentligen direkt efter att trafik tillåts på anläggningen efter en inkoppling. I händelse av utbyte av ATC-kodare, RTU, ställverks- eller manöverdator måste signalteknikerna kunna ladda utrustningen med gällande programfiler.\nAtt levanskravet är satt till 1 vecka efter inkoppling är p.g.a eventuella ändringar i samband med ibruktagandet.\n","EBBA"]
[null,null,null,null,null,null,null,null,null,null,null,null,null,null,null,null,null,null,"3 veckor efter inkoppling","Bankropp\nÖvriga byggnadsverk\nBanöverbyggnad\nRadio och telefoni\nSignalsystem\nTrafikinformationsanläggning (Teknikgrupp)\nAdministrativa och funktionell företeelse\nRangerbangård\n","Informationen används för publik information om anläggningen, samt data ej omfattad av besiktningskrav.","BIS"]
[null,null,null,null,null,null,null,null,null,null,null,null,null,null,null,null,null,null,"1 månad efter plankorsningen tagits i bruk för vägtrafik","Plankorsning","Informationen behövs för att information om plankorsningens skyddsalternativ, driftstatus och andra egenskaper ska vara korrekta. Om plankorsningen blivit stängd eller slopad ska också uppdaterad information levereras.\n","PLK web"]
[null,null,null,null,null,null,null,null,null,null,null,null,null,null,null,null,null,null,"3 månader efter slutbesiktning","Bro\nTunnel och bergslänt\nÖvriga byggnadsverk\nBankropp","Hanteringen av inrapportering till BATMAN bygger på rutinbeskrivningen TDOK 2018:0200\n”Förvaltningsdata och uppgifter i BATMAN”. Här finns uppgift om när aktiviteterna senast ska vara utförda. \n","BATMAN"]
[null,null,null,null,null,null,null,null,null,null,null,null,null,null,null,null,null,null,"3 månader efter slutbesiktning","Bankropp\nÖvriga byggnadsverk\nGELD inklusive RTU:er\nHjälpkraftssystem\nKontaktledningssystem\nLågspänningssystem\nKraftförsörjningsanläggning\nFastighetsteknik\nPassagesystem\nRadio och telefoni\nSiter och kabelanläggning\nSignalsystem\nSidoanläggning\nBanöverbyggnad\nTrafikinformationsanläggning (Teknikgrupp)\nFordonsövervakande detektorer\nBaskarta\nByggnad\nMark\nPumpsystem\nRangerbangård\nSamtliga teknikområden (Geografiska modellfiler)\nGeodetiskt stomnät\nMiljö\nMatarledningssystem (32 och 132 kV)\n","Leveranstidskravet är satt utifrån att projektet ska ha rimlig tid på sig för att kunna ta fram handlingar av rätt kvalitet. Arbetet med att ta fram dokumentationen behöver påbörjas tidigare och vara väl förankrat i underhålls organisation i god tid inför leverans.\nInformationen behövs för drift och underhåll av anläggningen.","EBBA / ProjectWise, Förvaltning järnväg / ABBA-FT / LEB"]
[null,null,null,null,null,null,null,null,null,null,null,null,null,null,null,null,null,null,"1 månad efter Transportstyrelsens godkännande","Signalsystem\nBanöverbyggnad","Det finns krav på att säkerhetsbevisningen måste lagras under hela anläggningens livscykel. Därför begärs dokumentationen in senast 1 månad efter Transportstyrelsens godkännande. Transportstyrelsens godkännande är det sista steget i säkerhetsbevisningen.\n\n"," ProjectWise Förvaltning järnväg "]

{"sheet":"Lathund - BISobjekt","index":5,"n_rows":129,"n_cols":7,"rows_kept":129,"cut":false,"hidden":false,"merged":[[3,2,3,3],[2,1,2,4],[1,0,1,4]]}
["Lathund - BISobjekt"]
["Objekten i BIS har i tidigare leveransplaner haft en egen flik, så är det inte längre. Nu är alla BIS-objekten insorterade under den nya teknikområdesgrupperingen. För att underlätta övergången mellan den gamla strukturen och den nya finns nu denna lathund. "]
["Länk till BIS-mallar (Följ länken och klicka på mappen \"BIS\". Undantaget TMALL 0341 som återfinns i mappen \"Banöverbyggnad\"):","https://bransch.trafikverket.se/tjanster/publikationer-och-styrande-dokument/trafikverkets-styrande-dokument/blanketter-och-mallar-tillhorande-styrande-dokument/"]
[null,null,"NY STRUKTUR",null,"GAMMAL STRUKTUR"]
["BIS-objekt (Bokstavsordning)","BIS-mall","Teknikområdesgrupp","Teknikområde","Anläggningsstruktur i BIS","Leveranstid","Flik i leveransplan"]
["50 Hz-Frånskiljare","TMALL 0612","Elkraftssystem","Hjälpkraftssystem","Elanläggning","1 vecka efter inkoppling","6.2"]
["50 Hz-Hjälpkraftledning","TMALL 0613","Elkraftssystem","Hjälpkraftssystem","Elanläggning","1 vecka efter inkoppling","6.2"]
["50 Hz-Hjälpkrafttransformator","TMALL 0614","Elkraftssystem","Hjälpkraftssystem","Elanläggning","1 vecka efter inkoppling","6.2"]
["Avhängardäck","TMALL 1335","Övrigt","Rangerbangård"," --","3 veckor efter inkoppling","15.7"]
["Balisgrupp ERTMS","TMALL 0631","Signalsystem","Signalsystem","Signalanläggning","6 månader före inkoppling","8.1"]
["Ballast","TMALL 0599","Spårsystem","Banöverbyggnad","Banöverbyggnad","1 vecka efter inkoppling","9.1"]
["Bank","TMALL 0576","Bankropp","Bankropp","Banunderbyggnad","1 vecka efter inkoppling","4.1"]
["Befästning","TMALL 0600","Spårsystem","Banöverbyggnad","Banöverbyggnad","1 vecka efter inkoppling","9.1"]
["Belysning - Bangård","TMALL 1301","Elkraftssystem","Lågspänningssystem","Elanläggning","1 vecka efter inkoppling","6.5"]
["Belysning - Plattform","TMALL 0615","Elkraftssystem","Lågspänningssystem","Elanläggning","1 vecka efter inkoppling","6.5"]
["Brandvattenförsörjning","TMALL 1326","Övrigt","Rangerbangård","Övriga objekttyper","3 veckor efter inkoppling","15.7"]
["Bromsprovsanläggning","TMALL 1334","Övrigt","Rangerbangård"," --","3 veckor efter inkoppling","15.7"]
["Bullerskydd","TMALL 0653","Byggnadsverk","Övriga byggnadsverk","Övriga anläggningar","1 vecka efter inkoppling","5.3"]
["Detektor","TMALL 0644","Övervakningssystem","Detektor","Teleanläggning","6 månader före inkoppling","14.1"]
["Dilatationsanordning","TMALL 0962","Spårsystem","Banöverbyggnad","Banöverbyggnad","1 vecka efter inkoppling","9.1"]
["Dränering","TMALL 0577","Bankropp","Bankropp","Banunderbyggnad","1 vecka efter inkoppling","4.1"]
["Dynamisk skylt","TMALL 0649","Trafikinformationsanläggning","Trafikinformationsanläggning","Teleanläggning","3 veckor efter inkoppling","11.1"]
["ELC","TMALL 1322","Signalsystem","Signalsystem"," --","3 veckor efter inkoppling","8.1"]
["Erosionsskydd","TMALL 0578","Bankropp","Bankropp","Banunderbyggnad","1 vecka efter inkoppling","4.1"]
["ERTMS Hastighetsprofil Normalhuvudspår ","TMALL 1295","Övrigt","Funktionell företeelse","Övriga anläggningar","6 månader före inkoppling","15.1"]
["ERTMS Hastighetsprofil Övriga spår","TMALL 1296","Övrigt","Funktionell företeelse","Övriga anläggningar","6 månader före inkoppling","4.1"]
["FOMUL-rapport (enstaka objekt)","TMALL 0341","Övrigt","Funktionell företeelse"," --","1 vecka efter inkoppling","15.1"]
["Frostskyddsisolering","TMALL 0579","Bankropp","Bankropp","Banunderbyggnad","3 veckor efter inkoppling","4.1"]
["Fördelningsstation","TMALL 0616","Elkraftssystem","Kraftförsörjningsanläggning","Elanläggning","1 vecka efter inkoppling","6.4"]
["Fördröjningsmagasin","TMALL 0660","Bankropp","Bankropp","Övriga objekttyper","3 veckor efter inkoppling","4.1"]
["Geotekniska händelser","TMALL 0661","Bankropp","Bankropp","Övriga objekttyper","3 veckor efter inkoppling","4.1"]
["Glacismur","TMALL 0580","Bankropp","Bankropp","Banunderbyggnad","1 vecka efter inkoppling","4.1"]
["Gångbana","TMALL 1337","Övrigt","Sidoanläggning"," --","1 vecka efter inkoppling","9.3"]
["Hastighetsindikeringssystem","TMALL 0632","Signalsystem","Signalsystem","Signalanläggning","1 vecka efter inkoppling","8.1"]
["Huvudur","TMALL 0645","Trafikinformationsanläggning","Trafikinformationsanläggning","Teleanläggning","3 veckor efter inkoppling","11.1"]
["Hållplats, hållställe, övrig plats","TMALL 0662","Spårnät","Spårnät","Spårnät","6 månader före inkoppling","12.1"]
["Hägnad","TMALL 0654","Spårsystem","Sidoanläggning","Övriga anläggningar","1 vecka efter inkoppling","9.3"]
["Högtalare","TMALL 0651","Trafikinformationsanläggning","Trafikinformationsanläggning","Teleanläggning","3 veckor efter inkoppling","11.1"]
["Högtalare-PC","TMALL 0851","Trafikinformationsanläggning","Trafikinformationsanläggning","Teleanläggning","3 veckor efter inkoppling","11.1"]
["Isolerskarv","TMALL 0608","Spårsystem","Banöverbyggnad","Banöverbyggnad","6 månader före inkoppling och 3 veckor efter inkoppling","9.1"]
["Jordarmering","TMALL 0581","Bankropp","Bankropp","Banunderbyggnad","3 veckor efter inkoppling","4.1"]
["Jordspikning","TMALL 0582","Bankropp","Bankropp","Banunderbyggnad","3 veckor efter inkoppling","4.1"]
["Järnvägsbro","TMALL 0583","Byggnadsverk","Bro","Banunderbyggnad","6 månader före inkoppling","5.1"]
["Kalkcementpelare","TMALL 0584","Bankropp","Bankropp","Banunderbyggnad","3 veckor efter inkoppling","4.1"]
["Kanalisation","TMALL 0655","Byggnadsverk","Övriga byggnadsverk","Övriga anläggningar","3 veckor efter inkoppling","5.3"]
["Kopplingscentral","TMALL 0617","Elkraftssystem","Kraftförsörjningsanläggning","Elanläggning","1 vecka efter inkoppling","6.4"]
["Ktl U/L-område","TMALL 0876","Övrigt","Funktionell företeelse","Elanläggning","6 månader före inkoppling","15.1"]
["Ktl-Brygga/övrig upph.","TMALL 0618","Elkraftssystem","Kontaktledningssystem","Elanläggning","1 vecka efter inkoppling","6.3"]
["Ktl-Driftjord","TMALL 0619","Elkraftssystem","Kontaktledningssystem","Elanläggning","1 vecka efter inkoppling","6.3"]
["Ktl-Frånskiljare","TMALL 0620","Elkraftssystem","Kontaktledningssystem","Elanläggning","1 vecka efter inkoppling","6.3"]
["Ktl-Ledning","TMALL 0621","Elkraftssystem","Kontaktledningssystem","Elanläggning","1 vecka efter inkoppling","6.3"]
["Ktl-Sektion","TMALL 0622","Elkraftssystem","Kontaktledningssystem","Elanläggning","1 vecka efter inkoppling","6.3"]
["Ktl-Sektionsisolator","TMALL 0623","Elkraftssystem","Kontaktledningssystem","Elanläggning","1 vecka efter inkoppling","6.3"]
["Ktl-Skyddsektion","TMALL 0624","Elkraftssystem","Kontaktledningssystem","Elanläggning","1 vecka efter inkoppling","6.3"]
["Ktl-Stolpe","TMALL 0625","Elkraftssystem","Kontaktledningssystem","Elanläggning","1 vecka efter inkoppling","6.3"]
["Ktl-Transformator","TMALL 0626","Elkraftssystem","Kontaktledningssystem","Elanläggning","1 vecka efter inkoppling","6.3"]
["Lastplats","TMALL 0561","Spårsystem","Sidoanläggning","Bangårdsanläggning","6 månader före inkoppling","9.3"]
["Linjeblockeringssystem","TMALL 0633","Signalsystem","Signalsystem","Signalanläggning","3 veckor efter inkoppling","8.1"]
["Ljudanläggning","TMALL 0852","Trafikinformationsanläggning","Trafikinformationsanläggning","Teleanläggning","3 veckor efter inkoppling","11.1"]
["Lättfyllning","TMALL 0585","Bankropp","Bankropp","Banunderbyggnad","3 veckor efter inkoppling","4.1"]
["Nedpressning","TMALL 1166","Bankropp","Bankropp","Banunderbyggnad","3 veckor efter inkoppling","4.2"]
["Nätstation","TMALL 0627","Elkraftssystem","Kraftförsörjningsanläggning","Elanläggning","1 vecka efter inkoppling","6.4"]
["Nödlägesskåp","TMALL 0571","Övrigt","Rangerbangård","Övriga objekttyper","3 veckor efter inkoppling","5.1"]
["Omformarstation","TMALL 0628","Elkraftssystem","Kraftförsörjningsanläggning","Elanläggning","1 vecka efter inkoppling","6.4"]
["Plankorsning (Avser främst vägskyddsanl.)","TMALL 0634","Signalsystem","Signalsystem","Signalanläggning","6 månader före inkoppling och 3 veckor efter inkoppling","8.1"]
["Plattform","TMALL 0562","Spårsystem","Sidoanläggning","Bangårdsanläggning","6 månader före inkoppling","9.3"]
["Positioneringssystem","TMALL 0635","Signalsystem","Signalsystem","Signalanläggning","1 vecka efter inkoppling","8.1"]
["Prator","TMALL 0652","Trafikinformationsanläggning","Trafikinformationsanläggning","Teleanläggning","3 veckor efter inkoppling","11.1"]
["Pyramidmatta","TMALL 1267","Spårsystem","Banöverbyggnad"," --","3 veckor efter inkoppling","9.1"]
["Påldäck/bankpålning","TMALL 0586","Bankropp","Bankropp","Banunderbyggnad","3 veckor efter inkoppling","4.1"]
["Radio Block Center (ERTMS)","TMALL 0691","Signalsystem","Signalsystem","Signalanläggning","10 veckor före inkoppling","8.1"]
["Rangerbromssystem","TMALL 0564","Spårsystem","Banöverbyggnad","Bangårdsanläggning","3 veckor efter inkoppling","9.1"]
["Ras- och skredvarnings-system","TMALL 0810","Övervakningssystem","Detektor","Övriga anläggningar","6 månader före inkoppling","14.1"]
["RTU Siemens S7","TMALL 1157","Signalsystem","Signalsystem","Signalanläggning","6 månader före inkoppling","8.1"]
["RTU EBISAT 890","TMALL 1158","Signalsystem","Signalsystem","Signalanläggning","10 veckor före inkoppling","8.1"]
["Rustbädd","TMALL 0587","Bankropp","Bankropp","Banunderbyggnad","3 veckor efter inkoppling","4.1"]
["Räl","TMALL 0606","Spårsystem","Banöverbyggnad","Banöverbyggnad","1 vecka efter inkoppling","9.1"]
["Rälskontakt","TMALL 0636","Signalsystem","Signalsystem","Signalanläggning","1 vecka efter inkoppling","8.1"]
["Rälssmörjningsapparat","TMALL 0656","Spårsystem","Banöverbyggnad","Övriga anläggningar","3 veckor efter inkoppling","9.1"]
["Rälsvandringshinder","TMALL 0607","Spårsystem","Banöverbyggnad","Banöverbyggnad","1 vecka efter inkoppling","9.1"]
["Rör","TMALL 0668","Bankropp","Bankropp","Övriga objekttyper","3 veckor efter inkoppling","4.1"]
["Sektioneringsstation","TMALL 0629","Elkraftssystem","Kraftförsörjningsanläggning","Elanläggning","1 vecka efter inkoppling","6.4"]
["Service och räddningstunnel","TMALL 0588","Byggnadsverk","Tunnel och bergslänt","Banunderbyggnad","6 månader före inkoppling","5.2"]
["Signal (ej ATC)","TMALL 0637","Signalsystem","Signalsystem","Signalanläggning","6 månader före inkoppling och 3 veckor efter inkoppling","8.1"]
["Signalpunktstavla ERTMS","TMALL 0638","Signalsystem","Signalsystem","Signalanläggning","6 månader före inkoppling","8.1"]
["Signalställverk","TMALL 0639","Signalsystem","Signalsystem","Signalanläggning","10 veckor före inkoppling","8.1"]
["Skarv öppningsbar bro","TMALL 0963","Spårsystem","Banöverbyggnad","Banöverbyggnad","1 vecka efter inkoppling","9.1"]
["Skyddsräl","TMALL 0669","Spårsystem","Banöverbyggnad","Övriga objekttyper","3 veckor efter inkoppling","9.1"]
["Skärning","TMALL 0589","Bankropp","Bankropp","Banunderbyggnad","1 vecka efter inkoppling","4.1"]
["Sliper","TMALL 0609","Spårsystem","Banöverbyggnad","Banöverbyggnad","1 vecka efter inkoppling","9.1"]
["Snögalleri","TMALL 0657","Byggnadsverk","Övriga byggnadsverk","Övriga anläggningar","1 vecka efter inkoppling","5.3"]
["Snöskärm","TMALL 0658","Byggnadsverk","Övriga byggnadsverk","Övriga anläggningar","1 vecka efter inkoppling","5.3"]
["Spillplatta","TMALL 0573","Övrigt","Rangerbangård","Övriga objekttyper","3 veckor efter inkoppling","15.7"]
["Spont","TMALL 0590","Bankropp","Bankropp","Banunderbyggnad","3 veckor efter inkoppling","4.1"]
["Spårkors","TMALL 0610","Spårsystem","Banöverbyggnad","Banöverbyggnad","6 månader före inkoppling och 3 veckor efter inkoppling","9.1"]
["Spårledning (Fysisk)","TMALL 0640","Signalsystem","Signalsystem","Signalanläggning","6 månader före inkoppling","8.1"]
["Spårspärr","TMALL 0565","Spårsystem","Banöverbyggnad","Bangårdsanläggning","6 månader före inkoppling och 3 veckor efter inkoppling","9.1"]
["Spårväxel 3V","TMALL 0603","Spårsystem","Banöverbyggnad","Banöverbyggnad","6 månader före inkoppling och 3 veckor efter inkoppling","9.1"]
["Spårväxel EV/EVR","TMALL 0601","Spårsystem","Banöverbyggnad","Banöverbyggnad","6 månader före inkoppling och 3 veckor efter inkoppling","9.1"]
["Spårväxel EVK/DKV","TMALL 0602","Spårsystem","Banöverbyggnad","Banöverbyggnad","6 månader före inkoppling och 3 veckor efter inkoppling","9.1"]
["Spänningsfri temperatur","TMALL 0672","Spårsystem","Banöverbyggnad","Övriga objekttyper","3 veckor efter inkoppling","9.1"]
["Stationsdator SL","TMALL 0647","Trafikinformationsanläggning","Trafikinformationsanläggning","Teleanläggning","3 veckor efter inkoppling","11.1"]
["Statisk skylt*","TMALL 0650","Trafikinformationsanläggning","Trafikinformationsanläggning","Teleanläggning","3 veckor efter inkoppling","11.1"]
["STH A_B_S-tåg (ERTMS)","TMALL 0812","Övrigt","Funktionell företeelse","Övriga objekttyper","6 månader före inkoppling","15.1"]
["Stoppbock","TMALL 0568","Spårsystem","Banöverbyggnad","Bangårdsanläggning","6 månader före inkoppling","9.1"]
["Stödmur","TMALL 0591","Byggnadsverk","Övriga byggnadsverk","Banunderbyggnad","1 vecka efter inkoppling","5.3"]
["Tavla (ej ATC)","TMALL 0641","Signalsystem","Signalsystem","Signalanläggning","6 månader före inkoppling och 3 veckor efter inkoppling","8.1"]
["Tavla (främst ATC)","TMALL 1297","Signalsystem","Signalsystem"," --","6 månader före inkoppling","8.2"]
["Teknikbyggnad","TMALL 0659","Elkraftssystem","Lågspänningssystem","Övriga anläggningar","1 vecka efter inkoppling","6.5"]
["Telefon","TMALL 0643","Telekominfrastruktur","Radio och telefoni","Teleanläggning","3 veckor efter inkoppling","10.1"]
["Transformatorstation","TMALL 0630","Elkraftssystem","Kraftförsörjningsanläggning","Elanläggning","1 vecka efter inkoppling","6.4"]
["Trumma","TMALL 0592","Byggnadsverk","Bankropp","Banunderbyggnad","1 vecka efter inkoppling","5.3"]
["Tryckbank/stödbank","TMALL 0593","Bankropp","Bankropp","Banunderbyggnad","1 vecka efter inkoppling","4.1"]
["Tryckluftsanläggning","TMALL 1336","Övrigt","Rangerbangård"," --","3 veckor efter inkoppling","15.7"]
["Tunnel","TMALL 0594","Byggnadsverk","Övriga byggnadsverk","Banunderbyggnad","6 månader före inkoppling","5.2"]
["Tåg och lokvärmeanläggning","TMALL 0566","Elkraftssystem","Lågspänningssystem","Bangårdsanläggning","6 månader före inkoppling","6.5"]
["Underballast","TMALL 0595","Bankropp","Bankropp","Banunderbyggnad","1 vecka efter inkoppling","4.1"]
["Uppställningsspår","TMALL 0813","Övrigt","Funktionell företeelse","Övriga objekttyper","3 veckor efter inkoppling","15.1"]
["Ur","TMALL 0648","Trafikinformationsanläggning","Trafikinformationsanläggning","Teleanläggning","3 veckor efter inkoppling","11.1"]
["Urgrävning/utskiftning","TMALL 0596","Bankropp","Bankropp","Banunderbyggnad","3 veckor efter inkoppling","4.1"]
["Urspårningsslinga","TMALL 0642","Övervakningssystem","Detektor","Signalanläggning","6 månader före inkoppling","14.1"]
["Utdelsenhet","TMALL 1321","Signalsystem","Signalsystem"," --","3 veckor efter inkoppling","8.1"]
["Varningssystem","TMALL 0574","Övrigt","Rangerbangård","Övriga objekttyper","3 veckor efter inkoppling","15.7"]
["Väderobservationsutrustning","TMALL 0575","Övrigt","Rangerbangård","Övriga objekttyper","3 veckor efter inkoppling","15.7"]
["Vägbro","TMALL 0597","Byggnadsverk","Bro","Banunderbyggnad","1 vecka efter inkoppling","5.1"]
["Vändskiva","TMALL 0567","Byggnadsverk","Övriga byggnadsverk","Bangårdsanläggning","1 vecka efter inkoppling","5.3"]
["Växelvärmeskåp","TMALL 0611","Elkraftssystem","Lågspänningssystem","Banöverbyggnad","1 vecka efter inkoppling","6.5"]
["Åtkomlighet och nödlägesinformation","TMALL 0570","Övrigt","Rangerbangård"," --","3 veckor efter inkoppling","15.7"]
["Öppet dike","TMALL 0598","Bankropp","Bankropp","Banunderbyggnad","1 vecka efter inkoppling","4.1"]

{"sheet":"Arkivservice - Analog leverans","index":6,"n_rows":22,"n_cols":2,"rows_kept":22,"cut":false,"hidden":false,"merged":[[8,0,8,1],[21,0,21,1]]}
["Arkivservice"]
[]
["Kontaktuppgift"]
["Trafikverket\nArkivservice\nBox 111\n431 22 Mölndal\nMejl: arkivservice@trafikverket.se \nTel: 010-1239055"]
[]
["Leverera dokument"]
["Till Arkivservice ska det bara levereras analoga handlingar som saknar CAD-underlag. Det gäller alla teknikområden, nu även signal."]
[]
["Paket ska skickas med Postnord och tjänsten REK EXTRA. OBS! Inte som företagspaket eller annan vanlig post. Arkivservice ansvarar inte för paket som skickats på fel sätt, till exempel om fel adress använts eller fel postleverantör."]
[]
["Avisering om inleverans av de analoga ritningarna sker via Ebba."]
[]
["Packningsinstruktion"]
[]
["Det är viktigt att det är ordning och reda i paketen som skickas till Arkivservice, detta för att underlätta uppackningen av handlingarna."]
[]
["Innehåll:"]
[]
["Följesedel (gäller signal)","Pricka av alla gulmarkerade ritningar i listan och signera.\nFöljesedeln utgör en egenkontroll där projekten kontrollerar att alla de analoga ritningarna som förväntas finnas i leveransen till Arkivservice verkligen är med i leveransen."]
["Ritningar","Alla ritningar ska sorteras i nummerordning och per storlek (A3, rullar och övriga format för sig). Respektive anläggning ska separeras från varandra. "]
[]
["Om analoga dokument slopas eller ersätts av digitalt CAD-underlag ska de analoga dokumenten återsändas till Arkivservice som kasserar dem. Dokumenten ska vara märkta med texten \"Slopad\".\n\nProjektet ska INTE själv kassera analoga ritningar."]

{"sheet":"Projektuppgifter","index":7,"n_rows":169,"n_cols":14,"rows_kept":169,"cut":false,"hidden":false,"merged":[[5,7,10,7],[2,4,2,6],[2,0,2,2],[3,1,3,2],[4,1,4,2],[5,1,5,2],[8,1,8,2],[9,1,9,2],[13,1,13,2],[18,2,18,3],[3,4,3,5],[4,4,4,5],[5,4,5,5],[6,4,6,5],[7,4,7,5],[8,4,8,5],[10,4,10,5],[6,1,6,2],[7,1,7,2],[9,4,9,5],[16,0,16,4]]}
["Projektuppgifter"]
[null,"Fylls i av projekt:",null,null,null,null,"Fylls i av projekt:"]
["Projektuppgifter",null,null,null,"Tider i projektet (Endast ett datum i varje cell, i formatet ÅÅÅÅ-MM-DD) \nEndast ett datum kan skrivas i fältet."]
["Åtgärdsnummer:",null,null,null,"Projektets startdatum:"]
["Uppdragsnummer:",null,null,null,"Projektets slutdatum:"]
["Projektnamn:",null,null,null,"Datum för utjämningsberäkning av stompunktsetablering:",null,null,"De datum som anges här ligger till grund för de datum som automatiskt genereras i respektive flik. \n\nMan kan sedan ändra datumet i respektive flik, så att det stämmer med rätt datum per teknikområde och inkoppling (etapper).\n\nOm flera inkopplingsdatum finns: se fliken Etappbeskrivning. Fler rader/flikar kan läggas till (exempelvis en för varje Änot). "]
["Bandel, trafikplats:",null,null,null,"Datum då plankorsning tas i eller ur bruk för vägtrafik:"]
["Start km - Slut km",null,null,null,"Inläsningsdatum till tågledningssystem:"]
["Projektledare:",null,null,null,"Inkopplingsdatum:"]
["Kort beskrivning om projektet: (Ange länken till Systemstöd Planering): ",null,null,null,"Slutbesiktningsdatum: "]
["Länk till AKJ",null,null,null,"Datum för Transportstyrelsens godkännande:"]
["Överlämnandekoordinator (ÖK):"]
["Mottagandekoordinator (MK):"]
["Indatakoordinator (IK):"]
[]
[]
["Länk till alla TMALL:ar som ska levereras enligt denna leveransplan återfinns här, i mappen BIS och Förvaltningsdata:"]
["Länkar till TMALLar"]
["Fylls i av:","Projekt","Leverantör",null,"Projekt",null,null,null,null,null,null,null,null,"ÖK"]
["Leveranstid","Påverkas av projektet","Leverans från leverantör (E/K) till leveransyta enligt kolumn L eller annan överenskommen yta, för mottagningskontroll senast: ","Levererat av \n(namn + datum) ","Levereransen ska vara levererad till mottagande förvaltning senast:","Teknikområdesgrupp","Teknikområde","Delområde","Data/ Dokument","Avsnitt i TDOK 2016:0407","Flik i leverans-planen","Projektet ska leverera till","Förvaltande system","Status på leveransen?"]
["01. 30 april 32-20 månader före inkoppling",null,null,null,"Projektet får fylla i tid själv","Övrigt"," --","JNB","Dokument","15.12","15.12","jnb.infrastruktur@trafikverket.se ","JNB"]
["02. 30 september 27-15 månader före inkoppling",null,null,null,"Projektet får fylla i tid själv","Övrigt"," --","Tågplan","Dokument","15.13","15.13","Projektets lagringsyta","Tågplan"]
["03. 2 veckor efter utjämningsberäkning av stompunktsetablering","Ja",{"$f":"IF(E23=\"\",\"\",E23-14)","v":""},null,{"$f":"IF($G$6=\"\",\"\",DATE(YEAR('9.2 Geodetiskt stomnät'!B2),MONTH('9.2 Geodetiskt stomnät'!B2),DAY('9.2 Geodetiskt stomnät'!B2)+14))","v":""},"Spårsystem","Geodetiskt stomnät",null,"Dokument","9.2.1","9.2","PW/FJ/Förvaltningsdata Leveranser","PW/FJ"]
["04. Vid färdig bygghandling, senast 6 månader före inkoppling",null,{"$f":"IF(E24=\"\",\"\",E24-14)","v":""},null,{"$f":"IF(G9=\"\",\"\",EDATE('10.1 Radio och telefoni'!B2,-6))","v":""},"Telekominfrastruktur","Radio och telefoni"," --","Dokument","10.1.2.1","10.1","Projektets lagringsyta","PW/ICT"]
["04. Vid färdig bygghandling, senast 6 månader före inkoppling",null,{"$f":"IF(E25=\"\",\"\",E25-14)","v":""},null,{"$f":"IF(G9=\"\",\"\",EDATE('10.2 Siter och kabelanl'!B2,-6))","v":""},"Telekominfrastruktur","Siter och kabelanläggning","Kabelanläggning","Dokument","10.2.2.1","10.2","Projektets lagringsyta","PW/ICT"]
["04. Vid färdig bygghandling, senast 6 månader före inkoppling",null,"",null,{"$f":"IF(G9=\"\",\"\",EDATE('10.2 Siter och kabelanl'!B2,-6))","v":""},"Telekominfrastruktur","Siter och kabelanläggning","Kraft - Tele","Dokument","10.2.2.2","10.2","Projektets lagringsyta","PW/ICT"]
["04. Vid färdig bygghandling, senast 6 månader före inkoppling",null,"",null,{"$f":"IF(G9=\"\",\"\",EDATE('10.2 Siter och kabelanl'!B2,-6))","v":""},"Telekominfrastruktur","Siter och kabelanläggning","Nödfrånkopplingsslinga - Kopparkabel","Dokument","10.2.2.3","10.2","Projektets lagringsyta","PW/ICT"]
["04. Vid färdig bygghandling, senast 6 månader före inkoppling",null,"",null,{"$f":"IF(G9=\"\",\"\",EDATE('10.2 Siter och kabelanl'!B2,-6))","v":""},"Telekominfrastruktur","Siter och kabelanläggning","Teletransmission","Dokument","10.2.2.4","10.2","Projektets lagringsyta","PW/ICT"]
["04. Vid färdig bygghandling, senast 6 månader före inkoppling",null,"",null,{"$f":"IF(G9=\"\",\"\",EDATE('11.1 Trafikinformationsanl'!B2,-6))","v":""},"Trafikinformationsanläggning"," --"," --","Dokument","11.1.2","11.1","Ebbas leveransyta","Ebba"]
["05. 6 månader före inkoppling","Ja",null,null,null,"Övrigt"," --"," --","Dokument","12.1","Etappbeskrivning"," --","BIS"]
["05. 6 månader före inkoppling",null,{"$f":"IF(E31=\"\",\"\",E31-60)","v":""},null,{"$f":"IF($G$9=\"\",\"\",EDATE('5.1 Bro'!B2,-6))","v":""},"Byggnadsverk","Bro"," --","Data","5.1.1","5.1","Projektets lagringsyta","BIS"]
["05. 6 månader före inkoppling",null,{"$f":"IF(E32=\"\",\"\",E32-60)","v":""},null,{"$f":"IF($G$9=\"\",\"\",EDATE('5.2 Tunnel o bergslänt'!B2,-6))","v":""},"Byggnadsverk","Tunnel och bergslänt"," --","Data","5.2.1","5.2","Projektets lagringsyta","BIS"]
["05. 6 månader före inkoppling",null,"",null,{"$f":"IF($G$9=\"\",\"\",EDATE('9.1 Banöverbyggnad'!C2,-6))","v":""},"Spårsystem","Banöverbyggnad"," --","Data","9.1.1","9.1","Projektets lagringsyta","BIS"]
["05. 6 månader före inkoppling","Ja","",null,{"$f":"IF($G$9=\"\",\"\",EDATE('12.1 Övrig BIS-leverans'!B2,-6))","v":""},"Trafiknät","Övrig BIS leverans"," --","Data","12.1.1","12.1","Projektets lagringsyta","BIS och GAD"]
["05. 6 månader före inkoppling",null,"",null,{"$f":"IF($G$9=\"\",\"\",EDATE('9.3 Sidoanläggning'!C2,-6))","v":""},"Spårsystem","Sidoanläggning"," --","Data","9.3.1","9.3","Projektets lagringsyta","BIS"]
["05. 6 månader före inkoppling",null,"",null,{"$f":"IF($G$9=\"\",\"\",EDATE('15.1 Admin. o funkt. företeelse'!B2,-6))","v":""},"Övrigt","Administrativ och funktionell företeelse","Funktionell företeelse","Data","15.1.1.1","15.1","Projektets lagringsyta","BIS"]
["05. 6 månader före inkoppling",null,"",null,{"$f":"IF($G$9=\"\",\"\",EDATE('6.5 Lågspänningssystem'!C2,-6))","v":""},"Elkraftssystem","Lågspänningssystem"," --","Data","6.5.1","6.5","Projektets lagringsyta","BIS"]
["05. 6 månader före inkoppling",null,"",null,{"$f":"IF($G$9=\"\",\"\",EDATE('8.1 Signalsystem'!C2,-6))","v":""},"Signalsystem","Signalsystem"," --","Data","8.1.1","8.1","Projektets lagringsyta","BIS"]
["05. 6 månader före inkoppling",null,"",null,{"$f":"IF($G$9=\"\",\"\",EDATE('14.1 Fordonsöverv. detektor'!B2,-6))","v":""},"Övervakningssystem","Fordonsövervakande detektorer"," --","Data","14.1.1","14.1","Projektets lagringsyta","BIS"]
["05. 6 månader före inkoppling ",null,"",null,{"$f":"IF($G$9=\"\",\"\",EDATE('15.6 Plankorsning'!C2,-6))","v":""},"Övrigt","Plankorsning"," --","Data","15.6.1","15.6","Plk webb","Plk webb"]
["07. 4 månader före inläsning",null,null,null,{"$f":"IF($G$8=\"\",\"\",EDATE('13.1 Trafikstyrningssystem'!B2,-4))","v":""},"Tågledningssystem","Trafikstyrningssystem"," --","Data","13.1.1","13.1","Registreras i inläsningsportalen","Tågledningssystemet"]
["08. 4 månader före plankorsningen tas i eller ur bruk för vägtrafik",null,{"$f":"IF(E42=\"\",\"\",E42-7)","v":""},null,{"$f":"IF($G$7=\"\",\"\",EDATE('15.6 Plankorsning'!C3,-4))","v":""},"Övrigt","Plankorsning"," --","Data","15.6.1","15.6","Plk webb","Plk webb"]
["09. 10 veckor före inkoppling",null,{"$f":"IF(E43=\"\",\"\",E43-60)","v":""},null,{"$f":"IF($G$9=\"\",\"\",DATE(YEAR('8.1 Signalsystem'!C2),MONTH('8.1 Signalsystem'!C2),DAY('8.1 Signalsystem'!C2)-70))","v":""},"Signalsystem","Signalsystem"," --","Dokument","8.1.2","8.1","Inte aktuellt","PW/FU"]
["09. 10 veckor före inkoppling",null,{"$f":"IF(E44=\"\",\"\",E44-60)","v":""},null,{"$f":"IF($G$9=\"\",\"\",DATE(YEAR('8.1 Signalsystem'!C2),MONTH('8.1 Signalsystem'!C2),DAY('8.1 Signalsystem'!C2)-70))","v":""},"Signalsystem","Signalsystem"," --","Data","8.1.1","8.1","Projektets lagringsyta","BIS"]
["09. 10 veckor före inkoppling",null,{"$f":"IF(E45=\"\",\"\",E45-60)","v":""},null,{"$f":"IF($G$9=\"\",\"\",DATE(YEAR('10.2 Siter och kabelanl'!B2),MONTH('10.2 Siter och kabelanl'!B2),DAY('10.2 Siter och kabelanl'!B2)-70))","v":""},"Telekominfrastruktur","Siter och kabelanläggning","Kabelanläggning","Dokument","10.2.2.1","10.2","Projektets lagringsyta","PW/ICT"]
["09. 10 veckor före inkoppling",null,{"$f":"IF(E46=\"\",\"\",E46-60)","v":""},null,{"$f":"IF($G$9=\"\",\"\",DATE(YEAR('6.1 GELD inkl RTU'!B2),MONTH('6.1 GELD inkl RTU'!B2),DAY('6.1 GELD inkl RTU'!B2)-70))","v":""},"Elkraftssystem","GELD inklusive RTU:er"," --","Dokument","6.1.1","6.1","Projektets lagringsyta","PW/ICT"]
["09. 10 veckor före inkoppling",null,"",null,{"$f":"IF($G$9=\"\",\"\",DATE(YEAR('6.3 Kontaktledningssystem'!B2),MONTH('6.3 Kontaktledningssystem'!B2),DAY('6.3 Kontaktledningssystem'!B2)-70))","v":""},"Elkraftssystem","Kontaktledningssystem"," --","Dokument","6.3.2","6.3","Projektets lagringsyta","PW/ICT"]
["09. 10 veckor före inkoppling",null,"",null,{"$f":"IF($G$9=\"\",\"\",DATE(YEAR('6.4 Kraftförsörjningsanläggning'!B2),MONTH('6.4 Kraftförsörjningsanläggning'!B2),DAY('6.4 Kraftförsörjningsanläggning'!B2)-70))","v":""},"Elkraftssystem","Kraftförsörjningsanläggning","Fördelningsstation","Dokument","6.4.2.1","6.4","Projektets lagringsyta","PW/ICT"]
["09. 10 veckor före inkoppling",null,"",null,{"$f":"IF($G$9=\"\",\"\",DATE(YEAR('6.4 Kraftförsörjningsanläggning'!B2),MONTH('6.4 Kraftförsörjningsanläggning'!B2),DAY('6.4 Kraftförsörjningsanläggning'!B2)-70))","v":""},"Elkraftssystem","Kraftförsörjningsanläggning","Kopplingscentral","Dokument","6.4.2.2","6.4","Projektets lagringsyta","PW/ICT"]
["09. 10 veckor före inkoppling",null,"",null,{"$f":"IF($G$9=\"\",\"\",DATE(YEAR('6.4 Kraftförsörjningsanläggning'!B2),MONTH('6.4 Kraftförsörjningsanläggning'!B2),DAY('6.4 Kraftförsörjningsanläggning'!B2)-70))","v":""},"Elkraftssystem","Kraftförsörjningsanläggning","Omformarstation","Dokument","6.4.2.3","6.4","Projektets lagringsyta","PW/ICT"]
["09. 10 veckor före inkoppling",null,"",null,{"$f":"IF($G$9=\"\",\"\",DATE(YEAR('6.4 Kraftförsörjningsanläggning'!B2),MONTH('6.4 Kraftförsörjningsanläggning'!B2),DAY('6.4 Kraftförsörjningsanläggning'!B2)-70))","v":""},"Elkraftssystem","Kraftförsörjningsanläggning","Sektioneringsstation","Dokument","6.4.2.4","6.4","Projektets lagringsyta","PW/ICT"]
["09. 10 veckor före inkoppling",null,"",null,{"$f":"IF($G$9=\"\",\"\",DATE(YEAR('6.4 Kraftförsörjningsanläggning'!B2),MONTH('6.4 Kraftförsörjningsanläggning'!B2),DAY('6.4 Kraftförsörjningsanläggning'!B2)-70))","v":""},"Elkraftssystem","Kraftförsörjningsanläggning","Transformatorstation","Dokument","6.4.2.5","6.4","Projektets lagringsyta","PW/ICT"]
["09. 10 veckor före inkoppling",null,"",null,{"$f":"IF($G$9=\"\",\"\",DATE(YEAR('6.5 Lågspänningssystem'!C2),MONTH('6.5 Lågspänningssystem'!C2),DAY('6.5 Lågspänningssystem'!C2)-70))","v":""},"Elkraftssystem","Lågspänningssystem","Belysning","Dokument","6.5.2.1","6.5","Projektets lagringsyta","PW/ICT"]
["09. 10 veckor före inkoppling",null,"",null,{"$f":"IF($G$9=\"\",\"\",DATE(YEAR('6.5 Lågspänningssystem'!C2),MONTH('6.5 Lågspänningssystem'!C2),DAY('6.5 Lågspänningssystem'!C2)-70))","v":""},"Elkraftssystem","Lågspänningssystem","Distributionsnät mindre än 1000V","Dokument","6.5.2.2","6.5","Projektets lagringsyta","PW/ICT"]
["09. 10 veckor före inkoppling",null,"",null,{"$f":"IF($G$9=\"\",\"\",DATE(YEAR('6.5 Lågspänningssystem'!C2),MONTH('6.5 Lågspänningssystem'!C2),DAY('6.5 Lågspänningssystem'!C2)-70))","v":""},"Elkraftssystem","Lågspänningssystem","Elanläggning - Teknikbyggnad","Dokument","6.5.2.3","6.5","Projektets lagringsyta","PW/ICT"]
["09. 10 veckor före inkoppling",null,"",null,{"$f":"IF($G$9=\"\",\"\",DATE(YEAR('6.5 Lågspänningssystem'!C2),MONTH('6.5 Lågspänningssystem'!C2),DAY('6.5 Lågspänningssystem'!C2)-70))","v":""},"Elkraftssystem","Lågspänningssystem","Kraftförsörjning - Datorhall","Dokument","6.5.2.4","6.5","Projektets lagringsyta","PW/ICT"]
["09. 10 veckor före inkoppling",null,"",null,{"$f":"IF($G$9=\"\",\"\",DATE(YEAR('6.5 Lågspänningssystem'!C2),MONTH('6.5 Lågspänningssystem'!C2),DAY('6.5 Lågspänningssystem'!C2)-70))","v":""},"Elkraftssystem","Lågspänningssystem","Kraftförsörjning - Trafikledningscentral","Dokument","6.5.2.5","6.5","Projektets lagringsyta","PW/ICT"]
["09. 10 veckor före inkoppling",null,"",null,{"$f":"IF($G$9=\"\",\"\",DATE(YEAR('6.5 Lågspänningssystem'!C2),MONTH('6.5 Lågspänningssystem'!C2),DAY('6.5 Lågspänningssystem'!C2)-70))","v":""},"Elkraftssystem","Lågspänningssystem","Tåg och lokvärme","Dokument","6.5.2.7","6.5","Projektets lagringsyta","PW/ICT"]
["09. 10 veckor före inkoppling",null,"",null,{"$f":"IF($G$9=\"\",\"\",DATE(YEAR('6.5 Lågspänningssystem'!C2),MONTH('6.5 Lågspänningssystem'!C2),DAY('6.5 Lågspänningssystem'!C2)-70))","v":""},"Elkraftssystem","Lågspänningssystem","Växelvärme","Dokument","6.5.2.8","6.5","Projektets lagringsyta","PW/ICT"]
["09. 10 veckor före inkoppling",null,"",null,{"$f":"IF($G$9=\"\",\"\",DATE(YEAR('6.6 Matarledningssystem'!B2),MONTH('6.6 Matarledningssystem'!B2),DAY('6.6 Matarledningssystem'!B2)-70))","v":""},"Elkraftssystem","Matarledningssystem (32 och 132 kV)"," --","Dokument","6.6.1","6.6","Projektets lagringsyta","PW/ICT"]
["09. 10 veckor före inkoppling",null,"",null,{"$f":"IF($G$9=\"\",\"\",DATE(YEAR('6.7 Nätstation'!B2),MONTH('6.7 Nätstation'!B2),DAY('6.7 Nätstation'!B2)-70))","v":""},"Elkraftssystem","Nätstation"," --","Dokument","6.7.2","6.7","Projektets lagringsyta","PW/ICT"]
["09. 10 veckor före inkoppling",null,"",null,{"$f":"IF($G$9=\"\",\"\",DATE(YEAR('7.3 Tillträdesskydd o brandlarm'!B2),MONTH('7.3 Tillträdesskydd o brandlarm'!B2),DAY('7.3 Tillträdesskydd o brandlarm'!B2)-70))","v":""},"Fastighetsinstallationer","Tillträdeskydd och brandlarm","Passagekontroll- inbrottslarm- och brandvarningssystem","Dokument","7.3.1.1","7.3","Projektets lagringsyta","PW/ICT"]
["09. 10 veckor före inkoppling",null,"",null,{"$f":"IF($G$9=\"\",\"\",DATE(YEAR('8.1 Signalsystem'!C2),MONTH('8.1 Signalsystem'!C2),DAY('8.1 Signalsystem'!C2)-70))","v":""},"Signalsystem"," --"," --","Dokument","8.1.2","8.1","Projektets lagringsyta","PW/ICT"]
["10. 2 månader före inkoppling",null,{"$f":"IF(E64=\"\",\"\",E64-14)","v":""},null,{"$f":"IF($G$9=\"\",\"\",EDATE('15.10 Underlag till linjeboken'!B2,-2))","v":""},"Övrigt","Underlag till linjeboken"," --","Dokument","15.10.1","15.10","linjeboken@trafikverket.se","Underlag till linjeboken"]
["10. 2 månader före inkoppling",null,{"$f":"IF(E65=\"\",\"\",E65-14)","v":""},null,{"$f":"IF($G$9=\"\",\"\",EDATE('15.11 Underlag till säk.plan'!B2,-2))","v":""},"Övrigt","Underlag till säkerhetsplan"," --","Dokument","15.11.1","15.11","forvalta.sakerhetsdok@trafikverket.se","Underlag till säkerhetsplan, driftplats"]
["11. 1 månad före inkoppling",null,{"$f":"IF(E66=\"\",\"\",E66-14)","v":""},null,{"$f":"IF($G$9=\"\",\"\",EDATE('5.1 Bro'!B2,-1))","v":""},"Byggnadsverk","Bro"," --","Data","5.1.1","5.1","BATMAN","BATMAN"]
["11. 1 månad före inkoppling",null,{"$f":"IF(E67=\"\",\"\",E67-14)","v":""},null,{"$f":"IF($G$9=\"\",\"\",EDATE('5.1 Bro'!B2,-1))","v":""},"Byggnadsverk","Bro"," --","Dokument","5.1.2","5.1","BATMAN","BATMAN"]
["11. 1 månad före inkoppling",null,"",null,{"$f":"IF($G$9=\"\",\"\",EDATE('5.2 Tunnel o bergslänt'!B2,-1))","v":""},"Byggnadsverk","Tunnel och bergslänt"," --","Data","5.2.1","5.2","BATMAN","BATMAN"]
["11. 1 månad före inkoppling",null,"",null,{"$f":"IF($G$9=\"\",\"\",EDATE('5.2 Tunnel o bergslänt'!B2,-1))","v":""},"Byggnadsverk","Tunnel och bergslänt"," --","Dokument","5.2.2","5.2","BATMAN","BATMAN"]
["11. 1 månad före inkoppling",null,"",null,{"$f":"IF($G$9=\"\",\"\",EDATE('5.3 Övriga byggnadsverk'!B3,-1))","v":""},"Byggnadsverk","Övriga byggnadsverk"," --","Data","5.3.1","5.3","BATMAN","BATMAN"]
["11. 1 månad före inkoppling",null,"",null,{"$f":"IF($G$9=\"\",\"\",EDATE('5.3 Övriga byggnadsverk'!B3,-1))","v":""},"Byggnadsverk","Övriga byggnadsverk"," --","Dokument","5.3.2","5.3","BATMAN","BATMAN"]
["11. 1 månad före inkoppling",null,"",null,{"$f":"IF($G$9=\"\",\"\",EDATE('5.3 Övriga byggnadsverk'!B3,-1))","v":""},"Banunderbyggnad","Bankropp","Trumma, påldäck och magasin för dagvatten","Data","4.1.2.1","4.1","BATMAN","BATMAN"]
["11. 1 månad före inkoppling",null,"",null,{"$f":"IF($G$9=\"\",\"\",EDATE('5.3 Övriga byggnadsverk'!B3,-1))","v":""},"Banunderbyggnad","Bankropp","Trumma, påldäck och magasin för dagvatten","Dokument","4.1.2.1","4.1","BATMAN","BATMAN"]
["12. 2 veckor före inkoppling",null,{"$f":"IF(E74=\"\",\"\",E74-7)","v":""},null,{"$f":"IF($G$9=\"\",\"\",DATE(YEAR('6.3 Kontaktledningssystem'!B2),MONTH('6.3 Kontaktledningssystem'!B2),DAY('6.3 Kontaktledningssystem'!B2)-14))","v":""},"Elkraftssystem","Kontaktledningssystem"," --","Dokument","6.3.2","6.3","PW/FJ/Förvaltningsdata Leveranser","PW/FJ"]
["13. Dagen för inkoppling",null,{"$f":"E75","v":""},null,{"$f":"IF($G$9=\"\",\"\",'14.1 Fordonsöverv. detektor'!B2)","v":""},"Övervakningssystem","Fordonsövervakande detektorer","RFID-detektor","Dokument","14.1.2.1","14.1","Ebbas leveransyta","Ebba"]
["13. Dagen för inkoppling",null,{"$f":"E76","v":""},null,{"$f":"IF($G$9=\"\",\"\",'8.1 Signalsystem'!C2)","v":""},"Signalsystem","Signalsystem"," --","Dokument","8.1.2","8.1","Ebbas leveransyta","Ebba"]
["13. Dagen för inkoppling",null,{"$f":"E77","v":""},null,{"$f":"IF($G$9=\"\",\"\",'8.1 Signalsystem'!C3)","v":""},"Signalsystem","Signalsystem"," --","Dokument","8.1.2","8.1","Fysikt lagring i anläggningen","Fysikt lagring i anläggningen"]
["13. Dagen för inkoppling",null,"",null,{"$f":"IF($G$9=\"\",\"\",'5.1 Bro'!B2)","v":""},"Byggnadsverk","Bro"," --","Data","5.1.1","5.1","BATMAN","BATMAN"]
["13. Dagen för inkoppling",null,"",null,{"$f":"IF($G$9=\"\",\"\",'5.2 Tunnel o bergslänt'!B2)","v":""},"Byggnadsverk","Tunnel och bergslänt"," --","Data","5.2.1","5.2","BATMAN","BATMAN"]
["13. Dagen för inkoppling",null,"",null,{"$f":"IF($G$9=\"\",\"\",'5.3 Övriga byggnadsverk'!B3)","v":""},"Byggnadsverk","Övriga byggnadsverk"," --","Data","5.3.1","5.3","BATMAN","BATMAN"]
["14. 1 vecka efter inkoppling",null,{"$f":"IF(E81=\"\",\"\",E81-4)","v":""},null,{"$f":"IF($G$9=\"\",\"\",DATE(YEAR('5.1 Bro'!B2),MONTH('5.1 Bro'!B2),DAY('5.1 Bro'!B2)+7))","v":""},"Byggnadsverk","Bro"," --","Data","5.1.1","5.1","Projektets lagringsyta","BIS"]
["14. 1 vecka efter inkoppling",null,{"$f":"IF(E82=\"\",\"\",E82-4)","v":""},null,{"$f":"IF($G$9=\"\",\"\",DATE(YEAR('5.3 Övriga byggnadsverk'!B3),MONTH('5.3 Övriga byggnadsverk'!B3),DAY('5.3 Övriga byggnadsverk'!B3)+7))","v":""},"Byggnadsverk","Övriga byggnadsverk"," --","Data","5.3.1","5.3","Projektets lagringsyta","BIS"]
["14. 1 vecka efter inkoppling",null,"",null,{"$f":"IF($G$9=\"\",\"\",DATE(YEAR('9.1 Banöverbyggnad'!C2),MONTH('9.1 Banöverbyggnad'!C2),DAY('9.1 Banöverbyggnad'!C2)+7))","v":""},"Spårsystem","Banöverbyggnad"," --","Data","9.1.1","9.1","Projektets lagringsyta","BIS"]
["14. 1 vecka efter inkoppling",null,"",null,{"$f":"IF($G$9=\"\",\"\",DATE(YEAR('4.1 Bankropp'!C2),MONTH('4.1 Bankropp'!C2),DAY('4.1 Bankropp'!C2)+7))","v":""},"Banunderbyggnad","Bankropp"," --","Data","4.1.1","4.1","Projektets lagringsyta","BIS"]
["14. 1 vecka efter inkoppling",null,"",null,{"$f":"IF($G$9=\"\",\"\",DATE(YEAR('9.3 Sidoanläggning'!C2),MONTH('9.3 Sidoanläggning'!C2),DAY('9.3 Sidoanläggning'!C2)+7))","v":""},"Spårsystem","Sidoanläggning"," --","Data","9.3.1","9.3","Projektets lagringsyta","BIS"]
["14. 1 vecka efter inkoppling",null,{"$f":"IF(E86=\"\",\"\",E86-4)","v":""},null,{"$f":"IF($G$9=\"\",\"\",DATE(YEAR('15.1 Admin. o funkt. företeelse'!B2),MONTH('15.1 Admin. o funkt. företeelse'!B2),DAY('15.1 Admin. o funkt. företeelse'!B2)+7))","v":""},"Övrigt","Administrativ och funktionell företeelse","Funktionell företeelse","Data","15.1.1.1","15.1","Projektets lagringsyta","BIS"]
["14. 1 vecka efter inkoppling",null,"",null,{"$f":"IF($G$9=\"\",\"\",DATE(YEAR('15.7 Pumpsystem'!B2),MONTH('15.7 Pumpsystem'!B2),DAY('15.7 Pumpsystem'!B2)+7))","v":""},"Övrigt","Pumpsystem"," --","Data","15.7.1","15.7","Projektets lagringsyta","BIS"]
["14. 1 vecka efter inkoppling",null,{"$f":"IF(E88=\"\",\"\",E88-4)","v":""},null,{"$f":"IF($G$9=\"\",\"\",DATE(YEAR('6.2 Hjälpkraftssystem'!B2),MONTH('6.2 Hjälpkraftssystem'!B2),DAY('6.2 Hjälpkraftssystem'!B2)+7))","v":""},"Elkraftssystem","Hjälpkraftssystem"," --","Data","6.2.1","6.2","Projektets lagringsyta","BIS"]
["14. 1 vecka efter inkoppling",null,{"$f":"IF(E89=\"\",\"\",E89-4)","v":""},null,{"$f":"IF($G$9=\"\",\"\",DATE(YEAR('6.3 Kontaktledningssystem'!B2),MONTH('6.3 Kontaktledningssystem'!B2),DAY('6.3 Kontaktledningssystem'!B2)+7))","v":""},"Elkraftssystem","Kontaktledningssystem"," --","Data","6.3.1","6.3","Projektets lagringsyta","BIS"]
["14. 1 vecka efter inkoppling",null,"",null,{"$f":"IF($G$9=\"\",\"\",DATE(YEAR('6.5 Lågspänningssystem'!C2),MONTH('6.5 Lågspänningssystem'!C2),DAY('6.5 Lågspänningssystem'!C2)+7))","v":""},"Elkraftssystem","Lågspänningssystem"," --","Data","6.5.1","6.5","Projektets lagringsyta","BIS"]
["14. 1 vecka efter inkoppling",null,"",null,{"$f":"IF($G$9=\"\",\"\",DATE(YEAR('6.4 Kraftförsörjningsanläggning'!B2),MONTH('6.4 Kraftförsörjningsanläggning'!B2),DAY('6.4 Kraftförsörjningsanläggning'!B2)+7))","v":""},"Elkraftssystem","Kraftförsörjningsanläggning"," --","Data","6.4.1","6.4","Projektets lagringsyta","BIS"]
["14. 1 vecka efter inkoppling",null,"",null,{"$f":"IF($G$9=\"\",\"\",DATE(YEAR('6.7 Nätstation'!B2),MONTH('6.7 Nätstation'!B2),DAY('6.7 Nätstation'!B2)+7))","v":""},"Elkraftssystem","Nätstation"," --","Data","6.7.1","6.7","Projektets lagringsyta","BIS"]
["14. 1 vecka efter inkoppling",null,"",null,{"$f":"IF($G$9=\"\",\"\",DATE(YEAR('8.1 Signalsystem'!C2),MONTH('8.1 Signalsystem'!C2),DAY('8.1 Signalsystem'!C2)+7))","v":""},"Signalsystem","Signalsystem"," --","Data","8.1.1","8.1","Projektets lagringsyta","BIS"]
["14. 1 vecka efter inkoppling",null,{"$f":"IF(E94=\"\",\"\",E94-4)","v":""},null,{"$f":"IF($G$9=\"\",\"\",DATE(YEAR('8.1 Signalsystem'!C2),MONTH('8.1 Signalsystem'!C2),DAY('8.1 Signalsystem'!C2)+7))","v":""},"Signalsystem","Signalsystem"," --","Dokument","8.1.2","8.1","Inte aktuellt","Arbetsrum"]
["14. 1 vecka efter inkoppling",null,{"$f":"IF(E95=\"\",\"\",E95-4)","v":""},null,{"$f":"IF($G$9=\"\",\"\",DATE(YEAR('8.1 Signalsystem'!C2),MONTH('8.1 Signalsystem'!C2),DAY('8.1 Signalsystem'!C2)+7))","v":""},"Signalsystem","Signalsystem"," --","Dokument","8.1.2","8.1","Ebbas leveransyta","Ebba"]
["15. 3 veckor efter inkoppling",null,{"$f":"IF(E96=\"\",\"\",E96-14)","v":""},null,{"$f":"IF($G$9=\"\",\"\",DATE(YEAR('4.1 Bankropp'!C2),MONTH('4.1 Bankropp'!C2),DAY('4.1 Bankropp'!C2)+21))","v":""},"Banunderbyggnad","Bankropp"," --","Data","4.1.1","4.1","Projektets lagringsyta","BIS"]
["15. 3 veckor efter inkoppling",null,{"$f":"IF(E97=\"\",\"\",E97-14)","v":""},null,{"$f":"IF($G$9=\"\",\"\",DATE(YEAR('4.2 Kanalisation'!C2),MONTH('4.2 Kanalisation'!C2),DAY('4.2 Kanalisation'!C2)+21))","v":""},"Banunderbyggnad","Kabelkanalisation"," --","Data","4.2.1","4.2","Projektets lagringsyta","BIS"]
["15. 3 veckor efter inkoppling",null,{"$f":"IF(E98=\"\",\"\",E98-14)","v":""},null,{"$f":"IF($G$9=\"\",\"\",DATE(YEAR('5.3 Övriga byggnadsverk'!B3),MONTH('5.3 Övriga byggnadsverk'!B3),DAY('5.3 Övriga byggnadsverk'!B3)+21))","v":""},"Byggnadsverk","Övriga byggnadsverk"," --","Data","5.3.1","5.3","Projektets lagringsyta","BIS"]
["15. 3 veckor efter inkoppling",null,"",null,{"$f":"IF($G$9=\"\",\"\",DATE(YEAR('9.1 Banöverbyggnad'!C2),MONTH('9.1 Banöverbyggnad'!C2),DAY('9.1 Banöverbyggnad'!C2)+21))","v":""},"Spårsystem","Banöverbyggnad"," --","Data","9.1.1","9.1","Projektets lagringsyta","BIS"]
["15. 3 veckor efter inkoppling",null,"",null,{"$f":"IF($G$9=\"\",\"\",DATE(YEAR('10.1 Radio och telefoni'!B2),MONTH('10.1 Radio och telefoni'!B2),DAY('10.1 Radio och telefoni'!B2)+21))","v":""},"Telekominfrastruktur","Radio och telefoni","Telefoni","Data","10.1.1","10.1","Projektets lagringsyta","BIS"]
["15. 3 veckor efter inkoppling",null,"",null,{"$f":"IF($G$9=\"\",\"\",DATE(YEAR('8.1 Signalsystem'!C2),MONTH('8.1 Signalsystem'!C2),DAY('8.1 Signalsystem'!C2)+21))","v":""},"Signalsystem","Signalsystem"," --","Data","8.1.1","8.1","Projektets lagringsyta","BIS"]
["15. 3 veckor efter inkoppling",null,"",null,{"$f":"IF($G$9=\"\",\"\",DATE(YEAR('11.1 Trafikinformationsanl'!B2),MONTH('11.1 Trafikinformationsanl'!B2),DAY('11.1 Trafikinformationsanl'!B2)+21))","v":""},"Trafikinformationsanläggning"," --"," --","Data","11.1.1","11.1","Projektets lagringsyta","BIS"]
["15. 3 veckor efter inkoppling",null,"",null,{"$f":"IF($G$9=\"\",\"\",DATE(YEAR('15.1 Admin. o funkt. företeelse'!B2),MONTH('15.1 Admin. o funkt. företeelse'!B2),DAY('15.1 Admin. o funkt. företeelse'!B2)+21))","v":""},"Övrigt","Administrativ och funktionell företeelse","Funktionell företeelse","Data","15.1.1.1","15.1","Projektets lagringsyta","BIS"]
["15. 3 veckor efter inkoppling",null,"",null,{"$f":"IF($G$9=\"\",\"\",DATE(YEAR('15.8 Rangerbangård'!B2),MONTH('15.8 Rangerbangård'!B2),DAY('15.8 Rangerbangård'!B2)+21))","v":""},"Övrigt","Rangerbangård"," --","Data","15.8.1","15.8","Projektets lagringsyta","BIS"]
["17. 1 månad efter att plankorsningen tas i eller ur bruk för vägtrafik",null,{"$f":"IF(E105=\"\",\"\",E105-7)","v":""},null,{"$f":"IF($G$7=\"\",\"\",EDATE('15.6 Plankorsning'!C3,1))","v":""},"Övrigt","Plankorsning"," --","Data","15.6.1","15.6","Plk webb","Plk webb"]
["20. 3 månader efter slutbesiktning",null,{"$f":"IF(E106=\"\",\"\",E106-28)","v":""},null,{"$f":"IF($G$10=\"\",\"\",EDATE('6.4 Kraftförsörjningsanläggning'!$B$3,3))","v":""},"Elkraftssystem","Kraftförsörjningsanläggning","Fördelningsstation","Dokument","6.4.2.2","6.4","Ebbas leveransyta","Ebba"]
["20. 3 månader efter slutbesiktning",null,{"$f":"IF(E107=\"\",\"\",E107-28)","v":""},null,{"$f":"IF($G$10=\"\",\"\",EDATE('6.4 Kraftförsörjningsanläggning'!$B$3,3))","v":""},"Elkraftssystem","Kraftförsörjningsanläggning","Fördelningsstation","Dokument","6.4.2.2","6.4","elkraft@trafikverket.se ","KAKA"]
["20. 3 månader efter slutbesiktning",null,{"$f":"IF(E108=\"\",\"\",E108-28)","v":""},null,{"$f":"IF($G$10=\"\",\"\",EDATE('6.4 Kraftförsörjningsanläggning'!$B$3,3))","v":""},"Elkraftssystem","Kraftförsörjningsanläggning","Kopplingscentral","Dokument","6.4.2.3","6.4","Ebbas leveransyta","Ebba"]
["20. 3 månader efter slutbesiktning",null,{"$f":"IF(E109=\"\",\"\",E109-28)","v":""},null,{"$f":"IF($G$10=\"\",\"\",EDATE('6.4 Kraftförsörjningsanläggning'!$B$3,3))","v":""},"Elkraftssystem","Kraftförsörjningsanläggning","Kopplingscentral","Dokument","6.4.2.3","6.4","elkraft@trafikverket.se ","KAKA"]
["20. 3 månader efter slutbesiktning",null,"",null,{"$f":"IF($G$10=\"\",\"\",EDATE('6.4 Kraftförsörjningsanläggning'!$B$3,3))","v":""},"Elkraftssystem","Kraftförsörjningsanläggning","Omformarstation","Dokument","6.4.2.5","6.4","PW/FJ/Förvaltningsdata Leveranser","PW/FJ"]
["20. 3 månader efter slutbesiktning",null,{"$f":"IF(E111=\"\",\"\",E111-28)","v":""},null,{"$f":"IF($G$10=\"\",\"\",EDATE('6.4 Kraftförsörjningsanläggning'!$B$3,3))","v":""},"Elkraftssystem","Kraftförsörjningsanläggning","Omformarstation","Dokument","6.4.2.5","6.4","elkraft@trafikverket.se ","KAKA"]
["20. 3 månader efter slutbesiktning",null,"",null,{"$f":"IF($G$10=\"\",\"\",EDATE('6.4 Kraftförsörjningsanläggning'!$B$3,3))","v":""},"Elkraftssystem","Kraftförsörjningsanläggning","Sektioneringsstation","Dokument","6.4.2.6","6.4","Ebbas leveransyta","Ebba"]
["20. 3 månader efter slutbesiktning",null,{"$f":"IF(E113=\"\",\"\",E113-28)","v":""},null,{"$f":"IF($G$10=\"\",\"\",EDATE('6.4 Kraftförsörjningsanläggning'!$B$3,3))","v":""},"Elkraftssystem","Kraftförsörjningsanläggning","Sektioneringsstation","Dokument","6.4.2.6","6.4","elkraft@trafikverket.se ","KAKA"]
["20. 3 månader efter slutbesiktning",null,"",null,{"$f":"IF($G$10=\"\",\"\",EDATE('6.4 Kraftförsörjningsanläggning'!$B$3,3))","v":""},"Elkraftssystem","Kraftförsörjningsanläggning","Transformatorstation","Dokument","6.4.2.7","6.4","PW/FJ/Förvaltningsdata Leveranser","PW/FJ"]
["20. 3 månader efter slutbesiktning",null,{"$f":"IF(E115=\"\",\"\",E115-28)","v":""},null,{"$f":"IF($G$10=\"\",\"\",EDATE('6.4 Kraftförsörjningsanläggning'!$B$3,3))","v":""},"Elkraftssystem","Kraftförsörjningsanläggning","Transformatorstation","Dokument","6.4.2.7","6.4","elkraft@trafikverket.se ","KAKA"]
["20. 3 månader efter slutbesiktning",null,"",null,{"$f":"IF($G$10=\"\",\"\",EDATE('6.6 Matarledningssystem'!$B$3,3))","v":""},"Elkraftssystem","Matarledningssystem (32 och 132 kV)"," --","Dokument","6.6.1","6.6","Ebbas leveransyta","Ebba"]
["20. 3 månader efter slutbesiktning",null,{"$f":"IF(E117=\"\",\"\",E117-30)","v":""},null,{"$f":"IF($G$10=\"\",\"\",EDATE('5.1 Bro'!B3,3))","v":""},"Byggnadsverk","Bro"," --","Dokument","5.1.2","5.1","BATMAN","BATMAN"]
["20. 3 månader efter slutbesiktning",null,{"$f":"IF(E118=\"\",\"\",E118-30)","v":""},null,{"$f":"IF($G$10=\"\",\"\",EDATE('5.2 Tunnel o bergslänt'!B3,3))","v":""},"Byggnadsverk","Tunnel och bergslänt"," --","Dokument","5.2.2","5.2","BATMAN","BATMAN"]
["20. 3 månader efter slutbesiktning",null,"",null,{"$f":"IF($G$10=\"\",\"\",EDATE('5.3 Övriga byggnadsverk'!B4,3))","v":""},"Byggnadsverk","Övriga byggnadsverk"," --","Dokument","5.3.2","5.3","BATMAN","BATMAN"]
["20. 3 månader efter slutbesiktning",null,"",null,{"$f":"IF($G$10=\"\",\"\",EDATE('15.5 Miljö'!C2,3))","v":""},"Övrigt","Miljö","Förorenade områden och förorenade massor","Data","15.5.1.1","15.5","LEB","LEB"]
["20. 3 månader efter slutbesiktning",null,"",null,{"$f":"IF($G$10=\"\",\"\",EDATE('15.5 Miljö'!C2,3))","v":""},"Övrigt","Miljö","Övrigt om miljö","Data","15.5.1.2","15.5","MWL","MWL"]
["20. 3 månader efter slutbesiktning",null,"",null,{"$f":"IF($G$10=\"\",\"\",EDATE('15.5 Miljö'!C2,3))","v":""},"Övrigt","Miljö","Övrigt om miljö","Data","15.5.1.2","15.5","buller.vibrationer@trafikverket.se ","Projektnav"]
["20. 3 månader efter slutbesiktning",null,"",null,{"$f":"IF($G$10=\"\",\"\",EDATE('15.5 Miljö'!C2,3))","v":""},"Övrigt","Miljö","Förorenade områden och förorenade massor","Dokument","15.5.2.1","15.5","Diariet alt. PW/FU med länk till LEB","Diariet alt. PW/FU med länk till LEB"]
["20. 3 månader efter slutbesiktning","Ja","",null,{"$f":"IF($G$10=\"\",\"\",EDATE('15.5 Miljö'!C2,3))","v":""},"Övrigt","Miljö","Övrigt om miljö","Dokument","15.5.2.2","15.5","Ebbas leveransyta","Ebba"]
["20. 3 månader efter slutbesiktning",null,"",null,{"$f":"IF($G$10=\"\",\"\",EDATE('4.1 Bankropp'!C3,3))","v":""},"Banunderbyggnad","Bankropp","Avvattning","Dokument","4.1.2.1","4.1","Ebbas leveransyta","Ebba"]
["20. 3 månader efter slutbesiktning",null,{"$f":"IF(E126=\"\",\"\",E126-30)","v":""},null,{"$f":"IF($G$10=\"\",\"\",EDATE('4.1 Bankropp'!C3,3))","v":""},"Banunderbyggnad","Bankropp","Geoteknik","Dokument","4.1.2.2","4.1","PW/FJ/Förvaltningsdata Leveranser","PW/FJ"]
["20. 3 månader efter slutbesiktning",null,{"$f":"IF(E127=\"\",\"\",E127-30)","v":""},null,{"$f":"IF($G$10=\"\",\"\",EDATE('4.1 Bankropp'!C3,3))","v":""},"Banunderbyggnad","Bankropp","Påldäck","Dokument","4.1.2.3","4.1","BATMAN","BATMAN"]
["20. 3 månader efter slutbesiktning",null,{"$f":"IF(E128=\"\",\"\",E128-30)","v":""},null,{"$f":"IF($G$10=\"\",\"\",EDATE('4.1 Bankropp'!C3,3))","v":""},"Banunderbyggnad","Bankropp","Trumma","Dokument","4.1.2.4","4.1","BATMAN","BATMAN"]
["20. 3 månader efter slutbesiktning",null,{"$f":"IF(E129=\"\",\"\",E129-30)","v":""},null,{"$f":"IF($G$10=\"\",\"\",EDATE('5.3 Övriga byggnadsverk'!B4,3))","v":""},"Banunderbyggnad","Kabelkanalisation"," --","Dokument","4.2.2","4.2","Ebbas leveransyta","Ebba"]
["20. 3 månader efter slutbesiktning",null,"",null,{"$f":"IF($G$10=\"\",\"\",EDATE('5.3 Övriga byggnadsverk'!B4,3))","v":""},"Byggnadsverk","Övriga byggnadsverk","Bullerskydd (undantaget bullerskyddsskärm)","Dokument","5.3.2.1","5.3","Ebbas leveransyta","Ebba"]
["20. 3 månader efter slutbesiktning",null,"",null,{"$f":"IF($G$10=\"\",\"\",EDATE('6.1 GELD inkl RTU'!B3,3))","v":""},"Elkraftssystem","GELD inklusive RTU:er"," --","Dokument","6.1.1","6.1","Ebbas leveransyta","Ebba"]
["20. 3 månader efter slutbesiktning",null,"",null,{"$f":"IF($G$10=\"\",\"\",EDATE('6.2 Hjälpkraftssystem'!B3,3))","v":""},"Elkraftssystem","Hjälpkraftssystem"," --","Dokument","6.2.2","6.2","Ebbas leveransyta","Ebba"]
["20. 3 månader efter slutbesiktning",null,"",null,{"$f":"IF($G$10=\"\",\"\",EDATE('6.3 Kontaktledningssystem'!B3,3))","v":""},"Elkraftssystem","Kontaktledningssystem"," --","Dokument","6.3.2","6.3","Ebbas leveransyta","Ebba"]
["20. 3 månader efter slutbesiktning",null,"",null,{"$f":"IF($G$10=\"\",\"\",EDATE('6.5 Lågspänningssystem'!C3,3))","v":""},"Elkraftssystem","Lågspänningssystem","Belysning","Dokument","6.5.2.1","6.5","Ebbas leveransyta","Ebba"]
["20. 3 månader efter slutbesiktning",null,"",null,{"$f":"IF($G$10=\"\",\"\",EDATE('6.5 Lågspänningssystem'!C3,3))","v":""},"Elkraftssystem","Lågspänningssystem","Distributionsnät mindre än 1000V","Dokument","6.5.2.2","6.5","Ebbas leveransyta","Ebba"]
["20. 3 månader efter slutbesiktning",null,"",null,{"$f":"IF($G$10=\"\",\"\",EDATE('6.5 Lågspänningssystem'!C3,3))","v":""},"Elkraftssystem","Lågspänningssystem","Elanläggning - Teknikbyggnad","Dokument","6.5.2.3","6.5","Ebbas leveransyta","Ebba"]
["20. 3 månader efter slutbesiktning",null,{"$f":"IF(E137=\"\",\"\",E137-30)","v":""},null,{"$f":"IF($G$10=\"\",\"\",EDATE('6.5 Lågspänningssystem'!C3,3))","v":""},"Elkraftssystem","Lågspänningssystem","Kraftförsörjning - Datorhall","Dokument","6.5.2.4","6.5","Ebbas leveransyta","Ebba"]
["20. 3 månader efter slutbesiktning",null,"",null,{"$f":"IF($G$10=\"\",\"\",EDATE('6.5 Lågspänningssystem'!C3,3))","v":""},"Elkraftssystem","Lågspänningssystem","Kraftförsörjning - Trafikledningscentral","Dokument","6.5.2.5","6.5","Ebbas leveransyta","Ebba"]
["20. 3 månader efter slutbesiktning",null,"",null,{"$f":"IF($G$10=\"\",\"\",EDATE('6.5 Lågspänningssystem'!C3,3))","v":""},"Elkraftssystem","Lågspänningssystem","Mobila reservelverk","Dokument","6.5.2.6","6.5","Ebbas leveransyta","Ebba"]
["20. 3 månader efter slutbesiktning",null,"",null,{"$f":"IF($G$10=\"\",\"\",EDATE('6.5 Lågspänningssystem'!C3,3))","v":""},"Elkraftssystem","Lågspänningssystem","Tåg och lokvärme","Dokument","6.5.2.7","6.5","Ebbas leveransyta","Ebba"]
["20. 3 månader efter slutbesiktning",null,"",null,{"$f":"IF($G$10=\"\",\"\",EDATE('6.5 Lågspänningssystem'!C3,3))","v":""},"Elkraftssystem","Lågspänningssystem","Växelvärme","Dokument","6.5.2.8","6.5","Ebbas leveransyta","Ebba"]
["20. 3 månader efter slutbesiktning",null,"",null,{"$f":"IF($G$10=\"\",\"\",EDATE('6.7 Nätstation'!B3,3))","v":""},"Elkraftssystem","Nätstation"," --","Dokument","6.7.2","6.7","Ebbas leveransyta","Ebba"]
["20. 3 månader efter slutbesiktning",null,{"$f":"IF(E143=\"\",\"\",E143-30)","v":""},null,{"$f":"IF($G$10=\"\",\"\",EDATE('7.1 Resenärsstation'!B2,3))","v":""},"Fastighetsinstallationer","Resenärsstation"," --","Dokument","7.1.1","7.1","Ebbas leveransyta","Ebba"]
["20. 3 månader efter slutbesiktning",null,{"$f":"IF(E144=\"\",\"\",E144-30)","v":""},null,{"$f":"IF($G$10=\"\",\"\",EDATE('7.2a Teknikbyggnad (Järnväg)'!B3,3))","v":""},"Fastighetsinstallationer","Teknikbyggnad"," --","Dokument","7.2.2","7.2","Ebbas leveransyta","Ebba"]
["20. 3 månader efter slutbesiktning",null,"",null,{"$f":"IF($G$10=\"\",\"\",EDATE('7.3 Tillträdesskydd o brandlarm'!B3,3))","v":""},"Fastighetsinstallationer","Tillträdeskydd och brandlarm","Passagekontroll- inbrottslarm- och brandvarningssystem","Dokument","7.3.1.1","7.3","PW/FJ/Förvaltningsdata Leveranser","PW/FJ"]
["20. 3 månader efter slutbesiktning",null,{"$f":"IF(E146=\"\",\"\",E146-30)","v":""},null,{"$f":"IF($G$10=\"\",\"\",EDATE('7.3 Tillträdesskydd o brandlarm'!B3,3))","v":""},"Fastighetsinstallationer","Tillträdeskydd och brandlarm","Elektromekaniskt låssystem med loggfunktion","Data","7.3.1.1","7.3","tilltrade@trafikverket.se ","ABBA-FT"]
["20. 3 månader efter slutbesiktning",null,"",null,{"$f":"IF($G$10=\"\",\"\",EDATE('10.1 Radio och telefoni'!B3,3))","v":""},"Telekominfrastruktur","Radio och telefoni"," --","Dokument","10.1.2.1","10.1","Projektets lagringsyta","PW/ICT"]
["20. 3 månader efter slutbesiktning",null,"",null,{"$f":"IF($G$10=\"\",\"\",EDATE('10.1 Radio och telefoni'!B3,3))","v":""},"Telekominfrastruktur","Radio och telefoni","Master och kabel","Dokument","10.1.2.1","10.1","Projektets lagringsyta","PW/ICT"]
["20. 3 månader efter slutbesiktning",null,"",null,{"$f":"IF($G$10=\"\",\"\",EDATE('10.2 Siter och kabelanl'!B3,3))","v":""},"Telekominfrastruktur","Siter och kabelanläggning","Kabelanläggning","Dokument","10.2.2.1","10.2","Projektets lagringsyta","PW/ICT"]
["20. 3 månader efter slutbesiktning",null,"",null,{"$f":"IF($G$10=\"\",\"\",EDATE('10.2 Siter och kabelanl'!B3,3))","v":""},"Telekominfrastruktur","Siter och kabelanläggning","Kraft - Tele","Dokument","10.2.2.2","10.2","Projektets lagringsyta","PW/ICT"]
["20. 3 månader efter slutbesiktning",null,"",null,{"$f":"IF($G$10=\"\",\"\",EDATE('10.2 Siter och kabelanl'!B3,3))","v":""},"Telekominfrastruktur","Siter och kabelanläggning","Nödfrånkopplingsslinga - Kopparkabel","Dokument","10.2.2.3","10.2","Projektets lagringsyta","PW/ICT"]
["20. 3 månader efter slutbesiktning",null,"",null,{"$f":"IF($G$10=\"\",\"\",EDATE('10.2 Siter och kabelanl'!B3,3))","v":""},"Telekominfrastruktur","Siter och kabelanläggning","Teletransmission","Dokument","10.2.2.4","10.2","Projektets lagringsyta","PW/ICT"]
["20. 3 månader efter slutbesiktning",null,"",null,{"$f":"IF($G$10=\"\",\"\",EDATE('8.1 Signalsystem'!C3,3))","v":""},"Signalsystem","Signalsystem"," --","Dokument","8.1.2","8.1","Ebbas leveransyta","Ebba"]
["20. 3 månader efter slutbesiktning",null,"",null,{"$f":"IF($G$10=\"\",\"\",EDATE('8.1 Signalsystem'!C3,3))","v":""},"Signalsystem","Signalsystem"," --","Dokument","8.1.2","8.1","Inte aktuellt","PW/FU"]
["20. 3 månader efter slutbesiktning",null,"",null,{"$f":"IF($G$10=\"\",\"\",EDATE('9.3 Sidoanläggning'!C3,3))","v":""},"Spårsystem","Sidoanläggning","Hägnad","Dokument","9.3.2.1","9.3","Ebbas leveransyta","Ebba"]
["20. 3 månader efter slutbesiktning",null,"",null,{"$f":"IF($G$10=\"\",\"\",EDATE('9.1 Banöverbyggnad'!C3,3))","v":""},"Spårsystem","Banöverbyggnad"," --","Dokument","9.1.2","9.1","Ebbas leveransyta","Ebba"]
["20. 3 månader efter slutbesiktning",null,"",null,{"$f":"IF($G$10=\"\",\"\",EDATE('11.1 Trafikinformationsanl'!B3,3))","v":""},"Trafikinformationsanläggning"," --"," --","Dokument","11.1.2","11.1","Ebbas leveransyta","Ebba"]
["20. 3 månader efter slutbesiktning",null,"",null,{"$f":"IF($G$10=\"\",\"\",EDATE('14.1 Fordonsöverv. detektor'!B3,3))","v":""},"Övervakningssystem","Fordonsövervakande detektorer","Detektor","Dokument","14.1.2.2","14.1","Ebbas leveransyta","Ebba"]
["20. 3 månader efter slutbesiktning",null,"",null,{"$f":"IF($G$10=\"\",\"\",EDATE('14.2 Kamerabevakning'!B2,3))","v":""},"Övervakningssystem","Kamerabevakning"," --","Dokument","14.2.1","14.2","Ebbas leveransyta","Ebba"]
["20. 3 månader efter slutbesiktning",null,"",null,{"$f":"IF($G$10=\"\",\"\",EDATE('15.2 Baskarta'!B2,3))","v":""},"Övrigt","Baskarta"," --","Dokument","15.2.1","15.2","Ebbas leveransyta","Ebba"]
["20. 3 månader efter slutbesiktning",null,"",null,{"$f":"IF($G$10=\"\",\"\",EDATE('15.3 Byggnad'!B2,3))","v":""},"Övrigt","Byggnad"," --","Dokument","15.3.1","15.3","PW/FJ/Förvaltningsdata Leveranser","PW/FU"]
["20. 3 månader efter slutbesiktning",null,"",null,{"$f":"IF($G$10=\"\",\"\",EDATE('15.4 Mark'!C2,3))","v":""},"Övrigt","Mark"," --","Dokument","15.4.1","15.4","Ebbas leveransyta","Ebba"]
["20. 3 månader efter slutbesiktning",null,"",null,{"$f":"IF($G$10=\"\",\"\",EDATE('15.7 Pumpsystem'!B3,3))","v":""},"Övrigt","Pumpsystem"," --","Dokument","15.7.2","15.7","Ebbas leveransyta","Ebba"]
["20. 3 månader efter slutbesiktning",null,"",null,{"$f":"IF($G$10=\"\",\"\",EDATE('15.8 Rangerbangård'!B3,3))","v":""},"Övrigt","Rangerbangård"," --","Dokument","15.8.1","15.8","Ebbas leveransyta","Ebba"]
["20. 3 månader efter slutbesiktning",null,{"$f":"IF(E165=\"\",\"\",E165-30)","v":""},null,{"$f":"IF($G$10=\"\",\"\",EDATE('0 Modellfiler'!C2,3))","v":""},"Övrigt","Samtliga teknikområden (ej signal)","Modellfiler","Dokument"," --","0 Modellfiler","PW/FJ/Förvaltningsdata Leveranser","PW/FJ"]
["20. 3 månader efter slutbesiktning",null,{"$f":"IF(E166=\"\",\"\",E166-30)","v":""},null,{"$f":"IF($G$10=\"\",\"\",EDATE('0 Modellfiler'!C2,3))","v":""},"Övrigt","Signalsystem","Modellfiler","Dokument"," --","0 Modellfiler","Ebbas leveransyta","Ebba"]
["20. 3 månader efter slutbesiktning","Ja","",null,{"$f":"IF($G$10=\"\",\"\",EDATE('9.2 Geodetiskt stomnät'!B3,3))","v":""},"Spårsystem","Geodetiskt stomnät"," --","Dokument","9.2.1","9.2","PW/FJ/Förvaltningsdata Leveranser","PW/FJ"]
["21. 1 månad efter Transportstyrelsens godkännande",null,{"$f":"IF(E168=\"\",\"\",E168-7)","v":""},null,{"$f":"IF($G$11=\"\",\"\",EDATE('8.1 Signalsystem'!C4,1))","v":""},"Signalsystem","Signalsystem"," --","Dokument","8.1.2","8.1","PW/FJ/Förvaltningsdata Leveranser","PW/FJ"]
["21. 1 månad efter Transportstyrelsens godkännande",null,{"$f":"IF(E169=\"\",\"\",E169-7)","v":""},null,{"$f":"IF($G$11=\"\",\"\",EDATE('9.1 Banöverbyggnad'!C4,1))","v":""},"Spårsystem","Banöverbyggnad"," --","Dokument","9.1.2","9.1","PW/FJ/Förvaltningsdata Leveranser","PW/FJ"]

{"sheet":"Etappbeskrivning ","index":8,"n_rows":14,"n_cols":5,"rows_kept":14,"cut":false,"hidden":false,"merged":[[13,0,13,3],[8,0,8,4],[9,0,9,3],[10,0,10,3],[11,0,11,3],[12,0,12,3]]}
["Etappbeskrivning "]
["Första Inkoppling",{"$f":"IF(Projektuppgifter!G9=\"\",\"Fyll i datum\",Projektuppgifter!G9)","v":"Fyll i datum"},null,"Länk till flik Projektuppgifter"]
["Änot","Fyll i Änot"]
["Fler inkopplingar:","Fyll i datum"]
[]
["Om projektet har flera etapper och flera inkopplingsdatatum ska en etappbeskrivning tas fram och levereras senast  6 månader före den första inkopplingen. "]
["En etappbeskrivning ska innehålla en kortfattad text som beskriver vilka inkopplingsdatum som är planerade per etapp."]
[]
["Ska vara ifylld senast 6 månader före första inkoppling"]
["Varje inkoppling ska beskrivas detaljerat med följande information:",null,null,null,"Besvaras av projektet "]
["Vilka växlar som byggts eller rivits, inklusive begränsningar i form av tex klovning/körbarhet. Stoppbockar eller spårslut och växelförteckning som redovisar dess typ och koordinater samt för etappen gällande kilometertal.",null,null,null,"Svar…"]
["Vilka spår som byggts eller förändrats samt deras status (öppna/planerade/otrafikerade). Ritning för etappen som visar befintlig, projekterad samt riven spåranläggning.",null,null,null,"Svar…"]
["Vilka ändringar som sker av trafikplats(er) och dess utbredning avseende Trafikplatsnamn och trafikplatssignatur, platstyp, fastställt kilometertal och koordinat för plats mitt.\nAnge också ev. ändring av en trafikplatsutbredning med flyttad gräns(er) till annan trafikplats eller linje.",null,null,null,"Svar…"]
["Länk om så finns till mer utförlig etappbeskrivning (valfritt format)",null,null,null,"Länk"]

{"sheet":"Leveranshistorik","index":9,"n_rows":6,"n_cols":2,"rows_kept":6,"cut":false,"hidden":false,"merged":[]}
["Leveranshistorik - Projekt"]
["Valfri att använda."]
[]
["Tabellen nedan kan användas som ett stöd för projektet att beskriva framdriften av leveranser."]
[]
["Datum","Beskrivning"]

{"sheet":"0 Erfarenhetsdrift","index":10,"n_rows":3,"n_cols":1,"rows_kept":3,"cut":false,"hidden":false,"merged":[]}
["Erfarenhetsdrift"]
[]
["I de fall då anläggningsprojektet får i uppdrag av ett utvecklingsprojekt (som drivs av tekniskt ansvarig, ofta på UHt eller IKT) att utföra en första installation av en ny teknisk lösning som ännu inte är Tekniskt Godkänt Material (TGM) kan det vara förenat med krav på leverans av annan förvaltningsdata/ standarddokumentation. Hur och vad för dokumentation som ska levereras står i uppdragsbeskrivningen från tekniskt ansvarig."]

{"sheet":"0 3D-modell","index":11,"n_rows":41,"n_cols":1,"rows_kept":41,"cut":false,"hidden":false,"merged":[]}
["3D-modell"]
[]
["Projekten kan nu lämna över framtagna 3D-modeller till UH. Tillsvidare är 3D-modellerna endast ett komplement till den normala leveransen som fortfarande ska följa dagens krav i TDOK 2016:0407."]
[]
["Leveransen ska innehålla följande:"]
["Modellfiler A,B enligt TDOK 2015:0181"]
["RFM, RFÄ (redogörelse för modell, ämnesområdesmodell)"]
["Handlingsförteckning över levererade modeller, stödfiler samt inställningsfiler"]
[]
["Överlämning till UH ska ske enligt TDOK 2016:0411, kap 6.5.1."]
[]
["Specifika modellkrav"]
["3D-modeller ska innehålla en uppdaterad modellstämpel (gäller endast dwg/dgn)"]
[" - Uppdaterad metadata enligt förteckning ska fyllas i"]
[]
[]
["Namngivning"]
["För 3D-modeller gäller att filnamn från bygghandlingsskedet behålls med följande tillägg:"]
[" - Teknikområde ska framgå i klartext i filnamnet vilket innebär att eventuell BSAB-kod"]
["kompletteras med teknikområde utskrivet i klartext."]
[" - Redovisningssätt (V, P osv) ska framgå av filnamn."]
[" - För järnvägsprojekt ska längdmätning framgå av filnamn."]
[]
["Exempel på namngivning:"]
["Alt 1: BAN_V_188-202"]
["Alt 2: 51-00-V-KANALISATION_BAN_188-202"]
[]
["Metadata"]
["Följande metadata ska anges vid leverans av 3D-modeller:"]
[" - Anläggningsdel"]
[" - Anläggningstyp"]
[" - Bandel/Sträcka"]
[" - Beskrivning"]
[" - Datum"]
[" - Höjdsystem"]
[" - Koordinatsystem"]
[" - Projektionszon"]
[" - Startkm"]
[" - Startm"]
[" - Slutkm"]
[" - Slutm"]

{"sheet":"0 Väg","index":12,"n_rows":3,"n_cols":1,"rows_kept":3,"cut":false,"hidden":false,"merged":[]}
["Väg"]
[]
["Om ett projekt påverkar väganläggning ska projektet även ta fram en leveransplan för väg, TMALL 0343 ”Data om anläggningen – Leveransplan – Väg”, samt ansöka om en mottagandekoordinator även för vägleveranserna. \nKraven på data för väganläggningen beskrivs i TDOK 2019:0210 ”Data om anläggningen – Data och dokumentation till förvaltande system – Väg”."]

{"sheet":"0 Modellfiler","index":13,"n_rows":25,"n_cols":15,"rows_kept":25,"cut":false,"hidden":false,"merged":[[11,10,24,10],[22,11,24,11],[1,0,1,1],[6,4,6,9],[6,11,6,13],[8,0,8,3],[12,0,23,0],[10,0,10,3],[11,11,21,11],[9,0,9,14]]}
["Modellfiler"]
["Slutbesiktning:",null,{"$f":"IF(Projektuppgifter!G10=\"\",\"Fyll i datum\",Projektuppgifter!G10)","v":"Fyll i datum"},null,"Länk till flik Projektuppgifter"]
[]
[null,"Fylls i av:","Projekt"]
["Koordinatsystem plan:"]
[]
[null,null,null,"Fylls i av:","Projekt",null,null,null,null,null,"Information till projektet","Mottagande förvaltning",null,null,"Alla"]
[null,null,"Prefix","Filformat\nunderlagsfil","Aktuellt att upprättas av projektet\n\n(Ja/Nej)","Status på levererad data","Är nya/ tillkommande objekt inmätta i höjd? \n(Ja/Nej)","Filnamn","Levereras av:\n- E (Entreprenör)\n- K (Konsult)\n- B (Beställare)\n(datum + namn)","Levererat till förvaltande system och aviserat leveransen till mottagande förvaltning, enligt TDOK 2016:0411\n(datum + namn + ärendenr.)","Leveransyta till förvaltande system","Förvaltande system","Leveranskontrollerat\n(datum + namn + ärendenr.)","Inläst och godkänt \n(datum + namn + ärendenr.)","Eventuella kommentarer"]
["3 månader efter slutbesiktning"]
[{"$f":"\"Leverans från leverantör (E/K) till överenskommen leveransyta, för mottagningskontroll senast: \"&IF(Projektuppgifter!C165=\"\",\"Fyll i datum\",TEXT(DATE(YEAR(Projektuppgifter!C165),MONTH(Projektuppgifter!C165),DAY(Projektuppgifter!C165)),\"ÅÅÅÅ-MM-DD\"))","v":"Leverans från leverantör (E/K) till överenskommen leveransyta, för mottagningskontroll senast: Fyll i datum"}]
[{"$f":"\"Leverans till mottagande förvaltning senast: \"&IF(C2=\"Fyll i datum\",\"Fyll i datum\",TEXT(EDATE(C2,3),\"ÅÅÅÅ-MM-DD\"))","v":"Leverans till mottagande förvaltning senast: Fyll i datum"}]
["Ritningsutsnitt",null,null,"dgn",null,null,null,null,null,null,"Ebbas leveransyta","Ebba/ Anläggningsmodeller"]
["Geografisk modellfil","Ban","BAN","dgn"]
[null,"Mark","MARK","dgn"]
[null,"El, kontaktledning","EL_KTL","dgn"]
[null,"El, lågspänning","EL_LÅGSP","dgn"]
[null,"El, jordning","EL_JORD","dgn"]
[null,"El, fjärrstyrning","EL_FJR","dgn"]
[null,"Geoteknik","GEO","dgn, dwg"]
[null,"Kanalisation","KANAL","dgn"]
[null,"Tele","TELE","dgn"]
[null,"Tele, trafikinformation","TELE_TI","dgn"]
[null,"Signal, plan","anl.nr - SIGNAL","dgn",null,null,null,null,null,null,null,"Ebba/ Respektive signalanläggning"]
[null,"Signal, isol","anl.nr - ISOL","dgn"]
["Schematisk modellfil","Linjemodell för signal","anl.nr - LINJE","dgn"]

{"sheet":"4.1 Bankropp","index":14,"n_rows":107,"n_cols":16,"rows_kept":107,"cut":false,"hidden":false,"merged":[[46,12,70,12],[46,0,70,0],[46,1,55,1],[56,1,70,1],[10,0,10,4],[12,0,12,4],[14,0,22,1],[44,0,44,15],[26,0,26,4],[41,0,41,4],[43,0,43,4],[27,12,40,12],[45,2,45,5],[27,0,39,1],[27,11,40,11],[46,11,70,11],[1,0,1,1],[2,0,2,1],[4,6,4,10],[45,0,45,1],[8,0,8,4],[7,0,7,15],[11,0,11,15],[25,0,25,15],[42,0,42,15],[4,12,4,14],[13,0,13,15],[14,12,23,12],[6,0,6,5],[9,2,9,5],[9,0,9,1],[14,11,23,11],[78,1,91,1],[71,0,91,0],[71,11,91,11],[71,12,91,12],[92,11,100,11],[92,12,100,12],[92,0,100,1],[71,1,77,1]]}
["Bankropp"]
["Inkoppling:",null,{"$f":"IF(Projektuppgifter!G9=\"\",\"Fyll i datum\",Projektuppgifter!G9)","v":"Fyll i datum"},null,"Länk till flik Projektuppgifter"]
["Slutbesiktning:",null,{"$f":"IF(Projektuppgifter!G10=\"\",\"Fyll i datum\",Projektuppgifter!G10)","v":"Fyll i datum"}]
[]
[null,null,null,null,null,"Fylls i av:","Projekt",null,null,null,null,"Information till projektet","Mottagande förvaltning",null,null,"Alla"]
[null,null,null,"Filformat\nvisningsfil","Filformat\nunderlagsfil","Uppbyggd av modellfil","Aktuellt att upprättas av projektet","Status på levererad data","Filnamn alt länk till levererad fil","Levereras av:\n- E (Entreprenör)\n- K (Konsult)\n- B (Beställare)\n(datum + namn)","Levererat till förvaltande system och aviserat leveransen till mottagande förvaltning, enligt TDOK 2016:0411 (med kopia till Indatakoordinator)\n(datum + namn + ärendenr.)","Leveransyta till förvaltande system","Förvaltande system","Mottaget\n(datum + namn + ärendenr.)","Godkänt \n(datum + namn + ärendenr.)","Eventuella kommentarer"]
["1 månad före inkoppling"]
[{"$f":"\"Leverans från leverantör (E/K) till överenskommen leveransyta, för mottagningskontroll senast: \"&IF(Projektuppgifter!C72=\"\",\"Fyll i datum\",TEXT(DATE(YEAR(Projektuppgifter!C72),MONTH(Projektuppgifter!C72),DAY(Projektuppgifter!C72)),\"ÅÅÅÅ-MM-DD\"))","v":"Leverans från leverantör (E/K) till överenskommen leveransyta, för mottagningskontroll senast: Fyll i datum"}]
[{"$f":"\"Leverans till mottagande förvaltning senast: \"&IF(C2=\"Fyll i datum\",\"Fyll i datum\",TEXT(EDATE(C2,-1),\"ÅÅÅÅ-MM-DD\"))","v":"Leverans till mottagande förvaltning senast: Fyll i datum"}]
["Påldäck",null,"Påldäck utgör en del av bankroppen, men ska redovisas som ett Övrigt byggnadsverk i flik 5.3.",null,null,null,null,null,null,null,null,null,"BATMAN"]
["1 vecka efter inkoppling",null,null,null,null,null,"Ja"]
[{"$f":"\"Leverans från leverantör (E/K) till överenskommen leveransyta, för mottagningskontroll senast: \"&IF(Projektuppgifter!C84=\"\",\"Fyll i datum\",TEXT(DATE(YEAR(Projektuppgifter!C84),MONTH(Projektuppgifter!C84),DAY(Projektuppgifter!C84)),\"ÅÅÅÅ-MM-DD\"))","v":"Leverans från leverantör (E/K) till överenskommen leveransyta, för mottagningskontroll senast: Fyll i datum"}]
[{"$f":"\"Leverans till mottagande förvaltning senast: \"&IF(C2=\"Fyll i datum\",\"Fyll i datum\",TEXT(DATE(YEAR(C2),MONTH(C2),DAY(C2)+7),\"ÅÅÅÅ-MM-DD\"))","v":"Leverans till mottagande förvaltning senast: Fyll i datum"},null,null,null,null,null,"Ja"]
["Data för lagring i databas"]
["Nytt objekt:",null,"TMALL 0576 Bank"," --","xlsx",null,null,null,null,null,null,"Projektets lagringsyta","BIS"]
[null,null,"TMALL 0577 Dränering"," --","xlsx"]
[null,null,"TMALL 0578 Erosionsskydd"," --","xlsx"]
[null,null,"TMALL 0580 Glacismur"," --","xlsx"]
[null,null,"TMALL 0589 Skärning"," --","xlsx"]
[null,null,"TMALL 0592 Trumma"," --","xlsx"]
[null,null,"TMALL 0593 Tryckbank/stödbank"," --","xlsx"]
[null,null,"TMALL 0595 Underballast"," --","xlsx"]
[null,null,"TMALL 0598 Öppet dike"," --","xlsx"]
["Ändrat/slopat objekt:",null,"Slopnings- och ändringslista av objekten ovan"," --","xlsx"]
["3 veckor efter inkoppling",null,null,null,null,null,"Ja"]
[{"$f":"\"Leverans från leverantör (E/K) till överenskommen leveransyta, för mottagningskontroll senast: \"&IF(Projektuppgifter!C96=\"\",\"Fyll i datum\",TEXT(DATE(YEAR(Projektuppgifter!C96),MONTH(Projektuppgifter!C96),DAY(Projektuppgifter!C96)),\"ÅÅÅÅ-MM-DD\"))","v":"Leverans från leverantör (E/K) till överenskommen leveransyta, för mottagningskontroll senast: Fyll i datum"}]
[{"$f":"\"Leverans till mottagande förvaltning senast: \"&IF(C2=\"Fyll i datum\",\"Fyll i datum\",TEXT(DATE(YEAR(C2),MONTH(C2),DAY(C2)+21),\"ÅÅÅÅ-MM-DD\"))","v":"Leverans till mottagande förvaltning senast: Fyll i datum"},null,null,null,null,null,"Ja"]
["Nytt objekt:",null,"TMALL 0579 Frostskyddsisolering"," --","xlsx",null,null,null,null,null,null,"Projektets lagringsyta","BIS"]
[null,null,"TMALL 0660 Fördröjningsmagasin"," --","xlsx"]
[null,null,"TMALL 0661 Geotekniska händelser"," --","xlsx"]
[null,null,"TMALL 0581 Jordarmering"," --","xlsx"]
[null,null,"TMALL 0582 Jordspikning"," --","xlsx"]
[null,null,"TMALL 0584 Kalkcementpelare"," --","xlsx"]
[null,null,"TMALL 1166 Nedpressning"," --","xlsx"]
[null,null,"TMALL 0585 Lättfyllning"," --","xlsx"]
[null,null,"TMALL 0586 Påldäck/bankpålning"," --","xlsx"]
[null,null,"TMALL 0587 Rustbädd"," --","xlsx"]
[null,null,"TMALL 0668 Rör"," --","xlsx"]
[null,null,"TMALL 0590 Spont"," --","xlsx"]
[null,null,"TMALL 0596 Urgrävning/utskiftning"," --","xlsx"]
["Ändrat/slopat objekt:",null,"Slopnings- och ändringslista av objekten ovan"," --","xlsx"]
["3 månader efter slutbesiktning",null,null,null,null,null,"x"]
[{"$f":"\"Leverans från leverantör (E/K) till överenskommen leveransyta, för mottagningskontroll senast: \"&IF(Projektuppgifter!C125=\"\",\"Fyll i datum\",TEXT(DATE(YEAR(Projektuppgifter!C125),MONTH(Projektuppgifter!C165),DAY(Projektuppgifter!C125)),\"ÅÅÅÅ-MM-DD\"))","v":"Leverans från leverantör (E/K) till överenskommen leveransyta, för mottagningskontroll senast: Fyll i datum"}]
[{"$f":"\"Leverans till mottagande förvaltning senast: \"&IF(C3=\"Fyll i datum\",\"Fyll i datum\",TEXT(EDATE(C3,3),\"ÅÅÅÅ-MM-DD\"))","v":"Leverans till mottagande förvaltning senast: Fyll i datum"},null,null,null,null,null,"x"]
["Teknisk dokumentation"]
["Påldäck",null,"Påldäck utgör en del av bankroppen, men ska redovisas som ett Övrigt byggnadsverk i flik 5.3.",null,null,null,null,null,null,null,null,"Registreras direkt i BATMAN","BATMAN"]
["Geoteknik","Undersökning**","Rgeo/MUR","pdf","docx",null,null,null,null,null,null,"ProjectWise/Förvaltning Järnväg/Förvaltningsdata Leveranser/ _resp. teknikområde/Bandel","PW/FJ"]
[null,null,"Plan - Geologisk kartering","pdf","dgn, dwg"]
[null,null,"Profil - Geologisk prognos","pdf","dgn, dwg"]
[null,null,"Plan - Geoteknisk undersökning","pdf","dgn, dwg"]
[null,null,"Profil - Geoteknisk undersökning","pdf","dgn, dwg"]
[null,null,"Tvärsektion - Geoteknisk undersökning","pdf","dgn, dwg"]
[null,null,"Plan - Geohydrologisk undersökning","pdf","dgn, dwg"]
[null,null,"Uppföljning, kontrollprogram","pdf","dgn, dwg"]
[null,null,"Borrhålsritning","pdf","dgn, dwg"]
[null,null,"Geosuiteprojekt","zip (komplett databasfil)"," --"]
[null,"Anläggning","TB/OTB/TBGeo/TPM","pdf"," -- "]
[null,null,"PM Geohydrologi","pdf"," -- "]
[null,null,"Beräkning","pdf"," -- "]
[null,null,"Masstabilisering*","pdf","docx, dgn, dwg","GEO"]
[null,null,"Erosionsskydd*","pdf","docx, dgn, dwg","GEO"]
[null,null,"Bankpålning*","pdf","docx, dgn, dwg","GEO"]
[null,null,"Tryck-/stödbank*","pdf","docx, dgn, dwg","GEO"]
[null,null,"Kalkcementpelare*","pdf","xlsx, dgn, dwg","GEO***"]
[null,null,"Vertikaldränering*","pdf","docx, dgn, dwg","GEO"]
[null,null,"Lättfyllning*","pdf","docx, dgn, dwg","GEO"]
[null,null,"Urgrävning, nedpressning*","pdf","docx, dgn, dwg","GEO"]
[null,null,"Stödkonstruktion*","pdf","docx, dgn, dwg","GEO"]
[null,null,"Frostskydd*","pdf","docx, dgn, dwg","GEO"]
[null,null,"Jordarmering*","pdf","docx, dgn, dwg","GEO"]
[null,null,"Jordspikning*","pdf","docx, dgn, dwg","GEO"]
["Avvattning","Alla konstruktioner (undantaget fördröjnings-anläggningar)","Anläggningsskiss","pdf"," --"," --",null,null,null,null,null,"Ebbas leveransyta","Ebba/ Avvattning"]
[null,null,"Anläggningsritning","pdf"," --"," --"]
[null,null,"Beskrivning","pdf"," --"," --"]
[null,null,"Teknisk beskrivning","pdf"," --"," --"]
[null,null,"Rapport","pdf"," --"," --"]
[null,null,"Garantibesiktningsprotokoll","pdf"," --"," --"]
[null,null,"Kontrollprogram (miljö)","pdf"," --"," --"]
[null,"Fördröjnings-anläggningar","Anläggnings- och funktionsbeskrivning","pdf"," --"," --"]
[null,null,"Ledningsplan","pdf"," --"," --"]
[null,null,"Sektionsritning Magasin*","pdf"," --"," --"]
[null,null,"Sektionsritning Oljeavskiljare*","pdf"," --"," --"]
[null,null,"Sektionsritning Tråg/Bentonitskärm*","pdf"," --"," --"]
[null,null,"Sektionsritning Tätskikt*","pdf"," --"," --"]
[null,null,"Anslutningsritning Tätskikt","pdf"," --"," --"]
[null,null,"Materialbeskrivning Tätskikt","pdf"," --"," --"]
[null,null,"Teknisk beskrivning","pdf"," --"," --"]
[null,null,"Beräkningar","pdf"," --"," --"]
[null,null,"Riskbedömning","pdf"," --"," --"]
[null,null,"Kontrollprogram (miljö)","pdf","docx"," --"]
[null,null,"TMALL 1452 Åtgärdsrutin vid olycka med utsläpp järnväg","pdf","docx"," --"]
[null,null,"TMALL 1433 Skötselbeskrivning vattenskyddsanläggning järnväg","pdf","docx"," --"]
["Trumma (under järnväg) \n\nSidotrumma, som finns vid sidan av järnvägen ska redovisas i flik 15.4 Mark",null,"Anläggningsskiss","pdf/a"," --"," --",null,null,null,null,null,"Registreras direkt i BATMAN","BATMAN"]
[null,null,"Ritningar","pdf/a"," --"," --"]
[null,null,"Avvattning/Mark/Geotekniskt PM","pdf/a"," --"," --"]
[null,null,"Avtal","pdf/a"," --"," --"]
[null,null,"Miljödom","pdf/a"," --"," --"]
[null,null,"Beslut om anmäld vattenverksamhet","pdf/a"," --"," --"]
[null,null,"Övriga myndighetsbeslut","pdf/a"," --"," --"]
[null,null,"Kontrollprogram - miljö","pdf/a","docx"," --"]
[null,null,"Skötselbeskrivning","pdf/a"," --"," --"]
["* (Geoteknik) Kan redovisas på samma planritning. Denna kallas då Plan - Geotekniska förstärkningar."]
["* (Avvattning) Kan redovisas på samma sektionsritning. Denna kallas då Sektionsritning - Fördröjningsanläggning."]
["** Teknisk dokumentation för Geoteknik/ Undersökning kan med fördel levereras redan efter slutförd undersökningen i respektive skede, dock senast 3 månader efter slutbesiktning."]
["*** Befintliga objekt redovisades tidigare i modellfil MARK och återfinns fortfarande i modellfil MARK. Nya objekt ska redovisas i modellfil GEO. Gäller från 2021-11-01."]
[]
["OBS! Relevant data/dokumentation kopplat till miljö ska levereras enligt flik 15.5 Miljö"]

{"sheet":"4.2 Kanalisation","index":15,"n_rows":19,"n_cols":15,"rows_kept":19,"cut":false,"hidden":false,"merged":[[1,0,1,1],[2,0,2,1],[4,5,4,9],[4,11,4,13],[16,10,18,10],[14,0,14,4],[15,0,15,14],[10,11,11,11],[10,10,11,10],[8,0,8,4],[6,0,6,4],[12,0,12,4],[16,0,18,0],[16,11,18,11],[7,0,7,14],[13,0,13,14]]}
["Kanalisation"]
["Inkoppling:",null,{"$f":"IF(Projektuppgifter!G9=\"\",\"Fyll i datum\",Projektuppgifter!G9)","v":"Fyll i datum"},null,"Länk till flik Projektuppgifter"]
["Slutbesiktning:",null,{"$f":"IF(Projektuppgifter!G10=\"\",\"Fyll i datum\",Projektuppgifter!G10)","v":"Fyll i datum"}]
[]
[null,null,null,null,"Fylls i av:","Projekt",null,null,null,null,"Information till projektet","Mottagande förvaltning",null,null,"Alla"]
[null,null,"Filformat\nvisningsfil","Filformat\nunderlagsfil","Uppbyggd av modellfil","Aktuellt att upprättas av projektet","Status på levererad data","Filnamn alt länk till levererad fil","Levereras av:\n- E (Entreprenör)\n- K (Konsult)\n- B (Beställare)\n(datum + namn)","Levererat till förvaltande system och aviserat leveransen till mottagande förvaltning, enligt TDOK 2016:0411 (med kopia till Indatakoordinator)\n(datum + namn + ärendenr.)","Leveransyta till förvaltande system","Förvaltande system","Mottaget\n(datum + namn + ärendenr.)","Godkänt \n(datum + namn + ärendenr.)","Eventuella kommentarer"]
["3 veckor efter inkoppling",null,null,null,null,"Ja"]
[{"$f":"\"Leverans från leverantör (E/K) till överenskommen leveransyta, för mottagningskontroll senast: \"&IF(Projektuppgifter!C97=\"\",\"Fyll i datum\",TEXT(DATE(YEAR(Projektuppgifter!C97),MONTH(Projektuppgifter!C97),DAY(Projektuppgifter!C97)),\"ÅÅÅÅ-MM-DD\"))","v":"Leverans från leverantör (E/K) till överenskommen leveransyta, för mottagningskontroll senast: Fyll i datum"}]
[{"$f":"\"Leverans till mottagande förvaltning senast: \"&IF('5.3 Övriga byggnadsverk'!B3=\"Fyll i datum\",\"Fyll i datum\",TEXT(DATE(YEAR('5.3 Övriga byggnadsverk'!B3),MONTH('5.3 Övriga byggnadsverk'!B3),DAY('5.3 Övriga byggnadsverk'!B3)+21),\"ÅÅÅÅ-MM-DD\"))","v":"Leverans till mottagande förvaltning senast: Fyll i datum"},null,null,null,null,"Ja"]
["Data för lagring i databas"]
["Nytt objekt:","TMALL 0655 Kanalisation"," --","xlsx"," --",null,null,null,null,null,"Projektets lagringsyta","BIS"]
["Ändrat/slopat objekt:","Slopnings- och ändringslista av objektet ovan"," --","xlsx"," --"]
["3 månader efter slutbesiktning",null,null,null,null,null,"x"]
[{"$f":"\"Leverans från leverantör (E/K) till överenskommen leveransyta, för mottagningskontroll senast: \"&IF(Projektuppgifter!C129=\"\",\"Fyll i datum\",TEXT(DATE(YEAR(Projektuppgifter!C129),MONTH(Projektuppgifter!C129),DAY(Projektuppgifter!C129)),\"ÅÅÅÅ-MM-DD\"))","v":"Leverans från leverantör (E/K) till överenskommen leveransyta, för mottagningskontroll senast: Fyll i datum"}]
[{"$f":"\"Leverans till mottagande förvaltning senast: \"&IF(C3=\"Fyll i datum\",\"Fyll i datum\",TEXT(EDATE(C3,3),\"ÅÅÅÅ-MM-DD\"))","v":"Leverans till mottagande förvaltning senast: Fyll i datum"},null,null,null,null,null,"x"]
["Teknisk dokumentation"]
["Kabelkanalisation","Kanalisationsplan","pdf","dgn","KANAL",null,null,null,null,null,"Ebbas leveransyta ","Ebba/ Banunderbyggnad/ Kabelkanalisation"]
[null,"Kanalisationsprofil","pdf","dgn, dwg"," --"]
[null,"Konstruktionsritning","pdf","dgn, dwg"," --"]

{"sheet":"5.1 Bro","index":16,"n_rows":65,"n_cols":16,"rows_kept":65,"cut":false,"hidden":false,"merged":[[12,0,12,3],[16,0,16,3],[3,0,3,1],[10,0,10,3],[34,2,34,3],[28,0,28,1],[24,0,24,1],[25,0,25,1],[26,0,26,1],[27,0,27,1],[23,0,23,1],[11,0,11,15],[8,4,8,9],[8,11,8,14],[20,11,21,11],[14,10,15,10],[14,11,15,11],[20,0,20,1],[21,0,21,1],[23,7,28,7],[20,7,21,7],[17,0,17,15],[22,0,22,1],[18,0,18,3],[20,2,21,3],[20,10,21,10],[23,8,28,8],[23,9,28,9],[23,10,29,10],[23,11,29,11],[29,0,29,1],[56,0,60,0],[46,0,53,0],[45,11,61,11],[45,10,61,10],[61,0,61,3],[54,0,55,0],[45,7,60,7],[30,0,30,3],[43,0,43,3],[41,0,41,3],[45,0,45,1],[35,0,35,3],[31,0,31,15],[36,0,36,15],[42,0,42,15],[39,10,40,10],[38,0,38,15],[39,11,40,11],[37,0,37,3],[32,0,32,3],[33,0,33,15],[34,0,34,1]]}
["Bro"]
["Inkoppling:",{"$f":"IF(Projektuppgifter!G9=\"\",\"Fyll i datum\",Projektuppgifter!G9)","v":"Fyll i datum"},null,"Länk till flik Projektuppgifter"]
["Slutbesiktning:",{"$f":"IF(Projektuppgifter!G10=\"\",\"Fyll i datum\",Projektuppgifter!G10)","v":"Fyll i datum"}]
["Se även rutinbeskrivning TDOK 2018:0200 \"Förvaltningsdata och uppgifter i BATMAN\" och TDOK 2023:0079  \"Handlägga och fastställa bärighetsuppgifter \nför byggnadsverk\". Dessa rutiner kompletterar kravdokumentet TDOK 2016:0407."]
[]
["Konstruktionsnummer:"]
["Vid rivning, meddela byggnadsverk.jvg_batman@trafikverket.se. "]
[]
[null,null,null,"Fylls i av:","Projekt",null,null,null,null,null,"Information till projektet","1. Mottagande förvaltning (BIS)\n2. Kontroll av överlämnandeorganisationens teknikspecialist/teknikingenjör (BATMAN)\n3. Mottagande förvaltning BATMAN",null,null,null,"Alla"]
[null,null,"Filformat\nvisningsfil","Filformat\nunderlagsfil","Aktuellt att upprättas av projektet","Länk till levererad fil","Levereras av:\n- E (Entreprenör)\n- K (Konsult)\n- B (Beställare)\n(datum + namn)","Levererat till förvaltande system/registrerat och aviserat leveransen till mottagande förvaltning, enligt TDOK 2016:0411 (med kopia till Indatakoordinator)\n(datum + namn + ärendenr.)","BIS: Eventuella ändringar av tidigare levererade data \n(Länk till leveransen)\n\n","BIS: Levererat till förvaltande system och aviserat ändringar (datum + namn + ärendenr.)","Leveransyta till förvaltande system","Förvaltande system","Mottaget\n(datum + namn + ärendenr.)","1. För lev i BIS\nGodkänt \n(datum + namn + ärendenr.)\n\n2. För lev i BATMAN\nKontrollerat och/eller fastställt enl TDOK 2018:0200 (datum + namn (ej initialer) och org.tillhörighet)\n\n3. Rad 62 (datum + namn (ej initialer) och org.tillhörighet)","BIS: Godkänt ändring\n(datum + namn + ärendenr.)","Eventuella kommentarer"]
["6 månader före inkoppling ",null,null,null,"Ja"]
[{"$f":"\"Leverans från leverantör (E/K) till överenskommen leveransyta, för mottagningskontroll senast: \"&IF(Projektuppgifter!C31=\"\",\"Fyll i datum\",TEXT(DATE(YEAR(Projektuppgifter!C31),MONTH(Projektuppgifter!C31),DAY(Projektuppgifter!C31)),\"ÅÅÅÅ-MM-DD\"))","v":"Leverans från leverantör (E/K) till överenskommen leveransyta, för mottagningskontroll senast: Fyll i datum"}]
[{"$f":"\"Leverans till mottagande förvaltning senast: \"&IF(B2=\"Fyll i datum\",\"Fyll i datum\",TEXT(EDATE(B2,-6),\"ÅÅÅÅ-MM-DD\"))","v":"Leverans till mottagande förvaltning senast: Fyll i datum"},null,null,null,"Ja"]
["Data för lagring i databas"]
["Nytt objekt:","TMALL 0583 Järnvägsbro"," --","xlsx",null,null,null,null,null,null,"Projektets lagringsyta","BIS"]
["Ändrat/slopat objekt:","Slopnings- och ändringslista av objektet ovan"," --","xlsx"]
["1 månad före inkoppling",null,null,null,"Ja"]
[{"$f":"\"Leverans från leverantör (E/K) till överenskommen leveransyta, för mottagningskontroll senast: \"&IF(Projektuppgifter!C66=\"\",\"Fyll i datum\",TEXT(DATE(YEAR(Projektuppgifter!C66),MONTH(Projektuppgifter!C66),DAY(Projektuppgifter!C66)),\"ÅÅÅÅ-MM-DD\"))","v":"Leverans från leverantör (E/K) till överenskommen leveransyta, för mottagningskontroll senast: Fyll i datum"}]
[{"$f":"\"Leverans till mottagande förvaltning senast: \"&IF(B2=\"Fyll i datum\",\"Fyll i datum\",TEXT(EDATE(B2,-1),\"ÅÅÅÅ-MM-DD\"))","v":"Leverans till mottagande förvaltning senast: Fyll i datum"},null,null,null,"Ja"]
["Data för lagring i databas"]
["Tekniska uppgifter",null,"Registreras direkt i BATMAN",null,null,null,null,null,null,null,"Registreras direkt i BATMAN","BATMAN"]
["Konstruktiv indelning"]
["Teknisk dokumentation"]
["Anläggningsskiss",null,"pdf/a"," --",null,null,null,null,null,null,"Registreras direkt i BATMAN","BATMAN"]
["Bärighetsberäkning",null,"pdf/a"," --"]
["Ritningar",null,"pdf/a"," --"]
["Beskrivningar",null,"pdf/a"," --"]
["Redogörelse för konstruktionens förutsättningar och metoder (RKFM)",null,"pdf/a"," --"]
["Konstruktionsberäkningar",null,"pdf/a"," --"]
["Konstruktionsmodeller",null,"IFC"," --"]
["Dagen för inkoppling ",null,null,null,"Ja"]
[{"$f":"\"Leverans från leverantör (E/K) till överenskommen leveransyta, för mottagningskontroll senast: \"&IF(Projektuppgifter!C78=\"\",\"Fyll i datum\",TEXT(DATE(YEAR(Projektuppgifter!C78),MONTH(Projektuppgifter!C78),DAY(Projektuppgifter!C78)),\"ÅÅÅÅ-MM-DD\"))","v":"Leverans från leverantör (E/K) till överenskommen leveransyta, för mottagningskontroll senast: Fyll i datum"}]
[{"$f":"\"Leverans till mottagande förvaltning senast: \"&IF(B2=\"Fyll i datum\",\"Fyll i datum\",TEXT(DATE(YEAR(B2),MONTH(B2),DAY(B2)),\"ÅÅÅÅ-MM-DD\"))","v":"Leverans till mottagande förvaltning senast: Fyll i datum"},null,null,null,"Ja"]
["Data för lagring i databas"]
["Huvudinspektion",null,"Registreras direkt i BATMAN",null,null,null,null,null,null,null,"Registreras direkt i BATMAN","BATMAN"]
["1 vecka efter inkoppling ",null,null,null,"Ja"]
[{"$f":"\"Leverans från leverantör (E/K) till överenskommen leveransyta, för mottagningskontroll senast: \"&IF(Projektuppgifter!C81=\"\",\"Fyll i datum\",TEXT(DATE(YEAR(Projektuppgifter!C81),MONTH(Projektuppgifter!C81),DAY(Projektuppgifter!C81)),\"ÅÅÅÅ-MM-DD\"))","v":"Leverans från leverantör (E/K) till överenskommen leveransyta, för mottagningskontroll senast: Fyll i datum"}]
[{"$f":"\"Leverans till mottagande förvaltning senast: \"&IF(B2=\"Fyll i datum\",\"Fyll i datum\",TEXT(DATE(YEAR(B2),MONTH(B2),DAY(B2)+7),\"ÅÅÅÅ-MM-DD\"))","v":"Leverans till mottagande förvaltning senast: Fyll i datum"},null,null,null,"Ja"]
["Data för lagring i databas"]
["Nytt objekt:","TMALL 0597 Vägbro"," --","xlsx",null,null,null,null,null,null,"Projektets lagringsyta","BIS"]
["Ändrat/slopat objekt:","Slopnings- och ändringslista av objektet ovan"," --","xlsx"]
["3 månader efter slutbesiktning",null,null,null,"Ja"]
[{"$f":"\"Leverans från leverantör (E/K) till överenskommen leveransyta, för mottagningskontroll senast: \"&IF(Projektuppgifter!C117=\"\",\"Fyll i datum\",TEXT(DATE(YEAR(Projektuppgifter!C117),MONTH(Projektuppgifter!C117),DAY(Projektuppgifter!C117)),\"ÅÅÅÅ-MM-DD\"))","v":"Leverans från leverantör (E/K) till överenskommen leveransyta, för mottagningskontroll senast: Fyll i datum"}]
[{"$f":"\"Leverans till mottagande förvaltning senast: \"&IF(B3=\"Fyll i datum\",\"Fyll i datum\",TEXT(EDATE(B3,3),\"ÅÅÅÅ-MM-DD\"))","v":"Leverans till mottagande förvaltning senast: Fyll i datum"},null,null,null,"Ja"]
["Teknisk dokumentation"]
["Teknisk dokumentation från 1 mån före inkoppling har status relationshandling",null,"pdf/a"," --",null,null,null,null,null,null,"Registreras direkt i BATMAN","BATMAN"]
["Övriga dokument från en åtgärd","Betonggjutningsjournal","pdf/a"," --"]
[null,"Rapporter och tekniska utredningar från byggtiden","pdf/a"," --"]
[null,"Kvarstående avvikelserapporter efter slutbesiktning samt eventuella provningsintyg som hör till avvikelse.","pdf/a"," --"]
[null,"Protokoll från entreprenadbesiktningar. (förekommande besiktningstyper enl AB04/ABT06 kap 7)","pdf/a"," --"]
[null,"Avtal, exempelvis med kommun, annan väghållare, markägare.","pdf/a"," --"]
[null,"Reservdelsinformation","pdf/a"," --"]
[null,"Teknisk beskrivning avfuktningsanläggning","pdf/a"," --"]
[null,"Ev övriga dokument från åtgärd som är viktiga för framtida förvaltning av bro","pdf/a"," --"]
["Geoteknik","Geotekniskt PM","pdf/a"," --"]
[null,"Markundersökningsrapport","pdf/a"," --"]
["Miljö","Miljödom","pdf/a"," --"]
[null,"Beslut om anmäld vattenverksamhet","pdf/a"," --"]
[null,"Kontrollprogram - miljö","pdf/a","docx"]
[null,"Övriga myndighetsbeslut","pdf/a"," --"]
[null,"Skötselbeskrivning","pdf/a"," --"]
["Data och dokumentation enligt TDOK 2016:0407 är komplett. \nAktivitet 1-5 enligt TDOK 2018:0200 är genomförd. \nBärighetsuppgifter enligt TDOK 2023:0079 är registrerade och fastställda."]
["Modellfilen för MARK ska uppdateras om man river/bygger en bro. Modellfilen ska registreras i flik 0. Geografiska modeller"]
[]
["OBS! Relevant data/dokumentation kopplat till miljö ska levereras enligt flik 15.5 Miljö"]

{"sheet":"5.2 Tunnel o bergslänt","index":17,"n_rows":71,"n_cols":16,"rows_kept":71,"cut":false,"hidden":false,"merged":[[3,0,3,1],[62,0,66,0],[53,11,67,11],[53,10,67,10],[49,0,49,3],[51,0,51,3],[53,0,53,1],[44,0,44,3],[46,0,46,3],[47,0,47,15],[48,0,48,1],[48,2,48,3],[9,4,9,9],[9,11,9,14],[22,10,23,10],[22,11,23,11],[11,0,11,3],[13,0,13,3],[18,0,18,3],[20,0,20,3],[22,0,22,1],[15,0,16,0],[12,0,12,15],[19,0,19,15],[15,11,17,11],[22,2,23,3],[23,0,23,1],[15,10,17,10],[22,7,23,7],[24,0,24,1],[30,0,30,1],[31,0,31,1],[29,0,29,1],[26,0,26,1],[27,0,27,1],[25,0,25,1],[28,0,28,1],[54,0,61,0],[67,0,67,3],[25,11,43,11],[45,0,45,15],[50,0,50,15],[25,14,43,14],[25,10,43,10],[32,0,41,0],[42,0,43,0]]}
["Tunnel och bergslänt"]
["Inkoppling:",{"$f":"IF(Projektuppgifter!G9=\"\",\"Fyll i datum\",Projektuppgifter!G9)","v":"Fyll i datum"},null,"Länk till flik Projektuppgifter"]
["Slutbesiktning:",{"$f":"IF(Projektuppgifter!G10=\"\",\"Fyll i datum\",Projektuppgifter!G10)","v":"Fyll i datum"}]
["Se även rutinbeskrivning TDOK 2018:0200 \"Förvaltningsdata och uppgifter i BATMAN\" och TDOK 2023:0079  \"Handlägga och fastställa bärighetsuppgifter \nför byggnadsverk\". Dessa rutiner kompletterar kravdokumentet TDOK 2016:0407."]
[]
["Konstruktions-nummer:"]
[]
["Vid rivning, meddela byggnadsverk.jvg_batman@trafikverket.se. "]
[]
[null,null,null,"Fylls i av:","Projekt",null,null,null,null,null,"Information till projektet","1. Mottagande förvaltning (BIS)\n2. Kontroll av överlämnandeorganisationens teknikspecialist/teknikingenjör (BATMAN)\n3. Mottagande förvaltning BATMAN",null,null,null,"Alla"]
[null,null,"Filformat\nvisningsfil","Filformat\nunderlagsfil","Aktuellt att upprättas av projektet","Länk till levererad fil","Levereras av:\n- E (Entreprenör)\n- K (Konsult)\n- B (Beställare)\n(datum + namn)","Levererat till förvaltande system/registrerat och aviserat leveransen till mottagande förvaltning, enligt TDOK 2016:0411 (med kopia till Indatakoordinator)\n(datum + namn + ärendenr.)","BIS: Eventuella ändringar av tidigare levererade data \n(Länk till leveransen)\n\n","BIS: Levererat till förvaltande system  och aviserat ändringar (datum + namn + ärendenr.)","Leveransyta till förvaltande system","Förvaltande system","Mottaget\n(datum + namn + ärendenr.)","1. För lev i BIS\nGodkänt \n(datum + namn + ärendenr.)\n\n2. För lev i BATMAN\nKontrollerat och/eller fastställt enl TDOK 2018:0200 (datum + namn (ej initialer) och org.tillhörighet)\n\n3. Rad 68 (datum + namn (ej initialer) och org.tillhörighet)","BIS: Godkänt ändring\n(datum + namn + ärendenr.)","Eventuella kommentarer"]
["6 månader före inkoppling ",null,null,null,"Ja"]
[{"$f":"\"Leverans från leverantör (E/K) till överenskommen leveransyta, för mottagningskontroll senast: \"&IF(Projektuppgifter!C32=\"\",\"Fyll i datum\",TEXT(DATE(YEAR(Projektuppgifter!C32),MONTH(Projektuppgifter!C32),DAY(Projektuppgifter!C32)),\"ÅÅÅÅ-MM-DD\"))","v":"Leverans från leverantör (E/K) till överenskommen leveransyta, för mottagningskontroll senast: Fyll i datum"}]
[{"$f":"\"Leverans till mottagande förvaltning senast: \"&IF(B2=\"Fyll i datum\",\"Fyll i datum\",TEXT(EDATE(B2,-6),\"ÅÅÅÅ-MM-DD\"))","v":"Leverans till mottagande förvaltning senast: Fyll i datum"},null,null,null,"Ja"]
["Data för lagring i databas"]
["Nytt objekt:","TMALL 0594 Tunnel"," --","xlsx",null,null,null,null,null,null,"Projektets lagringsyta","BIS"]
[null,"TMALL 0588 Service och räddningstunnel"," --","xlsx"]
["Ändrat/slopat objekt:","Slopnings- och ändringslista av objektet ovan"," --","xlsx"]
["1 månad före inkoppling",null,null,null,"Ja"]
[{"$f":"\"Leverans från leverantör (E/K) till överenskommen leveransyta, för mottagningskontroll senast: \"&IF(Projektuppgifter!C68=\"\",\"Fyll i datum\",TEXT(DATE(YEAR(Projektuppgifter!C68),MONTH(Projektuppgifter!C68),DAY(Projektuppgifter!C68)),\"ÅÅÅÅ-MM-DD\"))","v":"Leverans från leverantör (E/K) till överenskommen leveransyta, för mottagningskontroll senast: Fyll i datum"}]
[{"$f":"\"Leverans till mottagande förvaltning senast: \"&IF(B2=\"Fyll i datum\",\"Fyll i datum\",TEXT(EDATE(B2,-1),\"ÅÅÅÅ-MM-DD\"))","v":"Leverans till mottagande förvaltning senast: Fyll i datum"},null,null,null,"Ja"]
["Data för lagring i databas"]
["Tekniska uppgifter",null,"Registreras direkt i BATMAN",null,null,null,null,null,null,null,"Registreras direkt i BATMAN","BATMAN"]
["Konstruktiv indelning"]
["Teknisk dokumentation"]
["Anläggningsskiss",null,"pdf/a"," --",null,null,null,null,null,null,"Registreras direkt i BATMAN","BATMAN"]
["Bärighetsberäkning",null,"pdf/a"," --"]
["Ritningar",null,"pdf/a"," --"]
["Beskrivningar",null,"pdf/a"," --"]
["Redogörelse för konstruktionens förutsättningar och metoder (RKFM)",null,"pdf/a"," --"]
["Utredningar och beräkningar",null,"pdf/a"," --"]
["Förundersökning",null,"pdf/a"," --"]
["Personsäkerhet i tunnlar","Konstruktionsredovisning","pdf/a"," --"]
[null,"EG-kontrollintyg","pdf/a"," --"]
[null,"TMALL 1437 Minimikrav för drift av järnvägstunnel","pdf/a"," --"]
[null,"TMALL 1438 Systembeskrivningar järnvägstunnel","pdf/a"," --"]
[null,"TMALL 1439 Driftinstruktioner järnvägstunnel","pdf/a"," --"]
[null,"TMALL 1440 Åtgärdsplaner järnvägstunnel","pdf/a"," --"]
[null,"Förundersökning","pdf/a"," --"]
[null,"Underhållsbestämmelser","pdf/a"," --"]
[null,"Räddnings- och insatsplan","pdf/a","docx, dwg"]
[null,"Tillsyn enligt lag (2003:778) om skydd mot olyckor","pdf/a"," --"]
["Installationer och övriga system","Konstruktionsredovisning","pdf/a"," --"]
[null,"Uppgifter om utförd kontroll och underhåll","pdf/a"," --"]
["Dagen för inkoppling ",null,null,null,"Ja"]
[{"$f":"\"Leverans från leverantör (E/K) till överenskommen leveransyta, för mottagningskontroll senast: \"&IF(Projektuppgifter!C79=\"\",\"Fyll i datum\",TEXT(DATE(YEAR(Projektuppgifter!C79),MONTH(Projektuppgifter!C79),DAY(Projektuppgifter!C79)),\"ÅÅÅÅ-MM-DD\"))","v":"Leverans från leverantör (E/K) till överenskommen leveransyta, för mottagningskontroll senast: Fyll i datum"}]
[{"$f":"\"Leverans till mottagande förvaltning senast: \"&IF(B2=\"Fyll i datum\",\"Fyll i datum\",TEXT(DATE(YEAR(B2),MONTH(B2),DAY(B2)),\"ÅÅÅÅ-MM-DD\"))","v":"Leverans till mottagande förvaltning senast: Fyll i datum"},null,null,null,"Ja"]
["Data för lagring i databas"]
["Huvudinspektion",null,"Registreras direkt i BATMAN",null,null,null,null,null,null,null,"Registreras direkt i BATMAN","BATMAN"]
["3 månader efter slutbesiktning",null,null,null,"Ja"]
[{"$f":"\"Leverans från leverantör (E/K) till överenskommen leveransyta, för mottagningskontroll senast: \"&IF(Projektuppgifter!C118=\"\",\"Fyll i datum\",TEXT(DATE(YEAR(Projektuppgifter!C118),MONTH(Projektuppgifter!C118),DAY(Projektuppgifter!C118)),\"ÅÅÅÅ-MM-DD\"))","v":"Leverans från leverantör (E/K) till överenskommen leveransyta, för mottagningskontroll senast: Fyll i datum"}]
[{"$f":"\"Leverans till mottagande förvaltning senast: \"&IF(B3=\"Fyll i datum\",\"Fyll i datum\",TEXT(EDATE(B3,3),\"ÅÅÅÅ-MM-DD\"))","v":"Leverans till mottagande förvaltning senast: Fyll i datum"},null,null,null,"Ja"]
["Teknisk dokumentation"]
["Teknisk dokumentation från 1 mån före inkoppling har status relationshandling",null,"pdf/a"," --",null,null,null,null,null,null,"Registreras direkt i BATMAN","BATMAN"]
["Övriga dokument från en åtgärd","Betonggjutningsjournal","pdf/a"," --"]
[null,"Rapporter och tekniska utredningar från byggtiden","pdf/a"," --"]
[null,"Kvarstående avvikelserapporter efter slutbesiktning samt eventuella provningsintyg som hör till avvikelse.","pdf/a"," --"]
[null,"Protokoll från entreprenadbesiktningar. (förekommande besiktningstyper enl AB04/ABT06 kap 7)","pdf/a"," --"]
[null,"Avtal, exempelvis med kommun, annan väghållare, markägare.","pdf/a"," --"]
[null,"Reservdelsinformation","pdf/a"," --"]
[null,"Teknisk beskrivning avfuktningsanläggning","pdf/a"," --"]
[null,"Ev övriga dokument från åtgärd som är viktiga för framtida förvaltning av bro","pdf/a"," --"]
["Miljö","Miljödom","pdf/a"," --"]
[null,"Beslut om anmäld vattenverksamhet","pdf/a"," --"]
[null,"Kontrollprogram - miljö","pdf/a","docx"]
[null,"Övriga myndighetsbeslut","pdf/a"," --"]
[null,"Skötselbeskrivning","pdf/a"," --"]
["Data och dokumentation enligt TDOK 2016:0407 är komplett. \nAktivitet 1-5 enligt TDOK 2018:0200 är genomförd. \nBärighetsuppgifter enligt TDOK 2023:0079 är registrerade och fastställda."]
["Modellfilen för MARK ska uppdateras om man bygger en tunnel. Modellfilen ska registreras i flik 0. Geografiska modeller"]
[]
["OBS! Relevant data/dokumentation kopplat till miljö ska levereras enligt flik 15.5 Miljö"]

{"sheet":"5.3 Övriga byggnadsverk","index":18,"n_rows":70,"n_cols":15,"rows_kept":70,"cut":false,"hidden":false,"merged":[[32,0,32,4],[21,0,21,1],[22,0,22,1],[23,0,23,1],[24,0,24,1],[25,0,25,1],[36,0,40,0],[46,9,61,9],[13,0,13,4],[4,0,4,1],[19,0,19,1],[31,0,31,1],[31,2,31,3],[30,0,30,14],[17,10,18,10],[17,11,18,11],[17,9,18,9],[15,0,15,3],[11,11,11,13],[11,5,11,9],[18,0,18,1],[20,0,20,1],[33,0,33,14],[43,0,43,14],[66,0,66,3],[29,0,29,3],[42,0,42,4],[44,0,44,4],[62,0,65,0],[46,0,46,1],[34,0,34,4],[36,11,41,11],[36,10,41,10],[62,11,64,11],[47,0,61,0],[46,11,61,11],[46,10,61,10],[62,10,65,10],[1,0,1,1],[20,10,26,10],[20,11,26,11],[14,0,14,14],[28,0,28,14],[17,0,17,1],[17,2,18,3],[27,0,27,3]]}
["Övriga byggnadsverk"]
["Övriga byggnadsverk i järnvägsanläggningen som ska registreras i BATMAN är Färjeläge, Kaj (Båtbrygga), Stödkonstruktioner (nivåskillnad på ömse sidor större än 1,5 m, enligt TRVINFRA 00227), Tråg, Påldäck, Anordningar för sjötrafik, Snögalleri, Vändskiva samt Skärm vid järnväg."]
["Inkoppling",{"$f":"IF(Projektuppgifter!G9=\"\",\"Fyll i datum\",Projektuppgifter!G9)","v":"Fyll i datum"},null,null,"Länk till flik Projektuppgifter"]
["Slutbesiktning:",{"$f":"IF(Projektuppgifter!G10=\"\",\"Fyll i datum\",Projektuppgifter!G10)","v":"Fyll i datum"}]
["Se även rutinbeskrivning TDOK 2018:0200 \"Förvaltningsdata och uppgifter i BATMAN\" och TDOK 2023:0079  \"Handlägga och fastställa bärighetsuppgifter för byggnadsverk\". Dessa rutiner kompletterar kravdokumentet TDOK 2016:0407."]
["Teknisk dokumentation för bullerskyddsskärmar lagras i BATMAN och för övriga bullerskydd (bullervallar och ballastmattor) i Ebba, enligt nedan.\n\n\n"]
["OBS! Även för bullerskyddsskärmar som ska lagras i BATMAN ska modellfil MARK uppdateras."]
[]
["Konstruktionsnummer:"]
["Typ av konstruktion"]
["Vid rivning, meddela byggnadsverk.jvg_batman@trafikverket.se. "]
[null,null,null,null,"Fylls i av:","Projekt",null,null,null,null,"Information till projektet","1. Mottagande förvaltning (BIS)\n2. Kontroll av överlämnandeorganisationens teknikspecialist/teknikingenjör (BATMAN)\n3. Mottagande förvaltning BATMAN",null,null,"Alla"]
[null,null,"Filformat\nvisningsfil","Filformat\nunderlagsfil","Uppbyggd av modellfil","Aktuellt att upprättas av projektet","Status på levererad data","Filnamn alt länk till levererad fil","Levereras av:\n- E (Entreprenör)\n- K (Konsult)\n- B (Beställare)\n(datum + namn)","Levererat till förvaltande system/registrerat och aviserat leveransen till mottagande förvaltning, enligt TDOK 2016:0411 (med kopia till Indatakoordinator)\n(datum + namn + ärendenr.)","Leveransyta till förvaltande system","Förvaltande system","Mottaget\n(datum + namn + ärendenr.)","1. För lev i BIS (Rad 34-44)\nGodkänt \n(datum + namn + ärendenr.)\n\n2. För lev i BATMAN\nKontrollerat och/eller fastställt enl TDOK 2018:0200 (datum + namn (ej initialer) och org.tillhörighet)\n\n3. Rad 67 (datum + namn (ej initialer) och org.tillhörighet)","Eventuella kommentarer"]
["1 månad före inkoppling",null,null,null,null,"Ja"]
[{"$f":"\"Leverans från leverantör (E/K) till överenskommen leveransyta, för mottagningskontroll senast: \"&IF(Projektuppgifter!C70=\"\",\"Fyll i datum\",TEXT(DATE(YEAR(Projektuppgifter!C70),MONTH(Projektuppgifter!C70),DAY(Projektuppgifter!C70)),\"ÅÅÅÅ-MM-DD\"))","v":"Leverans från leverantör (E/K) till överenskommen leveransyta, för mottagningskontroll senast: Fyll i datum"}]
[{"$f":"\"Leverans till mottagande förvaltning senast: \"&IF(B3=\"Fyll i datum\",\"Fyll i datum\",TEXT(EDATE(B3,-1),\"ÅÅÅÅ-MM-DD\"))","v":"Leverans till mottagande förvaltning senast: Fyll i datum"},null,null,null,"Ja"]
["Data för lagring i databas"]
["Tekniska uppgifter",null,"Registreras direkt i BATMAN",null," --",null,null,null,null,null,"Registreras direkt i BATMAN","BATMAN"]
["Konstruktiv indelning",null,null,null," --"]
["Teknisk dokumentation"]
["Anläggningsskiss",null,"pdf/a"," --"," --",null,null,null,null,null,"Registreras direkt i BATMAN","BATMAN"]
["Bärighetsberäkning",null,"pdf/a"," --"," --"]
["Ritningar",null,"pdf/a"," --"," --"]
["Beskrivningar",null,"pdf/a"," --"," --"]
["Redogörelse för konstruktionens förutsättningar och metoder (RKFM)",null,"pdf/a"," --"," --"]
["Konstruktionsberäkningar",null,"pdf/a"," --"," --"]
["Konstruktionsmodeller",null,"IFC"," --"," --"]
["Dagen för inkoppling",null,null,null,"x","Ja"]
[{"$f":"\"Leverans från leverantör (E/K) till överenskommen leveransyta, för mottagningskontroll senast: \"&IF(Projektuppgifter!C80=\"\",\"Fyll i datum\",TEXT(DATE(YEAR(Projektuppgifter!C80),MONTH(Projektuppgifter!C80),DAY(Projektuppgifter!C80)),\"ÅÅÅÅ-MM-DD\"))","v":"Leverans från leverantör (E/K) till överenskommen leveransyta, för mottagningskontroll senast: Fyll i datum"}]
[{"$f":"\"Leverans till mottagande förvaltning senast: \"&IF(B3=\"Fyll i datum\",\"Fyll i datum\",TEXT(DATE(YEAR(B3),MONTH(B3),DAY(B3)),\"ÅÅÅÅ-MM-DD\"))","v":"Leverans till mottagande förvaltning senast: Fyll i datum"},null,null,null,"x","Ja"]
["Data för lagring i databas"]
["Huvudinspektion",null,"Registreras direkt i BATMAN",null," --",null,null,null,null,null,"Registreras direkt i BATMAN","BATMAN"]
["1 vecka efter inkoppling",null,null,null,null,"Ja"]
[{"$f":"\"Leverans från leverantör (E/K) till överenskommen leveransyta, för mottagningskontroll senast: \"&IF(Projektuppgifter!C117=\"\",\"Fyll i datum\",TEXT(DATE(YEAR(Projektuppgifter!C117),MONTH(Projektuppgifter!C117),DAY(Projektuppgifter!C117)),\"ÅÅÅÅ-MM-DD\"))","v":"Leverans från leverantör (E/K) till överenskommen leveransyta, för mottagningskontroll senast: Fyll i datum"}]
[{"$f":"\"Leverans till mottagande förvaltning senast: \"&IF(B3=\"Fyll i datum\",\"Fyll i datum\",TEXT(DATE(YEAR(B3),MONTH(B3),DAY(B3)+7),\"ÅÅÅÅ-MM-DD\"))","v":"Leverans till mottagande förvaltning senast: Fyll i datum"},null,null,null,null,"Ja"]
["Data för lagring i databas"]
["Nytt objekt:","TMALL 0653 Bullerskydd"," --","xlsx"," --",null,null,null,null,null,"Projektets lagringsyta","BIS"]
[null,"TMALL 0658 Snöskärm"," --","xlsx"," --"]
[null,"TMALL 0657 Snögalleri"," --","xlsx"," --"]
[null,"TMALL 0591 Stödmur"," --","xlsx"," --"]
[null,"TMALL 0567 Vändskiva"," --","xlsx"," --"]
["Ändrat/slopat objekt:","Slopnings- och ändringslista av objekten ovan"," --","xlsx"," --"]
["3 månader efter slutbesiktning",null,null,null,null,"Ja"]
[{"$f":"\"Leverans från leverantör (E/K) till överenskommen leveransyta, för mottagningskontroll senast: \"&IF(Projektuppgifter!C130=\"\",\"Fyll i datum\",TEXT(DATE(YEAR(Projektuppgifter!C130),MONTH(Projektuppgifter!C130),DAY(Projektuppgifter!C130)),\"ÅÅÅÅ-MM-DD\"))","v":"Leverans från leverantör (E/K) till överenskommen leveransyta, för mottagningskontroll senast: Fyll i datum"}]
[{"$f":"\"Leverans till mottagande förvaltning senast: \"&IF(B4=\"Fyll i datum\",\"Fyll i datum\",TEXT(EDATE(B4,3),\"ÅÅÅÅ-MM-DD\"))","v":"Leverans till mottagande förvaltning senast: Fyll i datum"},null,null,null,null,"Ja"]
["Teknisk dokumentation"]
["Teknisk dokumentation från 1 mån före inkoppling har status relationshandling",null,"pdf/a"," --"," --",null,null,null,null,null,"Registreras direkt i BATMAN","BATMAN"]
["Övriga dokument från en åtgärd ","Betonggjutningsjournal","pdf/a"," --"," --"]
[null,"Rapporter och tekniska utredningar från byggtiden","pdf/a"," --"," --"]
[null,"Kvarstående avvikelserapporter efter slutbesiktning samt eventuella provningsintyg som hör till avvikelse.","pdf/a"," --"," --"]
[null,"Protokoll från entreprenadbesiktningar. (förekommande besiktningstyper enl AB04/ABT06 kap 7)","pdf/a"," --"," --"]
[null,"Avtal, exempelvis med kommun, annan väghållare, markägare.","pdf/a"," --"," --"]
[null,"Reservdelsinformation","pdf/a"," --"," --"]
[null,"Teknisk beskrivning avfuktningsanläggning","pdf/a"," --"," --"]
[null,"Ev övriga dokument från åtgärd som är viktiga för framtida förvaltning av övrigt byggnadsverk","pdf/a"," --"," --"]
[null,"Geotekniskt PM","pdf/a"," --"," --"]
[null,"Markundersökningsrapport","pdf/a"," --"," --"]
[null,"Miljödom","pdf/a"," --"," --"]
[null,"Beslut om anmäld vattenverksamhet","pdf/a"," --"," --"]
[null,"Kontrollprogram - miljö ","pdf/a","docx"," --"]
[null,"Övriga myndighetsbeslut","pdf/a"," --"," --"]
[null,"Skötselbeskrivning","pdf/a"," --"," --"]
["Bullerskydd (undantaget bullerskyddsskärm)","Plan-/elevationsritning","pdf","dgn","MARK*",null,null,null,null,null,"Ebbas leveransyta ","Ebba/ Banunderbyggnad/ Bullerskydd, hägnad"]
[null,"Drift-/underhållsinstruktion","pdf","docx, dgn, dwg"," --"]
[null,"Buller-/vibrations-/stomljudsutredningar och mätningar","pdf","docx, xlsx, dgn, dwg"," --"]
[null,"Avtal ägarskap och/eller underhållsansvar","pdf","docx"," --"]
["Data och dokumentation enligt TDOK 2016:0407 är komplett. \nAktivitet 1-5 enligt TDOK 2018:0200 är genomförd. \nBärighetsuppgifter enligt TDOK 2023:0079 är registrerade och fastställda.",null,null,null,null,null,null,null,null,null,"Registreras direkt i BATMAN","BATMAN"]
["*Modellfilen för MARK och KANAL ska registreras i flik 0. Geografiska modeller"]
[]
["OBS! Relevant data/dokumentation kopplat till miljö ska levereras enligt flik 15.5 Miljö"]

{"sheet":"6.1 GELD inkl RTU","index":19,"n_rows":19,"n_cols":16,"rows_kept":19,"cut":false,"hidden":false,"merged":[[15,0,17,0],[15,11,17,11],[15,12,17,12],[4,4,4,10],[4,12,4,13],[11,0,11,3],[13,0,13,3],[6,0,6,3],[8,0,8,3],[10,0,10,1],[7,0,7,15],[12,0,12,15]]}
["GELD inklusive RTU:er"]
["Inkoppling",{"$f":"IF(Projektuppgifter!G9=\"\",\"Fyll i datum\",Projektuppgifter!G9)","v":"Fyll i datum"}]
["Slutbesiktning:",{"$f":"IF(Projektuppgifter!G10=\"\",\"Fyll i datum\",Projektuppgifter!G10)","v":"Fyll i datum"},null,"Länk till flik Projektuppgifter"]
[]
[null,null,null,"Fylls i av:","Projekt",null,null,null,null,null,null,"Information till projektet","Mottagande förvaltning",null,"Projekt","Alla"]
[null,null,"Filformat\nvisningsfil","Filformat\nunderlagsfil","Aktuellt att upprättas av projektet","Status på levererad data","Filnamn","Levereras av:\n- E (Entreprenör)\n- K (Konsult)\n- B (Beställare)\n(datum + namn)","Skickat mejl och länk till material för granskning till geld.systemforvaltning@trafikverket.se. En granskning av materialet sker då av UHttö.","Godkänt av UHttö\n(datum + namn)","Levererat till förvaltande system och aviserat leveransen till mottagande förvaltning, enligt TDOK 2016:0411 (med kopia till Indatakoordinator)\n(datum + namn + ärendenr.)","Leveransyta till förvaltande system","Förvaltande system","Godkänt \n(datum + namn + ärendenr.)","Papperskopior är utlagda i anläggning \n(datum + namn)","Eventuella kommentarer"]
["10 veckor före inkoppling",null,null,null,"Ja"]
[{"$f":"\"Leverans från leverantör (E/K) till överenskommen leveransyta, för mottagningskontroll senast: \"&IF(Projektuppgifter!C46=\"\",\"Fyll i datum\",TEXT(DATE(YEAR(Projektuppgifter!C46),MONTH(Projektuppgifter!C46),DAY(Projektuppgifter!C46)),\"ÅÅÅÅ-MM-DD\"))","v":"Leverans från leverantör (E/K) till överenskommen leveransyta, för mottagningskontroll senast: Fyll i datum"}]
[{"$f":"\"Leverans till mottagande förvaltning senast: \"&IF(B2=\"Fyll i datum\",\"Fyll i datum\",TEXT(DATE(YEAR(B2),MONTH(B2),DAY(B2)-70),\"ÅÅÅÅ-MM-DD\"))","v":"Leverans till mottagande förvaltning senast: Fyll i datum"},null,null,null,"Ja"]
["Teknisk dokumentation"]
["Koordinatfil kabel",null," --","zip (av dgn och kml)",null,null,null,null,null,null,null,"Projektets lagringsyta","PW/ICT"]
["3 månader efter slutbesiktning",null,null,null,"Ja"]
[{"$f":"\"Leverans från leverantör (E/K) till överenskommen leveransyta, för mottagningskontroll senast: \"&IF(Projektuppgifter!C131=\"\",\"Fyll i datum\",TEXT(DATE(YEAR(Projektuppgifter!C131),MONTH(Projektuppgifter!C131),DAY(Projektuppgifter!C131)),\"ÅÅÅÅ-MM-DD\"))","v":"Leverans från leverantör (E/K) till överenskommen leveransyta, för mottagningskontroll senast: Fyll i datum"}]
[{"$f":"\"Leverans till mottagande förvaltning senast: \"&IF(B3=\"Fyll i datum\",\"Fyll i datum\",TEXT(EDATE(B3,3),\"ÅÅÅÅ-MM-DD\"))","v":"Leverans till mottagande förvaltning senast: Fyll i datum"},null,null,null,"Ja"]
["Teknisk dokumentation"]
["Dokumentation över något av följande system: \nRTU 560 \nSICAM Mic \nSICAM TM\nSICAM A8000 (CP-8000) \nSICAM A8000 (CP-8021)\nSICAM A8000 (CP-8031)\nSICAM A8000 (CP-8050)\nPLC","Samlingsdokument ","pdf","zip (APDL-verktyg; EED-fil, Promise-fil)",null,null,null,null,null,null,null,"Ebbas leveransyta","Ebba/ El/ Eldriftlednings-system"]
[null,"Underhållsinstruktion","pdf"," docx"]
[null,"TMALL 1382 - Driftledningsinstruktion","pdf","xlsx"]
["OBS! Relevant data/dokumentation kopplat till miljö ska levereras enligt flik 15.5 Miljö"]

{"sheet":"6.2 Hjälpkraftssystem","index":20,"n_rows":21,"n_cols":13,"rows_kept":21,"cut":false,"hidden":false,"merged":[[14,0,14,3],[16,0,16,3],[18,0,18,3],[9,0,9,12],[4,4,4,7],[4,9,4,11],[17,0,17,12],[10,0,12,0],[10,9,13,9],[6,0,6,3],[8,0,8,3],[10,8,13,8],[7,0,7,12],[15,0,15,12]]}
["Hjälpkraftssystem"]
["Inkoppling:",{"$f":"IF(Projektuppgifter!G9=\"\",\"Fyll i datum\",Projektuppgifter!G9)","v":"Fyll i datum"},null,"Länk till flik Projektuppgifter"]
["Slutbesiktning:",{"$f":"IF(Projektuppgifter!G10=\"\",\"Fyll i datum\",Projektuppgifter!G10)","v":"Fyll i datum"}]
[]
["OBS! Nätstation och frånskiljarstation dokumenteras i flik 6.4 Kraftförsörjningsanläggning",null,null,"Fylls i av:","Projekt",null,null,null,"Information till projektet","Mottagande förvaltning",null,null,"Alla"]
[null,null,"Filformat\nvisningsfil","Filformat\nunderlagsfil","Aktuellt att upprättas av projektet","Länk till levererad fil","Levereras av:\n- E (Entreprenör)\n- K (Konsult)\n- B (Beställare)\n(datum + namn)","Levererat till förvaltande system och aviserat leveransen till mottagande förvaltning, enligt TDOK 2016:0411 (med kopia till Indatakoordinator)\n(datum + namn + ärendenr.)","Leveransyta till förvaltande system","Förvaltande system","Mottaget\n(datum + namn + ärendenr.)","Godkänt \n(datum + namn + ärendenr.)","Eventuella kommentarer"]
["1 vecka efter inkoppling",null,null,null,"Ja"]
[{"$f":"\"Leverans från leverantör (E/K) till överenskommen leveransyta, för mottagningskontroll senast: \"&IF(Projektuppgifter!C88=\"\",\"Fyll i datum\",TEXT(DATE(YEAR(Projektuppgifter!C88),MONTH(Projektuppgifter!C88),DAY(Projektuppgifter!C88)),\"ÅÅÅÅ-MM-DD\"))","v":"Leverans från leverantör (E/K) till överenskommen leveransyta, för mottagningskontroll senast: Fyll i datum"}]
[{"$f":"\"Leverans till mottagande förvaltning senast: \"&IF(B2=\"Fyll i datum\",\"Fyll i datum\",TEXT(DATE(YEAR(B2),MONTH(B2),DAY(B2)+7),\"ÅÅÅÅ-MM-DD\"))","v":"Leverans till mottagande förvaltning senast: Fyll i datum"},null,null,null,"Ja"]
["Data för lagring i databas"]
["Nytt objekt:","TMALL 0612,  50 Hz-Frånskiljare"," --","xlsx",null,null,null,null,"Projektets lagringsyta","BIS"]
[null,"TMALL 0613, 50 Hz-Hjälpkraftledning"," --","xlsx"]
[null,"TMALL 0614, 50 Hz-Hjälpkrafttransformator"," --","xlsx"]
["Ändrat/slopat objekt:","Slopnings- och ändringslista av objekten ovan"," --","xlsx"]
["3 månader efter slutbesiktning",null,null,null,"Ja"]
[{"$f":"\"Leverans från leverantör (E/K) till överenskommen leveransyta, för mottagningskontroll senast: \"&IF(Projektuppgifter!C132=\"\",\"Fyll i datum\",TEXT(DATE(YEAR(Projektuppgifter!C132),MONTH(Projektuppgifter!C132),DAY(Projektuppgifter!C132)),\"ÅÅÅÅ-MM-DD\"))","v":"Leverans från leverantör (E/K) till överenskommen leveransyta, för mottagningskontroll senast: Fyll i datum"}]
[{"$f":"\"Leverans till mottagande förvaltning senast: \"&IF(B3=\"Fyll i datum\",\"Fyll i datum\",TEXT(EDATE(B3,3),\"ÅÅÅÅ-MM-DD\"))","v":"Leverans till mottagande förvaltning senast: Fyll i datum"},null,null,null,"Ja"]
["Teknisk dokumentation"]
["Teknisk dokumentation för hjälpkraftssystem ska levereras tillsammans med dokumentation för kontaktledningssystem, registreras i flik 6.3. ",null,null,null,null,null,null,null,"Ebbas leveransyta","Ebba/ El kontaktledning, hjälpkraftledning",null,"Kvitteras under kontaktledningssystem 6.3"]
[]
["OBS! Relevant data/dokumentation kopplat till miljö ska levereras enligt flik 15.5 Miljö"]

{"sheet":"6.3 Kontaktledningssystem","index":21,"n_rows":62,"n_cols":15,"rows_kept":62,"cut":false,"hidden":false,"merged":[[4,5,4,9],[4,11,4,13],[19,0,19,4],[15,10,16,10],[32,0,32,14],[21,11,30,11],[21,10,30,10],[6,0,6,4],[8,0,8,4],[9,0,9,14],[10,0,10,1],[7,0,7,14],[12,0,12,14],[18,0,18,14],[17,0,17,4],[35,0,48,0],[35,11,48,11],[35,10,48,10],[11,0,11,4],[13,0,13,4],[21,0,29,0],[14,0,14,14],[34,0,34,14],[15,0,15,1],[16,0,16,1],[31,0,31,4],[33,0,33,4],[20,0,20,14],[15,11,16,11],[15,12,16,12]]}
["Kontaktledningssystem"]
["Inkoppling:",{"$f":"IF(Projektuppgifter!G9=\"\",\"Fyll i datum\",Projektuppgifter!G9)","v":"Fyll i datum"},null,"Länk till flik Projektuppgifter"]
["Slutbesiktning:",{"$f":"IF(Projektuppgifter!G10=\"\",\"Fyll i datum\",Projektuppgifter!G10)","v":"Fyll i datum"}]
[]
["OBS! Nätstation och frånskiljarstation dokumenteras i filk 6.4 Kraftförsörjningsanläggning",null,null,null,"Fylls i av:","Projekt",null,null,null,null,"Information till projektet","Mottagande förvaltning",null,null,"Alla"]
[null,null,"Filformat\nvisningsfil","Filformat\nunderlagsfil","Uppbyggd av modellfil","Aktuellt att upprättas av projektet","Status på levererad data","Filnamn alt länk till levererad fil","Levereras av:\n- E (Entreprenör)\n- K (Konsult)\n- B (Beställare)\n(datum + namn)","Levererat till förvaltande system och aviserat leveransen till mottagande förvaltning, enligt TDOK 2016:0411 (med kopia till Indatakoordinator)\n(datum + namn + ärendenr.)","Leveransyta till förvaltande system","Förvaltande system","Mottaget\n(datum + namn + ärendenr.)","Godkänt \n(datum + namn + ärendenr.)","Eventuella kommentarer"]
["10 veckor före inkoppling",null,null,null,null,"Ja"]
[{"$f":"\"Leverans från leverantör (E/K) till överenskommen leveransyta, för mottagningskontroll senast: \"&IF(Projektuppgifter!C47=\"\",\"Fyll i datum\",TEXT(DATE(YEAR(Projektuppgifter!C47),MONTH(Projektuppgifter!C47),DAY(Projektuppgifter!C47)),\"ÅÅÅÅ-MM-DD\"))","v":"Leverans från leverantör (E/K) till överenskommen leveransyta, för mottagningskontroll senast: Fyll i datum"}]
[{"$f":"\"Leverans till mottagande förvaltning senast: \"&IF(B2=\"Fyll i datum\",\"Fyll i datum\",TEXT(DATE(YEAR(B2),MONTH(B2),DAY(B2)-70),\"ÅÅÅÅ-MM-DD\"))","v":"Leverans till mottagande förvaltning senast: Fyll i datum"},null,null,null,null,"Ja"]
["Teknisk dokumentation"]
["Koordinatfil kabel",null," --","zip (av dgn och kml)"," --",null,null,null,null,null,"Projektets lagringsyta","PW/ICT"]
["2 veckor före inkoppling",null,null,null,null,"Ja"]
[{"$f":"\"Leverans från leverantör (E/K) till överenskommen leveransyta, för mottagningskontroll senast: \"&IF(Projektuppgifter!C74=\"\",\"Fyll i datum\",TEXT(DATE(YEAR(Projektuppgifter!C74),MONTH(Projektuppgifter!C74),DAY(Projektuppgifter!C74)),\"ÅÅÅÅ-MM-DD\"))","v":"Leverans från leverantör (E/K) till överenskommen leveransyta, för mottagningskontroll senast: Fyll i datum"}]
[{"$f":"\"Leverans till mottagande förvaltning senast: \"&IF(B2=\"Fyll i datum\",\"Fyll i datum\",TEXT(DATE(YEAR(B2),MONTH(B2),DAY(B2)-14),\"ÅÅÅÅ-MM-DD\"))","v":"Leverans till mottagande förvaltning senast: Fyll i datum"},null,null,null,null,"Ja"]
["Teknisk dokumentation"]
["Kopplingsschema",null,"pdf","dgn, prj"," --",null,null,null,null,null,"ProjectWise/Förvaltning Järnväg/Förvaltningsdata Leveranser/_EL_Kopplingsscheman","PW/FJ"]
["Gruppschema",null,"pdf","dgn, prj"," --"]
["1 vecka efter inkoppling",null,null,null,null,"Ja"]
[{"$f":"\"Leverans från leverantör (E/K) till överenskommen leveransyta, för mottagningskontroll senast: \"&IF(Projektuppgifter!C89=\"\",\"Fyll i datum\",TEXT(DATE(YEAR(Projektuppgifter!C89),MONTH(Projektuppgifter!C89),DAY(Projektuppgifter!C89)),\"ÅÅÅÅ-MM-DD\"))","v":"Leverans från leverantör (E/K) till överenskommen leveransyta, för mottagningskontroll senast: Fyll i datum"}]
[{"$f":"\"Leverans till mottagande förvaltning senast: \"&IF(B2=\"Fyll i datum\",\"Fyll i datum\",TEXT(DATE(YEAR(B2),MONTH(B2),DAY(B2)+7),\"ÅÅÅÅ-MM-DD\"))","v":"Leverans till mottagande förvaltning senast: Fyll i datum"},null,null,null,null,"Ja"]
["Data för lagring i databas"]
["Nytt objekt:","TMALL 0618 Ktl-Brygga/övrig upph."," --","xlsx"," --",null,null,null,null,null,"Projektets lagringsyta","BIS"]
[null,"TMALL 0619 Ktl-Driftjord"," --","xlsx"," --"]
[null,"TMALL 0620 Ktl-Frånskiljare"," --","xlsx"," --"]
[null,"TMALL 0621 Ktl-Ledning"," --","xlsx"," --"]
[null,"TMALL 0622 Ktl-Sektion"," --","xlsx"," --"]
[null,"TMALL 0623 Ktl-Sektionsisolator"," --","xlsx"," --"]
[null,"TMALL 0624 Ktl-Skyddsektion"," --","xlsx"," --"]
[null,"TMALL 0625 Ktl-Stolpe"," --","xlsx"," --"]
[null,"TMALL 0626 Ktl-Transformator"," --","xlsx"," --"]
["Ändrat/slopat objekt:","Slopnings- och ändringslista av objekten ovan"," --","xlsx"," --"]
["3 månader efter slutbesiktning",null,null,null,null,"Ja"]
[{"$f":"\"Leverans från leverantör (E/K) till överenskommen leveransyta, för mottagningskontroll senast: \"&IF(Projektuppgifter!C133=\"\",\"Fyll i datum\",TEXT(DATE(YEAR(Projektuppgifter!C133),MONTH(Projektuppgifter!C133),DAY(Projektuppgifter!C133)),\"ÅÅÅÅ-MM-DD\"))","v":"Leverans från leverantör (E/K) till överenskommen leveransyta, för mottagningskontroll senast: Fyll i datum"}]
[{"$f":"\"Leverans till mottagande förvaltning senast: \"&IF(B3=\"Fyll i datum\",\"Fyll i datum\",TEXT(EDATE(B3,3),\"ÅÅÅÅ-MM-DD\"))","v":"Leverans till mottagande förvaltning senast: Fyll i datum"},null,null,null,null,"Ja"]
["Teknisk dokumentation"]
["Kontakt- och hjälpkraftledning","Anläggningsbeskrivning","pdf","docx"," --",null,null,null,null,null,"Ebbas leveransyta","Ebba/ El/ Kontaktledning, hjälpkraftledning"]
[null,"Drift-/underhållsinstruktion","pdf","docx"," --"]
[null,"Elplan","pdf","dgn","EL_KTL"]
[null,"Kabelplan","pdf","dgn","EL_KTL"]
[null,"Jordningslista","pdf","xlsx"," --"]
[null,"Jordningsschema- /plan","pdf","dgn","EL_JORD (gäller för jordningsplan)"]
[null,"Bryggritning","pdf","dgn, dwg"," --"]
[null,"Montageritning","pdf","dgn, dwg"," --"]
[null,"Detalj-/tillverkningsritning","pdf","dgn, dwg"," --"]
[null,"Kabellista","pdf","xlsx"," --"]
[null,"Bärtrådsberäkning","pdf","zip (av både bap och csv)"," --"]
[null,"Linjeplan","pdf","dgn, dwg"," --"]
[null,"Materialcertifikat kontakttråd och bärlinor","pdf"," --"," --"]
[null,"Transformator","zip"," --"," --"]
[]
[]
[]
[]
[]
[]
[]
[]
[]
[]
["Vid förändring av de KTL objekt som ingår i baskarta ska ny uppdaterad baskarta tas fram."]
[]
["OBS! Relevant data/dokumentation kopplat till miljö ska levereras enligt flik 15.5 Miljö"]

{"sheet":"6.4 Kraftförsörjningsanläggning","index":22,"n_rows":63,"n_cols":19,"rows_kept":63,"cut":false,"hidden":false,"merged":[[34,0,35,0],[40,0,42,0],[37,0,39,0],[43,0,45,0],[40,14,41,14],[35,6,35,7],[43,14,44,14],[38,6,38,7],[41,6,41,7],[44,6,44,7],[21,17,25,17],[27,0,27,3],[30,0,30,18],[29,0,29,3],[32,6,32,7],[21,13,26,13],[21,0,25,0],[31,0,33,0],[21,14,26,14],[28,0,28,18],[6,4,6,12],[6,14,6,16],[20,0,20,18],[17,0,17,3],[19,0,19,3],[8,0,8,3],[10,0,10,3],[11,0,11,18],[12,14,16,14],[9,0,9,18],[18,0,18,18],[52,0,52,18],[53,0,53,1],[54,0,54,1],[55,0,55,1],[56,0,56,1],[62,0,62,1],[57,0,57,1],[58,0,58,1],[59,0,59,1],[60,0,60,1],[61,0,61,1]]}
["Kraftförsörjningsanläggning"]
["Inkoppling:",{"$f":"IF(Projektuppgifter!G9=\"\",\"Fyll i datum\",Projektuppgifter!G9)","v":"Fyll i datum"},null,"Länk till flik Projektuppgifter"]
["Slutbesiktning:",{"$f":"IF(Projektuppgifter!G10=\"\",\"Fyll i datum\",Projektuppgifter!G10)","v":"Fyll i datum"}]
[]
["Förekommer det flera kraftförsörjningsanläggningar i projektet så kopierar man denna flik och gör fler flikar."]
[]
[null,null,null,"Fylls i av:","Projekt (OBS! Kolumn L gäller UH)",null,null,null,null,null,null,null,null,"Information till projektet","Mottagande förvaltning",null,null,"Projekt","Alla"]
[null,null,"Filformat\nvisningsfil","Filformat\nunderlagsfil","Aktuellt att upprättas av projektet","Status på levererad data","Pärmnummer","Fliknummer i pärm","Filnamn alt länk till levererad fil","Levereras av:\n- E (Entreprenör)\n- K (Konsult)\n- B (Beställare)\n(datum + namn)","Skickat mejl och länk till material till elkraft@trafikverket.se för stickprovskontroll utörd av elkompetens på UH\n (datum + namn)\n","Delkontrollerad av elkompetens på UH\n(datum + namn)","Levererat till förvaltande system och aviserat leveransen till mottagande förvaltning, enligt TDOK 2016:0411 (med kopia till Indatakoordinator)\n(datum + namn + ärendenr.)","Leveransyta till förvaltande system","Förvaltande system","Mottaget\n(datum + namn + ärendenr.)","Godkänt \n(datum + namn + ärendenr.)","Papperskopior är utlagda i anläggning \n(datum + namn)","Eventuella kommentarer"]
["10 veckor före inkoppling",null,null,null,"Ja"]
[{"$f":"\"Leverans från leverantör (E/K) till överenskommen leveransyta, för mottagningskontroll senast: \"&IF(Projektuppgifter!C48=\"\",\"Fyll i datum\",TEXT(DATE(YEAR(Projektuppgifter!C48),MONTH(Projektuppgifter!C48),DAY(Projektuppgifter!C48)),\"ÅÅÅÅ-MM-DD\"))","v":"Leverans från leverantör (E/K) till överenskommen leveransyta, för mottagningskontroll senast: Fyll i datum"}]
[{"$f":"\"Leverans till mottagande förvaltning senast: \"&IF(B2=\"Fyll i datum\",\"Fyll i datum\",TEXT(DATE(YEAR(B2),MONTH(B2),DAY(B2)-70),\"ÅÅÅÅ-MM-DD\"))","v":"Leverans till mottagande förvaltning senast: Fyll i datum"},null,null,null,"Ja"]
["Teknisk dokumentation"]
["Fördelningsstation","Koordinatfil kabel"," --","zip (av dgn och kml)",null,null,null,null,null,null,null,null,null,"Projektets lagringsyta","PW/ICT"]
["Kopplingscentral","Koordinatfil kabel"," --","zip (av dgn och kml)",null,null,null,null,null,null,null,null,null,"Projektets lagringsyta"]
["Omformarstation","Koordinatfil kabel"," --","zip (av dgn och kml)",null,null,null,null,null,null,null,null,null,"Projektets lagringsyta"]
["Sektioneringsstation","Koordinatfil kabel"," --","zip (av dgn och kml)",null,null,null,null,null,null,null,null,null,"Projektets lagringsyta"]
["Transformatorstation","Koordinatfil kabel"," --","zip (av dgn och kml)",null,null,null,null,null,null,null,null,null,"Projektets lagringsyta"]
["1 vecka efter inkoppling",null,null,null,"Ja"]
[{"$f":"\"Leverans från leverantör (E/K) till överenskommen leveransyta, för mottagningskontroll senast: \"&IF(Projektuppgifter!C91=\"\",\"Fyll i datum\",TEXT(DATE(YEAR(Projektuppgifter!C91),MONTH(Projektuppgifter!C91),DAY(Projektuppgifter!C91)),\"ÅÅÅÅ-MM-DD\"))","v":"Leverans från leverantör (E/K) till överenskommen leveransyta, för mottagningskontroll senast: Fyll i datum"}]
[{"$f":"\"Leverans till mottagande förvaltning senast: \"&IF(B2=\"Fyll i datum\",\"Fyll i datum\",TEXT(DATE(YEAR(B2),MONTH(B2),DAY(B2)+7),\"ÅÅÅÅ-MM-DD\"))","v":"Leverans till mottagande förvaltning senast: Fyll i datum"},null,null,null,"Ja"]
["Data för lagring i databas"]
["Nytt objekt:","TMALL 0616 Fördelningsstation"," --","xlsx",null,null,null,null,null,null,null,null,null,"Projektets lagringsyta","BIS"]
[null,"TMALL 0617 Kopplingscentral"," --","xlsx"]
[null,"TMALL 0628 Omformarstation"," --","xlsx"]
[null,"TMALL 0629 Sektioneringsstation"," --","xlsx"]
[null,"TMALL 0630 Transformatorstation"," --","xlsx"]
["Ändrat/slopat objekt:","Slopnings- och ändringslista av objekten ovan"," --","xlsx"]
["3 månader efter slutbesiktning",null,null,null,"Ja"]
[{"$f":"\"Leverans från leverantör (E/K) till överenskommen leveransyta, för mottagningskontroll senast: \"&IF(Projektuppgifter!C106=\"\",\"Fyll i datum\",TEXT(DATE(YEAR(Projektuppgifter!C106),MONTH(Projektuppgifter!C106),DAY(Projektuppgifter!C106)),\"ÅÅÅÅ-MM-DD\"))","v":"Leverans från leverantör (E/K) till överenskommen leveransyta, för mottagningskontroll senast: Fyll i datum"}]
[{"$f":"\"Leverans till mottagande förvaltning senast: \"&IF(B3=\"Fyll i datum\",\"Fyll i datum\",TEXT(EDATE(B3,3),\"ÅÅÅÅ-MM-DD\"))","v":"Leverans till mottagande förvaltning senast: Fyll i datum"},null,null,null,"Ja"]
["Teknisk dokumentation"]
["Fördelningsstation","Relationshandling/Underlag för relationshandling (Dokumentationssats 5 enligt TDOK 2013:0640)","zip (av samtliga pdf:er)"," --",null,null,null,null,null,null,null,null,null,"ProjectWise/Förvaltning Järnväg/Förvaltningsdata Leveranser/ _Elkraft - Relationshandling/Anläggningstyp, Anläggningsnamn, Projektnamn","PW/FJ"]
[null,"Förvaltningsdata\n(Dokumentationssats 6 enligt TDOK 2013:0640)","pdf","xlsx, docx, dgn, dwg, zip",null,null,"Skriv i tabellen vid rad 41",null,null,null,null,null,null,"Ebbas leveransyta (Material- och kemikalieförteckning: Dessa ska in i samma projektaktivitet som resterande teknisk dokumentation. Lägg inte upp en separat aktivitet under Miljö.)","Ebba/ El/ Fördelnings-station"]
[null,"Kopia av TMALL 1069 Apparatförteckning enligt TDOK 2013:0640)"," --","xlsx",null,null,null,null,null,null,null,null,null,"TMALL:en bifogas i aviseringsmejlet.","KAKA"]
["Kopplingscentral","Relationshandling/Underlag för relationshandling (Dokumentationssats 5 enligt TDOK 2013:0640)","zip (av samtliga pdf:er)"," --",null,null,null,null,null,null,null,null,null,"ProjectWise/Förvaltning Järnväg/Förvaltningsdata Leveranser/ _Elkraft - Relationshandling/Anläggningstyp, Anläggningsnamn, Projektnamn","PW/FJ"]
[null,"Förvaltningsdata\n(Dokumentationssats 6 enligt TDOK 2013:0640)","pdf","xlsx, docx, dgn, dwg, zip",null,null,"Skriv i tabellen vid rad 41",null,null,null,null,null,null,"Ebbas leveransyta (Material- och kemikalieförteckning: Dessa ska in i samma projektaktivitet som resterande teknisk dokumentation. Lägg inte upp en separat aktivitet under Miljö.)","Ebba/ El/ Kopplings-central"]
[null,"Kopia av TMALL 1069 Apparatförteckning enligt TDOK 2013:0640)"," --","xlsx",null,null,null,null,null,null,null,null,null,"TMALL:en bifogas i aviseringsmejlet.","KAKA"]
["Sektioneringsstation","Relationshandling/Underlag för relationshandling (Dokumentationssats 5 enligt TDOK 2013:0640)","zip (av samtliga pdf:er)"," --",null,null,null,null,null,null,null,null,null,"ProjectWise/Förvaltning Järnväg/Förvaltningsdata Leveranser/ _Elkraft - Relationshandling/Anläggningsnamn, datum","PW/FJ"]
[null,"Förvaltningsdata\n(Dokumentationssats 6 enligt TDOK 2013:0640)","pdf","xlsx, docx, dgn, dwg, zip",null,null,"Skriv i tabellen vid rad 41",null,null,null,null,null,null,"Ebbas leveransyta (Material- och kemikalieförteckning: Dessa ska in i samma projektaktivitet som resterande teknisk dokumentation. Lägg inte upp en separat aktivitet under Miljö.)","Ebba/ El/ Sektionerings-station"]
[null,"Kopia av TMALL 1069 Apparatförteckning enligt TDOK 2013:0640)"," --","xlsx",null,null,null,null,null,null,null,null,null,"TMALL:en bifogas i aviseringsmejlet.","KAKA"]
["Omformarstation","Relationshandling/Underlag för relationshandling (Dokumentationssats 5 enligt TDOK 2013:0640)","zip (av samtliga pdf:er)"," --",null,null,null,null,null,null,null,null,null,"ProjectWise/Förvaltning Järnväg/Förvaltningsdata Leveranser/ _Elkraft - Relationshandling/Anläggningstyp, Anläggningsnamn, Projektnamn","PW/FJ"]
[null,"Förvaltningsdata\n(Dokumentationssats 6 enligt TDOK 2013:0640)","pdf","xlsx, docx, dgn, dwg, zip",null,null,"Skriv i tabellen vid rad 41",null,null,null,null,null,null,"ProjectWise/Förvaltning Järnväg/Förvaltningsdata Leveranser/ _El (Omformarstation)/ Bandel, projektnamn"]
[null,"Kopia av TMALL 1069 Apparatförteckning enligt TDOK 2013:0640)"," --","xlsx",null,null,null,null,null,null,null,null,null,"TMALL:en bifogas i aviseringsmejlet.","KAKA"]
["Transformatorstation","Relationshandling/Underlag för relationshandling (Dokumentationssats 5 enligt TDOK 2013:0640)","zip (av samtliga pdf:er)"," --",null,null,null,null,null,null,null,null,null,"ProjectWise/Förvaltning Järnväg/Förvaltningsdata Leveranser/ _Elkraft - Relationshandling/Anläggningstyp, Anläggningsnamn, Projektnamn","PW/FJ"]
[null,"Förvaltningsdata\n(Dokumentationssats 6 enligt TDOK 2013:0640)","pdf","xlsx, docx, dgn, dwg, zip",null,null,"Skriv i tabellen vid rad 41",null,null,null,null,null,null,"ProjectWise/Förvaltning Järnväg/Förvaltningsdata Leveranser/ _El (Transformatorstation)/ Bandel, projektnamn"]
[null,"Kopia av TMALL 1069 Apparatförteckning enligt TDOK 2013:0640)"," --","xlsx",null,null,null,null,null,null,null,null,null,"TMALL:en bifogas i aviseringsmejlet.","KAKA"]
["Vid en ny/borttagen kraftförsörjningsanläggning ska modellfil MARK tas fram/uppdateras och ny/uppdaterad baskarta tas fram."]
[]
["OBS! Material- och kemikalieförteckning ska dokumenteras och levereras tillsammans med övriga dokument i dokumentationssats 6 för kraftförsörjningsanläggningen."]
["Övrig data/dokumentation kopplat till miljö ska levereras enligt flik 15.5 Miljö"]
[]
["Fyll i typ av kraftförsörjningsanläggning:"]
["Teknisk dokumentation"]
["Dokument",null,null,null,null,null,null,null,null,null,null,null,null,"Ebbas leveransyta","Ebba"]
["Dokument",null,null,null,null,null,null,null,null,null,null,null,null,"Ebbas leveransyta","Ebba"]
["Dokument",null,null,null,null,null,null,null,null,null,null,null,null,"Ebbas leveransyta","Ebba"]
["Dokument",null,null,null,null,null,null,null,null,null,null,null,null,"Ebbas leveransyta","Ebba"]
["Dokument",null,null,null,null,null,null,null,null,null,null,null,null,"Ebbas leveransyta","Ebba"]
["Dokument",null,null,null,null,null,null,null,null,null,null,null,null,"Ebbas leveransyta","Ebba"]
["Dokument",null,null,null,null,null,null,null,null,null,null,null,null,"Ebbas leveransyta","Ebba"]
["Dokument",null,null,null,null,null,null,null,null,null,null,null,null,"Ebbas leveransyta","Ebba"]
["Dokument",null,null,null,null,null,null,null,null,null,null,null,null,"Ebbas leveransyta","Ebba"]
["Dokument",null,null,null,null,null,null,null,null,null,null,null,null,"Ebbas leveransyta","Ebba"]

{"sheet":"6.5 Lågspänningssystem","index":23,"n_rows":133,"n_cols":20,"rows_kept":133,"cut":false,"hidden":false,"merged":[[7,0,7,19],[13,0,13,19],[24,0,24,19],[33,0,33,19],[36,13,47,13],[36,14,47,14],[16,0,16,1],[19,0,19,1],[20,0,20,1],[21,0,21,1],[22,0,22,1],[35,0,35,19],[32,0,32,5],[34,0,34,5],[27,13,31,13],[31,0,31,1],[10,18,11,18],[10,14,11,14],[10,0,10,1],[27,0,30,1],[27,18,31,18],[27,14,31,14],[12,0,12,5],[14,0,14,5],[16,14,22,14],[16,13,22,13],[15,0,15,19],[17,0,17,1],[119,13,130,13],[119,0,130,1],[116,0,118,1],[119,14,130,14],[1,0,1,1],[2,0,2,1],[26,0,26,19],[9,0,9,19],[6,0,6,5],[8,0,8,5],[23,0,23,5],[25,0,25,5],[11,0,11,1],[10,13,11,13],[4,6,4,12],[4,14,4,17],[116,14,118,14],[116,13,118,13],[116,15,118,15],[36,0,47,1],[48,0,60,1],[61,14,80,14],[61,13,80,13],[48,13,60,13],[48,14,60,14],[111,0,115,1],[109,3,109,4],[107,3,107,4],[107,0,108,1],[109,0,110,1],[111,14,115,14],[107,13,108,13],[109,14,110,14],[109,13,110,13],[111,13,115,13],[81,13,96,13],[97,13,106,13],[81,14,96,14],[97,14,106,14],[39,18,40,18],[81,1,96,1],[97,1,106,1],[61,0,106,0],[107,14,108,14],[61,1,80,1],[36,2,47,3]]}
["Lågspänningssystem"]
["Inkoppling:",null,{"$f":"IF(Projektuppgifter!G9=\"\",\"Fyll i datum\",Projektuppgifter!G9)","v":"Fyll i datum"},null,"Länk till flik Projektuppgifter"]
["Slutbesiktning:",null,{"$f":"IF(Projektuppgifter!G10=\"\",\"Fyll i datum\",Projektuppgifter!G10)","v":"Fyll i datum"}]
[]
[null,null,null,null,null,"Fylls i av:","Projekt",null,null,null,null,null,null,"Information till projektet","Mottagande förvaltning",null,null,null,"Projekt","Alla"]
[null,null,null,"Filformat\nvisningsfil","Filformat\nunderlagsfil","Uppbyggd av modellfil","Aktuellt att upprättas av projektet","Status på levererad data","Filnamn alt länk till levererad fil","Levereras av:\n- E (Entreprenör)\n- K (Konsult)\n- B (Beställare)\n(datum + namn)","Levererat till förvaltande system och aviserat leveransen till mottagande förvaltning, enligt TDOK 2016:0411 (med kopia till Indatakoordinator)\n(datum + namn + ärendenr.)","BIS: Eventuella ändringar av tidigare levererad data\n(Länk till leveransen)","BIS: Levererat till förvaltande system och aviserat ändringar (datum + namn + ärendenr.)","Leveransyta till förvaltande system","Förvaltande system","Mottaget\n(datum + namn + ärendenr.)","Godkänt \n(datum + namn + ärendenr.)","Godkänt ändring\n(datum + namn + ärendenr.)","Papperskopior är utlagda i anläggning \n(datum + namn)","Eventuella kommentarer"]
["6 månader före inkoppling",null,null,null,null,null,"Ja"]
[{"$f":"\"Leverans från leverantör (E/K) till överenskommen leveransyta, för mottagningskontroll senast: \"&IF(Projektuppgifter!C37=\"\",\"Fyll i datum\",TEXT(DATE(YEAR(Projektuppgifter!C37),MONTH(Projektuppgifter!C37),DAY(Projektuppgifter!C37)),\"ÅÅÅÅ-MM-DD\"))","v":"Leverans från leverantör (E/K) till överenskommen leveransyta, för mottagningskontroll senast: Fyll i datum"}]
[{"$f":"\"Leverans till mottagande förvaltning senast: \"&IF(C2=\"Fyll i datum\",\"Fyll i datum\",TEXT(EDATE(C2,-6),\"ÅÅÅÅ-MM-DD\"))","v":"Leverans till mottagande förvaltning senast: Fyll i datum"},null,null,null,null,null,"Ja"]
["Data för lagring i databas"]
["Nytt objekt:",null,"TMALL 0566 Tåg och lokvärmeanläggning"," --","xlsx"," --",null,null,null,null,null,null,null,"Projektets lagringsyta","BIS"]
["Ändrat/slopat objekt:",null,"Slopnings- och ändringslista av objektet ovan"," --","xlsx"," --"]
["10 veckor före inkoppling",null,null,null,null,null,"Ja"]
[{"$f":"\"Leverans från leverantör (E/K) till överenskommen leveransyta, för mottagningskontroll senast: \"&IF(Projektuppgifter!C53=\"\",\"Fyll i datum\",TEXT(DATE(YEAR(Projektuppgifter!C53),MONTH(Projektuppgifter!C53),DAY(Projektuppgifter!C53)),\"ÅÅÅÅ-MM-DD\"))","v":"Leverans från leverantör (E/K) till överenskommen leveransyta, för mottagningskontroll senast: Fyll i datum"}]
[{"$f":"\"Leverans till mottagande förvaltning senast: \"&IF(C2=\"Fyll i datum\",\"Fyll i datum\",TEXT(DATE(YEAR(C2),MONTH(C2),DAY(C2)-70),\"ÅÅÅÅ-MM-DD\"))","v":"Leverans till mottagande förvaltning senast: Fyll i datum"},null,null,null,null,null,"Ja"]
["Teknisk dokumentation"]
["Belysning",null,"Koordinatfil kabel"," --","zip (av dgn och kml)"," --",null,null,null,null,null,null,null,"Projektets lagringsyta","PW/ICT"]
["Distributionsnät <1000V",null,"Koordinatfil kabel"," --","zip (av dgn och kml)"," --"]
["Elanläggning - Teknikbyggnad","Allmänt","Koordinatfil kabel"," --","zip (av dgn och kml)"," --"]
["Kraftförsörjning - Datahall",null,"Koordinatfil kabel"," --","zip (av dgn och kml)"," --"]
["Kraftförsörjning - Trafikledningscentral",null,"Koordinatfil kabel"," --","zip (av dgn och kml)"," --"]
["Tåg och lokvärme",null,"Koordinatfil kabel"," --","zip (av dgn och kml)"," --"]
["Växelvärme",null,"Koordinatfil kabel"," --","zip (av dgn och kml)"," --"]
["1 vecka efter inkoppling",null,null,null,null,null,"Ja"]
[{"$f":"\"Leverans från leverantör (E/K) till överenskommen leveransyta, för mottagningskontroll senast: \"&IF(Projektuppgifter!C90=\"\",\"Fyll i datum\",TEXT(DATE(YEAR(Projektuppgifter!C90),MONTH(Projektuppgifter!C90),DAY(Projektuppgifter!C90)),\"ÅÅÅÅ-MM-DD\"))","v":"Leverans från leverantör (E/K) till överenskommen leveransyta, för mottagningskontroll senast: Fyll i datum"}]
[{"$f":"\"Leverans till mottagande förvaltning senast: \"&IF(C2=\"Fyll i datum\",\"Fyll i datum\",TEXT(DATE(YEAR(C2),MONTH(C2),DAY(C2)+7),\"ÅÅÅÅ-MM-DD\"))","v":"Leverans till mottagande förvaltning senast: Fyll i datum"},null,null,null,null,null,"Ja"]
["Data för lagring i databas"]
["Nytt objekt:",null,"TMALL 1301 Belysning - Bangård"," --","xlsx"," --",null,null,null,null,null,null,null,"Projektets lagringsyta","BIS"]
[null,null,"TMALL 0615 Belysning - Plattform"," --","xlsx"," --"]
[null,null,"TMALL 0659 Teknikbyggnad"," --","xlsx"," --"]
[null,null,"TMALL 0611 Växelvärmeskåp"," --","xlsx"," --"]
["Ändrat/slopat objekt:",null,"Slopnings- och ändringslista av objekten ovan"," --","xlsx"," --"]
["3 månader efter slutbesiktning",null,null,null,null,null,"Ja"]
[{"$f":"\"Leverans från leverantör (E/K) till överenskommen leveransyta, för mottagningskontroll senast: \"&IF(Projektuppgifter!C134=\"\",\"Fyll i datum\",TEXT(DATE(YEAR(Projektuppgifter!C134),MONTH(Projektuppgifter!C134),DAY(Projektuppgifter!C134)),\"ÅÅÅÅ-MM-DD\"))","v":"Leverans från leverantör (E/K) till överenskommen leveransyta, för mottagningskontroll senast: Fyll i datum"}]
[{"$f":"\"Leverans till mottagande förvaltning senast: \"&IF(C3=\"Fyll i datum\",\"Fyll i datum\",TEXT(EDATE(C3,3),\"ÅÅÅÅ-MM-DD\"))","v":"Leverans till mottagande förvaltning senast: Fyll i datum"},null,null,null,null,null,"Ja"]
["Teknisk dokumentation"]
["Belysning",null,"Installations-/kabelplan","pdf","dgn","EL_LÅGSP",null,null,null,null,null,null,null,"Ebbas leveransyta ","Ebba/ El/ Belysning, växelvärme, distributionsnät mindre än 1000V"]
[null,null,"Huvudledningsschema","pdf","dgn, dwg"," --"]
[null,null,"Skåpspecifikation","pdf","dgn, dwg"," --"]
[null,null,"Provningsprotokoll","pdf","docx, xlsx"," --"]
[null,null,"Montageritning","pdf","dgn, dwg"," --"]
[null,null,"Apparatlista","pdf","docx, xlsx"," --"]
[null,null,"Förbindningsschema/-tabell (belysningsstyrning)","pdf","dgn,dwg, xlsx"," --"]
[null,null,"Kretsschema","pdf","dgn, dwg"," --"]
[null,null,"Kabellista","pdf","xlsx"," --"]
[null,null,"Anläggningsbeskrivning","pdf","docx"," --"]
[null,null,"Drift- och underhållsinstruktion","pdf","docx"," --"]
[null,null,"Larminstruktion","pdf","docx"," --"]
["Distributionsnät <1000V",null,"Installations-/kabelplan","pdf","dgn","EL_LÅGSP eller EL_FJR",null,null,null,null,null,null,null,"Ebbas leveransyta","Ebba/ El/ Belysning, växelvärme, distributionsnät mindre än 1000V"]
[null,null,"Huvudledningsschema (enlinjeschema, översiktsschema)","pdf","dgn, dwg"," --"]
[null,null,"Skåpspecifikation","pdf","dgn, dwg"," --"]
[null,null,"Jordningsplan","pdf","dgn","EL_JORD"]
[null,null,"Provningsprotokoll","pdf","docx, xlsx"," --"]
[null,null,"Montageritning","pdf","dgn, dwg"," --"]
[null,null,"Apparatlista","pdf","docx, xlsx"," --"]
[null,null,"Förbindningsschema/-tabell","pdf","dgn,dwg, xlsx"," --"]
[null,null,"Kretsschema","pdf","dgn, dwg"," --"]
[null,null,"Kabellista","pdf","xlsx"," --"]
[null,null,"Anläggningsbeskrivning","pdf","docx"," --"]
[null,null,"Drift- och underhållsinstruktion","pdf","docx"," --"]
[null,null,"Larminstruktion","pdf","docx"," --"]
["Elanläggning - Teknikbyggnad","Allmänt","Dokumentförteckning","pdf","docx"," --",null,null,null,null,null,null,null,"Ebbas leveransyta","Ebba/ El/ Teknikhus"]
[null,null,"Anläggningsbeskrivning","pdf","docx"," --"]
[null,null,"Installationsanvisning/-ritning","pdf","docx, dgn, dwg"," --"]
[null,null,"Översiktsschema","pdf","dgn, dwg"," --"]
[null,null,"Central-/gruppförteckning","pdf","xlsx, dgn, dwg"," --"]
[null,null,"Materialförteckning","pdf","xlsx, dgn, dwg"," --"]
[null,null,"Skyltlista","pdf","xlsx"," --"]
[null,null,"Enlinjeschema","pdf","docx, dgn"," --"]
[null,null,"Jordningsplan","pdf","dgn","EL_JORD"]
[null,null,"Skåpvy/-layout","pdf","dgn, dwg"," --"]
[null,null,"Apparatlista","pdf","xlsx"," --"]
[null,null,"Huvudkretsschema","pdf","dgn, dwg"," --"]
[null,null,"Yttre anslutningsschema","pdf","dgn, dwg"," --"]
[null,null,"Kretsschema","pdf","dgn, dwg"," --"]
[null,null,"Kabellista","pdf","xlsx"," --"]
[null,null,"Provningsprotokoll","pdf","docx, xlsx"," --"]
[null,null,"Manual och tekniska data","pdf","xlsx"," --"]
[null,null,"Programvara för PLC"," --","zip"," --"]
[null,null,"Programvara för övriga elanläggningssystem"," --","zip"," --"]
[null,null,"Inventeringsdata","pdf","docx, xlsx"," --"]
[null,"Reservelverk","Anläggningsbeskrivning","pdf","docx"," --",null,null,null,null,null,null,null,"Ebbas leveransyta","Ebba/ El/ Teknikhus"]
[null,null,"Intyg från installationskontroll av bränsletank/cistern och sekundärt skydd","pdf"," --"," --"]
[null,null,"Intyg om hur tillsynsmyndighet skriftligen informerats om bränsletank/cistern","pdf"," --"," --"]
[null,null,"Funktionsbeskrivning ","pdf","docx"," --"]
[null,null,"Tillstånd för lagring av brandfarlig vara","pdf","docx"," --"]
[null,null,"Försäkran om överensstämmelse - CE-märkning","pdf"," --"," --"]
[null,null,"Installationsanvisning/-ritning","pdf","docx, dgn, dwg"," --"]
[null,null,"Parameterlista ","pdf","docx"," --"]
[null,null,"Kabellista","pdf","xlsx"," --"]
[null,null,"Parttabell","pdf","xlsx"," --"]
[null,null,"Interna-/externa förbindningar","pdf","xlsx"," --"]
[null,null,"Apparatlista","pdf","xlsx"," --"]
[null,null,"Apparatbeskrivning","pdf","docx"," --"]
[null,null,"Manual och tekniska data","pdf","xlsx"," --"]
[null,null,"Underhållsplan","pdf","docx"," --"]
[null,null,"Drift-/underhållsinstruktion","pdf","docx"," --"]
[null,"Avbrottsfri kraft/UPS-anläggningar","Dokumentförteckning","pdf","docx"," --",null,null,null,null,null,null,null,"Ebbas leveransyta","Ebba/ El/ Teknikhus"]
[null,null,"Funktionsbeskrivning ","pdf","docx"," --"]
[null,null,"Manual och tekniska data","pdf","xlsx"," --"]
[null,null,"Parametrar och protokoll","pdf","docx"," --"]
[null,null,"Layout","pdf","dgn, dwg"," --"]
[null,null,"Kretsschema","pdf","dgn, dwg"," --"]
[null,null,"Apparatlista","pdf","dgn, dwg"," --"]
[null,null,"Enlinjeschema","pdf","dgn, dwg"," --"]
[null,null,"Underhållsplan","pdf","docx"," --"]
[null,null,"Drift-/underhållsinstruktion","pdf","docx"," --"]
["Kraftförsörjning - Datahall",null,"Programvara för PLC","Beroende av system",null," --",null,null,null,null,null,null,null,"Ebbas leveransyta","Ebba/ El/ Driftledningscentral, kraftförsörjning"]
[null,null,"Övriga krav saknas, men vid överlämnande noteras leveransen här.","pdf","docx, xlsx, dgn, dwg"," --"]
["Kraftförsörjning - Trafikledningscentral",null,"Programvara för PLC","Beroende av system",null," --",null,null,null,null,null,null,null,"Ebbas leveransyta","Ebba/ El/ Driftledningscentral, kraftförsörjning"]
[null,null,"Övriga krav saknas, men vid överlämnande noteras leveransen här.","pdf","docx, xlsx, dgn, dwg"," --"]
["Mobila reservelverk",null,"Anläggningsbeskrivning","pdf","docx, xlsx"," --",null,null,null,null,null,null,null,"Ebbas leveransyta","Ebba/ El/ Belysning, växelvärme, distributionsnät mindre än 1000V (mapp avsedd för linje)"]
[null,null,"Besiktningsprotokoll","pdf","docx, xlsx"," --"]
[null,null,"Tillstånd för lagring av brandfarlig vara ","pdf","docx, xlsx"," --"]
[null,null,"Skåpspecifikation","pdf","dgn, dwg"," --"]
[null,null,"Övriga krav saknas, men vid överlämnande noteras de här.","pdf","docx, xlsx, dgn, dwg"," --"]
["Tåg och lokvärme",null,"Programvara för PLC","Beroende av system",null," --",null,null,null,null,null,null,null,"Ebbas leveransyta","Ebba/ El/ Tåg och lokvärme"]
[null,null,"Tågvärme","pdf","dgn, dwg"," --"]
[null,null,"Lokvärme","pdf","dgn, dwg"," --"]
["Växelvärme",null,"Installations-/kabelplan","pdf","dgn","EL_LÅGSP",null,null,null,null,null,null,null,"Ebbas leveransyta","Ebba/ El/ Belysning, växelvärme, distributionsnät mindre än 1000V"]
[null,null,"Huvudledningsschema (enlinjeschema, översiktsschema)","pdf","dgn, dwg"," --"]
[null,null,"Skåpspecifikation","pdf","dgn, dwg"," --"]
[null,null,"Provningsprotokoll","pdf","docx, xlsx"," --"]
[null,null,"Montageritning","pdf","dgn, dwg"," --"]
[null,null,"Apparatlista","pdf","docx, xlsx"," --"]
[null,null,"Yttre förbindningsschema","pdf","dgn, dwg"," --"]
[null,null,"Kretsschema","pdf","dgn, dwg"," --"]
[null,null,"Kabellista","pdf","xlsx"," --"]
[null,null,"Anläggningsbeskrivning","pdf","docx"," --"]
[null,null,"Drift- och underhållsinstruktion","pdf","docx"," --"]
[null,null,"Larminstruktion","pdf","docx"," --"]
[]
["OBS! Relevant data/dokumentation kopplat till miljö ska levereras enligt flik 15.5 Miljö"]

{"sheet":"6.6 Matarledningssystem","index":24,"n_rows":117,"n_cols":14,"rows_kept":117,"cut":false,"hidden":false,"merged":[[16,10,114,10],[16,11,114,11],[14,0,14,13],[4,3,4,9],[4,11,4,12],[11,0,11,2],[13,0,13,2],[6,0,6,2],[8,0,8,2],[9,0,9,13],[7,0,7,13],[12,0,12,13]]}
["Matarledningssystem (32 och 132 kV)"]
["Inkoppling:",{"$f":"IF(Projektuppgifter!G9=\"\",\"Fyll i datum\",Projektuppgifter!G9)","v":"Fyll i datum"}]
["Slutbesiktning:",{"$f":"IF(Projektuppgifter!G10=\"\",\"Fyll i datum\",Projektuppgifter!G10)","v":"Fyll i datum"},null,"Länk till flik Projektuppgifter"]
[]
[null,null,null,"Projekt",null,null,null,null,null,null,"Information till projektet","Mottagande förvaltning",null,"Alla"]
[null,"Filformat\nvisningsfil","Filformat\nunderlagsfil","Aktuellt att upprättas av projektet","Status på levererad data","Filnamn","Levereras av:\n- E (Entreprenör)\n- K (Konsult)\n- B (Beställare)\n(datum + namn)","Skickat mejl och länk till material till elkraft@trafikverket.se för stickprovskontroll utörd av elkompetens på UH. \n(datum + namn)","Delkontrollerad av elkompetens på UH\n(datum + namn)","Levererat till förvaltande system  och aviserat leveransen till mottagande förvaltning, enligt TDOK 2016:0411 (med kopia till Indatakoordinator)","Leveransyta till förvaltande system","Förvaltande system","Godkänt \n(datum + namn + ärendenr.)","Eventuella kommentarer"]
["10 veckor före inkoppling",null,null,"Ja"]
[{"$f":"\"Leverans från leverantör (E/K) till överenskommen leveransyta, för mottagningskontroll senast: \"&IF(Projektuppgifter!C60=\"\",\"Fyll i datum\",TEXT(DATE(YEAR(Projektuppgifter!C60),MONTH(Projektuppgifter!C60),DAY(Projektuppgifter!C60)),\"ÅÅÅÅ-MM-DD\"))","v":"Leverans från leverantör (E/K) till överenskommen leveransyta, för mottagningskontroll senast: Fyll i datum"}]
[{"$f":"\"Leverans till mottagande förvaltning senast: \"&IF(B2=\"Fyll i datum\",\"Fyll i datum\",TEXT(DATE(YEAR(B2),MONTH(B2),DAY(B2)-70),\"ÅÅÅÅ-MM-DD\"))","v":"Leverans till mottagande förvaltning senast: Fyll i datum"},null,null,"Ja"]
["Teknisk dokumentation"]
["Koordinatfil kabel"," --","zip (av dgn och kml)",null,null,null,null,null,null,null,"Projektets lagringsyta","PW/ICT"]
["3 månader efter slutbesiktning",null,null,"Ja"]
[{"$f":"\"Leverans från leverantör (E/K) till överenskommen leveransyta, för mottagningskontroll senast: \"&IF(Projektuppgifter!C116=\"\",\"Fyll i datum\",TEXT(DATE(YEAR(Projektuppgifter!C116),MONTH(Projektuppgifter!C116),DAY(Projektuppgifter!C116)),\"ÅÅÅÅ-MM-DD\"))","v":"Leverans från leverantör (E/K) till överenskommen leveransyta, för mottagningskontroll senast: Fyll i datum"}]
[{"$f":"\"Leverans till mottagande förvaltning senast: \"&IF(B3=\"Fyll i datum\",\"Fyll i datum\",TEXT(EDATE(B3,3),\"ÅÅÅÅ-MM-DD\"))","v":"Leverans till mottagande förvaltning senast: Fyll i datum"},null,null,"Ja"]
["Teknisk dokumentation"]
["Relationshandling/Underlag för relationshandling","zip"," --",null,"Ny",null,null,null,null,null,"ProjectWise/Förvaltning Järnväg/Förvaltningsdata Leveranser/ _Elkraft - Relationshandling/Anläggningsnamn, datum","PW/FJ"]
["Ändringstabell, övergripande","pdf","docx",null,null,null,null,null,null,null,"Ebbas leveransyta","Ebba/ El/ Matarledning"]
["Översiktskarta ","pdf"," --"]
["Stolpöversikt","pdf","dwg"]
["Fasföljdsschema","pdf","dwg"]
["Översiktsritning kabelsträckning","pdf","dwg"]
["Översiktsritning skarvplats","pdf","dwg"]
["Isolatorkedjeritning","pdf","dwg"]
["Toppline anslutningsritning","pdf","dwg"]
["Optical ground wire (OPGW) anslutningsritning","pdf","dwg"]
["Montageritning","pdf","dwg"]
["Stolpsammanställningsritning","pdf","dwg"]
["Sammanställningsritning, detaljer","pdf","dwg"]
["Detaljritning/Tvärsnittssektion vid normal markförläggning ","pdf","dwg"]
["Detaljritning/Tvärsnittssektion vid rörförläggning ","pdf","dwg"]
["Detaljritning/Tvärsnittssektion vid kulvertförläggning","pdf","dwg"]
["Detaljritning/Tvärsnittssektion vid korsning av annan infrastruktur ","pdf","dwg"]
["Sammanställningsritning över kabelavslut ","pdf","dwg"]
["Detaljritning över skarvplats ","pdf","dwg"]
["Detaljritning kabeldetaljer","pdf","dwg"]
["Ritningar frånskiljare","pdf","dwg"]
["Utslagsritning stolpe","pdf","dwg"]
["Fundamentplan","pdf","dwg"]
["Grundläggning och fundamentritning","pdf","dwg"]
["Stagförankring","pdf","dwg"]
["Redskapsritning","pdf","dwg"]
["Jordningsritningar","pdf","dwg"]
["Byggnads-PM","pdf","docx, xlsx"]
["Stolptabell","pdf","xlsx"]
["Profil- och planritning","pdf","dwg"]
["Regleringstabell","pdf","docx, xlsx"]
["Korsningsförteckning","pdf","docx, xlsx"]
["Korsningsskiss","pdf","dwg"]
["Parallellgång","pdf","docx, dwg, shape"]
["Förbindningstabell ","pdf","docx, xlsx"]
["Apparatlista","pdf","docx, xlsx"]
["Materialförteckning","pdf","docx, xlsx"]
["Stolpfoton","pdf","jpeg"]
["Övriga foton","pdf","jpeg"]
["Jordningsbeskrivning","pdf","docx, xlsx"]
["Jordningskarta","pdf","docx"]
["Jordtagsbesiktningsprotokoll (Relationshandling)","pdf"," --"]
["Protokoll för steg- och beröringsspänning (Relationshandling)","pdf"," --"]
["Markundersökningsprotokoll stolpe (Relationshandling)","pdf"," --"]
["Markundersökningsprotokoll kabel (Relationshandling)","pdf"," --"]
["Linberäkning","pdf","docx, xlsx"]
["Mekanisk beräkning","pdf","docx, xlsx"]
["Kapacitetsberäkningar kabelsystem","pdf","docx, xlsx"]
["Resistansmätningsprotokoll (Relationshandling)","pdf"," --"]
["Mätprotokoll markresistivitet (Relationshandling)","pdf"," --"]
["Mätprotokoll packningskontroll (Relationshandling)","pdf"," --"]
["Mätprotokoll mantelprov efter kabeldragning (Relationshandling)","pdf"," --"]
["Mätprotokoll impedansmätning (Relationshandling)","pdf"," --"]
["Mätprotokoll jordtagsmätningar (Relationshandling)","pdf"," --"]
["Leverantörsförteckning","pdf","docx, xlsx"]
["Provningsprotokoll, testintyg, stickprov, certifikat m.fl för material och produkter (Relationshandling)","pdf"," --"]
["Kontrolldokument per stolpplats (Relationshandling)","pdf"," --"]
["Kontrolldokument lindragning (Relationshandling)","pdf"," --"]
["Kontrolldokument kablar (Relationshandling)","pdf"," --"]
["Spårbarhetsdokumentation (Relationshandling)","pdf"," --"]
["Teknisk specifikation (Relationshandling)","pdf"," --"]
["Materiallista (MSDS) (Relationshandling)","pdf"," --"]
["Protokoll för skarvar och avslut (Relationshandling)","pdf"," --"]
["Avvikelserapport (Relationshandling)","pdf"," --"]
["Protokoll från leverantörens interngranskning (Relationshandling)","pdf"," --"]
["Protokoll från projektets kvalitetskontroll (Relationshandling)","pdf"," --"]
["Teknisk beskrivning luftledningar","pdf","docx"]
["Teknisk beskrivning kabelsystem","pdf","docx"]
["Teknisk beskrivning kabelförläggning","pdf","docx"]
["Teknisk beskrivning DTS-system","pdf","docx"]
["Ledningsrätt (Relationshandling)","pdf"," --"]
["Ingångna avtal i vägar (Relationshandling)","pdf"," --"]
["Markupplåtelseavtal (Relationshandling)","pdf"," --"]
["Drifttillstånd (Relationshandling)","pdf"," --"]
["Flyghinderanmälan","pdf","docx, xlsx"]
["Järnvägsplan (Relationshandling)","pdf"," --"]
["Flyghinderkartor","pdf","docx"]
["Kabelsträckning","pdf","docx, dwg"]
["Översiktskarta stationsanläggning","pdf","docx, dwg"]
["Kabeltabell","pdf","docx, xlsx"]
["Skarv- och avslutstabell","pdf","docx, xlsx"]
["Kabelpositionering","pdf","docx, xlsx"]
["Produktinformation (Relationshandling)","pdf"," --"]
["Naturhänsynsdokument","pdf","docx, dwg"]
["Kontrollprogram - miljö","pdf","docx, dwg"]
["Övriga hänsynsdokument","pdf","docx, dwg"]
["Skötselplaner","pdf","docx, dwg"]
["Underhållsmanual kabelsystem","pdf","docx"]
["Instruktioner kabeldragning","pdf","docx"]
["Metodbeskrivning kabelskarvning","pdf","docx"]
["Metodbeskrivning montage av avslutningar","pdf","docx"]
["Förteckning reservmateriel","pdf","docx, xlsx"]
["Drift- och underhållsinstruktion för DTS-system","pdf","docx"]
["Ägogräns och kopplingsgräns mot interna anläggningsägare","pdf","docx"]
["Observationspunkter under garantitid","pdf","docx, xlsx"]
["Lista med rivna stolpar","pdf","docx"]
["Mottagningsrapport destruktion material (Relationshandling)","pdf"," --"]
["Lista med kvarlämnat material","pdf","docx"]
["Rivningsritning","pdf","dwg"]
["Lista med borttagna fundament","pdf","docx"]
[]
["OBS! Relevant data/dokumentation kopplat till miljö ska levereras enligt flik 15.5 Miljö"]

{"sheet":"6.7 Nätstation","index":25,"n_rows":25,"n_cols":18,"rows_kept":25,"cut":false,"hidden":false,"merged":[[7,0,7,17],[12,0,12,17],[18,0,18,17],[4,5,4,11],[4,13,4,16],[6,0,6,4],[8,0,8,4],[9,0,9,17],[22,0,22,1],[11,0,11,4],[13,0,13,4],[14,0,14,17],[15,12,16,12],[15,13,16,13],[17,0,17,4],[19,0,19,4],[20,0,20,17]]}
["Nätstation"]
["Inkoppling:",{"$f":"IF(Projektuppgifter!G9=\"\",\"Fyll i datum\",Projektuppgifter!G9)","v":"Fyll i datum"},null,"Länk till flik Projektuppgifter"]
["Slutbesiktning:",{"$f":"IF(Projektuppgifter!G10=\"\",\"Fyll i datum\",Projektuppgifter!G10)","v":"Fyll i datum"}]
[]
[null,null,null,null,"Fylls i av:","Projekt",null,null,null,null,null,null,"Information till projektet","Mottagande förvaltning",null,null,null,"Alla"]
[null,null,"Filformat\nvisningsfil","Filformat\nunderlagsfil","Uppbyggd av modellfil","Aktuellt att upprättas av projektet","Status på levererad data","Filnamn alt länk till levererad fil","Levereras av:\n- E (Entreprenör)\n- K (Konsult)\n- B (Beställare)\n(datum + namn)","Levererat till förvaltande system och aviserat leveransen till mottagande förvaltning, enligt TDOK 2016:0411 (med kopia till Indatakoordinator)\n(datum + namn + ärendenr.)","BIS: Eventuella ändringar av tidigare levererad data\n(Länk till leveransen)","BIS: Levererat till förvaltande system och aviserat ändringar (datum + namn + ärendenr.)","Leveransyta till förvaltande system","Förvaltande system","Mottaget\n(datum + namn + ärendenr.)","Godkänt \n(datum + namn + ärendenr.)","Godkänt ändring\n(datum + namn + ärendenr.)","Eventuella kommentarer"]
["10 veckor före inkoppling",null,null,null,null,"Ja"]
[{"$f":"\"Leverans från leverantör (E/K) till överenskommen leveransyta, för mottagningskontroll senast: \"&IF(Projektuppgifter!C60=\"\",\"Fyll i datum\",TEXT(DATE(YEAR(Projektuppgifter!C60),MONTH(Projektuppgifter!C60),DAY(Projektuppgifter!C60)),\"ÅÅÅÅ-MM-DD\"))","v":"Leverans från leverantör (E/K) till överenskommen leveransyta, för mottagningskontroll senast: Fyll i datum"}]
[{"$f":"\"Leverans till mottagande förvaltning senast: \"&IF(B2=\"Fyll i datum\",\"Fyll i datum\",TEXT(DATE(YEAR(B2),MONTH(B2),DAY(B2)-70),\"ÅÅÅÅ-MM-DD\"))","v":"Leverans till mottagande förvaltning senast: Fyll i datum"},null,null,null,null,"Ja"]
["Teknisk dokumentation"]
["Koordinatfil kabel",null," --","zip (av dgn och kml)"," --",null,null,null,null,null,null,null,"Projektets lagringsyta","PW/ICT"]
["1 vecka efter inkoppling",null,null,null,null,"Ja"]
[{"$f":"\"Leverans från leverantör (E/K) till överenskommen leveransyta, för mottagningskontroll senast: \"&IF(Projektuppgifter!C92=\"\",\"Fyll i datum\",TEXT(DATE(YEAR(Projektuppgifter!C92),MONTH(Projektuppgifter!C92),DAY(Projektuppgifter!C92)),\"ÅÅÅÅ-MM-DD\"))","v":"Leverans från leverantör (E/K) till överenskommen leveransyta, för mottagningskontroll senast: Fyll i datum"}]
[{"$f":"\"Leverans till mottagande förvaltning senast: \"&IF(B2=\"Fyll i datum\",\"Fyll i datum\",TEXT(DATE(YEAR(B2),MONTH(B2),DAY(B2)+7),\"ÅÅÅÅ-MM-DD\"))","v":"Leverans till mottagande förvaltning senast: Fyll i datum"},null,null,null,null,"Ja"]
["Data för lagring i databas"]
["Nytt objekt:","TMALL 0627 Nätstation"," --","xlsx"," --",null,null,null,null,null,null,null,"Projektets lagringsyta","BIS"]
["Ändrat/slopat objekt:","Slopnings- och ändringslista av objektet ovan"," --","xlsx"," --"]
["3 månader efter slutbesiktning",null,null,null,null,"Ja"]
[{"$f":"\"Leverans från leverantör (E/K) till överenskommen leveransyta, för mottagningskontroll senast: \"&IF(Projektuppgifter!C142=\"\",\"Fyll i datum\",TEXT(DATE(YEAR(Projektuppgifter!C142),MONTH(Projektuppgifter!C142),DAY(Projektuppgifter!C142)),\"ÅÅÅÅ-MM-DD\"))","v":"Leverans från leverantör (E/K) till överenskommen leveransyta, för mottagningskontroll senast: Fyll i datum"}]
[{"$f":"\"Leverans till mottagande förvaltning senast: \"&IF(B3=\"Fyll i datum\",\"Fyll i datum\",TEXT(EDATE(B3,3),\"ÅÅÅÅ-MM-DD\"))","v":"Leverans till mottagande förvaltning senast: Fyll i datum"},null,null,null,null,"Ja"]
["Teknisk dokumentation"]
["Nätstation","Programvara för PLC","Beroende av system",null," --",null,null,null,null,null,null,null,"Ebbas leveransyta ","Ebba/El/Nätstation"]
["I skrivande stund saknas skrivna krav för nätstation. \nLeverera därför lämplig förvaltningsdata över anläggningen."]
[]
["OBS! Relevant data/dokumentation kopplat till miljö ska levereras enligt flik 15.5 Miljö"]

{"sheet":"7.1 Resenärsstation","index":26,"n_rows":28,"n_cols":14,"rows_kept":28,"cut":false,"hidden":false,"merged":[[9,0,21,0],[22,0,25,0],[3,4,3,8],[3,10,3,11],[8,0,8,13],[9,10,25,10],[5,0,5,3],[7,0,7,3],[9,9,25,9],[6,0,6,13]]}
["Resenärsstation"]
["Slutbesiktning:",{"$f":"IF(Projektuppgifter!G10=\"\",\"Fyll i datum\",Projektuppgifter!G10)","v":"Fyll i datum"},null,"Länk till flik Projektuppgifter"]
[]
[null,null,null,null,"Projekt",null,null,null,null,"Information till projektet","Mottagande förvaltning",null,"Projekt","Alla"]
[null,null,"Filformat\nvisningsfil","Filformat\nunderlagsfil","Aktuellt att upprättas av projektet","Status på levererad data","Filnamn","Levereras av:\n- E (Entreprenör)\n- K (Konsult)\n- B (Beställare)\n(datum + namn)","Levererat till förvaltande system och aviserat leveransen till mottagande förvaltning, enligt TDOK 2016:0411 (med kopia till Indatakoordinator)\n(datum + namn + ärendenr.)","Leveransyta till förvaltande system","Förvaltande system","Godkänt \n(datum + namn + ärendenr.)","Papperskopior är utlagda i anläggning (datum + namn) (Gäller objekten hiss och rulltrappa)","Eventuella kommentar"]
["3 månader efter slutbesiktning",null,null,null,"Ja"]
[{"$f":"\"Leverans från leverantör (E/K) till överenskommen leveransyta, för mottagningskontroll senast: \"&IF(Projektuppgifter!C143=\"\",\"Fyll i datum\",TEXT(DATE(YEAR(Projektuppgifter!C143),MONTH(Projektuppgifter!C143),DAY(Projektuppgifter!C143)),\"ÅÅÅÅ-MM-DD\"))","v":"Leverans från leverantör (E/K) till överenskommen leveransyta, för mottagningskontroll senast: Fyll i datum"}]
[{"$f":"\"Leverans till mottagande förvaltning senast: \"&IF(B2=\"Fyll i datum\",\"Fyll i datum\",TEXT(EDATE(B2,3),\"ÅÅÅÅ-MM-DD\"))","v":"Leverans till mottagande förvaltning senast: Fyll i datum"},null,null,null,"Ja"]
["Teknisk dokumentation"]
["Allmänt","Besiktingsprotokoll","pdf"," -- ",null,null,null,null,null,"Ebbas leveransyta","Ebba/ Bangård/ Plattform"]
[null,"Anläggningsbeskrivning","pdf","docx"]
[null,"Drift-/underhållsinstruktion","pdf"," -- "]
[null,"Konstruktionsritning","pdf","dgn, dwg"]
[null,"Situationsplan","pdf","dgn, dwg"]
[null,"Underhållsbestämmelser","pdf"," --"]
[null,"Räddnings- och insatsplan","pdf"," --"]
[null,"Tillsyn enligt lag (2003:778) om skydd mot olyckor","pdf "," --"]
[null,"Ordningsföreskrifter resenärer (kommunal ordningslag)","pdf"," --"]
[null,"Ordningsföreskrifter arbetsmiljö","pdf"," --"]
[null,"Samordningplaner (MSB, Länsstyrelser, Kommun, Polis, Tull)","pdf"," --"]
[null,"Kontrollprogram - miljö","pdf","docx"]
[null,"Säkerhetskyddsplan","pdf"," --"]
["Personsäkerhet","Konstruktionsredovisning","pdf"," --"]
[null,"EG-kontrollintyg","pdf"," --"]
[null,"Dokumentation för hantering av avvikelser, tillbud och olyckor","pdf"," --"]
[null,"Förundersökning","pdf"," --"]
[]
["OBS! Relevant data/dokumentation kopplat till miljö ska levereras enligt flik 15.5 Miljö"]

{"sheet":"7.2a Teknikbyggnad (Järnväg)","index":27,"n_rows":36,"n_cols":14,"rows_kept":36,"cut":false,"hidden":false,"merged":[[14,0,14,13],[24,0,30,0],[31,0,33,0],[15,9,33,9],[15,10,33,10],[15,0,23,0],[8,0,8,3],[4,4,4,8],[4,10,4,11],[11,0,11,3],[13,0,13,3],[10,0,10,1],[7,0,7,13],[12,0,12,13]]}
["Teknikbyggnad (Hus) - Järnväg (Förvaltas av Underhåll)"]
["Inkoppling:",{"$f":"IF(Projektuppgifter!G9=\"\",\"Fyll i datum\",Projektuppgifter!G9)","v":"Fyll i datum"}]
["Slutbesiktning:",{"$f":"IF(Projektuppgifter!G10=\"\",\"Fyll i datum\",Projektuppgifter!G10)","v":"Fyll i datum"},null,"Länk till flik Projektuppgifter"]
[]
[null,null,null,null,"Projekt",null,null,null,null,"Information till projektet","Mottagande förvaltning",null,"Projekt","Alla"]
[null,null,"Filformat\nvisningsfil","Filformat\nunderlagsfil","Aktuellt att upprättas av projektet","Status på levererad data","Filnamn","Levereras av:\n- E (Entreprenör)\n- K (Konsult)\n- B (Beställare)\n(datum + namn)","Levererat till förvaltande system och aviserat leveransen till mottagande förvaltning, enligt TDOK 2016:0411 (med kopia till Indatakoordinator)\n(datum + namn + ärendenr.)","Leveransyta till förvaltande system","Förvaltande system","Godkänt \n(datum + namn + ärendenr.)","Papperskopior är utlagda i anläggning (datum + namn) (Gäller objekten hiss och rulltrappa)","Eventuella kommentar"]
["1 vecka efter inkoppling",null,null,null,null,null,"Ja"]
[{"$f":"\"Leverans från leverantör (E/K) till överenskommen leveransyta, för mottagningskontroll senast: \"&IF(Projektuppgifter!C90=\"\",\"Fyll i datum\",TEXT(DATE(YEAR(Projektuppgifter!C90),MONTH(Projektuppgifter!C90),DAY(Projektuppgifter!C90)),\"ÅÅÅÅ-MM-DD\"))","v":"Leverans från leverantör (E/K) till överenskommen leveransyta, för mottagningskontroll senast: Fyll i datum"}]
[{"$f":"\"Leverans till mottagande förvaltning senast: \"&IF(B2=\"Fyll i datum\",\"Fyll i datum\",TEXT(DATE(YEAR(B2),MONTH(B2),DAY(B2)+7),\"ÅÅÅÅ-MM-DD\"))","v":"Leverans till mottagande förvaltning senast: Fyll i datum"},null,null,null,null,null,"Ja"]
["Data för lagring i databas"]
["TMALL 0659 Teknikbyggnad \nSamma TMALL som i flik 6.5. TMALLen ska bara levereras en gång. Registrera Teknikbyggnad under flik 6.5.",null," --","xlsx"]
["3 månader efter slutbesiktning",null,null,null,"Ja"]
[{"$f":"\"Leverans från leverantör (E/K) till överenskommen leveransyta, för mottagningskontroll senast: \"&IF(Projektuppgifter!C144=\"\",\"Fyll i datum\",TEXT(DATE(YEAR(Projektuppgifter!C144),MONTH(Projektuppgifter!C144),DAY(Projektuppgifter!C144)),\"ÅÅÅÅ-MM-DD\"))","v":"Leverans från leverantör (E/K) till överenskommen leveransyta, för mottagningskontroll senast: Fyll i datum"}]
[{"$f":"\"Leverans till mottagande förvaltning senast: \"&IF(B3=\"Fyll i datum\",\"Fyll i datum\",TEXT(EDATE(B3,3),\"ÅÅÅÅ-MM-DD\"))","v":"Leverans till mottagande förvaltning senast: Fyll i datum"},null,null,null,"Ja"]
["Teknisk dokumentation"]
["Gemensamma handlingar","Anläggningsbeskrivning","pdf","docx",null,null,null,null,null,"Ebbas leveransyta för det som ska levereras till Ebba. ","Ebba/ Teknikbyggnad/ Teknikhus alt. Kiosk, kur, teknikutrymme"]
[null,"Materialförteckning (teknik)","pdf","xlsx, dgn, dwg"]
[null,"Underhållsplan","pdf","docx"]
[null,"Drift-/underhållsinstruktion","pdf","docx"]
[null,"Manual och tekniska data","pdf","xlsx"]
[null,"Foto","jpg","--"]
[null,"Inventeringsdata","pdf","docx, xlsx"]
[null,"Besiktningsutlåtande","pdf","docx, xlsx"]
[null,"Programvara för fastighetssystem","--","zip"]
["Byggnad","Dokumentförteckning","pdf","docx"]
[null,"Situationsplan","pdf","dgn, dwg"]
[null,"Arkitektritning","pdf","dgn, dwg"]
[null,"Konstruktionsritning","pdf","dgn, dwg"]
[null,"Inredning","pdf","--"]
[null,"Utrustning för skydd mot olyckor","pdf","dgn, dwg, docx"]
[null,"VA/VVS","pdf","dgn, dwg, docx"]
["Utomhusmiljö","Klätterväxt","pdf","--"]
[null,"Områdesskydd","pdf","dgn, dwg, docx"]
[null,"Tillfartsväg","pdf","dgn, dwg, docx"]
[]
["OBS! Relevant data/dokumentation kopplat till miljö ska levereras enligt flik 15.5 Miljö"]

{"sheet":"7.2b Teknikbyggnad (Telekom)","index":28,"n_rows":36,"n_cols":14,"rows_kept":36,"cut":false,"hidden":false,"merged":[[11,0,11,3],[4,4,4,8],[4,10,4,11],[7,0,7,13],[8,0,8,3],[10,0,10,1],[12,0,12,13],[13,0,13,3],[14,0,14,13],[15,0,23,0],[15,9,33,9],[15,10,33,10],[24,0,30,0],[31,0,33,0]]}
["Teknikbyggnad (Hus) - Telekom (Förvaltas av IKT)"]
["Inkoppling:",{"$f":"IF(Projektuppgifter!G9=\"\",\"Fyll i datum\",Projektuppgifter!G9)","v":"Fyll i datum"}]
["Slutbesiktning:",{"$f":"IF(Projektuppgifter!G10=\"\",\"Fyll i datum\",Projektuppgifter!G10)","v":"Fyll i datum"},null,"Länk till flik Projektuppgifter"]
[]
[null,null,null,null,"Projekt",null,null,null,null,"Information till projektet","Mottagande förvaltning",null,"Projekt","Alla"]
[null,null,"Filformat\nvisningsfil","Filformat\nunderlagsfil","Aktuellt att upprättas av projektet","Status på levererad data","Filnamn","Levereras av:\n- E (Entreprenör)\n- K (Konsult)\n- B (Beställare)\n(datum + namn)","Levererat till förvaltande system och aviserat leveransen till mottagande förvaltning, enligt TDOK 2016:0411 (med kopia till Indatakoordinator)\n(datum + namn + ärendenr.)","Leveransyta till förvaltande system","Förvaltande system","Godkänt \n(datum + namn + ärendenr.)","Papperskopior är utlagda i anläggning (datum + namn) (Gäller objekten hiss och rulltrappa)","Eventuella kommentar"]
["1 vecka efter inkoppling",null,null,null,null,null,"Ja"]
[{"$f":"\"Leverans från leverantör (E/K) till överenskommen leveransyta, för mottagningskontroll senast: \"&IF(Projektuppgifter!C90=\"\",\"Fyll i datum\",TEXT(DATE(YEAR(Projektuppgifter!C90),MONTH(Projektuppgifter!C90),DAY(Projektuppgifter!C90)),\"ÅÅÅÅ-MM-DD\"))","v":"Leverans från leverantör (E/K) till överenskommen leveransyta, för mottagningskontroll senast: Fyll i datum"}]
[{"$f":"\"Leverans till mottagande förvaltning senast: \"&IF(B2=\"Fyll i datum\",\"Fyll i datum\",TEXT(DATE(YEAR(B2),MONTH(B2),DAY(B2)+7),\"ÅÅÅÅ-MM-DD\"))","v":"Leverans till mottagande förvaltning senast: Fyll i datum"},null,null,null,null,null,"Ja"]
["Data för lagring i databas"]
["TMALL 0659 Teknikbyggnad \nSamma TMALL som i flik 6.5. TMALLen ska bara levereras en gång. Registrera Teknikbyggnad under flik 6.5.",null," --","xlsx"]
["3 månader efter slutbesiktning",null,null,null,"Ja"]
[{"$f":"\"Leverans från leverantör (E/K) till överenskommen leveransyta, för mottagningskontroll senast: \"&IF(Projektuppgifter!C144=\"\",\"Fyll i datum\",TEXT(DATE(YEAR(Projektuppgifter!C144),MONTH(Projektuppgifter!C144),DAY(Projektuppgifter!C144)),\"ÅÅÅÅ-MM-DD\"))","v":"Leverans från leverantör (E/K) till överenskommen leveransyta, för mottagningskontroll senast: Fyll i datum"}]
[{"$f":"\"Leverans till mottagande förvaltning senast: \"&IF(B3=\"Fyll i datum\",\"Fyll i datum\",TEXT(EDATE(B3,3),\"ÅÅÅÅ-MM-DD\"))","v":"Leverans till mottagande förvaltning senast: Fyll i datum"},null,null,null,"Ja"]
["Teknisk dokumentation"]
["Gemensamma handlingar","Anläggningsbeskrivning","pdf","docx",null,null,null,null,null,"Projektets lagringsyta för det som ska levereras till ProjectWise/ICT","Teknikbyggnader för telekomanläggningar lagras i ProjectWise/ICT\n"]
[null,"Materialförteckning (teknik)","pdf","xlsx, dgn, dwg"]
[null,"Underhållsplan","pdf","docx"]
[null,"Drift-/underhållsinstruktion","pdf","docx"]
[null,"Manual och tekniska data","pdf","xlsx"]
[null,"Foto","jpg","--"]
[null,"Inventeringsdata","pdf","docx, xlsx"]
[null,"Besiktningsutlåtande","pdf","docx, xlsx"]
[null,"Programvara för fastighetssystem","--","zip"]
["Byggnad","Dokumentförteckning","pdf","docx"]
[null,"Situationsplan","pdf","dgn, dwg"]
[null,"Arkitektritning","pdf","dgn, dwg"]
[null,"Konstruktionsritning","pdf","dgn, dwg"]
[null,"Inredning","pdf","--"]
[null,"Utrustning för skydd mot olyckor","pdf","dgn, dwg, docx"]
[null,"VA/VVS","pdf","dgn, dwg, docx"]
["Utomhusmiljö","Klätterväxt","pdf","--"]
[null,"Områdesskydd","pdf","dgn, dwg, docx"]
[null,"Tillfartsväg","pdf","dgn, dwg, docx"]
[]
["OBS! Relevant data/dokumentation kopplat till miljö ska levereras enligt flik 15.5 Miljö"]

{"sheet":"7.3 Tillträdesskydd o brandlarm","index":29,"n_rows":21,"n_cols":10,"rows_kept":21,"cut":false,"hidden":false,"merged":[[15,4,15,9],[4,4,4,5],[4,7,4,8],[14,0,14,9],[11,0,11,3],[13,0,13,3],[6,0,6,3],[8,0,8,3],[9,0,9,9],[12,0,12,9],[7,0,7,9]]}
["Tillträdesskydd och brandlarm"]
["Inkoppling:",{"$f":"IF(Projektuppgifter!G9=\"\",\"Fyll i datum\",Projektuppgifter!G9)","v":"Fyll i datum"}]
["Slutbesiktningsdatum:",{"$f":"IF(Projektuppgifter!G10=\"\",\"Fyll i datum\",Projektuppgifter!G10)","v":"Fyll i datum"},null,null,"Länk till flik Projektuppgifter"]
[]
[null,null,null,"Fylls i av:","Projekt",null,"Information till projektet","Mottagande förvaltning",null,"Alla"]
[null,null,"Filformat\nvisningsfil","Filformat\nunderlagsfil","Aktuellt att upprättas av projektet","Levererat till förvaltande system  och aviserat leveransen till mottagande förvaltning, enligt TDOK 2016:0411 (med kopia till Indatakoordinator)\n(datum + namn + ärendenr.)","Leveransyta till förvaltande system","Förvaltande system","Leveranskontrollerat\n(datum + namn)","Eventuella kommentar"]
["10 veckor för inkoppling",null,null,null,"Ja"]
[{"$f":"\"Leverans från leverantör (E/K) till överenskommen leveransyta, för mottagningskontroll senast: \"&IF(Projektuppgifter!C62=\"\",\"Fyll i datum\",TEXT(DATE(YEAR(Projektuppgifter!C62),MONTH(Projektuppgifter!C62),DAY(Projektuppgifter!C62)),\"ÅÅÅÅ-MM-DD\"))","v":"Leverans från leverantör (E/K) till överenskommen leveransyta, för mottagningskontroll senast: Fyll i datum"}]
[{"$f":"\"Leverans till mottagande förvaltning senast: \"&IF(B2=\"Fyll i datum\",\"Fyll i datum\",TEXT(DATE(YEAR(B2),MONTH(B2),DAY(B2)-70),\"ÅÅÅÅ-MM-DD\"))","v":"Leverans till mottagande förvaltning senast: Fyll i datum"},null,null,null,"Ja"]
["Teknisk dokumentation"]
["Passagekontroll-, inbrottslarm- och brandvarningssystem*","Koordinatfil kabel"," --","zip (av dgn och kml)",null,null,"Projektets lagringsyta","PW/ICT"]
["3 månader efter slutbesiktning",null,null,null,"Ja"]
[{"$f":"\"Leverans från leverantör (E/K) till överenskommen leveransyta, för mottagningskontroll senast: \"&IF(Projektuppgifter!C145=\"\",\"Fyll i datum\",TEXT(DATE(YEAR(Projektuppgifter!C145),MONTH(Projektuppgifter!C145),DAY(Projektuppgifter!C145)),\"ÅÅÅÅ-MM-DD\"))","v":"Leverans från leverantör (E/K) till överenskommen leveransyta, för mottagningskontroll senast: Fyll i datum"}]
[{"$f":"\"Leverans till mottagande förvaltning senast: \"&IF(B3=\"Fyll i datum\",\"Fyll i datum\",TEXT(EDATE(B3,3),\"ÅÅÅÅ-MM-DD\"))","v":"Leverans till mottagande förvaltning senast: Fyll i datum"},null,null,null,"Ja"]
["Teknisk dokumentation"]
["Passagekontroll-, inbrottslarm- och brandvarningssystem*","Passagekontroll-, inbrottslarm- och brandvarningssystem (Enligt TDOK 2016:0407)","pdf","docx, xlsx, dgn, dwg","Upphandlad driftleverantör läser in den tekniska dokumentationen i ProjectWise."]
["Elektromekaniskt låssystem med loggfunktion","Monteringslista (Abloy Cliq-lås)\n(Beställ Cliq-lås genom att följa länken nedan.)","xlsx"," --",null,null,"Dokumentation ska bifogas i aviseringsmejlet.","ABBA-FT"]
[]
["* Eftersom det idag endast finns en behörig projektör, sker inleveransen till förvaltande system direkt av projektören."]
[]
["Beställning av Cliq-lås:","Beställa lås - Elektromekaniska (trafikverket.se)"]

{"sheet":"8.1 Signalsystem","index":30,"n_rows":108,"n_cols":23,"rows_kept":108,"cut":false,"hidden":false,"merged":[[25,0,25,5],[27,0,27,5],[44,0,44,2],[44,3,44,5],[43,0,43,5],[47,0,47,2],[49,0,49,2],[47,3,47,5],[48,3,48,5],[32,1,32,2],[26,0,26,22],[42,0,42,22],[51,0,51,22],[76,0,76,22],[88,0,88,22],[100,0,100,22],[34,0,34,2],[58,18,63,18],[41,0,41,5],[58,14,63,14],[47,16,48,16],[47,17,48,17],[48,0,48,2],[44,17,45,17],[44,16,45,16],[45,0,45,2],[45,3,45,5],[46,0,46,2],[50,0,50,5],[54,17,56,17],[58,16,64,16],[58,1,58,2],[59,1,59,2],[60,1,60,2],[61,1,61,2],[62,1,62,2],[1,0,1,1],[2,0,2,1],[3,0,3,1],[12,1,12,2],[14,1,14,2],[15,1,15,2],[23,0,23,2],[24,0,24,2],[20,0,20,2],[22,0,22,2],[17,1,17,2],[19,1,19,2],[6,0,6,5],[8,0,8,5],[10,1,10,2],[13,1,13,2],[21,0,21,22],[4,17,4,20],[9,0,9,22],[4,6,4,15],[18,1,18,2],[11,1,11,2],[16,1,16,2],[7,0,7,22],[103,0,103,2],[78,0,78,22],[91,0,91,2],[90,0,90,22],[81,1,81,2],[89,0,89,5],[99,0,99,5],[101,0,101,5],[79,0,79,2],[79,3,79,4],[79,17,86,17],[87,0,87,5],[92,0,92,2],[102,0,102,22],[94,0,94,2],[96,0,96,2],[86,1,86,2],[82,1,82,2],[80,1,80,2],[95,0,95,2],[98,0,98,2],[93,0,93,2],[83,1,83,2],[84,1,84,2],[52,0,52,5],[92,16,97,16],[92,17,97,17],[73,1,74,1],[65,17,74,17],[71,1,72,1],[65,16,74,16],[65,1,66,1],[75,0,75,5],[77,0,77,5],[65,0,74,0],[67,1,68,1],[80,16,86,16],[69,1,70,1],[63,1,63,2],[64,1,64,2],[57,0,57,22],[58,17,64,17],[58,0,64,0],[5,0,5,2],[29,16,32,16],[35,0,40,0],[35,16,40,16],[29,1,29,2],[30,1,30,2],[31,1,31,2],[97,0,97,2],[20,3,20,4],[33,0,33,22],[10,17,20,17],[22,17,24,17],[28,0,28,22],[35,1,38,1],[55,1,55,2],[56,1,56,2],[54,1,54,2],[54,16,56,16],[53,0,53,22],[35,17,40,17],[10,16,19,16],[22,16,24,16],[29,17,32,17],[30,0,31,0]]}
["Signalsystem"]
["Inkoppling:",null,{"$f":"IF(Projektuppgifter!G9=\"\",\"Fyll i datum\",Projektuppgifter!G9)","v":"Fyll i datum"},null,"Länk till flik Projektuppgifter"]
["Slutbesiktning:",null,{"$f":"IF(Projektuppgifter!G10=\"\",\"Fyll i datum\",Projektuppgifter!G10)","v":"Fyll i datum"}]
["Datum för Transportstyrelsens godkännande:",null,{"$f":"IF(Projektuppgifter!G11=\"\",\"Fyll i datum\",Projektuppgifter!G11)","v":"Fyll i datum"}]
[null,null,null,null,null,"Fylls i av:","Projekt",null,null,null,null,null,null,null,null,null,"Information till projektet","Mottagande förvaltning",null,null,null,"Projekt","Alla"]
["OBS. Signalskåp ska levereras i TMALL 0659 Teknikbyggnad. TMALL 0659 återfinns under flik 6.5 Lågspänningssystem",null,null,"Filformat\nvisningsfil","Filformat\nunderlagsfil","Uppbyggd av modellfil","Aktuellt att upprättas av projektet","Status på levererad data","Anläggnings-nummer","Trafikplats/linje","Ä-not","Filnamn alt länk till levererad fil","Levereras av:\n- E (Entreprenör)\n- K (Konsult)\n- B (Beställare)\n(datum + namn)","Levererat till förvaltande system och aviserat leveransen till mottagande förvaltning, enligt TDOK 2016:0411 (med kopia till Indatakoordinator)\n(datum + namn + ärendenr.)","Eventuella ändringar av tidigare levererad dokumentation\n(Länk till leveransen)","Levererat och aviserat ändringar (datum + namn + ärendenr.)","Leveransyta till förvaltande system","Förvaltande system","Mottaget\n(datum + namn + ärendenr.)","Godkänt \n(datum + namn + ärendenr.)","Godkänt ändring\n(datum + namn + ärendenr.)","Papperskopior är utlagda i anläggning (datum + namn)","Eventuella kommentarer"]
["6 månader före inkoppling",null,null,null,null,null,"Ja"]
[{"$f":"\"Leverans från leverantör (E/K) till överenskommen leveransyta, för mottagningskontroll senast: \"&IF(Projektuppgifter!C38=\"\",\"Fyll i datum\",TEXT(DATE(YEAR(Projektuppgifter!C38),MONTH(Projektuppgifter!C38),DAY(Projektuppgifter!C38)),\"ÅÅÅÅ-MM-DD\"))","v":"Leverans från leverantör (E/K) till överenskommen leveransyta, för mottagningskontroll senast: Fyll i datum"}]
[{"$f":"\"Leverans till mottagande förvaltning senast: \"&IF(C2=\"Fyll i datum\",\"Fyll i datum\",TEXT(EDATE(C2,-6),\"ÅÅÅÅ-MM-DD\"))","v":"Leverans till mottagande förvaltning senast: Fyll i datum"},null,null,null,null,null,"Ja"]
["Data för lagring i databas"]
["Nytt objekt:","TMALL 0631 Balisgrupp ERTMS",null," --","xlsx"," --",null,null,null,null,null,null,null,null,null,null,"Projektets lagringsyta","BIS"]
[null,"TMALL 0632 Hastighetsindikeringssystem (HIS)",null," --","xlsx"," --"]
[null,"TMALL 0634 Plankorsning",null," --","xlsx"," --"]
[null,"TMALL 1157 RTU Siemens S7",null," --","xlsx"," --"]
[null,"TMALL 0637 Signal (ej ATC)",null," --","xlsx"," --"]
[null,"TMALL 0638 Signalpunktstavla ERTMS",null," --","xlsx"," --"]
[null,"TMALL 0640 Spårledning (Fysisk)",null," --","xlsx"," --"]
[null,"TMALL 0641 Tavla (ej ATC)",null," --","xlsx"," --"]
[null,"TMALL 1297 Tavla (främst ATC)",null," --","xlsx"," --"]
["Ändrat/slopat objekt:","Slopnings- och ändringslista av objekten ovan",null," --","xlsx"," --"]
["Leverans från Patcy (bygghandling)",null,null,"Projektet klarmarkerar att bygghandlingen är klar i Patcy",null," --",null,null,null,null,null,null,null,null,null,null,"Inte aktuellt"]
["Teknisk dokumentation"]
["PLS, datablock för överföring av order och indikering mellan PLS och tågledningssystem, vanligtvis DB80 och DB81. (Projekterad anläggning)",null,null,"pdf"," --"," --",null,null,null,null,null,null,null,null,null,null,"Projektets lagringsyta","BIS (Informationen i dokumenten används för generering av Rörelsevägar och Skydd (RoS) i BIS. Dokumenten i sig lagras inte i BIS)"]
["Funktionsbeskrivning eller signaltekniska funktionskrav",null,null,"docx"," --"," --"]
["Fastställd signalhandling (del av bygghandling)",null,null,"pdf"," --"," --"]
["10 veckor före inkoppling",null,null,null,null,null,"Ja"]
[{"$f":"\"Leverans från leverantör (E/K) till överenskommen leveransyta, för mottagningskontroll senast: \"&IF(Projektuppgifter!C43=\"\",\"Fyll i datum\",TEXT(DATE(YEAR(Projektuppgifter!C43),MONTH(Projektuppgifter!C43),DAY(Projektuppgifter!C43)),\"ÅÅÅÅ-MM-DD\"))","v":"Leverans från leverantör (E/K) till överenskommen leveransyta, för mottagningskontroll senast: Fyll i datum"}]
[{"$f":"\"Leverans till mottagande förvaltning senast: \"&IF(C2=\"Fyll i datum\",\"Fyll i datum\",TEXT(DATE(YEAR(C2),MONTH(C2),DAY(C2)-70),\"ÅÅÅÅ-MM-DD\"))","v":"Leverans till mottagande förvaltning senast: Fyll i datum"},null,null,null,null,null,"Ja"]
["Data för lagring i databas"]
["Nytt objekt:","TMALL 1158 RTU EBISAT 890",null," --","xlsx"," --",null,null,null,null,null,null,null,null,null,null,"Projektets lagringsyta","BIS"]
["Data för ifyllnad av dessa mallar erhålls i paket 7 (i leverans från ställverks-leverantör) som levereras till projektets yta","TMALL 0639 Signalställverk",null," --","xlsx"," --"]
[null,"TMALL 0691 Radio Block Center (ERTMS)",null," --","xlsx"," --"]
["Ändrat/slopat objekt:","Slopnings- och ändringslista av objekten ovan",null," --","xlsx"," --"]
["Teknisk dokumentation"]
["Koordinatfil kabel",null,null," --","zip (av dgn och kml)"," --",null,null,null,null,null,null,null,null,null,null,"Projektets lagringsyta","PW/ICT"]
["Listor från ställverk och tågledningssystem: (Samtliga genereras vid BTRCS projektering av ställverk respektive tågledningssystem för respektive driftplats.)","Ställverk modell 85","CISlista ","pdf"," --"," --",null,null,null,null,null,null,"Registreras direkt i PW/FU, av systemleverantör",null,null,null,"Inte aktuellt","PW/FU"]
[null,null,"Identitetslista ","pdf"," --"," --",null,null,null,null,null,null,"Registreras direkt i PW/FU, av systemleverantör"]
[null,null,"Automatdata (om det finns automater) ","pdf"," --"," --",null,null,null,null,null,null,"Registreras direkt i PW/FU, av systemleverantör"]
[null,null,"Förbindelselista","pdf"," --"," --",null,null,null,null,null,null,"Registreras direkt i PW/FU, av systemleverantör"]
[null,"Ställverk modell 95","Enligt TRVINFRA 00301, bilaga 4, paket 2"," --","zip"," --",null,null,null,null,null,null,"Registreras direkt i PW/FU, av systemleverantör"]
[null,"Ställverk modell 11","Enligt TRVINFRA 00301, bilaga 5, paket 2"," --","zip"," --",null,null,null,null,null,null,"Registreras direkt i PW/FU, av systemleverantör"]
["Dagen för inkoppling",null,null,null,null,null,"Ja"]
[{"$f":"\"Leverans från leverantör (E/K) till överenskommen leveransyta, för mottagningskontroll senast: \"&IF(Projektuppgifter!C76=\"\",\"Fyll i datum\",TEXT(DATE(YEAR(Projektuppgifter!C76),MONTH(Projektuppgifter!C76),DAY(Projektuppgifter!C76)),\"ÅÅÅÅ-MM-DD\"))","v":"Leverans från leverantör (E/K) till överenskommen leveransyta, för mottagningskontroll senast: Fyll i datum"}]
[{"$f":"\"Leverans till mottagande förvaltning senast: \"&IF(C2=\"Fyll i datum\",\"Fyll i datum\",TEXT(DATE(YEAR(C2),MONTH(C2),DAY(C2)),\"ÅÅÅÅ-MM-DD\"))","v":"Leverans till mottagande förvaltning senast: Fyll i datum"},null,null,null,null,null,"Ja"]
["Enligt TRVINFRA 00301, bilaga 4, paket 1 (Ställverk 95)",null,null,"Pärmar med allmän dokumentation om anläggningen ska placeras i TP-noden.",null,null,null,null,null,null,null,null,"Beställare",null,null,null,"Fysisk lagring i anläggning. Avisera leveransen till stallverksdriftIKT@trafikverket.se ","Fysisk lagring i anläggningen"]
["Enligt TRVINFRA 00301, bilaga 4, paket 3 (Ställverk 95)",null,null,"USB-minnen ska placeras i anläggningen",null,null,null,null,null,null,null,null,"Beställare"]
["Enligt TRVINFRA 00301, bilaga 4, paket 6 (Ställverk 95) \nOBS! Gäller enbart Eurobaliser, för ATC se rad 59.",null,null,"zip"," --"," --",null,null,null,null,null,null,"Systemleverantör",null,null,null,"Ebbas leveransyta","Ebba/ Signal/ Signalanläggning"]
["Enligt TRVINFRA 00301, bilaga 5, paket 1 (Ställverk 11)",null,null,"Pärmar med allmän dokumentation om anläggningen ska placeras i TP-noden.",null,null,null,null,null,null,null,null,"Beställare",null,null,null,"Fysisk lagring i anläggning. Avisera leveransen till stallverksdriftIKT@trafikverket.se ","Fysisk lagring i anläggningen"]
["Enligt TRVINFRA 00301, bilaga 5, paket 3 (Ställverk 11)",null,null,"USB-minnen ska placeras i anläggningen",null,null,null,null,null,null,null,null,"Beställare"]
["Enligt TRVINFRA 00301, bilaga 5, paket 6 (Ställverk 11)\nOBS! Gäller enbart Eurobaliser, för ATC se rad 59.",null,null,"zip"," --"," --",null,null,null,null,null,null,"Systemleverantör",null,null,null,"Ebbas leveransyta","Ebba/ Signal/ Signalanläggning"]
["1 vecka efter inkoppling",null,null,null,null,null,"Ja"]
[{"$f":"\"Leverans från leverantör (E/K) till överenskommen leveransyta, för mottagningskontroll senast: \"&IF(Projektuppgifter!C93=\"\",\"Fyll i datum\",TEXT(DATE(YEAR(Projektuppgifter!C93),MONTH(Projektuppgifter!C93),DAY(Projektuppgifter!C93)),\"ÅÅÅÅ-MM-DD\"))","v":"Leverans från leverantör (E/K) till överenskommen leveransyta, för mottagningskontroll senast: Fyll i datum"}]
[{"$f":"\"Leverans till mottagande förvaltning senast: \"&IF(C2=\"Fyll i datum\",\"Fyll i datum\",TEXT(DATE(YEAR(C2),MONTH(C2),DAY(C2)+7),\"ÅÅÅÅ-MM-DD\"))","v":"Leverans till mottagande förvaltning senast: Fyll i datum"},null,null,null,null,null,"Ja"]
["Data för lagring i databas"]
["Nytt objekt:","TMALL 0635 Positioneringssystem",null," --","xlsx"," --",null,null,null,null,null,null,null,null,null,null,"Projektets lagringsyta","BIS"]
[null,"TMALL 0636 Rälskontakt",null," --","xlsx"," --"]
["Ändrat/slopat objekt:","Slopnings- och ändringslista av objekten ovan",null," --","xlsx"," --"]
["Teknisk dokumentation"]
["OBS! Dessa filer ska levereras till underhåll EFTER inkoppling. Detta för att förhindra att befintliga filer slopas i förtid. Befintliga filer kan behövas till felavhjälpning fram till den nya inkopplingen.","IL-fil, LEU-fil (Obs! Vid leverans av LEU-fil (S2-kodare) ska ingen IL-fil levereras.) \nOBS! Gäller enbart ATC, för Eurobaliser se rad 47 och 50.",null,"zip (innehållande pdf samt il, leu)"," --"," --",null,null,null,null,null,null,null,null,null,null,"Ebbas leveransyta","Ebba/ Signal/ Signalanläggning"]
[null,"Ebisat-program",null,"zip"," --"," --"]
[null,"Programfil (Alex-teknik)",null,"zip"," --"," --"]
[null,"HMI-program",null,"zip"," --"," --"]
[null,"HMI-utskrift",null,"zip"," --"," --"]
[null,"PLS-program",null,"zip"," --"," --"]
[null,"PLS-utskrift",null,"zip"," --"," --"]
["Listor från ställverk och tågledningssystem: (Samtliga genereras vid BTRCS projektering av ställverk respektive tågledningssystem för respektive driftplats.)","Ställverk modell 59","Onepoint (om anläggning på EBICOS)","pdf","xml"," --",null,null,null,null,null,null,"Registreras direkt i utpekat arbetsrum, av systemtekniker EBICOS",null,null,null,"Inte aktuellt","Arbetsrum"]
[null,null,"Indication (om anläggning på EBICOS)","pdf","xml"," --",null,null,null,null,null,null,"Registreras direkt i utpekat arbetsrum, av systemtekniker EBICOS"]
[null,"Ställverk modell 65","Sequence (om anläggning på EBICOS)","pdf","xml"," --",null,null,null,null,null,null,"Registreras direkt i utpekat arbetsrum, av systemtekniker EBICOS"]
[null,null,"Indication (om anläggning på EBICOS)","pdf","xml"," --",null,null,null,null,null,null,"Registreras direkt i utpekat arbetsrum, av systemtekniker EBICOS"]
[null,"Ställverk modell CST","Sequence (om anläggning på EBICOS)","pdf","xml"," --",null,null,null,null,null,null,"Registreras direkt i utpekat arbetsrum, av systemtekniker EBICOS"]
[null,null,"Indication (om anläggning på EBICOS)","pdf","xml"," --",null,null,null,null,null,null,"Registreras direkt i utpekat arbetsrum, av systemtekniker EBICOS"]
[null,"Ställverk modell 85","Onepoint (om anläggning på EBICOS)","pdf","xml"," --",null,null,null,null,null,null,"Registreras direkt i utpekat arbetsrum, av systemtekniker EBICOS"]
[null,null,"Indication (om anläggning på EBICOS)","pdf","xml"," --",null,null,null,null,null,null,"Registreras direkt i utpekat arbetsrum, av systemtekniker EBICOS"]
[null,"Ställverk modell 95","Onepoint (om det finns en relädel)","pdf","xml"," --",null,null,null,null,null,null,"Registreras direkt i utpekat arbetsrum, av systemtekniker EBICOS"]
[null,null,"Indication (om det finns en relädel)","pdf","xml"," --",null,null,null,null,null,null,"Registreras direkt i utpekat arbetsrum, av systemtekniker EBICOS"]
["3 veckor efter inkoppling",null,null,null,null,null,"Ja"]
[{"$f":"\"Leverans från leverantör (E/K) till överenskommen leveransyta, för mottagningskontroll senast: \"&IF(Projektuppgifter!C101=\"\",\"Fyll i datum\",TEXT(DATE(YEAR(Projektuppgifter!C101),MONTH(Projektuppgifter!C101),DAY(Projektuppgifter!C101)),\"ÅÅÅÅ-MM-DD\"))","v":"Leverans från leverantör (E/K) till överenskommen leveransyta, för mottagningskontroll senast: Fyll i datum"}]
[{"$f":"\"Leverans till mottagande förvaltning senast: \"&IF(C2=\"Fyll i datum\",\"Fyll i datum\",TEXT(DATE(YEAR(C2),MONTH(C2),DAY(C2)+21),\"ÅÅÅÅ-MM-DD\"))","v":"Leverans till mottagande förvaltning senast: Fyll i datum"},null,null,null,null,null,"Ja"]
["Data för lagring i databas"]
["Leverans från Patcy (förvaltningsdata)",null,null,"Projektet klarmarkerar att förvaltningsdata är klar i Patcy",null," --",null,null,null,null,null,null,null,null,null,null,"Inte aktuellt","BIS"]
["Nytt objekt:","TMALL 1322 ELC ",null," --","xlsx"," --",null,null,null,null,null,null,null,null,null,null,"Projektets lagringsyta"]
[null,"TMALL 0633 Linjeblockeringssystem",null," --","xlsx"," --"]
[null,"TMALL 1321 Utdelsenhet",null," --","xlsx"," --"]
[null,"Restlista för Signal (ej ATC)",null," --","xlsx"," --",{"$f":"IF($G$15=\"Ja\",\"Ja\",\"\")","v":""}]
[null,"Restlista för Tavla (ej ATC)",null," --","xlsx"," --",{"$f":"IF($G$18=\"Ja\",\"Ja\",\"\")","v":""}]
[null,"Komponenter plankorsning",null," --","xlsx"," --",{"$f":"IF($G$13=\"Ja\",\"Ja\",\"\")","v":""}]
["Ändrat/slopat objekt:","Slopnings- och ändringslista av objekten ovan",null," --","xlsx"," --"]
["3 månader efter slutbesiktning",null,null,null,null,null,"Ja"]
[{"$f":"\"Leverans från leverantör (E/K) till överenskommen leveransyta, för mottagningskontroll senast: \"&IF(Projektuppgifter!C153=\"\",\"Fyll i datum\",TEXT(DATE(YEAR(Projektuppgifter!C153),MONTH(Projektuppgifter!C153),DAY(Projektuppgifter!C153)),\"ÅÅÅÅ-MM-DD\"))","v":"Leverans från leverantör (E/K) till överenskommen leveransyta, för mottagningskontroll senast: Fyll i datum"}]
[{"$f":"\"Leverans till mottagande förvaltning senast: \"&IF(C3=\"Fyll i datum\",\"Fyll i datum\",TEXT(EDATE(C3,3),\"ÅÅÅÅ-MM-DD\"))","v":"Leverans till mottagande förvaltning senast: Fyll i datum"},null,null,null,null,null,"Ja"]
["Teknisk dokumentation"]
["Ritningar och övrig teknisk dokumentation över befintlig anläggning enligt TRVINFRA 00301.",null,null,"pdf","xlsx, docx, dgn, dwg","SIGNAL, ISOL, LINJE",null,null,null,null,null,null,null,null,null,null,"Ebbas leveransyta","Ebba/ Signal/ Signalanläggning"]
["Enligt TRVINFRA 00301, bilaga 3 (Ställverk 85)",null,null," --","zip"," --",null,null,null,null,null,null,"Registreras direkt i PW/FU, av systemleverantör",null,null,null,"Inte aktuellt","PW/FU"]
["Enligt TRVINFRA 00301, bilaga 4, paket 1 (Ställverk 95) ",null,null," --","zip"," --",null,null,null,null,null,null,"Registreras direkt i PW/FU, av systemleverantör"]
["Enligt TRVINFRA 00301, bilaga 4, paket 5 (Ställverk 95)",null,null," --","zip"," --",null,null,null,null,null,null,"Registreras direkt i PW/FU, av systemleverantör"]
["Enligt TRVINFRA 00301, bilaga 5, paket 1 (Ställverk 11)",null,null," --","zip"," --",null,null,null,null,null,null,"Registreras direkt i PW/FU, av systemleverantör"]
["Enligt TRVINFRA 00301, bilaga 5, paket 3 (Ställverk 11)",null,null," --","zip"," --",null,null,null,null,null,null,"Registreras direkt i PW/FU, av systemleverantör"]
["Enligt TRVINFRA 00301, bilaga 5, paket 5 (Ställverk 11)",null,null," --","zip"," --",null,null,null,null,null,null,"Registreras direkt i PW/FU, av systemleverantör"]
["Besiktningsdokumentationen för signalteknik i form av pappershandlingar (Ska sparas i fem år hos Trafikverkets arkivservice i Mölndal)",null,null," --"," --"," --",null,null,null,null,null,null,null,null,null,null,"Arkivservice i Mölndal","Arkivservice i Mölndal"]
["1 månad efter Transportstyrelsens godkännande",null,null,null,null,null,"Ja"]
[{"$f":"\"Leverans från leverantör (E/K) till överenskommen leveransyta, för mottagningskontroll senast: \"&IF(Projektuppgifter!C168=\"\",\"Fyll i datum\",TEXT(DATE(YEAR(Projektuppgifter!C168),MONTH(Projektuppgifter!C168),DAY(Projektuppgifter!C168)),\"ÅÅÅÅ-MM-DD\"))","v":"Leverans från leverantör (E/K) till överenskommen leveransyta, för mottagningskontroll senast: Fyll i datum"}]
[{"$f":"\"Leverans till mottagande förvaltning senast: \"&IF(C4=\"Fyll i datum\",\"Fyll i datum\",TEXT(EDATE(C4,1),\"ÅÅÅÅ-MM-DD\"))","v":"Leverans till mottagande förvaltning senast: Fyll i datum"},null,null,null,null,null,"Ja"]
["Teknisk dokumentation"]
["Säkerhetsbevisning",null,null,"zip"," --"," --",null,null,null,null,null,null,null,null,null,null,"ProjectWise/Förvaltning Järnväg/Dokument/Förvaltningsdata Leveranser/_Säkerhetsbevisning/ Bandel,projekt","PW/FJ"]
[]
["Vid förändring av de signalobjekt som ingår i baskarta ska ny uppdaterad baskarta tas fram."]
[]
["OBS! Relevant data/dokumentation kopplat till miljö ska levereras enligt flik 15.5 Miljö"]

{"sheet":"9.1 Banöverbyggnad","index":31,"n_rows":67,"n_cols":18,"rows_kept":67,"cut":false,"hidden":false,"merged":[[33,0,33,4],[31,0,31,4],[45,0,45,1],[34,0,34,17],[44,0,44,1],[35,13,45,13],[35,12,45,12],[35,0,43,1],[32,0,32,17],[23,13,30,13],[23,0,29,1],[30,0,30,1],[11,13,17,13],[23,12,30,12],[21,0,21,4],[11,12,18,12],[20,0,20,17],[5,5,5,11],[5,13,5,16],[22,0,22,17],[1,0,1,1],[2,0,2,1],[3,0,3,1],[9,0,9,4],[19,0,19,4],[11,0,17,1],[18,0,18,1],[10,0,10,17],[7,0,7,4],[8,0,8,17],[64,0,64,2],[46,0,46,4],[48,0,48,4],[60,0,60,4],[62,0,62,4],[49,0,49,17],[50,12,59,12],[50,0,52,1],[53,0,55,1],[56,0,59,1],[63,0,63,17],[50,13,59,13],[61,0,61,17],[47,0,47,17]]}
["Banöverbyggnad"]
["Inkoppling:",null,{"$f":"IF(Projektuppgifter!G9=\"\",\"Fyll i datum\",Projektuppgifter!G9)","v":"Fyll i datum"},null,"Länk till flik Projektuppgifter"]
["Slutbesiktning: ",null,{"$f":"IF(Projektuppgifter!G10=\"\",\"Fyll i datum\",Projektuppgifter!G10)","v":"Fyll i datum"}]
["Datum för Transportstyrelsens godkännande:",null,{"$f":"IF(Projektuppgifter!G11=\"\",\"Fyll i datum\",Projektuppgifter!G11)","v":"Fyll i datum"}]
[]
[null,null,null,null,"Fylls i av:","Projekt",null,null,null,null,null,null,"Information till projektet","Mottagande förvaltning",null,null,null,"Alla"]
[null,null,null,"Filformat\nvisningsfil","Filformat\nunderlagsfil","Aktuellt att upprättas av projektet","Status på levererad data","Filnamn alt länk till levererad fil","Levereras av:\n- E (Entreprenör)\n- K (Konsult)\n- B (Beställare)\n(datum + namn)","Levererat till förvaltande system och aviserat leveransen till mottagande förvaltning, enligt TDOK 2016:0411 (med kopia till Indatakoordinator)\n(datum + namn + ärendenr.)","BIS: Eventuella ändringar av tidigare levererade data\n(Länk till leveransen)","BIS: Levererat till förvaltande system och aviserat ändringar (datum + namn + ärendenr.)","Leveransyta till förvaltande system","Förvaltande system","Mottaget\n(datum + namn + ärendenr.)","Godkänt \n(datum + namn + ärendenr.)","Godkänt ändring\n(datum + namn + ärendenr.)","Eventuella kommentarer"]
["6 månader före inkoppling",null,null,null,null,"Ja"]
[{"$f":"\"Leverans från leverantör (E/K) till överenskommen leveransyta, för mottagningskontroll senast: \"&IF(Projektuppgifter!C33=\"\",\"Fyll i datum\",TEXT(DATE(YEAR(Projektuppgifter!C33),MONTH(Projektuppgifter!C33),DAY(Projektuppgifter!C33)),\"ÅÅÅÅ-MM-DD\"))","v":"Leverans från leverantör (E/K) till överenskommen leveransyta, för mottagningskontroll senast: Fyll i datum"}]
[{"$f":"\"Leverans till mottagande förvaltning senast: \"&IF(C2=\"Fyll i datum\",\"Fyll i datum\",TEXT(EDATE(C2,-6),\"ÅÅÅÅ-MM-DD\"))","v":"Leverans till mottagande förvaltning senast: Fyll i datum"},null,null,null,null,"Ja"]
["Data för lagring i databas"]
["Nytt objekt:",null,"TMALL 0608 Isolerskarv"," --","xlsx",null,null,null,null,null,null,null,"Projektets lagringsyta","BIS"]
[null,null,"TMALL 0610 Spårkors"," --","xlsx"]
[null,null,"TMALL 0565 Spårspärr"," --","xlsx"]
[null,null,"TMALL 0601 Spårväxel EV/EVR"," --","xlsx"]
[null,null,"TMALL 0602 Spårväxel EVK/DKV"," --","pdf"]
[null,null,"TMALL 0603 Spårväxel 3V"," --","pdf"]
[null,null,"TMALL 0568 Stoppbock"," --","xlsx"]
["Ändrat/slopat objekt:",null,"Slopnings- och ändringslista av objekten ovan"," --","xlsx"]
["1 vecka efter inkoppling",null,null,null,null,"Ja"]
[{"$f":"\"Leverans från leverantör (E/K) till överenskommen leveransyta, för mottagningskontroll senast: \"&IF(Projektuppgifter!C83=\"\",\"Fyll i datum\",TEXT(DATE(YEAR(Projektuppgifter!C83),MONTH(Projektuppgifter!C83),DAY(Projektuppgifter!C83)),\"ÅÅÅÅ-MM-DD\"))","v":"Leverans från leverantör (E/K) till överenskommen leveransyta, för mottagningskontroll senast: Fyll i datum"}]
[{"$f":"\"Leverans till mottagande förvaltning senast: \"&IF(C2=\"Fyll i datum\",\"Fyll i datum\",TEXT(DATE(YEAR(C2),MONTH(C2),DAY(C2)+7),\"ÅÅÅÅ-MM-DD\"))","v":"Leverans till mottagande förvaltning senast: Fyll i datum"},null,null,null,null,"Ja"]
["Data för lagring i databas"]
["Nytt objekt:",null,"TMALL 0599 Ballast"," --","xlsx",null,null,null,null,null,null,null,"Projektets lagringsyta","BIS"]
[null,null,"TMALL 0600 Befästning"," --","xlsx"]
[null,null,"TMALL 0962 Dilatationsanordning"," --","xlsx"]
[null,null,"TMALL 0606 Räl"," --","xlsx"]
[null,null,"TMALL 0607 Rälsvandringshinder"," --","xlsx"]
[null,null,"TMALL 0963 Skarv öppningsbar bro"," --","xlsx"]
[null,null,"TMALL 0609 Sliper"," --","xlsx"]
["Ändrat/slopat objekt:",null,"Slopnings- och ändringslista av objekten ovan"," --","xlsx"]
["3 veckor efter inkoppling",null,null,null,null,"Ja"]
[{"$f":"\"Leverans från leverantör (E/K) till överenskommen leveransyta, för mottagningskontroll senast: \"&IF(Projektuppgifter!C99=\"\",\"Fyll i datum\",TEXT(DATE(YEAR(Projektuppgifter!C99),MONTH(Projektuppgifter!C99),DAY(Projektuppgifter!C99)),\"ÅÅÅÅ-MM-DD\"))","v":"Leverans från leverantör (E/K) till överenskommen leveransyta, för mottagningskontroll senast: Fyll i datum"}]
[{"$f":"\"Leverans till mottagande förvaltning senast: \"&IF(C2=\"Fyll i datum\",\"Fyll i datum\",TEXT(DATE(YEAR(C2),MONTH(C2),DAY(C2)+21),\"ÅÅÅÅ-MM-DD\"))","v":"Leverans till mottagande förvaltning senast: Fyll i datum"},null,null,null,null,"Ja"]
["Data för lagring i databas"]
["Nytt objekt:",null,"TMALL 1267 Pyramidmatta"," --","xlsx",null,null,null,null,null,null,null,"Projektets lagringsyta","BIS"]
[null,null,"TMALL 0564 Rangerbromssystem"," --","xlsx"]
[null,null,"TMALL 0656 Rälssmörjningsapparat"," --","xlsx"]
[null,null,"TMALL 1381 Stoppbock, fällbar"," --","xlsx"]
[null,null,"TMALL 0669 Skyddsräl"," --","xlsx"]
[null,null,"Restlista för Isolerskarv "," --","xlsx",{"$f":"IF($F$12=\"Ja\",\"Ja\",\"\")","v":""}]
[null,null,"Restlista för Spårväxel"," --","xlsx",{"$f":"IF(OR($F$15=\"Ja\",$F$16=\"Ja\",$F$17=\"Ja\"),\"Ja\",\"\")","v":""}]
[null,null,"Restlista för Spårspärr"," --","xlsx",{"$f":"IF($F$14=\"Ja\",\"Ja\",\"\")","v":""}]
[null,null,"Restlista för Spårkors"," --","xlsx",{"$f":"IF($F$13=\"Ja\",\"Ja\",\"\")","v":""}]
["Ändrat/slopat objekt:",null,"Slopnings- och ändringslista av objekten ovan"," --","xlsx"]
["Nytt eller ändrat/slopat objekt:",null,"TMALL 0672 Spänningsfri temperatur"," --","xlsx"]
["3 månader efter slutbesiktning",null,null,null,null,"Ja"]
[{"$f":"\"Leverans från leverantör (E/K) till överenskommen leveransyta, för mottagningskontroll senast: \"&IF(Projektuppgifter!C156=\"\",\"Fyll i datum\",TEXT(DATE(YEAR(Projektuppgifter!C156),MONTH(Projektuppgifter!C156),DAY(Projektuppgifter!C156)),\"ÅÅÅÅ-MM-DD\"))","v":"Leverans från leverantör (E/K) till överenskommen leveransyta, för mottagningskontroll senast: Fyll i datum"}]
[{"$f":"\"Leverans till mottagande förvaltning senast: \"&IF(C3=\"Fyll i datum\",\"Fyll i datum\",TEXT(EDATE(C3,3),\"ÅÅÅÅ-MM-DD\"))","v":"Leverans till mottagande förvaltning senast: Fyll i datum"},null,null,null,null,"Ja"]
["Teknisk dokumentation"]
["Dilatationsanordning",null,"Utläggningsritning","pdf"," --",null,null,null,null,null,null,null,"Ebbas leveransyta","Ebba/ Ban-överbyggnad/ Spår, spårväxel"]
[null,null,"Materialförteckning","pdf"," --"]
[null,null,"Bockningsunderlag","pdf"," --"]
["Skarv öppnigsbar bro",null,"Utläggningsritning","pdf"," --"]
[null,null,"Detaljritning","pdf"," --"]
[null,null,"Materialförteckning","pdf"," --"]
["Spårväxel",null,"Utläggningsritning","pdf"," --"]
[null,null,"Materialförteckning","pdf"," --"]
[null,null,"Slipersplaceringsritning","pdf"," --"]
[null,null,"Bockningsunderlag","pdf"," --"]
["1 månad efter Transportstyrelsens godkännande",null,null,null,null,"Ja"]
[{"$f":"\"Leverans från leverantör (E/K) till överenskommen leveransyta, för mottagningskontroll senast: \"&IF(Projektuppgifter!C169=\"\",\"Fyll i datum\",TEXT(DATE(YEAR(Projektuppgifter!C169),MONTH(Projektuppgifter!C169),DAY(Projektuppgifter!C169)),\"ÅÅÅÅ-MM-DD\"))","v":"Leverans från leverantör (E/K) till överenskommen leveransyta, för mottagningskontroll senast: Fyll i datum"}]
[{"$f":"\"Leverans till mottagande förvaltning senast: \"&IF(C4=\"Fyll i datum\",\"Fyll i datum\",TEXT(EDATE(C4,1),\"ÅÅÅÅ-MM-DD\"))","v":"Leverans till mottagande förvaltning senast: Fyll i datum"},null,null,null,null,"Ja"]
["Teknisk dokumentation"]
["Säkerhetsbevisning bana",null,null,"zip","--",null,null,null,null,null,null,null,"ProjectWise/Förvaltning Järnväg/Förvaltningsdata Leveranser/_Säkerhetsbevisning/ Bandel, projekt","PW/FJ"]
[]
["OBS! Relevant data/dokumentation kopplat till miljö ska levereras enligt flik 15.5 Miljö"]

{"sheet":"9.2 Geodetiskt stomnät","index":32,"n_rows":18,"n_cols":14,"rows_kept":18,"cut":false,"hidden":false,"merged":[[8,0,8,13],[9,1,11,1],[3,3,3,8],[3,10,3,12],[5,0,5,2],[7,0,7,2],[6,0,6,13],[17,0,17,3],[12,0,12,2],[14,0,14,2],[9,10,11,10],[9,9,11,9],[15,0,15,2],[13,0,13,13]]}
["Geodetiskt stomnät"]
["Datum för utjämningsberäkning av stompunktsetablering:",{"$f":"IF(Projektuppgifter!G6=\"\",\"Fyll i datum\",Projektuppgifter!G6)","v":"Fyll i datum"},"Länk till flik Projektuppgifter"]
["Slutbesiktning: ",{"$f":"IF(Projektuppgifter!G10=\"\",\"Fyll i datum\",Projektuppgifter!G10)","v":"Fyll i datum"}]
[null,null,"Fylls i av:","Projekt",null,null,null,null,null,"Information till projektet","Mottagande förvaltning",null,null,"Alla"]
[null,"Filformat\nvisningsfil","Filformat i levererad zip-fil","Aktuellt att upprättas av projektet","Projektet garanterar att inga stompunkter raserats eller nyetablerats utöver det som ska/har redovisats i flik 9.2 Geodetiskt stomnät (Fältet ska signeras av Projektledare först i samband med slutleverans, datum + namn)","Filnamn","Levereras av:\n- E (Entreprenör)\n- K (Konsult)\n- B (Beställare)\n(datum + namn)","Godkänd av mätansvarig i projektet \n(datum + namn)","Levererat till förvaltande system och aviserat leveransen till mottagande förvaltning, enligt TDOK 2016:0411 (med kopia till Indatakoordinator)\n(datum + namn + ärendenr.)","Leveransyta till förvaltande system","Förvaltande system","Godkänd av geodesipersonal\n(datum + namn + ärendenr.)","Inläst av geodesipersonal \n(datum + namn + ärendenr.)","Eventuella kommentarer"]
["2 veckor efter utjämningsberäkning av stompunktsetablering",null,null,"Ja"]
[{"$f":"\"Leverans från leverantör (E/K) till överenskommen leveransyta, för mottagningskontroll senast: \"&IF(Projektuppgifter!C23=\"\",\"Fyll i datum\",TEXT(DATE(YEAR(Projektuppgifter!C23),MONTH(Projektuppgifter!C23),DAY(Projektuppgifter!C23)),\"ÅÅÅÅ-MM-DD\"))","v":"Leverans från leverantör (E/K) till överenskommen leveransyta, för mottagningskontroll senast: Fyll i datum"}]
[{"$f":"\"Leverans till mottagande förvaltning senast: \"&IF(B2=\"Fyll i datum\",\"Fyll i datum\",TEXT(DATE(YEAR(B2),MONTH(B2),DAY(B2)+14),\"ÅÅÅÅ-MM-DD\"))","v":"Leverans till mottagande förvaltning senast: Fyll i datum"},null,null,"Ja"]
["Teknisk dokumentation"]
["Delleverans 1","Samlingsfil (zip) Innehållande uppgifter enligt kolumn C rad 9"," -Stomnätsredovisning (pdf)\n -Nätskiss (pdf)\n -Beräkningshandlingar (pdf + orginalformat)\n -Ifylld TMALL 0496 Leverans till stompunktsregister järnväg (xlsx)",null,null,null,null,null,null,"ProjectWise/ Förvaltning Järnväg/Förvaltningsdata Leveranser/ _Geodetiskt stomnät/ Projektnamn ","PW/FJ"]
["Delleverans 2",null,"(se ovan under delleverans 1)"]
["Delleverans 3",null,"(se ovan under delleverans 1)"]
["3 månader efter slutbesiktning",null,null,"Ja"]
[{"$f":"\"Leverans från leverantör (E/K) till överenskommen leveransyta, för mottagningskontroll senast: \"&IF(Projektuppgifter!C167=\"\",\"Fyll i datum\",TEXT(DATE(YEAR(Projektuppgifter!C167),MONTH(Projektuppgifter!C167),DAY(Projektuppgifter!C167)),\"ÅÅÅÅ-MM-DD\"))","v":"Leverans från leverantör (E/K) till överenskommen leveransyta, för mottagningskontroll senast: Fyll i datum"}]
[{"$f":"\"Leverans till mottagande förvaltning senast: \"&IF(B3=\"Fyll i datum\",\"Fyll i datum\",TEXT(EDATE(B3,3),\"ÅÅÅÅ-MM-DD\"))","v":"Leverans till mottagande förvaltning senast: Fyll i datum"},null,null,"Ja"]
["Garanti* att inga stompunkter har raserats, rubbats, skadats eller nyetablerats utöver det som har redovisats enligt ovan. \nObservera:\n- Detta är ingen leverans av ett dokument, utan det är en kvittens som efterfrågas.\n- En kvittens ska ALLTID skrivas även om inga stompunkter raserats, rubbats, skadats eller nyetablerats.",null,null,"Ja"]
[]
["* Angående garantin\n\nGarantin är ett löfte om att \n• stompunkter som har raserats av projektet har ersatts av projektet\n• stompunkter som har rubbats ur sitt läge av projektet har ersatts av projektet\n• stompunkter som har blivit skadade av projektet har ersatts av projektet.\neller att inga stompunkter har raserats, rubbats, skadats eller nyetablerats."]

{"sheet":"9.3 Sidoanläggning","index":33,"n_rows":28,"n_cols":18,"rows_kept":28,"cut":false,"hidden":false,"merged":[[16,12,18,12],[16,13,18,13],[1,0,1,1],[2,0,2,1],[15,0,15,17],[12,0,12,4],[14,0,14,4],[5,0,5,4],[7,0,7,4],[8,0,8,17],[9,13,11,13],[9,12,11,12],[3,5,3,11],[3,13,3,16],[6,0,6,17],[13,0,13,17],[23,12,25,12],[19,0,19,4],[21,0,21,4],[23,0,25,0],[23,13,25,13],[22,0,22,17],[20,0,20,17]]}
["Sidoanläggning"]
["Inkoppling:",null,{"$f":"IF(Projektuppgifter!G9=\"\",\"Fyll i datum\",Projektuppgifter!G9)","v":"Fyll i datum"},null,"Länk till flik Projektuppgifter"]
["Slutbesiktning: ",null,{"$f":"IF(Projektuppgifter!G10=\"\",\"Fyll i datum\",Projektuppgifter!G10)","v":"Fyll i datum"}]
[null,null,null,null,"Fylls i av:","Projekt",null,null,null,null,null,null,"Information till projektet","Mottagande förvaltning",null,null,null,"Alla"]
[null,null,"Filformat\nvisningsfil","Filformat\nunderlagsfil","Uppbyggd av modellfil","Aktuellt att upprättas av projektet","Status på levererad data","Filnamn alt länk till levererad fil","Levereras av:\n- E (Entreprenör)\n- K (Konsult)\n- B (Beställare)\n(datum + namn)","Levererat till förvaltande system och aviserat leveransen till mottagande förvaltning, enligt TDOK 2016:0411 (med kopia till Indatakoordinator)\n(datum + namn + ärendenr.)","BIS: Eventuella ändringar av tidigare levererade data\n(Länk till leveransen)","BIS: Levererat till förvaltande system och aviserat ändringar (datum + namn + ärendenr.)","Leveransyta till förvaltande system","Förvaltande system","Mottaget\n(datum + namn + ärendenr.)","Godkänt \n(datum + namn + ärendenr.)","Godkänt ändring\n(datum + namn + ärendenr.)","Eventuella kommentarer"]
["6 månader före inkoppling",null,null,null,null,"Ja"]
[{"$f":"\"Leverans från leverantör (E/K) till överenskommen leveransyta, för mottagningskontroll senast: \"&IF(Projektuppgifter!C35=\"\",\"Fyll i datum\",TEXT(DATE(YEAR(Projektuppgifter!C35),MONTH(Projektuppgifter!C35),DAY(Projektuppgifter!C35)),\"ÅÅÅÅ-MM-DD\"))","v":"Leverans från leverantör (E/K) till överenskommen leveransyta, för mottagningskontroll senast: Fyll i datum"}]
[{"$f":"\"Leverans till mottagande förvaltning senast: \"&IF(C2=\"Fyll i datum\",\"Fyll i datum\",TEXT(EDATE(C2,-6),\"ÅÅÅÅ-MM-DD\"))","v":"Leverans till mottagande förvaltning senast: Fyll i datum"},null,null,null,null,"Ja"]
["Data för lagring i databas"]
["Nytt objekt:","TMALL 0561 Lastplats"," --","xlsx"," --",null,null,null,null,null,null,null,"Projektets lagringsyta","BIS"]
[null,"TMALL 0562 Plattform"," --","xlsx"," --"]
["Ändrat/slopat objekt:","Slopnings- och ändringslista av objekten ovan"," --","xlsx"," --"]
["1 vecka efter inkoppling",null,null,null,null,"Ja"]
[{"$f":"\"Leverans från leverantör (E/K) till överenskommen leveransyta, för mottagningskontroll senast: \"&IF(Projektuppgifter!C85=\"\",\"Fyll i datum\",TEXT(DATE(YEAR(Projektuppgifter!C85),MONTH(Projektuppgifter!C85),DAY(Projektuppgifter!C85)),\"ÅÅÅÅ-MM-DD\"))","v":"Leverans från leverantör (E/K) till överenskommen leveransyta, för mottagningskontroll senast: Fyll i datum"}]
[{"$f":"\"Leverans till mottagande förvaltning senast: \"&IF(C2=\"Fyll i datum\",\"Fyll i datum\",TEXT(DATE(YEAR(C2),MONTH(C2),DAY(C2)+7),\"ÅÅÅÅ-MM-DD\"))","v":"Leverans till mottagande förvaltning senast: Fyll i datum"},null,null,null,null,"Ja"]
["Data för lagring i databas"]
["Nytt objekt:","TMALL 1337 Gångbana"," --","xlsx"," --",null,null,null,null,null,null,null,"Projektets lagringsyta","BIS"]
["Nytt objekt:","TMALL 0654 Hägnad"," --","xlsx"," --"]
["Ändrat/slopat objekt:","Slopnings- och ändringslista av objektet ovan"," --","xlsx"," --"]
["3 månader efter slutbesiktning",null,null,null,null,"Ja"]
[{"$f":"\"Leverans från leverantör (E/K) till överenskommen leveransyta, för mottagningskontroll senast: \"&IF(Projektuppgifter!C155=\"\",\"Fyll i datum\",TEXT(DATE(YEAR(Projektuppgifter!C155),MONTH(Projektuppgifter!C155),DAY(Projektuppgifter!C155)),\"ÅÅÅÅ-MM-DD\"))","v":"Leverans från leverantör (E/K) till överenskommen leveransyta, för mottagningskontroll senast: Fyll i datum"}]
[{"$f":"\"Leverans till mottagande förvaltning senast: \"&IF(C3=\"Fyll i datum\",\"Fyll i datum\",TEXT(EDATE(C3,3),\"ÅÅÅÅ-MM-DD\"))","v":"Leverans till mottagande förvaltning senast: Fyll i datum"},null,null,null,null,"Ja"]
["Teknisk dokumentation"]
["Hägnad/skärm","Planritning","pdf","dgn"," MARK",null,null,null,null,null,null,null,"Ebbas leveransyta","Ebba/ Ban-underbyggnad/ Bullerskärm- Hägnad"]
[null,"Drift-/underhållsinstruktion","pdf","docx, dgn, dwg"," --"]
[null,"Kontrollprogram - miljö","pdf","docx"," --"]
[]
["OBS! Relevant data/dokumentation kopplat till miljö ska levereras enligt flik 15.5 Miljö"]

{"sheet":"10.1 Radio och telefoni","index":34,"n_rows":100,"n_cols":15,"rows_kept":100,"cut":false,"hidden":false,"merged":[[3,11,3,13],[8,0,8,14],[3,4,3,9],[26,0,26,14],[5,0,5,3],[7,0,7,3],[23,0,23,3],[25,0,25,3],[9,0,12,0],[13,0,22,0],[9,11,22,11],[9,10,22,10],[4,0,4,1],[33,0,50,0],[51,0,65,0],[6,0,6,14],[24,0,24,14],[30,0,30,14],[29,0,29,3],[31,0,31,3],[32,0,32,14],[27,11,28,11],[27,10,28,10],[33,10,81,10],[33,11,81,11],[66,0,81,0]]}
["Radio och telefoni"]
["Inkoppling:",{"$f":"IF(Projektuppgifter!G9=\"\",\"Fyll i datum\",Projektuppgifter!G9)","v":"Fyll i datum"},null,"Länk till flik Projektuppgifter"]
["Slutbesiktning:",{"$f":"IF(Projektuppgifter!G10=\"\",\"Fyll i datum\",Projektuppgifter!G10)","v":"Fyll i datum"}]
[null,null,null,"Fylls i av:","Projekt",null,null,null,null,null,"Information till projektet","Mottagande förvaltning",null,null,"Alla"]
["Samtliga teknikbyggander för telekominfrastruktur ska levereras enligt flik 7.2 Teknikbyggnad.",null,"Filformat\nvisningsfil","Filformat\nunderlagsfil","Aktuellt att upprättas av projektet","Status på levererad data","Filnamn alt länk till levererad fil","Levereras av:\n- E (Entreprenör)\n- K (Konsult)\n- B (Beställare)\n(datum + namn)","Levererat till förvaltande system och aviserat leveransen till mottagande förvaltning, enligt TDOK 2016:0411 (med kopia till Indatakoordinator)\n(datum + namn + ärendenr.)","Eventuella ändringar av tidigare levererade data\n(Länk till leveransen)","Leveransyta till förvaltande system","Förvaltande system","Mottaget\n(datum + namn + ärendenr.)","Godkänt \n(datum + namn + ärendenr.)","Eventuella kommentarer"]
["Vid färdig bygghandling, senast 6 månader före inkoppling",null,null,null,"Ja"]
[{"$f":"\"Leverans från leverantör (E/K) till överenskommen leveransyta, för mottagningskontroll senast: \"&IF(Projektuppgifter!C24=\"\",\"Fyll i datum\",TEXT(DATE(YEAR(Projektuppgifter!C24),MONTH(Projektuppgifter!C24),DAY(Projektuppgifter!C24)),\"ÅÅÅÅ-MM-DD\"))","v":"Leverans från leverantör (E/K) till överenskommen leveransyta, för mottagningskontroll senast: Fyll i datum"}]
[{"$f":"\"Leverans till mottagande förvaltning senast: \"&IF(B2=\"Fyll i datum\",\"Fyll i datum\",TEXT(EDATE(B2,-6),\"ÅÅÅÅ-MM-DD\"))","v":"Leverans till mottagande förvaltning senast: Fyll i datum"},null,null,null,"Ja"]
["Teknisk dokumentation"]
["Radio","Yttre elanläggning","pdf","xlsx, dgn, dwg",null,null,null,null,null,null,"Projektets lagringsyta","PW/ICT"]
[null,"Inre teleanläggning","pdf","dgn, dwg"]
[null,"Transmissionsutrustning","pdf","dgn, dwg"]
[null,"Radiosystemutrustning","pdf"," --"]
["Tunnelradio","Systembeskrivning","pdf","docx"]
[null,"Länkbudgetberäkning","pdf","xlsx"]
[null,"Övergripande blockschema","pdf","dgn, dwg"]
[null,"Schematisk kabelplan","pdf","dgn, dwg"]
[null,"Inkopplingsschema","pdf","dgn, dwg"]
[null,"Stativ-/skåpritning","pdf","dgn, dwg"]
[null,"Montagebeskrivning och typritning","pdf","dgn, dwg"]
[null,"Uppställningsplan","pdf","dgn, dwg"]
[null,"ODF disposition","pdf","dgn, dwg"]
[null,"Säkringsdisposition","pdf","dgn, dwg"]
["3 veckor efter inkoppling",null,null,null,"Ja"]
[{"$f":"\"Leverans från leverantör (E/K) till överenskommen leveransyta, för mottagningskontroll senast: \"&IF(Projektuppgifter!C100=\"\",\"Fyll i datum\",TEXT(DATE(YEAR(Projektuppgifter!C100),MONTH(Projektuppgifter!C100),DAY(Projektuppgifter!C100)),\"ÅÅÅÅ-MM-DD\"))","v":"Leverans från leverantör (E/K) till överenskommen leveransyta, för mottagningskontroll senast: Fyll i datum"}]
[{"$f":"\"Leverans till mottagande förvaltning senast: \"&IF(B2=\"Fyll i datum\",\"Fyll i datum\",TEXT(DATE(YEAR(B2),MONTH(B2),DAY(B2)+21),\"ÅÅÅÅ-MM-DD\"))","v":"Leverans till mottagande förvaltning senast: Fyll i datum"},null,null,null,"Ja"]
["Data för lagring i databas"]
["Nytt objekt:","TMALL 0643 Telefoni"," --","xlsx",null,null,null,null,null,null,"Projektets lagringsyta","BIS"]
["Ändrat/slopat objekt:","Slopnings- och ändringslista av objektet ovan"," --","xlsx"]
["3 månader efter slutbesiktning",null,null,null,"Ja"]
[{"$f":"\"Leverans från leverantör (E/K) till överenskommen leveransyta, för mottagningskontroll senast: \"&IF(Projektuppgifter!C147=\"\",\"Fyll i datum\",TEXT(DATE(YEAR(Projektuppgifter!C147),MONTH(Projektuppgifter!C147),DAY(Projektuppgifter!C147)),\"ÅÅÅÅ-MM-DD\"))","v":"Leverans från leverantör (E/K) till överenskommen leveransyta, för mottagningskontroll senast: Fyll i datum"}]
[{"$f":"\"Leverans till mottagande förvaltning senast: \"&IF(B3=\"Fyll i datum\",\"Fyll i datum\",TEXT(EDATE(B3,3),\"ÅÅÅÅ-MM-DD\"))","v":"Leverans till mottagande förvaltning senast: Fyll i datum"},null,null,null,"Ja"]
["Teknisk dokumentation"]
["Radio","Adressförteckning","pdf","docx, xlsx",null,null,null,null,null,null,"Projektets lagringsyta","PW/ICT"]
[null,"Bygglov","pdf","docx"]
[null,"Elservis","pdf"," --"]
[null,"Avtal","pdf","docx"]
[null,"Ändring och avvikelsehantering","pdf","docx"]
[null,"Site förutsättningar","pdf","docx"]
[null,"Geoteknik","pdf","docx"]
[null,"Befintlig anläggning","pdf","docx"]
[null,"Yttre elanläggning ","pdf","xlsx, dgn, dwg"]
[null,"Likriktare och batteribackup","pdf","dgn, dwg, docx"]
[null,"Larmanläggning","pdf","xlsx"]
[null,"Inre teleanläggning ","pdf","dgn, dwg"]
[null,"Antennanläggning","pdf","dgn, dwg"]
[null,"Transmissionsutrustning ","pdf","dgn, dwg"]
[null,"Radiosystemutrustning ","pdf"," --"]
[null,"Kontroll och provning","pdf"," --"]
[null,"Besiktning-/kvalitetskontroll","pdf"," --"]
[null,"Överlämnande","pdf"," --"]
["Tunnelradio","Principschema","pdf","dgn, dwg"]
[null,"Systembeskrivning","pdf","docx"]
[null,"Länkbudgetberäkning","pdf","xlsx"]
[null,"Övergripande blockschema","pdf","dgn, dwg"]
[null,"Schematisk kabelplan","pdf","dgn, dwg"]
[null,"Kabellista","pdf","xlsx"]
[null,"Apparatlista","pdf","xlsx"]
[null,"Datablad och specifikation","pdf"," --"]
[null,"PIM- och FDR-mätning","pdf","docx"]
[null,"Inkopplingsschema","pdf","dgn, dwg"]
[null,"Stativ- och skåpritning","pdf","dgn, dwg"]
[null,"Montagebeskrivning och typritning","pdf","dgn, dwg"]
[null,"Uppställningsplan","pdf","dgn, dwg"]
[null,"ODF disposition","pdf","dgn, dwg"]
[null,"Säkringsdisposition","pdf","dgn, dwg"]
["Master och torn","Anläggningsbeskrivning","pdf","docx"]
[null,"Allmän information om masten","pdf","xlsx"]
[null,"Bygglov (med slutbesked)","pdf","docx"]
[null,"Mastlov","pdf","docx"]
[null,"Avtal (TRV hos extern anläggningsägare)","pdf","docx"]
[null,"Materialförteckning","pdf","xlsx, dgn, dwg"]
[null,"Drift- och underhållsinstruktion","pdf","docx"]
[null,"Manual och tekniska data","pdf","xlsx"]
[null,"Foto","pdf"," --"]
[null,"Besiktningsutlåtande","pdf","docx, xlsx"]
[null,"Dokumentförteckning","pdf","docx"]
[null,"Situationsplan","pdf","dgn, dwg"]
[null,"Konstruktionsberäkningar","pdf","dgn, dwg"]
[null,"Konstruktionsritning","pdf","dgn, dwg"]
[null,"Ritning över grundläggning, fundament","pdf"," --"]
[null,"Utrustning för skydd mot olyckor","pdf","dgn, dwg, docx"]
[]
[]
[]
[]
[]
[]
[]
[]
[]
[]
[]
[]
[]
[]
[]
[]
[]
["OBS! Relevant data/dokumentation kopplat till miljö ska levereras enligt flik 15.5 Miljö"]

{"sheet":"10.2 Siter och kabelanl","index":35,"n_rows":107,"n_cols":17,"rows_kept":107,"cut":false,"hidden":false,"merged":[[66,1,69,1],[70,1,77,1],[7,0,7,16],[43,0,43,16],[54,0,54,16],[39,0,41,1],[10,12,41,12],[45,0,45,16],[46,13,52,13],[56,0,56,16],[46,12,52,12],[57,12,104,12],[42,0,42,5],[44,0,44,5],[10,13,41,13],[38,0,38,1],[4,13,4,14],[9,0,9,16],[4,6,4,11],[30,0,37,0],[30,1,32,1],[33,1,37,1],[6,0,6,5],[8,0,8,5],[16,1,19,1],[25,1,29,1],[20,1,24,1],[10,0,29,0],[5,0,5,2],[10,1,15,1],[100,0,104,1],[57,11,104,11],[57,13,104,13],[99,0,99,1],[50,1,52,1],[55,0,55,5],[53,0,53,5],[90,1,92,1],[90,0,98,0],[93,1,98,1],[46,0,52,0],[46,1,47,1],[48,1,49,1],[57,0,89,0],[57,1,65,1],[78,1,89,1]]}
["Siter och kabelanläggning"]
["Inkoppling",{"$f":"IF(Projektuppgifter!G9=\"\",\"Fyll i datum\",Projektuppgifter!G9)","v":"Fyll i datum"},"Länk till flik Projektuppgifter"]
["Slutbesiktning:",{"$f":"IF(Projektuppgifter!G10=\"\",\"Fyll i datum\",Projektuppgifter!G10)","v":"Fyll i datum"}]
[]
[null,null,null,null,null,"Fylls i av:","Projekt",null,null,null,null,null,"Information till projektet","Mottagande förvaltning",null,"Projekt","Alla"]
["Teknikbyggnad till BIS ska levereras enligt flik 6.5 Lågspänningssystem. Leverera inte dubbelt, men kom ihåg att data även ska levereras för skarvskåp i TMALL 0659 BIS Teknikbyggnad sweref99tm. Det finns 2st mallar för teknikbyggnad. Vid leverans av data gällande skarvskåp ska IKT:s siteförkortning anges i kolumn \"Beteckning\". \n\nSamtliga teknikbyggander för telekominfrastruktur ska levereras enligt flik 7.2 Teknikbyggnad.",null,null,"Filformat\nvisningsfil","Filformat\nunderlagsfil","Uppbyggd av modellfil","Aktuellt att upprättas av projektet","Status på levererad data","Filnamn","Levereras av:\n- E (Entreprenör)\n- K (Konsult)\n- B (Beställare)\n(datum + namn)","Levererat till förvaltande system och aviserat leveransen till mottagande förvaltning, enligt TDOK 2016:0411 (med kopia till Indatakoordinator)\n(datum + namn + ärendenr.)","Eventuella ändringar av tidigare levererade data\n(Länk till leveransen)","Leveransyta till förvaltande system","Förvaltande system","Godkänt \n(datum + namn + ärendenr.)","Papperskopior  är utlagda i anläggning (datum + namn)","Eventuella kommentarer"]
["Vid färdig bygghandling, senast 6 månader före inkoppling",null,null,null,null,null,"Ja"]
[{"$f":"\"Leverans från leverantör (E/K) till överenskommen leveransyta, för mottagningskontroll senast: \"&IF(Projektuppgifter!C25=\"\",\"Fyll i datum\",TEXT(DATE(YEAR(Projektuppgifter!C25),MONTH(Projektuppgifter!C25),DAY(Projektuppgifter!C25)),\"ÅÅÅÅ-MM-DD\"))","v":"Leverans från leverantör (E/K) till överenskommen leveransyta, för mottagningskontroll senast: Fyll i datum"}]
[{"$f":"\"Leverans till mottagande förvaltning senast: \"&IF(B2=\"Fyll i datum\",\"Fyll i datum\",TEXT(EDATE(B2,-6),\"ÅÅÅÅ-MM-DD\"))","v":"Leverans till mottagande förvaltning senast: Fyll i datum"},null,null,null,null,null,"Ja"]
["Teknisk dokumentation"]
["Kabelanläggning","Optokabelanläggning med optokabel","Telekabelplan","pdf","dgn","TELE",null,null,null,null,null,null,"Projektets lagringsyta","PW/ICT"]
[null,null,"Schematisk kabelplan","pdf","dgn, dwg"," --"]
[null,null,"Kabelstativ/Stativ","pdf","dgn, dwg"," --"]
[null,null,"Utskarvningsplan","pdf","dgn, dwg"," --"]
[null,null,"Uppställningsplan","pdf","dgn, dwg"," --"]
[null,null,"Kabellägesplan/Mätbok","pdf","dgn, dwg"," --"]
[null,"Optiska spridningsnät","Telekabelplan","pdf","dgn","TELE"]
[null,null,"Schematisk kabelplan","pdf","dgn, dwg"," --"]
[null,null,"Kabelstativ/Stativ","pdf","dgn, dwg"]
[null,null,"Utskarvningsplan","pdf","dgn, dwg"," --"]
[null,"Optokabelanläggning med multidukt och mikrokabel ","Telekabelplan","pdf","dgn","TELE"]
[null,null,"Schematisk kabelplan","pdf","dgn, dwg"," --"]
[null,null,"Kabelstativ/Stativ","pdf","dgn, dwg"," --"]
[null,null,"Utskarvningsplan","pdf","dgn, dwg"," --"]
[null,null,"Uppställningsplan","pdf","dgn, dwg"," --"]
[null,"Kopparkabelanläggning","Telekabelplan","pdf","dgn","TELE"]
[null,null,"Kabelstativ/Stativ","pdf","dgn, dwg"," --"]
[null,null,"Avgrenings-/inkopplingsritning (MOK)","pdf","dgn, dwg"," --"]
[null,null,"Skarv- och kabellägesplan (MOK)","pdf","dgn, dwg"," --"]
[null,null,"Ledningsplan","pdf","xlsx"," --"]
["Kraft - Tele","All kraft","Stativritning","pdf","dgn, dwg"," --"]
[null,null,"Uppställningsplan","pdf","dgn, dwg"," --"]
[null,null,"Abonnemangsuppgifter El"," --","docx, xlsx"," --"]
[null,"Likriktarsystem 48V","Dispositionsunderlag","pdf","dgn, dwg "," --"]
[null,null,"Systemritning ","pdf"," --"," --"]
[null,null,"Apparatlista ","pdf","docx, xlsx"," --"]
[null,null,"Kabellista ","pdf","xlsx"," --"]
[null,null,"Batterier","pdf","docx, xlsx"," --"]
["Nödfrånkopplingsslinga - Kopparkabel",null,"Nödfrånkopplingsslinga - Kopparkabel","pdf","dgn, dwg"," --"]
["Teletransmission",null,"Dispositionsritning ","pdf","dgn, dwg, xlsx"," --"]
[null,null,"Stativritning ","pdf","dgn, dwg"," --"]
[null,null,"Uppställningsplan ","pdf","dgn, dwg"," --"]
["10 veckor före inkoppling\nFör detta krav finns möjlighet att diskutera avvikelse med uppdragsledaren från IKT.",null,null,null,null,null,"Ja"]
[{"$f":"\"Leverans från leverantör (E/K) till överenskommen leveransyta, för mottagningskontroll senast: \"&IF(Projektuppgifter!C45=\"\",\"Fyll i datum\",TEXT(DATE(YEAR(Projektuppgifter!C45),MONTH(Projektuppgifter!C45),DAY(Projektuppgifter!C45)),\"ÅÅÅÅ-MM-DD\"))","v":"Leverans från leverantör (E/K) till överenskommen leveransyta, för mottagningskontroll senast: Fyll i datum"}]
[{"$f":"\"Leverans till mottagande förvaltning senast: \"&IF(B2=\"Fyll i datum\",\"Fyll i datum\",TEXT(DATE(YEAR(B2),MONTH(B2),DAY(B2)-70),\"ÅÅÅÅ-MM-DD\"))","v":"Leverans till mottagande förvaltning senast: Fyll i datum"},null,null,null,null,null,"Ja"]
[]
["Kabelanläggning","Optokabelanläggning med optokabel","Koordinatfil kabel","pdf","dgn och kml"," --",null,null,null,null,null,null,"Projektets lagringsyta","PW/ICT"]
[null,null,"Protokoll från optiska mätningar","pdf","sor eller motsvarande"," --"]
[null,"Optiska spridningsnät","Koordinatfil kabel","pdf","dgn och kml"," --"]
[null,null,"Protokoll från optiska mätningar","pdf"," --"," --"]
[null,"Optokabelanläggning med multidukt och mikrokabel ","Koordinatfil dukt och kabel","pdf","dgn och kml"," --"]
[null,null,"Koordinatförteckning skarvskåp, skarvbrunnar och multiduktskarvar","pdf","xlsx"," --"]
[null,null,"Protokoll från optiska mätningar","pdf"," --"," --"]
["3 månader efter slutbesiktning",null,null,null,null,null,"Ja"]
[{"$f":"\"Leverans från leverantör (E/K) till överenskommen leveransyta, för mottagningskontroll senast: \"&IF(Projektuppgifter!C149=\"\",\"Fyll i datum\",TEXT(DATE(YEAR(Projektuppgifter!C149),MONTH(Projektuppgifter!C149),DAY(Projektuppgifter!C149)),\"ÅÅÅÅ-MM-DD\"))","v":"Leverans från leverantör (E/K) till överenskommen leveransyta, för mottagningskontroll senast: Fyll i datum"}]
[{"$f":"\"Leverans till mottagande förvaltning senast: \"&IF(B3=\"Fyll i datum\",\"Fyll i datum\",TEXT(EDATE(B3,3),\"ÅÅÅÅ-MM-DD\"))","v":"Leverans till mottagande förvaltning senast: Fyll i datum"},null,null,null,null,null,"Ja"]
["Teknisk dokumentation"]
["Kabelanläggning","Optokabelanläggning med optokabel","Telekabelplan","pdf","dgn","TELE",null,null,null,null,null,null,"Projektets lagringsyta","PW/ ICT"]
[null,null,"Schematisk kabelplan","pdf","dgn, dwg"," --"]
[null,null,"Kabelstativ/Stativ","pdf","dgn, dwg"," --"]
[null,null,"Utskarvningsplan","pdf","dgn, dwg"," --"]
[null,null,"Uppställningsplan","pdf","dgn, dwg"," --"]
[null,null,"Kabellägesplan/Mätbok","pdf","dgn, dwg"," --"]
[null,null,"Avtal","pdf","docx"," --"]
[null,null,"Besiktningsprotokoll","pdf"," --"," --"]
[null,null,"Foto","jpg"," --"," --"]
[null,"Optiska spridningsnät","Telekabelplan","pdf","dgn","TELE"]
[null,null,"Schematisk kabelplan","pdf","dgn, dwg"," --"]
[null,null,"Kabelstativ/Stativ","pdf","dgn, dwg"]
[null,null,"Utskarvningsplan","pdf","dgn, dwg"]
[null,"Optokabelanläggning med multidukt och mikrokabel ","Telekabelplan","pdf","dgn","TELE"]
[null,null,"Schematisk kabelplan","pdf","dgn, dwg"," --"]
[null,null,"Kabelstativ/Stativ","pdf","dgn, dwg"," --"]
[null,null,"Utskarvningsplan","pdf","dgn, dwg"," --"]
[null,null,"Uppställningsplan","pdf","dgn, dwg"," --"]
[null,null,"Avtal","pdf","docx"," --"]
[null,null,"Besiktningsprotokoll","pdf"," --"," --"]
[null,null,"Foto","jpg"," --"," --"]
[null,"Kopparkabelanläggning","Telekabelplan","pdf","dgn","TELE"]
[null,null,"Schematisk kabelplan","pdf","dgn, dwg"," --"]
[null,null,"Kabelstativ/Stativ","pdf","dgn, dwg"," --"]
[null,null,"Avgrenings-/inkopplingsritning (MOK)","pdf","dgn, dwg"," --"]
[null,null,"Skarv- och kabellägesplan (MOK)","pdf","dgn, dwg"," --"]
[null,null,"Ledningsplan","pdf","xlsx"," --"]
[null,null,"Mätprotokoll för mellanortskabel","pdf"," --"," --"]
[null,null,"Tryckskydd","pdf"," --"," --"]
[null,null,"T-Jordning - Protokoll på jordtagsmätning","pdf","docx, xlsx"," --"]
[null,null,"Avtal","pdf","docx"," --"]
[null,null,"Besiktningsprotokoll","pdf"," --"," --"]
[null,null,"Foto","jpg"," --"," --"]
["Kraft - Tele","All kraft","Stativritning","pdf","dgn, dwg"," --"]
[null,null,"Uppställningsplan","pdf","dgn, dwg"," --"]
[null,null,"Abonnemangsuppgifter El"," --","docx, xlsx"," --"]
[null,"Likriktarsystem 48V","Dispositionsunderlag","pdf","dgn, dwg "," --"]
[null,null,"Systemritning ","pdf"," --"," --"]
[null,null,"Apparatlista ","pdf","docx, xlsx"," --"]
[null,null,"Foton","jpg"," --"," --"]
[null,null,"Kabellista ","pdf","xlsx"]
[null,null,"Batterier","pdf","docx, xlsx"," --"]
["Nödfrånkopplingsslinga - Kopparkabel",null,"Nödfrånkopplingsslinga - Kopparkabel","pdf","dgn, dwg"," --"]
["Teletransmission",null,"Besiktningsprotokoll","pdf","docx"," --"]
[null,null,"Dispositionsritning ","pdf","dgn, dwg, xlsx"," --"]
[null,null,"Stativritning ","pdf","dgn, dwg"," --"]
[null,null,"Uppställningsplan ","pdf","dgn, dwg"," --"]
[null,null,"Radiolänk ODU","pdf","dgn, dwg"," --"]
[]
["OBS! Relevant data/dokumentation kopplat till miljö ska levereras enligt flik 15.5 Miljö"]

{"sheet":"11.1 Trafikinformationsanl","index":36,"n_rows":41,"n_cols":14,"rows_kept":41,"cut":false,"hidden":false,"merged":[[11,0,11,1],[32,11,38,11],[31,0,31,13],[18,11,27,11],[18,0,26,0],[32,0,32,1],[36,0,36,1],[37,0,37,1],[28,0,28,3],[30,0,30,3],[38,0,38,1],[18,10,27,10],[32,10,38,10],[34,0,34,1],[29,0,29,13],[33,0,33,1],[35,0,35,1],[4,5,4,9],[17,0,17,13],[4,11,4,12],[14,0,14,3],[16,0,16,3],[8,0,8,6],[9,0,9,13],[10,0,10,1],[10,10,13,10],[10,11,13,11],[12,0,12,1],[13,0,13,1],[6,0,6,13],[7,0,7,13],[15,0,15,13]]}
["Trafikinformationsanläggning"]
["Inkoppling:",{"$f":"IF(Projektuppgifter!G9=\"\",\"Fyll i datum\",Projektuppgifter!G9)","v":"Fyll i datum"},null,"Länk till flik Projektuppgifter"]
["Slutbesiktning: ",{"$f":"IF(Projektuppgifter!G10=\"\",\"Fyll i datum\",Projektuppgifter!G10)","v":"Fyll i datum"}]
[]
[null,null,null,null,"Fylls i av:","Projekt",null,null,null,null,"Information till projektet","Mottagande förvaltning",null,"Alla"]
["Det är av yttersta vikt att projekten leverera ",null,"Filformat\nvisningsfil","Filformat\nunderlagsfil","Uppbyggd av modellfil","Aktuellt att upprättas av projektet","Status på levererad data","Filnamn alt länk till levererad fil","Levereras av:\n- E (Entreprenör)\n- K (Konsult)\n- B (Beställare)\n(datum + namn)","Levererat till förvaltande system och aviserat leveransen till mottagande förvaltning, enligt TDOK 2016:0411 (med kopia till Indatakoordinator)\n(datum + namn + ärendenr.)","Leveransyta till förvaltande system","Förvaltande system","Godkänt \n(datum + namn + ärendenr.)","Eventuella kommentarer"]
["Vid färdig bygghandling, senast 6 månader före inkoppling \nJust nu är tidskravet missvisande, det kommer att ses över till kommande revideringar. \nTrafikinformation behöver få information om anläggningen INNAN BYGGSTART. Detta för att hinna kontrollera om anläggningen är projekterad på rätt sätt INNAN byggstart. (Tyvärr händer det att man projekterat på fel sätt och det har lett till fördyringar i projektet.)"]
[{"$f":"\"Leverans från leverantör (E/K) till överenskommen leveransyta, för mottagningskontroll senast: \"&IF(Projektuppgifter!C29=\"\",\"Fyll i datum\",TEXT(DATE(YEAR(Projektuppgifter!C29),MONTH(Projektuppgifter!C29),DAY(Projektuppgifter!C29)),\"ÅÅÅÅ-MM-DD\"))","v":"Leverans från leverantör (E/K) till överenskommen leveransyta, för mottagningskontroll senast: Fyll i datum"}]
[{"$f":"\"Leverans till mottagande förvaltning senast: \"&IF(B2=\"Fyll i datum\",\"Fyll i datum\",TEXT(EDATE(B2,-6),\"ÅÅÅÅ-MM-DD\"))","v":"Leverans till mottagande förvaltning senast: Fyll i datum"}]
["Teknisk dokumentation"]
["Situationsplan för dynamisk trafikinformationsutrustning ",null,"pdf","dgn"," --",null,null,null,null,null,"ProjectWise/Förvaltning Järnväg/Förvaltningsdata Leveranser/ _Resenärsinformation (BH)/ Bandel, projektnamn","PW/FJ"]
["Situationsplan för ljudanläggning",null,"pdf","dgn"," --"]
["Situationsplan för statiska skyltar",null,"pdf","dgn"," --"]
["Kabellista trafikinformationsutrustning",null,"pdf","xlsx"," --"]
["3 veckor efter inkoppling",null,null,null,null,"Ja"]
[{"$f":"\"Leverans från leverantör (E/K) till överenskommen leveransyta, för mottagningskontroll senast: \"&IF(Projektuppgifter!C102=\"\",\"Fyll i datum\",TEXT(DATE(YEAR(Projektuppgifter!C102),MONTH(Projektuppgifter!C102),DAY(Projektuppgifter!C102)),\"ÅÅÅÅ-MM-DD\"))","v":"Leverans från leverantör (E/K) till överenskommen leveransyta, för mottagningskontroll senast: Fyll i datum"}]
[{"$f":"\"Leverans till mottagande förvaltning senast: \"&IF(B2=\"Fyll i datum\",\"Fyll i datum\",TEXT(DATE(YEAR(B2),MONTH(B2),DAY(B2)+21),\"ÅÅÅÅ-MM-DD\"))","v":"Leverans till mottagande förvaltning senast: Fyll i datum"},null,null,null,null,"Ja"]
["Data för lagring i databas"]
["Nytt objekt:","TMALL 0649 Dynamisk skylt"," --","xlsx"," --",null,null,null,null,null,"Projektets lagringsyta","BIS"]
[null,"TMALL 0650 Statisk skylt"," --","xlsx"," --"]
[null,"TMALL 0645 Huvudur"," --","xlsx"," --"]
[null,"TMALL 0651 Högtalare"," --","xlsx"," --"]
[null,"TMALL 0851 Utropsdator"," --","xlsx"," --"]
[null,"TMALL 0852 Ljudanläggning"," --","xlsx"," --"]
[null,"TMALL 0652 Prator"," --","xlsx"," --"]
[null,"TMALL 0647 Stationsdator SL"," --","xlsx"," --"]
[null,"TMALL 0648 Ur"," --","xlsx"," --"]
["Ändrat/slopat objekt:","Slopnings- och ändringslista av objekten ovan"," --","xlsx"," --"]
["3 månader efter slutbesiktning",null,null,null,null,"Ja"]
[{"$f":"\"Leverans från leverantör (E/K) till överenskommen leveransyta, för mottagningskontroll senast: \"&IF(Projektuppgifter!C157=\"\",\"Fyll i datum\",TEXT(DATE(YEAR(Projektuppgifter!C157),MONTH(Projektuppgifter!C157),DAY(Projektuppgifter!C157)),\"ÅÅÅÅ-MM-DD\"))","v":"Leverans från leverantör (E/K) till överenskommen leveransyta, för mottagningskontroll senast: Fyll i datum"}]
[{"$f":"\"Leverans till mottagande förvaltning senast: \"&IF(B3=\"Fyll i datum\",\"Fyll i datum\",TEXT(EDATE(B3,3),\"ÅÅÅÅ-MM-DD\"))","v":"Leverans till mottagande förvaltning senast: Fyll i datum"},null,null,null,null,"Ja"]
["Teknisk dokumentation"]
["Situationsplan för dynamisk trafikinformationsutrustning ",null,"pdf","dgn","TELE_TI",null,null,null,null,null,"Ebbas leveransyta","Ebba/ Tele/ Trafikant-informations-utrustning"]
["Situationsplan för ljudanläggning",null,"pdf","dgn","TELE_TI"]
["Kopplingsschema för högtalare och mikrofoner ",null,"pdf","dgn"," --"]
["Kopplingsschema för stativ (Ljudanläggning)",null,"pdf","dgn"," --"]
["Situationsplan för statiska skyltar",null,"pdf","dgn","TELE_TI"]
["Kabellista trafikinformationsutrustning",null,"pdf","xlsx"," --"]
["Foto på stativ (trafikinformationsutrustning)",null,"jpg"," --"," --"]
[]
["OBS! Relevant data/dokumentation kopplat till miljö ska levereras enligt flik 15.5 Miljö"]

{"sheet":"12.1 Övrig BIS-leverans","index":37,"n_rows":25,"n_cols":17,"rows_kept":25,"cut":false,"hidden":false,"merged":[[24,0,24,4],[11,0,11,1],[6,0,6,3],[8,0,8,3],[15,0,22,0],[14,0,14,1],[10,0,10,1],[13,0,13,1],[12,0,12,1],[9,0,9,1],[7,0,7,16],[3,16,4,16],[15,11,22,11],[10,11,14,11],[3,10,4,10],[3,4,4,9],[4,12,4,14],[3,11,3,15],[15,15,22,15],[15,13,22,13],[10,10,22,10],[15,14,22,14]]}
["Övrig BIS-leverans"]
["Inkoppling:",{"$f":"IF(Projektuppgifter!G9=\"\",\"Fyll i datum\",Projektuppgifter!G9)","v":"Fyll i datum"},null,"Länk till flik Projektuppgifter"]
[]
[null,null,null,null,"Projekt",null,null,null,null,null,"Information till projektet","Mottagande förvaltning",null,null,null,null,"Alla"]
[null,null,null,"Fylls i av:",null,null,null,null,null,null,null,null,"BIS",null,null,"GAD"]
[null,null,"Filformat\nvisningsfil","Filformat\nunderlagsfil","Aktuellt att upprättas av projektet","Länk till levererad fil","Levereras av:\n- E (Entreprenör)\n- K (Konsult)\n- B (Beställare)\n(datum + namn)","Levererat till förvaltande system och aviserat leveransen till mottagande förvaltning, enligt TDOK 2016:0411, kap BIS (med kopia till Indatakoordinator)\n(datum + namn + ärendenr.)","Eventuella ändringar av tidigare levererade data eller dokumentation\n(Länk till leveransen)","BIS: Levererat till förvaltande system och aviserat ändringar (datum + namn + ärendenr.)","Leveransyta till förvaltande system","Förvaltande system","Mottaget\n(datum + namn + ärendenr.)","Inläst i BIS\n(datum + namn + ärendenr.)","Godkänt ändring\n(datum + namn + ärendenr.)","Inläst i GAD\n(datum + namn + ärendenr.)","Eventuella kommentarer"]
["6 månader före inkoppling",null,null,null,"Ja"]
[{"$f":"\"Leverans från leverantör (E/K) till överenskommen leveransyta, för mottagningskontroll senast: \"&IF(Projektuppgifter!C34=\"\",\"Fyll i datum\",TEXT(DATE(YEAR(Projektuppgifter!C34),MONTH(Projektuppgifter!C34),DAY(Projektuppgifter!C34)),\"ÅÅÅÅ-MM-DD\"))","v":"Leverans från leverantör (E/K) till överenskommen leveransyta, för mottagningskontroll senast: Fyll i datum"}]
[{"$f":"\"Leverans till mottagande förvaltning senast: \"&IF(B2=\"Fyll i datum\",\"Fyll i datum\",TEXT(EDATE(B2,-6),\"ÅÅÅÅ-MM-DD\"))","v":"Leverans till mottagande förvaltning senast: Fyll i datum"},null,null,null,"Ja"]
["Etappbeskrivning redovisas på flik Etappbeskrivning"]
["Spårgeometrier i plan och profil (inkl. rälsförhöjning och KM-konnektioner)  \nOBS! Om endast rälsförhöjningsändring levereras, levereras endast pdf",null,"pdf","LandXML",null,null,null,null,null,null,null,"BIS och GAD "]
["TMALL 0662 BIS - Hållplats, hållställe, övrig plats",null," --","xlsx"]
["TMALL 1054 Checklista - Kontroll av spårgeometrileverans",null," --","docx"]
["Koordinatförteckning KM-tavlor",null,"pdf","LandXML"]
["Koordinatförteckning spårväxlar, spårslut, vändskiva ",null,"pdf","LandXML"]
["Tillgång till systemhandling eller bygghandling ","Spårplan bana*","pdf"," --",null,null,null,null,null,null,null,"Dokumenten används som underlag för registrering av spårnät i BIS."]
[null,"Planritning signal*","pdf"," --"]
[null,"Isolritning*","pdf"," --"]
[null,"Instruktionsritning*","pdf"," --"]
[null,"Linjeritning*","pdf"," --"]
[null,"Kanalisationsritning*","pdf"," --"]
[null,"Elplan*","pdf"," --"]
[null,"Kopplingsschema*","pdf"," --"]
[]
["* Dessa enskilda dokument ska levereras tillsammans med övriga uppgifter till BIS, dvs det ska inte levereras som en länk till hela bygghandlingen. Detta eftersom det då blir svårt att hitta de efterfrågade dokumenten.\nOBS! Detta är ingen leverans för lagring av förvaltningsdata. Detta ska ske i Ebba, se respektive teknikområde."]

{"sheet":"13.1 Trafikstyrningssystem","index":38,"n_rows":10,"n_cols":8,"rows_kept":10,"cut":false,"hidden":false,"merged":[[3,3,3,5],[3,6,3,7],[8,0,8,7],[5,0,5,2],[7,0,7,2],[6,0,6,7]]}
["Trafikstyrningssystem"]
["Inläsning:",{"$f":"IF(Projektuppgifter!G8=\"\",\"Fyll i datum\",Projektuppgifter!G8)","v":"Fyll i datum"},null,"Länk till flik Projektuppgifter"]
[]
[null,null,"Fylls i av:","Projekt",null,null,"Mottagande förvaltning"]
[null,"Filformat\nvisningsfil","Filformat\nunderlagsfil","Aktuellt att upprättas av projektet","Levereras av:\n- E (Entreprenör)\n- K (Konsult)\n- B (Beställare)\n(datum + namn)","Registrerat i inläsningsportalen\n(datum + namn)","Förvaltande system","Information: \nIngen kvittens sker i leveransplanen då inläsningssamordnare och IBTL-TC sköter detta i egen intern process."]
["4 månader före inläsning",null,null,"Ja"]
[{"$f":"\"Leverans från leverantör (E/K) till överenskommen leveransyta, för mottagningskontroll senast: \"&IF(Projektuppgifter!C41=\"\",\"Fyll i datum\",TEXT(DATE(YEAR(Projektuppgifter!C41),MONTH(Projektuppgifter!C41),DAY(Projektuppgifter!C41)),\"ÅÅÅÅ-MM-DD\"))","v":"Leverans från leverantör (E/K) till överenskommen leveransyta, för mottagningskontroll senast: Fyll i datum"}]
[{"$f":"\"Leverans till mottagande förvaltning senast: \"&IF(B2=\"Fyll i datum\",\"Fyll i datum\",TEXT(EDATE(B2,-4),\"ÅÅÅÅ-MM-DD\"))","v":"Leverans till mottagande förvaltning senast: Fyll i datum"},null,null,"Ja"]
["Data för lagring i databas"]
["Leverans av underlag till inläsningar i TC för anläggningsdataändringar i Tågledningssystemet","pdf","dgn, dwg",null,null,null,"Tågledningssystemet"]

{"sheet":"14.1 Fordonsöverv. detektor","index":39,"n_rows":33,"n_cols":18,"rows_kept":33,"cut":false,"hidden":false,"merged":[[17,0,17,17],[10,0,12,0],[10,12,13,12],[14,0,14,3],[16,0,16,3],[10,11,13,11],[15,0,15,17],[9,0,9,17],[6,0,6,3],[8,0,8,3],[4,4,4,10],[4,12,4,15],[7,0,7,17],[24,12,30,12],[18,0,19,0],[18,12,19,12],[23,0,23,17],[24,0,30,0],[20,0,20,3],[22,0,22,3],[18,11,19,11],[24,11,30,11],[21,0,21,17]]}
["Fordonsövervakande detektorer"]
["Inkoppling:",{"$f":"IF(Projektuppgifter!G9=\"\",\"Fyll i datum\",Projektuppgifter!G9)","v":"Fyll i datum"},null,"Länk till flik Projektuppgifter"]
["Slutbesiktning: ",{"$f":"IF(Projektuppgifter!G10=\"\",\"Fyll i datum\",Projektuppgifter!G10)","v":"Fyll i datum"}]
[]
[null,null,null,"Fylls i av:","Projekt",null,null,null,null,null,null,"Information till projektet","Mottagande förvaltning",null,null,null,"Projekt","Alla"]
[null,null,"Filformat\nvisningsfil","Filformat\nunderlagsfil","Aktuellt att upprättas av projektet","Status på levererad data","Filnamn alt länk till levererad fil","Levereras av:\n- E (Entreprenör)\n- K (Konsult)\n- B (Beställare)\n(datum + namn)","Levererat till förvaltande system och aviserat leveransen till mottagande förvaltning, enligt TDOK 2016:0411 (med kopia till Indatakoordinator)\n(datum + namn + ärendenr.)","BIS: Eventuella ändringar av tidigare levererade data eller dokumentation\n(Länk till leveransen)","BIS: Levererat till förvaltande system och aviserat ändringar (datum + namn + ärendenr.)","Leveransyta till förvaltande system","Förvaltande system","Mottaget\n(datum + namn + ärendenr.)","Godkänt \n(datum + namn + ärendenr.)","Godkänt ändring\n(datum + namn + ärendenr.)","Papperskopior är utlagda i anläggning (datum + namn)","Eventuella kommentarer"]
["6 månader före inkoppling",null,null,null,"Ja"]
[{"$f":"\"Leverans från leverantör (E/K) till överenskommen leveransyta, för mottagningskontroll senast: \"&IF(Projektuppgifter!C39=\"\",\"Fyll i datum\",TEXT(DATE(YEAR(Projektuppgifter!C39),MONTH(Projektuppgifter!C39),DAY(Projektuppgifter!C39)),\"ÅÅÅÅ-MM-DD\"))","v":"Leverans från leverantör (E/K) till överenskommen leveransyta, för mottagningskontroll senast: Fyll i datum"}]
[{"$f":"\"Leverans till mottagande förvaltning senast: \"&IF(B2=\"Fyll i datum\",\"Fyll i datum\",TEXT(EDATE(B2,-6),\"ÅÅÅÅ-MM-DD\"))","v":"Leverans till mottagande förvaltning senast: Fyll i datum"},null,null,null,"Ja"]
["Data för lagring i databas"]
["Nytt objekt:","TMALL 0644 Detektor"," --","xlsx",null,null,null,null,null,null,null,"Projektets lagringsyta","BIS"]
[null,"TMALL 0810 Ras- och skredvarningssystem"," --","xlsx"]
[null,"TMALL 0642 Urspårningsslinga"," --","xlsx"]
["Ändrat/slopat objekt:","Slopnings- och ändringslista av objekten ovan"," --","xlsx"]
["Dagen för inkoppling",null,null,null,"Ja"]
[{"$f":"\"Leverans från leverantör (E/K) till överenskommen leveransyta, för mottagningskontroll senast: \"&IF(Projektuppgifter!C75=\"\",\"Fyll i datum\",TEXT(DATE(YEAR(Projektuppgifter!C75),MONTH(Projektuppgifter!C75),DAY(Projektuppgifter!C75)),\"ÅÅÅÅ-MM-DD\"))","v":"Leverans från leverantör (E/K) till överenskommen leveransyta, för mottagningskontroll senast: Fyll i datum"}]
[{"$f":"\"Leverans till mottagande förvaltning senast: \"&IF(B2=\"Fyll i datum\",\"Fyll i datum\",TEXT(DATE(YEAR(B2),MONTH(B2),DAY(B2)),\"ÅÅÅÅ-MM-DD\"))","v":"Leverans till mottagande förvaltning senast: Fyll i datum"},null,null,null,"Ja"]
["Teknisk dokumentation"]
["RFID-detektor","Installationsprotokoll","pdf"," --",null,null,null,null,null,null,null,"Ebbas leveransyta","Ebba/ Tele/ RFID-detektor"]
[null,"Foto","pdf, jpg"," --"]
["3 månader efter slutbesiktning",null,null,null,"Ja"]
[{"$f":"\"Leverans från leverantör (E/K) till överenskommen leveransyta, för mottagningskontroll senast: \"&IF(Projektuppgifter!C158=\"\",\"Fyll i datum\",TEXT(DATE(YEAR(Projektuppgifter!C158),MONTH(Projektuppgifter!C158),DAY(Projektuppgifter!C158)),\"ÅÅÅÅ-MM-DD\"))","v":"Leverans från leverantör (E/K) till överenskommen leveransyta, för mottagningskontroll senast: Fyll i datum"}]
[{"$f":"\"Leverans till mottagande förvaltning senast: \"&IF(B3=\"Fyll i datum\",\"Fyll i datum\",TEXT(EDATE(B3,3),\"ÅÅÅÅ-MM-DD\"))","v":"Leverans till mottagande förvaltning senast: Fyll i datum"},null,null,null,"Ja"]
["Teknisk dokumentation"]
["Varmgångs-/tjuvbromsdetektor, Hjulskadedetektor, Strömavtagardetektor eller Upplyftsdetektor","Foto","pdf"," --",null,null,null,null,null,null,null,"Ebbas leveransyta","Ebba/ Tele/ Detektor"]
[null,"Karta","pdf"," --"]
[null,"Besiktningsprotokoll","pdf"," --"]
[null,"Förvaltningsdokument","pdf"," --"]
[null,"Konstruktionsritning","pdf","dgn, dwg"]
[null,"Situationsplan","pdf","dgn"]
[null,"Detektorkiosk - Disposition","pdf","dgn, dwg"]
[]
["OBS! Relevant data/dokumentation kopplat till miljö ska levereras enligt flik 15.5 Miljö"]

{"sheet":"14.2 Kamerabevakning","index":40,"n_rows":12,"n_cols":12,"rows_kept":12,"cut":false,"hidden":false,"merged":[[9,8,11,8],[9,9,11,9],[3,3,3,7],[3,9,3,10],[5,0,5,2],[6,0,6,11],[8,0,8,11]]}
["Kamerabevakning"]
["Slutbesiktning: ",{"$f":"IF(Projektuppgifter!G10=\"\",\"Fyll i datum\",Projektuppgifter!G10)","v":"Fyll i datum"},null,"Länk till flik Projektuppgifter"]
[]
[null,null,"Fylls i av:","Projekt",null,null,null,null,"Information till projektet","Mottagande förvaltning",null,"Alla"]
[null,"Filformat\nvisningsfil","Filformat\nunderlagsfil","Aktuellt att upprättas av projektet","Status på levererad data","Filnamn","Levereras av:\n- E (Entreprenör)\n- K (Konsult)\n- B (Beställare)\n(datum + namn)","Levererat till förvaltande system och aviserat leveransen till mottagande förvaltning, enligt TDOK 2016:0411 (med kopia till Indatakoordinator)\n(datum + namn + ärendenr.)","Leveransyta till förvaltande system","Förvaltande system","Godkänt \n(datum + namn + ärendenr.)","Eventuella kommentarer"]
["3 månader efter slutbesiktning",null,null,"Ja"]
[{"$f":"\"Leverans från leverantör (E/K) till överenskommen leveransyta, för mottagningskontroll senast: \"&IF(Projektuppgifter!C160=\"\",\"Fyll i datum\",TEXT(DATE(YEAR(Projektuppgifter!C160),MONTH(Projektuppgifter!C160),DAY(Projektuppgifter!C160)),\"ÅÅÅÅ-MM-DD\"))","v":"Leverans från leverantör (E/K) till överenskommen leveransyta, för mottagningskontroll senast: Fyll i datum"}]
[{"$f":"\"Leverans till mottagande förvaltning senast: \"&IF(B2=\"Fyll i datum\",\"Fyll i datum\",TEXT(EDATE(B2,3),\"ÅÅÅÅ-MM-DD\"))","v":"Leverans till mottagande förvaltning senast: Fyll i datum"},null,null,"Ja"]
["Teknisk dokumentation"]
["Situationsplan för kamera","pdf","dgn, dwg",null,null,null,null,null,"Ebbas leveransyta","Ebba/ Tele/Kamerabevakning"]
["Transmissionsskåp","pdf","dgn, dwg"]
["Kabellista","pdf","xlsx"]

{"sheet":"15.1 Admin. o funkt. företeelse","index":41,"n_rows":26,"n_cols":16,"rows_kept":26,"cut":false,"hidden":false,"merged":[[18,11,19,11],[19,2,19,3],[23,0,23,15],[24,11,25,11],[20,0,20,3],[22,0,22,3],[19,0,19,1],[18,0,18,1],[24,10,25,10],[21,0,21,15],[8,0,8,15],[5,0,5,3],[7,0,7,3],[3,4,3,9],[3,11,3,14],[6,0,6,15],[16,0,16,3],[9,11,13,11],[14,0,14,3],[17,0,17,15],[9,10,13,10],[9,0,12,0],[15,0,15,15]]}
["Administrativ och funktionell företeelse"]
["Inkoppling:",{"$f":"IF(Projektuppgifter!G9=\"\",\"Fyll i datum\",Projektuppgifter!G9)","v":"Fyll i datum"},null,"Länk till flik Projektuppgifter"]
[]
[null,null,null,"Fylls i av:","Projekt",null,null,null,null,null,"Information till projektet","Mottagande förvaltning",null,null,null,"Alla"]
[null,null,"Filformat\nvisningsfil","Filformat\nunderlagsfil","Aktuellt att upprättas av projektet","Länk till levererad fil","Levereras av:\n- E (Entreprenör)\n- K (Konsult)\n- B (Beställare)\n(datum + namn)","Levererat till förvaltande system och aviserat leveransen till mottagande förvaltning, enligt TDOK 2016:0411 (med kopia till Indatakoordinator)\n(datum + namn + ärendenr.)","BIS: Eventuella ändringar av tidigare levererade data\n(Länk till leveransen)","BIS: Levererat till förvaltande system och aviserat ändringar (datum + namn + ärendenr.)","Leveransyta till förvaltande system","Förvaltande system","Mottaget\n(datum + namn + ärendenr.)","Godkänt \n(datum + namn + ärendenr.)","Godkänt ändring\n(datum + namn + ärendenr.)","Eventuella kommentarer"]
["6 månader före inkoppling",null,null,null,"Ja"]
[{"$f":"\"Leverans från leverantör (E/K) till överenskommen leveransyta, för mottagningskontroll senast: \"&IF(Projektuppgifter!C36=\"\",\"Fyll i datum\",TEXT(DATE(YEAR(Projektuppgifter!C36),MONTH(Projektuppgifter!C36),DAY(Projektuppgifter!C36)),\"ÅÅÅÅ-MM-DD\"))","v":"Leverans från leverantör (E/K) till överenskommen leveransyta, för mottagningskontroll senast: Fyll i datum"}]
[{"$f":"\"Leverans till mottagande förvaltning senast: \"&IF(B2=\"Fyll i datum\",\"Fyll i datum\",TEXT(EDATE(B2,-6),\"ÅÅÅÅ-MM-DD\"))","v":"Leverans till mottagande förvaltning senast: Fyll i datum"},null,null,null,"Ja"]
["Data för lagring i databas"]
["Nytt objekt:","TMALL 0812 STH A_B_S-tåg (ERTMS)"," --","xlsx",null,null,null,null,null,null,"Projektets lagringsyta","BIS"]
[null,"TMALL 0876 Ktl U/L-område"," --","xlsx"]
[null,"TMALL 1295 ERTMS Hastighetsprofil Normalhuvudspår"," --","xlsx"]
[null,"TMALL 1296 ERTMS Hastighetsprofil Övriga spår"," --","xlsx"]
["Ändrat/slopat objekt:","Slopnings- och ändringslista av objekten ovan"," --","xlsx"]
["1 vecka efter inkoppling",null,null,null,"Ja"]
[{"$f":"\"Leverans från leverantör (E/K) till överenskommen leveransyta, för mottagningskontroll senast: \"&IF(Projektuppgifter!C86=\"\",\"Fyll i datum\",TEXT(DATE(YEAR(Projektuppgifter!C86),MONTH(Projektuppgifter!C86),DAY(Projektuppgifter!C86)),\"ÅÅÅÅ-MM-DD\"))","v":"Leverans från leverantör (E/K) till överenskommen leveransyta, för mottagningskontroll senast: Fyll i datum"}]
[{"$f":"\"Leverans till mottagande förvaltning senast: \"&IF(B2=\"Fyll i datum\",\"Fyll i datum\",TEXT(DATE(YEAR(B2),MONTH(B2),DAY(B2)+7),\"ÅÅÅÅ-MM-DD\"))","v":"Leverans till mottagande förvaltning senast: Fyll i datum"},null,null,null,"Ja"]
["Data för lagring i databas"]
["FOMUL (Enstaka objekt): TMALL 0341 ",null," --","xlsx",null,null,null,null,null,null,"Projektets lagringsyta","BIS"]
["FOMUL inklusive LÖ-spåravstånd (Vid förändring av spårets läge eller ändring av flera objekt)",null,"Mätoperatören sköter både registrering och slopning i BIS",null,null,null,"Anvisad mätoperatör",null,null,null,"Mätoperatören sköter både registrering och slopning i BIS. Projektet får själv ha kontroll på att detta utförs av mätoperatören.",null,"Ingen kvittens","Ingen kvittens"]
["3 veckor efter inkoppling",null,null,null,"Ja"]
[{"$f":"\"Leverans från leverantör (E/K) till överenskommen leveransyta, för mottagningskontroll senast: \"&IF(Projektuppgifter!C103=\"\",\"Fyll i datum\",TEXT(DATE(YEAR(Projektuppgifter!C103),MONTH(Projektuppgifter!C103),DAY(Projektuppgifter!C103)),\"ÅÅÅÅ-MM-DD\"))","v":"Leverans från leverantör (E/K) till överenskommen leveransyta, för mottagningskontroll senast: Fyll i datum"}]
[{"$f":"\"Leverans till mottagande förvaltning senast: \"&IF(B2=\"Fyll i datum\",\"Fyll i datum\",TEXT(DATE(YEAR(B2),MONTH(B2),DAY(B2)+21),\"ÅÅÅÅ-MM-DD\"))","v":"Leverans till mottagande förvaltning senast: Fyll i datum"},null,null,null,"Ja"]
["Data för lagring i databas"]
["Nytt objekt:","TMALL 0813 Uppställningsspår"," --","xlsx",null,null,null,null,null,null,"Projektets lagringsyta","BIS"]
["Ändrat/slopat objekt:","Slopnings- och ändringslista av objektet ovan"," --","xlsx"]

{"sheet":"15.2 Baskarta","index":42,"n_rows":12,"n_cols":13,"rows_kept":12,"cut":false,"hidden":false,"merged":[[3,4,3,8],[3,10,3,11],[8,0,8,12],[5,0,5,3],[7,0,7,3],[6,0,6,12]]}
["Baskarta"]
["Slutbesiktning: ",{"$f":"IF(Projektuppgifter!G10=\"\",\"Fyll i datum\",Projektuppgifter!G10)","v":"Fyll i datum"},null,"Länk till flik Projektuppgifter"]
[]
[null,null,null,"Fylls i av:","Projekt",null,null,null,null,"Information till projektet","Mottagande förvaltning",null,"Alla"]
[null,"Filformat\nvisningsfil","Filformat\nunderlagsfil","Uppbyggt av modellfil","Aktuellt att upprättas av projektet","Status på levererad data","Filnamn","Levereras av:\n- E (Entreprenör)\n- K (Konsult)\n- B (Beställare)\n(datum + namn)","Levererat till förvaltande system och aviserat leveransen till mottagande förvaltning, enligt TDOK 2016:0411 (med kopia till Indatakoordinator)\n(datum + namn + ärendenr.)","Leveransyta till förvaltande system","Förvaltande system","Godkänt \n(datum + namn + ärendenr.)","Eventuella kommentarer"]
["3 månader efter slutbesiktning",null,null,null,"Ja"]
[{"$f":"\"Leverans från leverantör (E/K) till överenskommen leveransyta, för mottagningskontroll senast: \"&IF(Projektuppgifter!C160=\"\",\"Fyll i datum\",TEXT(DATE(YEAR(Projektuppgifter!C160),MONTH(Projektuppgifter!C160),DAY(Projektuppgifter!C160)),\"ÅÅÅÅ-MM-DD\"))","v":"Leverans från leverantör (E/K) till överenskommen leveransyta, för mottagningskontroll senast: Fyll i datum"}]
[{"$f":"\"Leverans till mottagande förvaltning senast: \"&IF(B2=\"Fyll i datum\",\"Fyll i datum\",TEXT(EDATE(B2,3),\"ÅÅÅÅ-MM-DD\"))","v":"Leverans till mottagande förvaltning senast: Fyll i datum"},null,null,null,"Ja"]
["Teknisk dokumentation"]
["Baskarta","pdf","dgn","BAN, MARK, EL_KTL, SIGNAL",null,null,null,null,null,"Ebbas leveransyta","Ebba/ Bangård/ Baskarta"]
[]
["OBS! Finns det inga modellfiler ska analog ritning uppdateras."]

{"sheet":"15.3 Byggnad","index":43,"n_rows":27,"n_cols":12,"rows_kept":27,"cut":false,"hidden":false,"merged":[[10,9,22,9],[4,3,4,7],[4,9,4,10],[9,0,9,11],[6,0,6,2],[8,0,8,2],[10,8,22,8],[7,0,7,11],[3,0,4,0]]}
["Byggnad"]
["Slutbesiktning: ",{"$f":"IF(Projektuppgifter!G10=\"\",\"Fyll i datum\",Projektuppgifter!G10)","v":"Fyll i datum"},null,"Länk till flik Projektuppgifter"]
[]
["Avser alla byggnader som efter projektet ska förvaltas av Fastighetsavdelningen på Trafikverket. "]
[null,null,"Fylls i av:","Projekt",null,null,null,null,"Information till projektet","Mottagande förvaltning",null,"Alla"]
[null,"Filformat\nvisningsfil","Filformat\nunderlagsfil","Aktuellt att upprättas av projektet","Status på levererad data","Filnamn","Levereras av:\n- E (Entreprenör)\n- K (Konsult)\n- B (Beställare)\n(datum + namn)","Levererat till förvaltande system och aviserat leveransen till mottagande förvaltning, enligt TDOK 2016:0411 (med kopia till Indatakoordinator)\n(datum + namn + ärendenr.)","Leveransyta till förvaltande system","Förvaltande system","Godkänt \n(datum + namn)","Eventuella kommentarer"]
["3 månader efter slutbesiktning",null,null,"Ja"]
[{"$f":"\"Leverans från leverantör (E/K) till överenskommen leveransyta, för mottagningskontroll senast: \"&IF(Projektuppgifter!C161=\"\",\"Fyll i datum\",TEXT(DATE(YEAR(Projektuppgifter!C161),MONTH(Projektuppgifter!C161),DAY(Projektuppgifter!C161)),\"ÅÅÅÅ-MM-DD\"))","v":"Leverans från leverantör (E/K) till överenskommen leveransyta, för mottagningskontroll senast: Fyll i datum"}]
[{"$f":"\"Leverans till mottagande förvaltning senast: \"&IF(B2=\"Fyll i datum\",\"Fyll i datum\",TEXT(EDATE(B2,3),\"ÅÅÅÅ-MM-DD\"))","v":"Leverans till mottagande förvaltning senast: Fyll i datum"},null,null,"Ja"]
["Teknisk dokumentation"]
["Dokumentförteckning","pdf","docx",null,null,null,null,null,"ProjectWise/Förvaltning Järnväg/Förvaltningsdata Leveranser/ _Byggnad","PW/FU länkas till LEB"]
["Foto","jpg"," -- "]
["Bygg-/rivlovshandling","pdf","dgn, dwg, docx"]
["Situationsplan","pdf","dgn, dwg"]
["Arkitektritning","pdf","dgn, dwg"]
["Konstruktionsritning","pdf","dgn, dwg"]
["El och tele","pdf","dgn, dwg, docx"]
["Värme och sanitet","pdf","dgn, dwg, docx"]
["Luftbehandling","pdf","dgn, dwg, docx"]
["Kyla (Komfortkyla)","pdf","dgn, dwg, docx"]
["Styr och regler","pdf","dgn, dwg, docx"]
["PCB-protokoll","pdf","docx"]
["Myndighetsbesiktning","pdf","docx"]
[]
["Byggs, rivs eller flyttas en byggnad ska modellfil MARK tas fram/uppdateras och en ny/uppdaterad baskarta tas fram."]
[]
["OBS! Relevant data/dokumentation kopplat till miljö ska levereras enligt flik 15.5 Miljö"]

{"sheet":"15.4 Mark","index":44,"n_rows":30,"n_cols":14,"rows_kept":30,"cut":false,"hidden":false,"merged":[[9,11,25,11],[14,0,14,1],[15,0,15,1],[16,0,16,1],[17,0,25,0],[9,10,25,10],[9,0,9,1],[10,0,10,1],[11,0,11,1],[12,0,12,1],[13,0,13,1],[3,11,3,12],[3,5,3,9],[8,0,8,13],[5,0,5,4],[7,0,7,4],[6,0,6,13]]}
["Mark"]
["Slutbesiktning: ",null,{"$f":"IF(Projektuppgifter!G10=\"\",\"Fyll i datum\",Projektuppgifter!G10)","v":"Fyll i datum"},null,"Länk till flik Projektuppgifter"]
[]
[null,null,null,null,"Fylls i av:","Projekt",null,null,null,null,"Information till projektet","Mottagande förvaltning",null,"Alla"]
[null,null,"Filformat\nvisningsfil","Filformat\nunderlagsfil","Uppbyggd av modellfil","Aktuellt att upprättas av projektet","Status på levererad data","Filnamn","Levereras av:\n- E (Entreprenör)\n- K (Konsult)\n- B (Beställare)\n(datum + namn)","Levererat till förvaltande system och aviserat leveransen till mottagande förvaltning, enligt TDOK 2016:0411 (med kopia till Indatakoordinator)\n(datum + namn + ärendenr.)","Leveransyta till förvaltande system","Förvaltande system","Godkänt \n(datum + namn + ärendenr.)","Eventuella kommentarer"]
["3 månader efter slutbesiktning",null,null,null,null,"Ja"]
[{"$f":"\"Leverans från leverantör (E/K) till överenskommen leveransyta, för mottagningskontroll senast: \"&IF(Projektuppgifter!C162=\"\",\"Fyll i datum\",TEXT(DATE(YEAR(Projektuppgifter!C162),MONTH(Projektuppgifter!C162),DAY(Projektuppgifter!C162)),\"ÅÅÅÅ-MM-DD\"))","v":"Leverans från leverantör (E/K) till överenskommen leveransyta, för mottagningskontroll senast: Fyll i datum"}]
[{"$f":"\"Leverans till mottagande förvaltning senast: \"&IF(C2=\"Fyll i datum\",\"Fyll i datum\",TEXT(EDATE(C2,3),\"ÅÅÅÅ-MM-DD\"))","v":"Leverans till mottagande förvaltning senast: Fyll i datum"},null,null,null,null,"Ja"]
["Teknisk dokumentation"]
["Tillståndsbedömning",null,"pdf (bild jpg)","docx, xlsx, dgn, dwg"," --",null,null,null,null,null,"Ebbas leveransyta","Ebba/ Ban-underbyggnad/ Mark"]
["Ledningsplan",null,"pdf","dgn","MARK"]
["Ledningsprofil",null,"pdf","dgn, dwg"," --"]
["Normalsektion",null,"pdf","dgn, dwg"," --"]
["Ritningar över tillträdes-, service och räddningsvägar",null,"pdf","dgn, dwg (modellfil i dgn)","MARK"]
["Installationsritning",null,"pdf","dgn, dwg"," --"]
["Drift-/underhållsinstruktion",null,"pdf"," --"," --"]
["Kontrollprogram (Miljö)",null,"pdf","docx"," --"]
["Sidotrumma (vid sidan av järnväg)","Anläggningsskiss","pdf","dgn, dwg"," --"]
[null,"Ritningar","pdf","dgn, dwg"," --"]
[null,"Avvattning/Mark/Geotekniskt PM","pdf","dgn, dwg"," --"]
[null,"Avtal","pdf"," --"," --"]
[null,"Miljödom","pdf"," --"," --"]
[null,"Beslut om anmäld vattenverksamhet","pdf"," --"," --"]
[null,"Övriga myndighetsbeslut","pdf"," --"," --"]
[null,"Kontrollprogram - miljö","pdf","docx"," --"]
[null,"Skötselbeskrivning","pdf","docx"," --"]
[]
["Vid nya eller förändrade av markobjekt ska modellfil MARK tas fram/uppdateras och ny/uppdaterad baskarta ska tas fram."]
[]
["OBS! Relevant data/dokumentation kopplat till miljö ska levereras enligt flik 15.5 Miljö"]

{"sheet":"15.5 Miljö","index":45,"n_rows":43,"n_cols":16,"rows_kept":43,"cut":false,"hidden":false,"merged":[[6,0,6,15],[12,1,12,2],[12,3,12,4],[12,0,23,0],[22,1,22,2],[18,3,18,4],[20,3,20,4],[13,1,13,2],[12,12,23,12],[12,13,23,13],[26,13,34,13],[22,3,22,4],[27,1,31,1],[26,12,34,12],[32,1,33,1],[23,3,23,4],[25,1,26,1],[24,0,24,15],[1,0,1,1],[20,1,20,2],[21,1,21,2],[9,1,9,2],[10,1,10,2],[7,0,7,4],[5,0,5,4],[11,3,11,4],[14,1,14,2],[17,1,17,2],[19,1,19,2],[17,3,17,4],[19,3,19,4],[4,0,4,2],[9,3,9,4],[11,1,11,2],[36,0,40,0],[25,0,34,0],[35,1,35,2],[3,13,3,14],[8,0,8,15],[3,5,3,11],[15,1,15,2],[21,3,21,4],[23,1,23,2],[16,1,16,2],[13,3,13,4],[14,3,14,4],[15,3,15,4],[16,3,16,4],[36,12,39,12],[36,13,39,13],[37,10,39,10],[37,9,39,9],[39,1,39,2],[40,1,40,2],[36,1,36,2],[37,1,37,2],[38,1,38,2]]}
["Miljö"]
["Slutbesiktning: ",null,{"$f":"IF(Projektuppgifter!G10=\"\",\"Fyll i datum\",Projektuppgifter!G10)","v":"Fyll i datum"},null,"Länk till flik Projektuppgifter"]
[]
[null,null,null,null,"Fylls i av:","Projekt (OBS! Kolumn K gäller UH)",null,null,null,null,null,null,"Information till projektet","Mottagande förvaltning",null,"Alla"]
["OBS! Överlämnanderapport och övriga dokument som berör mer än EN bandel ska läggas upp i samtliga bandelsmappar i Ebba. Inga dummy-filer ska skapas. \n\nOm projektet innefattar flera Miljöföreteelser av samma slag, infogas nya rader för dessa.",null,null,"Filformat \nvisningsfil","Filformat\nunderlagsfil","Aktuellt att upprättas av projektet","Status på levererad data","Filnamn/ företeelsens ID nummer i MWL, alternativt länk till företeelsen (lägg till fler rader om flera av samma typ levereras)","Levereras av:\n- E (Entreprenör)\n- K (Konsult)\n- B (Beställare)\n(datum + namn)","Skickat mejl och länk till material för granskning till jarnvag_anlaggningmiljo@trafikverket.se. Avisering ska ske när allt material finns för granskning. Se anvisningar i TDOK 2016:0411 (datum + namn)","Godkänt av miljökompetens på UH\n(datum + namn)","Levererat till förvaltande system/registrerat och aviserat leveransen till mottagande förvaltning, enligt TDOK 2016:0411 (med kopia till Indatakoordinator)\n(datum + namn + ärendenr.)","Leveransyta till förvaltande system","Förvaltande system","Leveranskontrollerat\n(datum + namn + ärendenr.)","Eventuella kommentarer"]
["3 månader efter slutbesiktning",null,null,null,null,"Ja"]
[{"$f":"\"Leverans från leverantör (E/K) till överenskommen leveransyta, för mottagningskontroll senast: \"&IF(Projektuppgifter!C120=\"\",\"Fyll i datum\",TEXT(DATE(YEAR(Projektuppgifter!C120),MONTH(Projektuppgifter!C120),DAY(Projektuppgifter!C120)),\"ÅÅÅÅ-MM-DD\"))","v":"Leverans från leverantör (E/K) till överenskommen leveransyta, för mottagningskontroll senast: Fyll i datum"}]
[{"$f":"\"Leverans till mottagande förvaltning senast: \"&IF(C2=\"Fyll i datum\",\"Fyll i datum\",TEXT(EDATE(C2,3),\"ÅÅÅÅ-MM-DD\"))","v":"Leverans till mottagande förvaltning senast: Fyll i datum"},null,null,null,null,"Ja"]
["Data för lagring i databas"]
["Förorenade områden och förorenade massor","Riskobjekt förorenade områden och förorenade massor",null,"Registreras direkt i LEB",null,null,null,null,null,null,null,null,"Registrering sker direkt i LEB","LEB"]
["Buller","TMALL 0188 Import till projektnav",null,"xlsx"," --",null,null,null,null,null,null,null,"TMALL:en bifogas i aviseringsmejlet.","Projektnav"]
["Anlays, mätdata","Analysdata, mätdata",null,"Aktuell för databasen",null,null,null,null,null,null,null,null,"Inte aktuellt","Analys- och mätdatabas",null,"Dialog om lagringsplats"]
["Miljöföreteelse","Allé",null,"Registreras i Miljöwebb Landskap enligt TDOK 2023:0149",null,null,null,null,null,null,null,null,"Inte aktuellt","Miljöwebb Landskap"]
[null,"Artrik järnvägsmiljö",null,"Registreras i Miljöwebb Landskap enligt TDOK 2023:0150"]
[null,"Bevarandevärd bro",null,"Registreras i Miljöwebb Landskap enligt TDOK 2023:0152"]
[null,"Faunapassage för medelstora däggdjur",null,"Registreras i Miljöwebb Landskap enligt TDOK 2023:0153"]
[null,"Faunapassage för stora däggdjur",null,"Registreras i Miljöwebb Landskap enligt TDOK 2023:0154"]
[null,"Grod- och kräldjurskonstruktion",null,"Registreras i Miljöwebb Landskap enligt TDOK 2023:0155"]
[null,"Invasiv art",null,"Registreras i Miljöwebb Landskap enligt TDOK 2025:0053 (är under utveckling)"]
[null,"Kulturhistorisk järnvägsmiljö",null,"Registreras i Miljöwebb Landskap enligt TDOK 2023:0156"]
[null,"Solitära träd",null,"Registreras i Miljöwebb Landskap enligt TDOK 2023:0158"]
[null,"Stenmur",null,"Registreras i Miljöwebb Landskap enligt TDOK 2023:0159"]
[null,"Vattenfaunapassage",null,"Registreras i Miljöwebb Landskap enligt TDOK 2023:0160"]
[null,"Övrig miljöföreteelse",null,"Registreras i Miljöwebb Landskap enligt TDOK 2023:0162"]
["Teknisk dokumentation"]
["Förorenade områden och förorenade massor","Juridik","Myndighetsbeslut","pdf"," --"]
[null,null,"Avtal","pdf"," --",null,null,null,null,null,null,null,"Dokumentation ska registreras i Diariet eller i ProjectWise/Förvaltning Underhåll/BV Fastighetsverksamhet/B Fastighetsknutna dokument/Miljö. \n\nDärefter ska dokumenten  länkas in i LEB. Detta ska utföras av projektet/ underhållsdistriktet.","Diariet. Länk till diariet ska registreras i LEB"]
[null,"Utredningsskede/ planskede / undersökning","Inventering","pdf"," --"]
[null,null,"Ansvars- och skälighetsbedömning","pdf"," --"]
[null,null,"Undersökning","pdf"," --"]
[null,null,"Detaljerad undersökning","pdf"," --"]
[null,null,"Riskbedömning","pdf"," --"]
[null,"Genomförande/ byggskede/ efterbehandling","Åtgärdsutredning, inklusive riskvärdering","pdf"," --"]
[null,null,"Saneringsrapport/ slutrapport till §28-anmälan","pdf"," --"]
[null,"Kontrollprogram","Kontrollprogram - miljö","pdf"," --"]
["Miljöföreteelse","Följande dokument ska i förekommande fall registreras tillsammans med data till databas enligt rad 13-24 (i Miljöwebb Landskap):\n- Foton\n- Besiktningsprotokoll, Inventeringsprotokoll\n- Karta, ritning \n- Objektspecifik skötselbeskrivning  \n- Dispensansökan, Föreläggande och Myndighetsbeslut\n\nObservera att myndighetsbeslut som berör underhållsskedet även ska registreras i TMALL 0007.",null," --"," --",{"$f":"IF(COUNTIF(F13:F24,\"Ja\")>0,\"Ja\",\"Nej\")","v":"Nej"}]
["Övergripande om miljö","TMALL 0173 Överlämnanderapport miljö",null,"pdf"," --","Ja",null,null,null,null,null,null,"Ebbas leveransyta","Ebba/ Miljö/ Miljö (övergripande)"]
[null,"TMALL 0091 Miljösäkring plan och bygg ",null,"xlsx"," --"]
[null,"TMALL 0558 Miljö - Materialförteckning* (OBS! Levereras som fristående fil, inte som en bilaga till Överlämnanderapport miljö.)",null,"xlsx (vid ev. bilagor används zip)"," --"]
[null,"TMALL 0559 Miljö - Kemikalieförteckning* (OBS! Levereras som fristående fil, inte som en bilaga till Överlämnanderapport miljö.)",null,"xlsx (vid ev. bilagor används zip)"," --"]
[null,"TMALL 0007 Förteckning Tillstånd, anmälningsärenden, dispenser enligt miljölagstiftning",null,"xlsx"," --",null,null,null,null,null,null,null,"TMALL:en bifogas i aviseringsmejlet.","GUS/Maximo"]
[]
["* För kraftförsörjningsanläggningar ska material- och kemikalieförteckning levereras tillsammans med övrig dokumentation för kraftförsörjningsanläggningen (flik 6.4). Ingen leverans i denna flik 15.5 Miljö."]

{"sheet":"15.6 Plankorsning","index":46,"n_rows":29,"n_cols":8,"rows_kept":29,"cut":false,"hidden":false,"merged":[[14,1,14,2],[25,6,28,6],[19,6,20,6],[11,0,11,7],[16,0,16,7],[22,0,22,7],[17,0,17,2],[21,0,21,2],[1,0,1,1],[20,1,20,2],[26,1,26,2],[27,1,27,2],[28,1,28,2],[10,0,10,2],[12,0,12,2],[2,0,2,1],[25,1,25,2],[24,0,24,7],[8,3,8,5],[18,0,18,7],[19,1,19,2],[15,0,15,2],[23,0,23,2],[13,0,13,7]]}
["Plankorsning"]
["Inkopplingsdatum (Datum då plankorsningen tas i bruk för järnvägstrafik) :",null,{"$f":"IF(Projektuppgifter!G9=\"\",\"Fyll i datum\",Projektuppgifter!G9)","v":"Fyll i datum"}]
["Datum då plankorsningen tas ibruk för vägtrafik:",null,{"$f":"IF(Projektuppgifter!G7=\"\",\"Fyll i datum\",Projektuppgifter!G7)","v":"Fyll i datum"},null,"Länk till flik Projektuppgifter"]
[]
["Fylls i av projekt:","Projekt"]
["Plankorsningens ID: ID-nummer (5 siffror)","<id-nummer>"]
["Arbetsobjekts-ID: Uppgift från Plk-webb","<id-nummer>"]
[]
[null,null,"Fylls i av:","Projekt",null,null,"Mottagande förvaltning","Alla"]
[null,"Filformat\nvisningsfil","Filformat\nunderlagsfil","Aktuellt att upprättas av projektet","Levereras av:\n- E (Entreprenör)\n- K (Konsult)\n- B (Beställare)\n(datum + namn)","Registrerat i Plk webb\n(datum + namn)","Förvaltande system","Eventuella kommentarer"]
["6 månader före inkoppling (datum då plankorsningen tas i bruk för järnvägstrafik)",null,null,"Ja"]
[{"$f":"\"Leverans från leverantör (E/K) till överenskommen leveransyta, för mottagningskontroll senast: \"&IF(Projektuppgifter!C40=\"\",\"Fyll i datum\",TEXT(DATE(YEAR(Projektuppgifter!C40),MONTH(Projektuppgifter!C40),DAY(Projektuppgifter!C40)),\"ÅÅÅÅ-MM-DD\"))","v":"Leverans från leverantör (E/K) till överenskommen leveransyta, för mottagningskontroll senast: Fyll i datum"}]
[{"$f":"\"Leverans till mottagande förvaltning senast: \"&IF(C2=\"Fyll i datum\",\"Fyll i datum\",TEXT(EDATE(C2,-6),\"ÅÅÅÅ-MM-DD\"))","v":"Leverans till mottagande förvaltning senast: Fyll i datum"},null,null,"Ja"]
["Data för lagring i databas"]
["Uppgifter om ny plankorsning","Registreras direkt i Plk webb",null,null,null,null,"Plk webb"]
["4 mån före plankorsningen tagits i bruk för vägtrafik",null,null,"Ja"]
[{"$f":"\"Leverans från leverantör (E/K) till överenskommen leveransyta, för mottagningskontroll senast: \"&IF(Projektuppgifter!C42=\"\",\"Fyll i datum\",TEXT(DATE(YEAR(Projektuppgifter!C42),MONTH(Projektuppgifter!C42),DAY(Projektuppgifter!C42)),\"ÅÅÅÅ-MM-DD\"))","v":"Leverans från leverantör (E/K) till överenskommen leveransyta, för mottagningskontroll senast: Fyll i datum"}]
[{"$f":"\"Leverans till mottagande förvaltning senast: \"&IF(C3=\"Fyll i datum\",\"Fyll i datum\",TEXT(EDATE(C3,-4),\"ÅÅÅÅ-MM-DD\"))","v":"Leverans till mottagande förvaltning senast: Fyll i datum"},null,null,"Ja"]
["Data för lagring i databas"]
["Uppgifter om val av skyddsalternativ ","Registreras direkt i Plk-webb",null,null,null,null,"Plk webb"]
["Uppgifter om slopad plankorsning","Registreras direkt i Plk-webb"]
["1 månad efter att plankorsningen tas i eller ur bruk för vägtrafik",null,null,"Ja"]
[{"$f":"\"Leverans från leverantör (E/K) till överenskommen leveransyta, för mottagningskontroll senast: \"&IF(Projektuppgifter!C105=\"\",\"Fyll i datum\",TEXT(DATE(YEAR(Projektuppgifter!C105),MONTH(Projektuppgifter!C105),DAY(Projektuppgifter!C105)),\"ÅÅÅÅ-MM-DD\"))","v":"Leverans från leverantör (E/K) till överenskommen leveransyta, för mottagningskontroll senast: Fyll i datum"}]
[{"$f":"\"Leverans till mottagande förvaltning senast: \"&IF(C3=\"Fyll i datum\",\"Fyll i datum\",TEXT(EDATE(C3,1),\"ÅÅÅÅ-MM-DD\"))","v":"Leverans till mottagande förvaltning senast: Fyll i datum"},null,null,"Ja"]
["Data för lagring i databas"]
["Uppgifter om inventering ","Registreras direkt i Plk-webb",null,null,null,null,"Plk webb"]
["Uppgifter om val av skyddsalternativ ","Registreras direkt i Plk-webb"]
["Uppgifter om drifttagen eller stängd plankorsning","Registreras direkt i Plk-webb"]
["Uppgifter om slopad plankorsning","Registreras direkt i Plk-webb"]

{"sheet":"15.7 Pumpsystem","index":47,"n_rows":27,"n_cols":14,"rows_kept":27,"cut":false,"hidden":false,"merged":[[4,4,4,8],[4,10,4,11],[12,0,12,3],[14,0,14,3],[15,0,15,13],[6,0,6,3],[8,0,8,3],[9,0,9,13],[7,0,7,13],[13,0,13,13],[24,0,24,1],[10,9,11,9],[10,10,11,10],[16,10,24,10],[16,9,24,9],[16,0,16,1],[17,0,17,1],[18,0,18,1],[19,0,19,1],[20,0,20,1],[21,0,21,1],[22,0,22,1],[23,0,23,1]]}
["Pumpsystem"]
["Inkoppling:",{"$f":"IF(Projektuppgifter!G9=\"\",\"Fyll i datum\",Projektuppgifter!G9)","v":"Fyll i datum"},null,"Länk till flik Projektuppgifter"]
["Slutbesiktning: ",{"$f":"IF(Projektuppgifter!G10=\"\",\"Fyll i datum\",Projektuppgifter!G10)","v":"Fyll i datum"}]
[]
[null,null,null,"Fylls i av:","Projekt",null,null,null,null,"Information till projektet","Mottagande förvaltning",null,"Projekt","Alla"]
[null,null,"Filformat\nvisningsfil","Filformat\nunderlagsfil","Aktuellt att upprättas av projektet","Status på levererad data","Filnamn","Levereras av:\n- E (Entreprenör)\n- K (Konsult)\n- B (Beställare)\n(datum + namn)","Levererat till förvaltande system och aviserat leveransen till mottagande förvaltning, enligt TDOK 2016:0411 (med kopia till Indatakoordinator)\n(datum + namn + ärendenr.)","Leveransyta till förvaltande system","Förvaltande system","Godkänt \n(datum + namn + ärendenr.)","Papperskopior är utlagda i anläggning \n(datum + namn)","Eventuella kommentarer"]
["1 vecka efter inkoppling"]
[{"$f":"\"Leverans från leverantör (E/K) till överenskommen leveransyta, för mottagningskontroll senast: \"&IF(Projektuppgifter!C87=\"\",\"Fyll i datum\",TEXT(DATE(YEAR(Projektuppgifter!C87),MONTH(Projektuppgifter!C87),DAY(Projektuppgifter!C87)),\"ÅÅÅÅ-MM-DD\"))","v":"Leverans från leverantör (E/K) till överenskommen leveransyta, för mottagningskontroll senast: Fyll i datum"}]
[{"$f":"\"Leverans till mottagande förvaltning senast: \"&IF(B2=\"Fyll i datum\",\"Fyll i datum\",TEXT(DATE(YEAR(B2),MONTH(B2),DAY(B2)+7),\"ÅÅÅÅ-MM-DD\"))","v":"Leverans till mottagande förvaltning senast: Fyll i datum"},null,null,null,"Ja"]
["Data för lagring i databas"]
["Nytt objekt:","TMALL 0659 Teknikbyggnad"," --","xlsx",null,null,null,null,null,"Projektets leveransyta","BIS"]
["Ändrat/slopat objekt:","Slopnings- och ändringslista av objekten ovan"," --","xlsx"]
["3 månader efter slutbesiktning",null,null,null,"Ja"]
[{"$f":"\"Leverans från leverantör (E/K) till överenskommen leveransyta, för mottagningskontroll senast: \"&IF(Projektuppgifter!C163=\"\",\"Fyll i datum\",TEXT(DATE(YEAR(Projektuppgifter!C163),MONTH(Projektuppgifter!C163),DAY(Projektuppgifter!C163)),\"ÅÅÅÅ-MM-DD\"))","v":"Leverans från leverantör (E/K) till överenskommen leveransyta, för mottagningskontroll senast: Fyll i datum"}]
[{"$f":"\"Leverans till mottagande förvaltning senast: \"&IF(B3=\"Fyll i datum\",\"Fyll i datum\",TEXT(EDATE(B3,3),\"ÅÅÅÅ-MM-DD\"))","v":"Leverans till mottagande förvaltning senast: Fyll i datum"},null,null,null,"Ja"]
["Teknisk dokumentation"]
["Installations-/kabelplan",null,"pdf","dgn",null,null,null,null,null,"Ebbas leveransyta","Ebba/ Övrig anläggning/ Pumpsystem"]
["Huvudledningsschema",null,"pdf","dgn, dwg"]
["Enlinjeschema (Översiktsschema)",null,"pdf","dgn, dwg"]
["Apparatlista",null,"pdf","dgn, dwg, xlsx, docx"]
["Kretsschema",null,"pdf","dgn, dwg"]
["Programvara för PLC",null," --","Beroende på system"]
["Anläggningsbeskrivning",null,"pdf","dgn, dwg, xlsx, docx"]
["Kabellista",null,"pdf","dgn, dwg, xlsx"]
["Driftsinstruktion/larminstruktion",null,"pdf","xlsx"]
[]
["OBS! Relevant data/dokumentation kopplat till miljö ska levereras enligt flik 15.5 Miljö"]

{"sheet":"15.8 Rangerbangård","index":48,"n_rows":65,"n_cols":14,"rows_kept":65,"cut":false,"hidden":false,"merged":[[4,4,4,8],[4,10,4,11],[23,0,23,13],[20,0,20,3],[22,0,22,3],[6,0,6,3],[8,0,8,3],[9,0,9,13],[10,10,19,10],[10,0,18,0],[7,0,7,13],[21,0,21,13],[55,10,58,10],[59,0,62,0],[59,10,62,10],[24,10,35,10],[36,0,58,0],[36,1,36,13],[41,1,41,13],[44,1,44,13],[49,1,49,13],[54,1,54,13],[37,10,40,10],[42,10,43,10],[45,10,48,10],[50,10,53,10],[24,0,35,0],[35,2,35,3],[55,9,58,9],[59,9,62,9],[24,9,35,9],[37,9,40,9],[42,9,43,9],[45,9,48,9],[50,9,53,9]]}
["Rangerbangård"]
["Inkoppling:",{"$f":"IF(Projektuppgifter!G9=\"\",\"Fyll i datum\",Projektuppgifter!G9)","v":"Fyll i datum"},null,"Länk till flik Projektuppgifter"]
["Slutbesiktning: ",{"$f":"IF(Projektuppgifter!G10=\"\",\"Fyll i datum\",Projektuppgifter!G10)","v":"Fyll i datum"}]
[]
[null,null,null,"Fylls i av:","Projekt/Leverantör",null,null,null,null,"Information till projektet","Mottagande förvaltning",null,"Projekt","Alla"]
[null,null,"Filformat\nvisningsfil","Filformat\nunderlagsfil","Aktuellt att upprättas av projektet","Filnamn","Status på levererad data","Levereras av:\n- E (Entreprenör)\n- K (Konsult)\n- B (Beställare)\n(datum + namn)","Levererat till förvaltande system och aviserat leveransen till mottagande förvaltning, enligt TDOK 2016:0411 (med kopia till Indatakoordinator)\n(datum + namn + ärendenr.)","Leveransyta till förvaltande system","Förvaltande system","Godkänt \n(datum + namn + ärendenr.)","Papperskopior är utlagda i anläggning \n(datum + namn)","Eventuella kommentarer"]
["3 veckor efter inkoppling",null,null,null,"Ja"]
[{"$f":"\"Leverans från leverantör (E/K) till överenskommen leveransyta, för mottagningskontroll senast: \"&IF(Projektuppgifter!C104=\"\",\"Fyll i datum\",TEXT(DATE(YEAR(Projektuppgifter!C104),MONTH(Projektuppgifter!C104),DAY(Projektuppgifter!C104)),\"ÅÅÅÅ-MM-DD\"))","v":"Leverans från leverantör (E/K) till överenskommen leveransyta, för mottagningskontroll senast: Fyll i datum"}]
[{"$f":"\"Leverans till mottagande förvaltning senast: \"&IF(B2=\"Fyll i datum\",\"Fyll i datum\",TEXT(DATE(YEAR(B2),MONTH(B2),DAY(B2)+21),\"ÅÅÅÅ-MM-DD\"))","v":"Leverans till mottagande förvaltning senast: Fyll i datum"},null,null,null,"Ja"]
["Data för lagring i databas"]
["Nytt objekt:","TMALL 1335 Avhängardäck"," --","xlsx",null,null,null,null,null,null,"BIS"]
[null,"TMALL 1326 Brandvattenförsörjning"," --","xlsx"]
[null,"TMALL 1334 Bromsprovsanläggning"," --","xlsx"]
[null,"TMALL 0571 Nödlägesskåp"," --","xlsx"]
[null,"TMALL 0573 Spillplatta"," --","xlsx"]
[null,"TMALL 1336 Tryckluftsanläggning"," --","xlsx"]
[null,"TMALL 0574 Varningsystem"," --","xlsx"]
[null,"TMALL 0575 Väderobservationsutrustning"," --","xlsx"]
[null,"TMALL 0570 Åtkomlighet och nödlägesinformation"," --","xlsx"]
["Ändrat/slopat objekt:","Slopnings- och ändringslista av objekten ovan"," --","xlsx"]
["3 månader efter slutbesiktning",null,null,null,"Ja"]
[{"$f":"\"Leverans från leverantör (E/K) till överenskommen leveransyta, för mottagningskontroll senast: \"&IF(Projektuppgifter!C164=\"\",\"Fyll i datum\",TEXT(DATE(YEAR(Projektuppgifter!C164),MONTH(Projektuppgifter!C164),DAY(Projektuppgifter!C164)),\"ÅÅÅÅ-MM-DD\"))","v":"Leverans från leverantör (E/K) till överenskommen leveransyta, för mottagningskontroll senast: Fyll i datum"}]
[{"$f":"\"Leverans till mottagande förvaltning senast: \"&IF(B3=\"Fyll i datum\",\"Fyll i datum\",TEXT(EDATE(B3,3),\"ÅÅÅÅ-MM-DD\"))","v":"Leverans till mottagande förvaltning senast: Fyll i datum"},null,null,null,"Ja"]
["Teknisk dokumentation"]
["Styr- och övervakning","Anläggningsbeskrivning ","pdf","docx",null,null,null,null,null,null,"Ebba/Bangård/Gods- och Rangerbangård"]
[null,"Drift- och underhållsinstruktion","pdf","docx"]
[null,"Larminstruktion","pdf","docx"]
[null,"Skåpvy/-layout","pdf","dgn, dwg"]
[null,"Apparatlista","pdf","xlsx"]
[null,"Huvudkretsschema","pdf","dgn, dwg"]
[null,"Yttre anslutningsschema","pdf","dgn, dwg"]
[null,"Kretsschema","pdf","dgn, dwg"]
[null,"Kabellista","pdf","xlsx"]
[null,"Provningsprotokoll","pdf","docx, xlsx"]
[null,"Manual och tekniska data","pdf","xlsx"]
[null,"Programvara för PLC","Beroende av system"]
["Utrustning för skydd mot olyckor","Brandvattenförsörjning"]
[null,"Ritningar","pdf","dgn, dwg",null,null,null,null,null,"Ebbas leveransyta","Ebba/Bangård/Gods- och Rangerbangård"]
[null,"Konstruktionsredovisning","pdf","docx"]
[null,"Drift- och underhållsplan","pdf","docx"]
[null,"Besiktningsprotokoll","pdf","docx"]
[null,"Nödlägeskarta"]
[null,"Ritningar","pdf","dgn, dwg, pptx",null,null,null,null,null,"Ebbas leveransyta","Ebba/Bangård/Gods- och Rangerbangård"]
[null,"Konstruktionsredovisning","pdf","docx"]
[null,"Nödlägesskåp"]
[null,"Ritningar","pdf","dgn, dwg",null,null,null,null,null,"Ebbas leveransyta","Ebba/Bangård/Gods- och Rangerbangård"]
[null,"Konstruktionsredovisning","pdf","docx"]
[null,"Drift- och underhållsplan","pdf","docx"]
[null,"Besiktningsprotokoll","pdf","docx"]
[null,"Spillplatta"]
[null,"Ritningar","pdf","dgn, dwg",null,null,null,null,null,"Ebbas leveransyta","Ebba/Bangård/Gods- och Rangerbangård"]
[null,"Konstruktionsredovisning","pdf","docx"]
[null,"Drift- och underhållsplan","pdf","docx"]
[null,"Besiktningsprotokoll","pdf","docx"]
[null,"Varningssystem"]
[null,"Ritningar","pdf","dgn, dwg",null,null,null,null,null,"Ebbas leveransyta","Ebba/Bangård/Gods- och Rangerbangård"]
[null,"Konstruktionsredovisning","pdf","docx"]
[null,"Drift- och underhållsplan","pdf","docx"]
[null,"Besiktningsprotokoll","pdf","docx"]
["Väderobservations-utrustning","Ritningar","pdf","dgn, dwg",null,null,null,null,null,"Ebbas leveransyta","Ebba/Bangård/Gods- och Rangerbangård"]
[null,"Konstruktionsredovisning","pdf","docx"]
[null,"Drift- och underhållsplan","pdf","docx"]
[null,"Besiktningsprotokoll","pdf","docx"]
[]
["OBS! Relevant data/dokumentation kopplat till miljö ska levereras enligt flik 15.5 Miljö"]

{"sheet":"15.10 Underlag till linjeboken","index":49,"n_rows":10,"n_cols":12,"rows_kept":10,"cut":false,"hidden":false,"merged":[[3,3,3,6],[3,8,3,10],[8,0,8,11],[5,0,5,2],[7,0,7,2],[6,0,6,11]]}
["Underlag till linjeboken"]
["Inkoppling",{"$f":"IF(Projektuppgifter!G9=\"\",\"Fyll i datum\",Projektuppgifter!G9)","v":"Fyll i datum"},null,"Länk till flik Projektuppgifter"]
[]
[null,null,"Fylls i av:","Projekt",null,null,null,"Information till projektet","Mottagande förvaltning",null,null,"Alla"]
[null,"Filformat\nvisningsfil","Filformat\nunderlagsfil","Aktuellt att upprättas av projektet","Filnamn","Levereras av:\n- E (Entreprenör)\n- K (Konsult)\n- B (Beställare)\n(datum + namn)","Levererat till förvaltande system och aviserat leveransen till mottagande förvaltning, enligt TDOK 2016:0411 (med kopia till Indatakoordinator)\n(datum + namn + ärendenr.)","Leveransyta till förvaltande system","Förvaltande system","Mottaget\n(datum + namn + ärendenr.)","Godkänt \n(datum + namn + ärendenr.)","Eventuella kommentarer"]
["2 månader före inkoppling",null,null,"Ja"]
[{"$f":"\"Leverans från leverantör (E/K) till överenskommen leveransyta, för mottagningskontroll senast: \"&IF(Projektuppgifter!C64=\"\",\"Fyll i datum\",TEXT(DATE(YEAR(Projektuppgifter!C64),MONTH(Projektuppgifter!C64),DAY(Projektuppgifter!C64)),\"ÅÅÅÅ-MM-DD\"))","v":"Leverans från leverantör (E/K) till överenskommen leveransyta, för mottagningskontroll senast: Fyll i datum"}]
[{"$f":"\"Leverans till mottagande förvaltning senast: \"&IF(B2=\"Fyll i datum\",\"Fyll i datum\",TEXT(EDATE(B2,-2),\"ÅÅÅÅ-MM-DD\"))","v":"Leverans till mottagande förvaltning senast: Fyll i datum"},null,null,"Ja"]
["Teknisk dokumentation"]
["TMALL 0681 Leverans - Underlag till linjebok"," --","docx",null,null,null,null,"TMALL:en bifogas i aviseringsmejlet.","Underlag till linjeboken"]

{"sheet":"15.11 Underlag till säk.plan","index":50,"n_rows":10,"n_cols":12,"rows_kept":10,"cut":false,"hidden":false,"merged":[[8,0,8,11],[3,3,3,6],[3,8,3,10],[5,0,5,2],[7,0,7,2],[6,0,6,11]]}
["Underlag till säkerhetsplan, driftplats"]
["Inkoppling",{"$f":"IF(Projektuppgifter!G9=\"\",\"Fyll i datum\",Projektuppgifter!G9)","v":"Fyll i datum"},null,"Länk till flik Projektuppgifter"]
[]
[null,null,"Fylls i av:","Projekt",null,null,null,"Information till projektet","Mottagande förvaltning",null,null,"Alla"]
[null,"Filformat\nvisningsfil","Filformat\nunderlagsfil","Aktuellt att upprättas av projektet","Filnamn","Levereras av:\n- E (Entreprenör)\n- K (Konsult)\n- B (Beställare)\n(datum + namn)","Levererat till förvaltande system och aviserat leveransen till mottagande förvaltning, enligt TDOK 2016:0411 (med kopia till Indatakoordinator)\n(datum + namn + ärendenr.)","Leveransyta till förvaltande system","Förvaltande system","Mottaget\n(datum + namn)","Godkänt \n(datum + namn)","Eventuella kommentarer"]
["2 månader före inkoppling",null,null,"Ja"]
[{"$f":"\"Leverans från leverantör (E/K) till överenskommen leveransyta, för mottagningskontroll senast: \"&IF(Projektuppgifter!C65=\"\",\"Fyll i datum\",TEXT(DATE(YEAR(Projektuppgifter!C65),MONTH(Projektuppgifter!C65),DAY(Projektuppgifter!C65)),\"ÅÅÅÅ-MM-DD\"))","v":"Leverans från leverantör (E/K) till överenskommen leveransyta, för mottagningskontroll senast: Fyll i datum"}]
[{"$f":"\"Leverans till mottagande förvaltning senast: \"&IF(B2=\"Fyll i datum\",\"Fyll i datum\",TEXT(EDATE(B2,-2),\"ÅÅÅÅ-MM-DD\"))","v":"Leverans till mottagande förvaltning senast: Fyll i datum"},null,null,"Ja"]
["Teknisk dokumentation"]
["TMALL 1265 Uppgifter till säkerhetsplan"," --","docx",null,null,null,null,"TMALL:en bifogas i aviseringsmejlet.","Underlag till säkerhetsplan"]

{"sheet":"15.12 JNB","index":51,"n_rows":8,"n_cols":12,"rows_kept":8,"cut":false,"hidden":false,"merged":[[3,8,3,10],[5,0,5,11],[3,3,3,6]]}
["JNB"]
["Inkoppling",{"$f":"IF(Projektuppgifter!G9=\"\",\"Fyll i datum\",Projektuppgifter!G9)","v":"Fyll i datum"},null,"Länk till flik Projektuppgifter"]
[]
[null,null,"Fylls i av:","Projekt",null,null,null,"Information till projektet","Mottagande förvaltning",null,null,"Alla"]
[null,"Filformat\nvisningsfil","Filformat\nunderlagsfil","Aktuellt att upprättas av projektet","Levereras av:\n- E (Entreprenör)\n- K (Konsult)\n- B (Beställare)\n(datum + namn)","Levererat till förvaltande system och aviserat leveransen till mottagande förvaltning, enligt TDOK 2016:0411 (med kopia till Indatakoordinator)\n(datum + namn+ ärendenr.)","Eventuella ändringar av tidigare levererad dokumentation\n(Länk till leveransen)","Leveransyta till förvaltande system","Förvaltande system","Leveranskontrollerat\n(namn +  datum + ärendenummer)","Inläst och godkänt \n(namn +  datum + ärendenummer)","Eventuella kommentar"]
["30 april 32-20 månader före inkoppling"]
["Leverans till mottagande förvaltning senast: Projektet får själv räkna ut detta"]
["TMALL 0479 Leverans till JNB, kapitel 2"," --","xlsx",null,null,null,null,"Ifylld TMALL bifogas i aviseringsmejlet.","JNB"]

{"sheet":"15.13 Tågplan","index":52,"n_rows":9,"n_cols":12,"rows_kept":9,"cut":false,"hidden":false,"merged":[[3,4,3,7],[5,0,5,11],[6,0,6,11],[7,0,7,11],[3,9,3,10]]}
["Tågplan"]
["Inkoppling",{"$f":"IF(Projektuppgifter!G9=\"\",\"Fyll i datum\",Projektuppgifter!G9)","v":"Fyll i datum"},null,"Länk till flik Projektuppgifter"]
[]
[null,null,null,"Fylls i av:","Projekt",null,null,null,"Information till projektet","Mottagande förvaltning",null,"Alla"]
[null,null,"Filformat\nvisningsfil","Filformat\nunderlagsfil","Aktuellt att upprättas av projektet","Länk till levererad fil","Levereras av:\n- E (Entreprenör)\n- K (Konsult)\n- B (Beställare)\n(datum + namn)","Levererat till förvaltande system och aviserat leveransen till mottagande förvaltning, enligt TDOK 2016:0411 (med kopia till Indatakoordinator)\n(datum + namn)","Leveransyta till förvaltande system","Förvaltande system","Inläst och godkänt ","Eventuella kommentarer"]
["30 september 27-15 månader före inkoppling"]
["Leverans till mottagande förvaltning senast: Projektet får själv räkna ut detta"]
["Teknisk dokumentation"]
["Tågplan","TMALL 0480 Leverans till Tågplan"," --","xlsx",null,null,null,null,"Projektets lagringsyta","Tågplan","Ingen kvittens"]

{"sheet":"Tillkomna dok.","index":53,"n_rows":4,"n_cols":8,"rows_kept":4,"cut":false,"hidden":false,"merged":[[2,5,2,6],[0,0,0,3]]}
["Tillkomna dokument",null,null,null,null,"Länk till flik Projektuppgifter"]
[]
[null,null,null,"Fylls i av:","Projekt","Mottagande förvaltning",null,"Notering"]
["Flik","Dokumentation","Filformat \nvisningsfil","Filformat\nunderlagsfil","Filnamn","Leveranskontrollerat\n(datum + signering + ärendenr.)","Inläst och godkänt \n(datum + signering + ärendenr.)","Vad ska TRV göra med dokumentet, då det inte anses vara FD?"]

{"sheet":"Levererat till extern part ","index":54,"n_rows":20,"n_cols":5,"rows_kept":20,"cut":false,"hidden":false,"merged":[[2,0,2,2],[0,0,0,2]]}
["Dokument som är levererade till extern part",null,null,null,"Länk till flik Projektuppgifter"]
[]
["Projekt"]
["Levererat till","Datum","Filnamn"]
[]
[]
[]
[]
[]
[]
[]
[]
[]
[]
[]
[]
[]
[]
[]
["Dokumenten lagras inte av förvaltningen utan lagras i projektets struktur."]

{"sheet":"Ändringslogg","index":55,"n_rows":365,"n_cols":6,"rows_kept":365,"cut":false,"hidden":false,"merged":[[230,1,242,1],[230,0,242,0],[230,4,242,4],[150,0,169,0],[150,1,169,1],[143,0,149,0],[143,1,149,1],[143,4,149,4],[153,4,169,4],[105,1,115,1],[105,4,115,4],[116,0,128,0],[116,1,128,1],[116,4,128,4],[105,0,115,0],[129,0,131,0],[129,1,131,1],[129,4,131,4],[132,4,142,4],[132,1,142,1],[132,0,142,0],[100,0,104,0],[100,1,104,1],[100,4,104,4],[13,1,20,1],[13,0,20,0],[13,4,20,4],[59,1,70,1],[59,0,70,0],[59,4,70,4],[21,4,24,4],[21,1,24,1],[21,0,24,0],[35,0,37,0],[35,1,37,1],[35,4,37,4],[25,1,27,1],[38,1,42,1],[38,0,42,0],[3,0,9,0],[3,1,9,1],[3,4,9,4],[10,0,12,0],[10,1,12,1],[10,4,12,4],[25,0,27,0],[25,4,27,4],[28,4,34,4],[28,1,34,1],[28,0,34,0],[38,4,42,4],[43,1,58,1],[43,0,58,0],[43,4,58,4],[96,1,99,1],[96,4,99,4],[96,0,99,0],[71,1,80,1],[71,0,80,0],[71,4,80,4],[81,0,95,0],[81,1,95,1],[81,4,95,4]]}
["Ändringslogg"]
[]
["Fastställd version","Dokumentdatum",null,"Ändring","Namn"]
["1.0 ","2015-04-01",null,"Ersätter: TDOK 2013:0368 Leveransplan del 1 - Väg- och järnvägsdata och TDOK 2013:0169 Leveransplan del 2 - Väg- och järnvägsdokumentation","Maria Davidson, UHjja"]
[null,null,null,"Ändrat utseende till Trafikverksfärger"]
[null,null,null,"Inga nya krav från TDOK 2013:0368 Leveransplan del 1 - Väg- och järnvägsdata och TDOK 2013:0169 Leveransplan del 2 - Väg- och järnvägsdokumentation"]
[null,null,null,"Förvaltningsdata till Miljöwebb Landskap och Projektnav har flyttat till fliken Miljö."]
[null,null,null,"En egen flik för data till Tågledningssystem, för att renodla fliken till BIS, GAD, JNB och Linjeboken."]
[null,null,null,"Bytt hänvisningar från BVDOK till Nya TDOK-nummer för befintliga regelverk"]
[null,null,null,"Förtydligat krav för data till BIS och GAD"]
["2.0","2015-10-01",null,"Flik 33: Lagt till tidskravet - 4mån före ÖFT för spårledningar i BIS. Detta för att möte upp NTL:s krav.","Maria Davidson, UHjja"]
[null,null,null,"Flik 33: Lagt till objekttypen Spänningsfri temperatur "]
[null,null,null,"Flik 14: Rättat till tidskravet för gruppschema"]
["3.0","2016-10-01",null,"Ändrat ordningen på flikarna för att passa nya TDOK 2016:0407 Data över järnvägsanläggningen. Så att de kommer i bättre ordning efter leveranstider. Leder till ändring av fliken Projektuppgifter.","Maria Davidson, UHjja"]
[null,null,null,"Filk 2: Nya TMALLAR"]
[null,null,null,"Filk 3: Ny TMALL"]
[null,null,null,"Flik4: Kraven är omskrivna, men i grunden samma krav som tidigare"]
[null,null,null,"Flik 6: Förtydligat vad som ska levereras till Tågledningssystemet"]
[null,null,null,"Flik 13: RFID är ny anläggningstyp"]
[null,null,null,"Flik 14: Nya TMALLAR"]
[null,null,null,"Flik 34: Nu registreras \"Material och kemiska produkter\" i Maximo. Därför har dessa utgått från alla andra flikar."]
["4.0","2017-01-01",null,"Miljö: Ändrat leveranstidskrav till 1 månad för slutbesiktning","Maria Davidson, UHjja"]
[null,null,null,"Allmänna förbättringar av mallen"]
[null,null,null,"Ny flik: Plk webb"]
[null,null,null,"Infogat ett exempel på förtydligande av etappindelning (flik 43)"]
["5.0","2017-03-01",null,"Flik Detektor: RFID-detektor borttaget då den har en egen flik.","Maria Davidson, UHjja"]
[null,null,null,"Flik Teknikhus och Belysning växelvärme: Färre dokument ska ut i anläggningen."]
[null,null,null,"Flik BIS-objekt: Ändrat Slopnings och ändringslista för FOMUL till +1V"]
["6.0","2017-07-01",null,"Flik BIS-objekt: TMALL 0663 BIS - Kemisk ogräsbekämpning är slopat i BIS","Maria Davidson, UHjja"]
[null,null,null,"Flik BIS-objekt: TMALL 0667 BIS – Restriktionsyta för kemisk ogräsbekämpning är slopat i BIS"]
[null,null,null,"Flik Belysning växelvärme…:Skyltlista är slopad"]
[null,null,null,"Flik Signal: IL och PLS-filer har nytt leveranstidskrav; +1 v"]
[null,null,null,"Flik Miljö: Har flyttat TMALL 0188 från Bullerskydd Hägnad till Miljö samt nytt leveranstidskrav"]
[null,null,null,"Flik JNB/Tågplan: Rättat felaktigt TMALL-nummer för Tågplan till 0480"]
[null,null,null,"Flik Signal: tagit bort kolumnen med uppgifterom ritningsnummer. Uppgifterna i Ebbot räcker"]
["7.0","2017-11-01",null,"Reviderat leveranstidskrav, så att de bättre passar verkliga skeden i ett projekt","Maria Davidson, UHjja"]
[null,null,null,"Krav för data till linjeboken är flyttad till fliken \"JNB, Tågledning\""]
[null,null,null,"Fliken BIS-Objekt: Nya leveranstidskrav för en mängd olika objekt. "]
["8.0","2018-01-11",null,"Flik Projektuppgifter: Rättat felaktiga hänvisningar till TDOK 2016:0407","Maria Davidson, UHjja"]
[null,null,null,"Flik BIS/GAD Spårnät: Ändrat filformat för TMALL 0664 och 0666"]
[null,null,null,"Flik BIS Objekt: Nya mallar: TMALL 0851 BIS-Högtalare-PC och TMALL 0852 BIS-Ljudanläggning"]
[null,null,null,"Flik BIS Objekt: Mallar som utgått: TMALL 0646 BIS-Ljudanläggning"]
[null,null,null,"Flik BIS Objekt: Flyttat \"Bangårdssäkerhet\" till \"Övriga objekttyper\""]
["9.0","2018-03-01",null,"Flik Projektuppgifter: Förtydligat vilket datum som projektet ska skriva i fältet \"Leveransdatum enligt krav\"","Maria Davidson, UHjja"]
[null,null,null,"Flik BIS Objekt: Lagt till kolumnen \" Leveransdatum enligt krav\" för projekten."]
[null,null,null,"Flik BIS Objekt: Reviderat leveranstidskrav. Flyttat från – 6 mån till + 1 v för följande BIS-mallar:"]
[null,null,null,"TMALL 0611 Växelvärmeskåp"]
[null,null,null,"TMALL 0612 50 Hz Frånskiljare"]
[null,null,null,"TMALL 0618 Ktl – Brygga"]
[null,null,null,"TMALL 0619 Ktl – Driftjord"]
[null,null,null,"TMALL 0621 Ktl – Sektion"]
[null,null,null,"TMALL 0623 Ktl – Sektionsisolator"]
[null,null,null,"TMALL 0624 Ktl – Skyddssektion"]
[null,null,null,"TMALL 0625 Ktl – Stolpe"]
[null,null,null,"TMALL 0626 KTL – Transformator"]
[null,null,null,"TMALL 0659 Teknikbyggnad"]
[null,null,null,"Nytt krav för – 6 mån: TMALL 0876 BIS – Ktl U/L-område"]
[null,null,null,"Krav som utgått för + 1 v: TMALL 0563 BIS – Plattformsövergång"]
[null,null,null,"Leverans från PATCY (Förvaltningsdata) flyttat från +1 v till +3 v efter inkoppling"]
["10.0","2018-06-01",null,"Flik Projekt: Rättat till felaktiga hänvisningar till TDOK 2016:0407","Maria Davidson, UHjja"]
[null,null,null,"Flik BIS Objekt: Rättat leveransformatför Patcy från xlsx till txt"]
[null,null,null,"Flik BIS Objekt: Ändrat namn för TMALL 0615 Bangårdsbelysning till Belysning"]
[null,null,null,"Flik BIS Objekt:: Ny mall: TMALL 0953 BIS - Kommunikationsobjekt "]
[null,null,null,"Flik BIS Objekt: Nu får man leverera slopnings- och ändringslistor för de objekt som ingår vid en viss leveranstid. Tidigare var kravställningen att  alla slopningar och ändringar skulle in vid - 6 mån."]
[null,null,null,"Flik BIS_GAD Spårnät: Kravet på att leverera EN slopnings och ändringslista för hela projektet vid - 6 mån har utgått och ersatts av leverans av slopnings och ändringslista vid leveranstid för respektive objekt."]
[null,null,null,"Flik Miljö: Rättat  till arbetsflödet (kolumnernas namn)"]
[null,null,null,"Flik JNB/Tågplan: Leveranstiden för JNB har förtydligats från 21-31 mån till 32-20 mån"]
[null,null,null,"                                 Leveranstiden för Tågplan har skrivit om från 13-25 mån till 25-13 mån"]
[null,null,null,"Flik Bro, Tunnel, Teknikhus, Distributionsnät: Nytt krav: Programvara för PLC"]
[null,null,null,"Flik Belysning, växelvärme, distributionsnät samt Teknikhus: Nytt krav: Larminstruktion"]
[null,null,null,"Filk Bergskärning, Tunnel, Snögalleri. Dessa ska nu lagras i BATMAN"]
["11.0","2018-12-01",null,"Samtliga flikar: Ändrat färg på rubrik från röd till grå för att kommentarstriangeln i varje cell ska synas tydligare.","Maria Davidson, UHjja"]
[null,null,null,"Samtliga flikar: Ändrat kravet från pdf/a till \"bara\" pdf"]
[null,null,null,"Flik Projektuppgifter: Tre nya fält: Inkopplingsdatum, Slutbesiktningsdatum, Datum för möjlig trafikstart"]
[null,null,null,"Flik 5 BIS Objekt: Ny mall: TMALL 0962 BIS - Dilatationsanordning"]
[null,null,null,"Flik 5 BIS Objekt: Ny mall: TMALL 0963 BIS - Skarv öppningsbar bro"]
[null,null,null,"Flik 5 BIS Objekt: Namnbyte av TMALL 0608 från Skarv till Isolerskarv"]
[null,null,null,"Flik 12 Miljö: Ny TMALL 0873 Miljöwebb Landskap - Övrig miljöföreteelse. Krav på klimatdeklaration har utgått."]
[null,null,null,"Flik 14 Bro: Fliken har ändrat namn till Bro, bullerskärm, då bullerskärmar nu ska lagras i BATMAN"]
[null,null,null,"Flik 20 Buller, hägnad: Förtydligat att Bullerskärmar nu ska levereras enligt flik 14. Konstruktionsberäkning har utgått som krav på dokumentation för bullerskydd."]
[null,null,null,"Flik 37 Kameraövervakning: Kameraövervakning är borttaget från TMALL:en. Leder till nya fliknummer för Passage, Trafikinfo, Säkerhetsbev."]
["12.0","2019-03-01",null,"Alla flikar: Förtydligat att leveranstiden är den tid när projektet ska ha överlämnat data till förvaltande system.","Maria Davidson, UHjja"]
[null,null,null,"Flik projektuppgifter: Möjliggjort sortering efter leveranstid"]
[null,null,null,"Flik 1 Anläggningsmodeller: Fliken har bytt namn till Geografiska modellfiler"]
[null,null,null,"Flik 4 BIS_GAD spårgeometri:\nSlopade BIS-mallar TMALL 0664 Plangeometri och TMALL 0666 Profilgeometri\nFörtydligat att dokumentationen för Bygghandling/Systemhandling ska levereras i samma mapp i projektets lagringsyta som övriga data över spårgeometrier till BIS/GAD."]
[null,null,null,"Flik 5 BIS Objekt: \nÄndrat leveranstidskrav för BIS-Tåg och lokvärmeanläggning (TMALL 0566) från + 1v till - 6 mån.\nLagt till texten: OBS! Endast EN leverans för - 6 mån, inte många småleveranser!\nFörändrade krav på vilka listor (för signalanläggningen) som ska levereras från tågledningssystemet, 6 mån före inkoppling."]
[null,null,null,"Flik 6 Bef. Tågledn. Syst: Ny text: IBTL godkänner i leveransplanen efter samråd med IBTL-TC"]
[null,null,null,"Flik 7 Plk webb: Fliken har bytt namn till Plankorsning"]
[null,null,null,"Flik 13 Kopplingsschema: Rättat felaktig mejladress"]
[null,null,null,"Flik 14 Bro, bullerskärm: Förtydligat att data för bullerskärm ska lagras i BATMAN, men teknisk dokumentaiton för bullerskärm ska lagras i Ebbot."]
[null,null,null,"Flik 20 Buller, hägnad: Rättat, Teknisk dokumentation för bullerskärmar ska lagras i Ebbot, inte i BATMAN. Lagt tillbaka kravet på Konstruktionsberäkning för bullerskärm."]
[null,null,null,"Flik 26 Spår, Spårväxel: Rättat fel. Inga underlagsfiler ska levereras."]
[null,null,null,"Flik 28 Bel, vxlvärme, kraft: Har rättat fliknamn till Bel, vxlvärme, distr."]
[null,null,null,"Flik 35 Signal: Rättat ILU-fil till LEU-fil. Ny tabell \"Lista över ritningar som ska slopas\"."]
[null,null,null,"Flik 36 Detektor: Rättat krav att Situationsplan ska levereras med filformatet dgn."]
[null,null,null,"Flik 39 Säkerhetsbevisning: Rättat filformat. Enbart en zip-fil ska levereras av säkerhetsbevisningen, inte \"fristående filer\" i pdf, xls och doc."]
["13.0","2019-06-01",null,"Flik Anvisningar: Förtydligat hur man bör arbeta med leveransplanen.","Maria Davidson, UHjja"]
[null,null,null,"Flik 12 Miljö: Ändrat leveranstidskravet från \"1 mån före slutbesiktning\" till \"2 mån efter slutbesiktning\"."]
[null,null,null,"Flik 18 Vändskiva: Ska nu lagras i BATMAN inte i Ebbot."]
[null,null,null,"Flik 21 Geoteknik: Ändrat tidskravet för \"Undersökning\" så att även dessa ska överlämnas till \"3 mån efter slutbesiktning\"."]
["14.0","2019-09-01",null,"Helt omarbetad version utifrån resultatet från projekt Anpassat regelverk.","Maria Davidson, UHjja"]
[null,null,null,"Teknikområdesindelningen bygger på strukturen enligt TDOK 2019:0349 Indelning av väg- och järnvägsanläggningen i tekniska ansvarsområden"]
[null,null,null,"Flik 4.1 Bankropp: TMALL 0582 Data till BIS - Jordspikning har utgått"]
[null,null,null,"Flik 9.1 Signalsystem: Förtydligat att Ebisat-program ska levereras samt dokumentation/data enligt TDOK 2014:0512 bilaga 5 och 6."]
[null,null,null,"Flik 12.1 Spårnät: Nytt krav på TMALL 1054"]
["15.0","2019-12-01",null,"Alla flikar: Nya kolumner med leveransplats och aviseringsadress.","Maria Davidson, UHjja"]
[null,null,null,"Flik BIS-Lathund Rättat ett fel: TMALL för Service och räddningstunnel har TMALLnr 0588"]
[null,null,null,"Flik Kontakt- och aviseringsuppgifter: Nya uppgifter för avisering av kraftstationer till ProjectWise/Förvaltning Järnväg."]
[null,null,null,"Flik 4.1 Bankropp: TMALL 0582 Data till BIS - Jordspikning har kommit tillbaka"]
[null,null,null,"Flik 6.3 Kontaktledningssystem: Kopplings- och gruppschema ska levereras som dgn eller prj, inte som dgn eller dwg."]
[null,null,null,"Flik 6.4 Nya krav att projektet ska registrera relationshandlingen/underlag för relationshandlingen för kraftstationer i det förvaltande systemet ProjectWise/Förvaltning Järnväg"]
[null,null,null,"Filk 6.4 Nytt tidskrav för kraftstationer (undantaget nätstation). Tidigare 3 månader efter slutbesiktning, nu 2 veckor efter slutbesiktning."]
[null,null,null,"Flik 8.1 Signalsystem: Beskrivit att det är systemleverantören som registrerar uppgifter direkt i PW/FU.\nFöljande TMALLar har utgått:\nTMALL 0694 Fiktiv informationspunkt\nTMALL 0811 Lokalfrigivningsområde\nTMALL 0693  Nödstoppsområde (ERTMS)\nTMALL 0689  Relation, Kopplade växlar – Spårspärr\nTMALL 0690  Relation, Nedbrytningsspårledning\nTMALL 0808  Relation, Plankorsning\nTMALL 0809  Relation, Signalställverk\nTMALL 0688  Relation, Summerad spårledning\nTMALL 0806  Remote Terminal Unit\nTMALL 0805  Signal (främst ATC) \nTMALL 0692 TSR Element"]
[null,null,null,"Flik 9.1 Banöverbyggnad: \n- Rättat ett fel: Spänningsfri temperatur till BIS ska levereras senast 3 veckor efter inkoppling.\n- Objekten \"Rangerbromssystem, Rälssmörjningsapparat, Spårspärr och Stoppbock fällbar flyttas från Sidoanläggning till Banöverbyggnad. "]
[null,null,null,"Flik 9.3 Sidoanläggning: Har bytt namn, hette tidigare Bangårds- och sidoanläggning."]
[null,null,null,"Flik 15.5 Miljö: Ändrat så att teknisk dokumentation för Miljö (Övergripande) ska lagras i Ebbot inte i PW/FJ."]
["16.0","2020-06-24",null,"Flik Kontakt- och aviseringsuppgifter: Nya uppgifter för avisering till Borrhålsdatabasen: geodb@trafikverket.se","Maria Davidson, UHjja"]
[null,null,null,"Flik Projektuppgifter: Ny text: Dokumentation över GOP (Godkännadeprocessen) ska inte levereras som förvaltningsdata utan ska levereras till Diariet\nNy text om att varje projekt måste garantera att stomnätet inte har blivit förstört och att projektet i så fall har levererat data på det nya stomnätet.\nNy text om att varje projekt måste garantera att man inte påverkat det geodetiska stomnätet."]
[null,null,null,"Flik 5.2 Bro: TMALL 0665 Planskild korsning (BIS) har utgått."]
[null,null,null,"Flik 5.2 Bro; 5.3 Tunnel; 5.4 Övriga byggnadsverk: Kravet på ”Övriga konstruktionsritningar” är borttaget."]
[null,null,null,"Flik 5.3 Tunnel: Förtydligat att bergskärning ska lagras med tunnlar."]
[null,null,null,"Flik 6.3 Kontaktledningssystem: Nytt krav för teknisk dokumentation för Sugtransformatorer. Ändrat namn från AT-dokumentation till AT-transformator"]
[null,null,null,"Flik 8.1 Signalsystem: \n- Förtydligat via kommentarsrutor i celler, vad de olika ställverksdokumenten betyder, tex Onepoint, indication etc.\n- Ändrat namn på TMALL 0632 från HIS-givare till Hastighetsindikeringssystem\n- Ändrat tidskrav för TMALL 0631 Balisgrupp ERTMS, TMALL 0633 Linjeblockeringssystem och TMALL 0691 Radio Block Center    (ERTMS) från \"6 månader före inkoppling\" till \"3 veckor efter inkoppling\".\n- Nytt krav på Ställverksdokumentaion för ställverk modell CST.\n- TMALL 0807 Spårledning (Summerad) har slopats."]
[null,null,null,"Flik 9.2 Förtydligat inleveransen av geodetiskt stomnät."]
[null,null,null,"Flik 10.2 Siter och kabelanl.: Väldigt mycket är förtydligt och omgjort."]
[null,null,null,"Flik 13.1 Trafikstyrningssystem: Ändrat tidskravet från \"4 månader före inkoppling\" till \"4 månader före inläsning\". Även en ny defintion av \"inläsning\" under fliken Definitioner.\nTagit bort kravet på kvittens av mottagande förvaltning."]
[null,null,null,"Flik 15.1 Adminintrativ och funktionell företeelse: Ändrat tidskrav för TMALL 0813 Uppställningsspår från \"6 månader före inkoppling\" till \"3 veckor efter inkoppling\"."]
[null,null,null,"Flik 15.8 Tågplan: Fliken har utgått. Projekten ska fortfarande leverera uppgifter till Tågplan, men uppföljningen av detta sker inte längre i leveransplanen utan i överlämnandeplanen (TMALL 0224)"]
[null,null,null,"Flik 15.9 Underlag för linjeboken: Ny fliknumrering pga uppdatering i regelverket TDOK 2016:0407 (Pga av att kapitlet för tågledning utgått)"]
["17.0","2020-09-01",null,"Flik Kontaktuppgift_avisering: \nUppgifter om \"Databasen för geotekniska borrhål\" är borttagen då inga leveranser längre ska gå till systemet, utan dessa leveranser ska nu gå till ProjectWise.","Maria Davidson, UHjja"]
[null,null,null,"Flik 4.1 Bankropp\nNytt krav att Geosuit-projektet nu ska levereras och lagras i ProjectWise och inte i Databasen för geotekniska borrhål."]
[null,null,null,"Flik 8.1 Signalsystem\nNytt: TMALL 1157 RTU Siemens S7 samt TMALL 1158 RTU EBISAT 890\nUtgått:\n- Configfil, för ställverk modell 59, 65, 85, 95 och CST\n- RTU, för ställverk modell 59, 65, 85, 95 och CST\n- Inläggningsplaner RTU, för ställverk modell 65 och CST\n- Kabellista, för ställverk modell 65 och CST\n- COS interface och COS objectlist för ställverk modell 95"]
["18.0","2020-12-01",null,"Alla flikar: \n- Gjort så att det är lite lättare att filtrera, tex på Aktuellt att upprättas av projekt.\n- Lagt till \"ärendenummer\" för fältet Levererat och aviserat leveransen till mottagande förvaltning (datum + namn+ ärendenummer)\n- Ändrat valen i fältet Aktuellt att upprättas av projektet till Ja/Nej/? istället för X/Ej aktuellt/?. Detta för att tydliggöra att man måste ta ställning och inte bara glömmer att sätta ett X.\n- Lagt till en hävisningstext: OBS! Material- och kemikalieförteckning ska dokumenteras och levereras enlligt flik 15.5 Miljö","Maria Davidson, UHjja"]
[null,null,null,"Flik Kontaktuppgift_avisering samt 5.2, 5.3 och 5.4\nNy mejladress för aviseringsuppgifter för leveranser till BATMAN och ProjectWice/ICT. Samt reviderad kontaktuppgift för teknikfrågor angående telekom- infrastruktur"]
[null,null,null,"Flik Leveranstider - Bild\nUppdaterat bilden med nya/reviderade leveranstider"]
[null,null,null,"Flik Definitioner\nFörtydligat definitionen för inkoppling."]
[null,null,null,"Flik Projektuppgifter samt 5.2, 5.3 och 5.4\nNytt krav att Huvudinspektioner ska lagras i BATMAN och leveras vid dagen för inkoppling."]
[null,null,null,"Flik 6.1 GELD inl. RTU:er\n- Tagit bort kravet att dokument ska levereras över systemen  AK 1703 APC, TM 1703 Mic, TM 1703 APC\n- Kompletterat APDL-verktyg (EED-fil) med Promise-fil."]
[null,null,null,"Flik 8.1 Signalsystem\n- Flyttat TMALL 0631 Balisgrupp ERTMS från 3 mån efter inkoppling till 6 mån före inkoppling\n- Flyttat följande dokument från ”6 mån före inkoppling” till ”1 v efter inkoppling”:\nStällverk 59: Onepoint, Indication\nStällverk 65: Sequence, Indication\nStällverk CST: Sequence, Indication\nStällverk 85: Onepoint, Indication\nStällverk 95: Onepoint, Indication\n- Flyttat följande dokument från ”3 mån efter slutbesiktning” till ”10 v före inkoppling”: Ställverk 95: Enligt TDOK 2014:0512, bilaga 6, paket 2 \n- Ny leveranstid: 10 veckor efter inkoppling\n- Flyttat följande dokument från ”6 mån före inkoppling” till ”10 v före inkoppling”: Ställverk 85: CIS-lisat, Identitetslista, Automatlista, Förbindelselista\n- Flyttat följande dokument från ”3 mån efter slutbesiktning” till ”10 v före inkoppling”: Ställverk 95: Enligt TDOK 2014:0512, bilaga 6, paket 2 \n- Nytt krav: Ställverk 11: SEI_CONFIG, SEI_STATUS_ENUM, SEI_COMMANDS"]
[null,null,null,"Flik 9.2 Geodetiskt stomnät\nReviderat texten för ”Samlad slutredovisning”."]
[null,null,null,"Flik 10.1 Radio och telefoni\nReviderat leveranstidskravet \"Vid färdig bygghandling\" till \"Vid färdig bygghandling, senast 6 månader före inkoppling\"."]
[null,null,null,"Flik 10.2 Siter och kabel\nReviderat leveranstidskravet \"Vid färdig bygghandling\" till \"Vid färdig bygghandling, senast 6 månader före inkoppling\"."]
[null,null,null,"Flik 15.5 Miljö: Tagit bort kravet på signering i fältet \"Leveranskontrollerat av MWL\". Fältet är nu utgråat."]
["19.0","2021-04-01",null,"Flik Projektuppgifter\nNy leveranstid \"6 mån före plankorsningen tas ibruk för järnvägstrafik\"","Maria Davidson, UHjja"]
[null,null,null,"Flik Definitioner\nFört in en definition/förklarning för ibruktagning och slutbesiktning."]
[null,null,null,"Flik 6.5 Lågspänning\nKapitlet har bytt namn från Teknikhus till Teknikbyggnad och omfattar även kiosk och kur."]
[null,null,null,"7.2 Passagesystem\nFörtydligat vem som signerar vad."]
[null,null,null,"Flik 8.1 Signalsystem\n- Nytt krav på bilaga 4, paket 3 enligt TRVINFRA 00301 (Dagen för inkoppling).\n- Ändrat hänvisning från TDOK 2014:0512 till TRVINFRA 00301"]
[null,null,null,"Flik 10.2 Siter och kabel\nUppdaterat att Nödfrånkopplingsslinga ska levereras vid färdig bygghandling samt vid 3 mån efter slutbesiktning."]
[null,null,null,"Flik 15.6 Plankorsning\nNy leveranstid \"6 mån före plankorsningen tas ibruk för järnvägstrafik\", samt ny leverans vis denna tid för \"Ny plankorsning\""]
["20.0","2021-11-01",null,"Allmänt: Ebbot har bytt namn till Ebba."]
[null,null,null,"Ny flik: Arkivservice - Analog leverans\nEtt förtydligande hur projekten måste packa sina kartonger med analog förvaltningsdata till Arkivservice i Mölndal Detta för att underlätta arkivpersonalens arbete med att packa upp handlingarna korrekt."]
[null,null,null,"Flik Leveransplan\n- Platshållare för konfidentialitetsmärkning inlagt i sidhuvudet\n- Ny text: Tidskraven avser när leveransen ska vara godkänd av mottagande förvaltning."]
[null,null,null,"Flik Projektuppgifter\n- Ny rad för etappbeskrivning. Raden är flyttad från flik 12.1 Spårnät, då etappbeskrivningen är viktig för samtliga leveranser till BIS.\n- Indatastöd har bytt namn till indatakoordinering","Maria Davidson, UHjja"]
[null,null,null,"Flik 0 Väg: Ny"]
[null,null,null,"Flik 0 JNB: Ny (Tillbaka i leveransplanen)"]
[null,null,null,"Flik 0 Tågplan: Ny (Tillbaka i leveransplanen)"]
[null,null,null,"Flik 4.1 Bankropp\n- Nytt krav: TMALL 1166 Nedpressning\n- Information om att trumma nu lagras som \"Övriga byggnadsverk\" i BATMAN, inte längre i Ebba.\n- Uppdaterad information om kalkcementpelare."]
[null,null,null,"Flik  5.2 Bro\n- Nytt fält för konstruktionsnummer. Detta ska fyllas i av projektet.\n- Ändrat filformat för visningsfier från pdf till pdf/a.\n- Nytt krav: Myndighetsbeslut enligt miljölagstiftning samt Skötselbeskrivning. Material- och kemikalieförteckning ska lagras som pdf/a i BATMAN, underlagsfilen lagras som ”Miljö, flik 15.5” dvs i Ebba.\n- Slopat krav: Kulturhistorisk klassning/beslut, Underhållsplan miljö samt Miljöinspektioner.\n- Ändrat leveranstidskrav för bla. geoteknisk- och miljödokumentation från 1 mån efter ibruktagande till 2 mån efter slutbesiktning."]
[null,null,null,"Flik  5.3 Tunnel och bergslänt\n- Nytt fält för konstruktionsnummer. Detta ska fyllas i av projektet.\n- Ändrat filformat för visningsfier från pdf till pdf/a.\nNytt krav: Bärighet, Myndighetsbeslut enligt miljölagstiftning samt Skötselbeskrivning. Material- och kemikalieförteckning ska lagras som pdf/a i BATMAN, underlagsfilen lagras som ”Miljö, flik 15.5” dvs i Ebba.\n- Slopat krav: Kulturhistorisk klassning/beslut samt Miljöinspektioner.\n- Ändrat leveranstidskrav för bla. geoteknisk- och miljödokumentation från 1 mån efter ibruktagande till 2 mån efter slutbesiktning."]
[null,null,null,"Flik  5.4 Övriga byggnadsverk\n- Nytt fält för konstruktionsnummer. Detta ska fyllas i av projektet.\n- Ändrat filformat för visningsfier från pdf till pdf/a.\n- Nytt krav: Myndighetsbeslut enligt miljölagstiftning samt Skötselbeskrivning. Material- och kemikalieförteckning ska lagras som pdf/a i BATMAN, underlagsfilen lagras som ”Miljö, flik 15.5” dvs i Ebba.\n- Slopat krav: Kulturhistorisk klassning/beslut, Underhållsplan miljö samt Miljöinspektioner.\n- Ändrat leveranstidskrav för bla. geoteknisk- och miljödokumentation från 1 mån efter ibruktagande till 2 mån efter slutbesiktning."]
[null,null,null,"Flik 6.3 Kontaktledningssystem\n- Slopat kravet på leverans av slutbesiktningsprotokoll.\n- Slopat kravet på Jordningsplan och ersatt det med krav på Jordningslista och Jordningsschema.\n- Ritningar över kopplings- och gruppschema ska inte längre bifogas i aviseringsmejlet utan ska nu läggas upp i ProjectWise/Förvaltning Järnväg/ Förvaltningsdata Leveranser/_EL_Kopplingsscheman"]
[null,null,null,"Flik 6.4 Kraftstationer\n- Ändrade krav att material- och kemikalieförteckningar för samtliga kraftstationer ska lagras med dokumentationen för stationen och inte längre med Miljödokumenten (flik 15.5) i Ebba.\n- Rättat leveranstidskravet för frånskiljarstationer från 2 v efter slutbesiktning till 3 mån efter slutbesiktning, samt krav på leveransens innehåll."]
[null,null,null,"Flik 6.5 Lågspänning\n- Rättat vilka dokument som ska ha en kopia i anläggningen.\n- Tåg och lokvärme: Nytt krav på \"Programvara för PLC\"."]
[null,null,null,"Flik 8.1 Signalsystem\n- Tagit bort aviseringsuppgifter för de handlingar som ska registreras direkt i PW/FU, av systemleverantör. Dessa beskrivs i egen rutin mot systemleverantör.\n- Ändrat att systemtekniker EBICOS nu ska leverera till ett arbetsrum inte till PW.\n- Ändrat leveranstidskrav för Hastighetsindikeringssystem (TMALL 0632) från 1 v efter inkoppling till 6 mån före inkoppling.\n- Ändrat leveranstidskrav för RTU EBISAT 890 (TMALL 1158) från 6 mån före inkoppling till 10 v före inkoppling. \n- Ändrat leveranstidskrav för Signalställverk (TMALL 0639) från 6 mån före inkoppling till 10 v före inkoppling.\n- Ändrat leveranstidskrav för Radio Block Center TMALL 0691) från 3 v efter inkoppling till 10 v före inkoppling.\n- Nytt krav: TMALL 1278 Transmissionsdata EBISAT\n- Nytt krav: Stlv 95: Enligt TRVINFRA 00301 Bilaga 4, paket 7.\n- Nytt krav: Stlv 11: TMALL 1276 Transmissionsdata signalställverk samt TMALL 1277 Transmissionsdata RBC"]
[null,null,null,"Flik 9.1 Banöverbyggnad\nFörtydligat att leveransen av Spänningsfri temperatur alltid ska ske via TMALL 0672, aldrig via slopnings- och ändringslista. "]
[null,null,null,"Flik 9.2 Geodetiskt stomnät\n- Flyttat kolumn angående \"garanti för att inga stompunkter raserats eller eller nyetablerats utöver det som ska/har redovisats i flik 9.2 Geodetiskt stomnät\" från fliken Projektuppgifter till denna flik. Även lagt till en text som talar om att det är brottsligt att flytta eller rasera dessa punkter.\n- Bytt aviseringsadress till forvaltningsdata.jarnvag@trafikverket.se"]
[null,null,null,"Flik 10.2 Siter och kabel\nÄndade leveranstidskrav för samtliga Koordinatförteckningar för dukt, kabel och skarvar samt Protokoll från optiska mätningar. Dessa ska nu levereras 10 v före inkoppling."]
[null,null,null,"Flik 12.1 Spårnät\n- Nytt krav: TMALL 0662 BIS - Hållplats, hållställe, övrig plats\n- Tagit bort kravet för filformatet xlsx för Koordinatförteckning spårväxlar, stoppbock/spårslut, vändskiva "]
[null,null,null,"Flik 15.5 Miljö\n- Nytt krav: TMALL 0974 Miljöwebb Landskap - Kulturhistorisk järnvägsmiljö\n- Förtydligat att material- resp. kemikalieförteckning ska levereras som fristående filer, inte som bilagor till överlämnanderapport miljö."]
["21.0","2022-04-15",null,"Allmänt. Tagit bort kolumner med information om aviseringsadresser i samtliga flikar. Detta pga att projekten istället ska läsa i TDOK 2016:0411 för att få aktuella och  tydligare uppgifter.","Maria Davidson, UHjja"]
[null,null,null,"Flik Kontaktuppgifter\nTagit bort uppgifter om aviseringsadresser, då dessa ska utläsas ut TDOK 2016:0411 för att få aktiuell information samt uppgifter om ved ett aviseringsmejl ska innehålla för uppgifter."]
[null,null,null,"Flik Arkivservice - Analog leverans\nNy text i hela fliken. Pga. nu ska det enbart levereras analoga handlingar som saknar CAD-underlag till Arkivservice (tex plastfilm och väv). Det gäller alla teknikområden, nu även signal."]
[null,null,null,"Flik Projektuppgifter\nNya kolumner med tidskrav från leverantör till projekt"]
[null,null,null,"Flik Geografiska modellfiler\nSlopat krav: Modellutsnitt samt modellfil tunnel."]
[null,null,null,"Flik 3D-modell\nNy flik som talar om att UH nu tar emot och lagrar 3D-modeller."]
[null,null,null,"Flik 4.1 Bankropp\n- Ändrat krav för Kalkcementpelare. Underlagsfilen ska nu ha filformat xlsx (tidigare docx, dgn,dwg).\n- Förtydligat kravet för trumma, att dessa ska levereras enligt leveranstidskrav för Övriga byggnadsverk och även registreras i fliken för Övriga byggnadsverk"]
[null,null,null,"Flik 5.1 Brand och nödutrustning\nHar flyttat Brandpost, Nödlägesskylt, Nödlägesskåp, Pumpanläggning brandvatten, Tyfonlarm och vindvisare till flik 15.7 Rangeranläggning"]
[null,null,null,"Flik 6.3 Kontaktledningssystem\nÄndrat krav: Ändrat från Jordningsschema till Jordningsschema/-plan"]
[null,null,null,"Flik 6.5 Lågspänning\nÄndrat krav: TMALL 0615 har bytt namn från Belysning till Belysning - Plattform (1 v efter inkoppling)\nÄndrat krav: Teknikbyggnad/Gemensamma handlingar, Larminstruktion har bytt namn till Driftledningsinstruktion. Ny förklaringstext.\nNytt krav: TMALL 1301 Belysning - Bangård (1 v efter inkoppling)\nNytt krav: Växelvärme; Yttre förbindningsschema (3 mån efter slutbesiktning)\nSlopat krav: Kravet på filformaten ciprj och cit för skåpspecifikationer har utgått. "]
[null,null,null,"Flik 8.1 Signalsystem\n- Nytt krav HMI-program, HMI-utsrift samt PLS-utskrift ska levereras.\n- Nytt krav: TMALL 1322 ELC (3 v efter inkoppling)\n- Nytt krav: TMALL 1321 Utdelsenhet (3 v efter inkoppling)\n- Slopat krav: TMALL 1278 Transmissionsdata EBISAT\n- Slopat krav: Stlv 95: Enligt TRVINFRA 00301 Bilaga 4, paket 7.\n- Slopat krav: Stlv 11: TMALL 1276 Transmissionsdata signalställverk samt TMALL 1277 Transmissionsdata RBC\n(Kraven ovan är slopade från leveransplanen men kvarstår i TDOK 2016:0407 då det är en leverans från leverantör till projekt, men inte från projekt till mottagande förvaltning. Därför hör inte kravet hemma i leveransplanen.)"]
[null,null,null,"Flik 9.1 Banöverbyggnad\nRättat filformat för TMALL 0601-0603 från xlsx till pdf.\nNytt krav: TMALL 1267 Pyramidmatta (3 v efter inkoppling)"]
[null,null,null,"Flik 9.3 Sidoanläggning\nFlyttat TMALL 0573 till flik 15.7 Rangerbangård."]
[null,null,null,"Flik 10.1 Radio och telefoni\nNytt avsnitt/nya krav för tunnelradio."]
[null,null,null,"Flik 10.2 Siter och kabel\nNytt krav för optiska spridningsnät: Kabelstativ/Stativ (Vid färdig bygghandling samt 3 mån efter slutbesiktning)"]
[null,null,null,"Flik 11.1 Trafikinformationsanläggning\nSlopat krav: TMALL 0953 Kommunikationsobjekt"]
[null,null,null,"Flik 15.1 Admin. o funkt. företeelse\nReviderade text för FOMUL: Ändrad från ”Vid större förändring av anläggningen” till ”Vid förändring av spårets läge eller ändring av flera objekt”."]
[null,null,null,"Flik 15.4 Mark\n- Reviderat krav för ”Plan och profil över service- och räddningsvägar”, som även har bytt namn till ”Ritningar över tillträdes-, service och räddningsvägar”.\n- Slopat krav: Miljödom\n- Nytt krav: Driftledningsinstruktion, pumpanläggning"]
[null,null,null,"Flik 15.5 Miljö - Övrigt om miljö\nÄndrat filformat för visningfil till pdf för Underlag för beredskapsplan för vattenskyddsåtgärder. Docx är filformat för underlagsfilen."]
[null,null,null,"Flik 15.7 Rangerbangård\n- Har flyttat hit Brandpost, Nödlägesskylt, Nödlägesskåp, Pumpanläggning brandvatten, Tyfonlarm och vindvisare från flik 5.1 Brand och nödutrustning. (OBS! Några av dessa får nytt namn i punkter nedan)\n- Nytt krav: TMALL 1326 Brandvattenförsörjning (Är en sammanslagning av TMALL 0569 Brandpost och TMALL 0572 Pumpanläggning brandvatten)\n- Nytt krav: TMALL 0337 Gångbana, TMALL 1335 Avhängardäck, TMALL 1336 Tryckluftsanläggning samt TMALL 1334 Bromsprovsanläggning.\n- Nytt namn: TMALL 0570 Nödlägesskylt byter namn till Åtkomlighet och nödlägesinformation\n- Nytt namn: TMALL 0574 Tyfonlarm byter namn till Varningssystem\n- Nytt namn: TMALL 0575 Vindvisare byter namn till Väderobservationsutrustning\n -Flyttat TMALL 0573 Spillplatta till detta kap från 9.3.1 Sidoanläggning\n- Nya krav på dokumentation för Styr- och övervakningssystem, Utrustning för skydd mot olyckor och Väderobservationsutrustning"]
[null,null,null,"Flik 15.10 Underlag till säkerhetsplan, driftplats\nNy flik och nytt krav."]
["22.0","2022-10-14",null,"Flik Projektuppgifter\nNy text för Etapp-/Projektuppgifter: - Vilka ändringar som sker av trafikplats(er) och dess utbredning avseende Trafikplatsnamn och trafikplatssignatur, platstyp, fastställt kilometertal och koordinat för platsmitt.\nAnge också ev. ändring av en trafikplats utbredning med flyttad gräns(er) till annan trafikplats eller linje.","Maria Davidson, UHjjm"]
[null,null,null,"Flik 0 Erfarenhetsdrift\nNy flik"]
[null,null,null,"Flik fd. 5.1 Brand och nödutrustning\nFliken har utgått och TMALL 0588 Service och räddningstunnel har flyttat till flik 5.2 Tunnel och bergsskärning"]
[null,null,null,"Flik 5.1 Bro\n- Förtydligat att data ska vara registrerade och skickade för fastsällelse.\n- Sammanställningsritning har utgått som eget krav och ingår nu i kravet för Ritningar.\n- Redogörelse för konstruktionens förutsättningar och metoder har förtydligats med text om RKFM\n- Ändrat  tidskravet från 2 mån efter slutbesiktning till 3 mån efter slutbesiktning"]
[null,null,null,"Flik 5.2 Tunnel och bergslänt\n- TMALL 0588 Service och räddningstunnel har flyttat hit från fd. kap. 5.1 Brand och nödutrustning.\n-  Förtydligat att dokumentation ska vara registrerade och skickade för fastsällelse.\n- Sammanställningsritning har utgått som eget krav och ingår nu i kravet för Ritningar.\n- Nytt krav: Bärighetsberäkning\n- Sammanställningsritningar har utgått som eget krav och ingår nu i kravet för Ritningar.\n- Redogörelse för konstruktionens förutsättningar och metoder har förtydligats med text om RKFM\n- Konstruktionsberäkningar har bytt namn till Utredningar och beräkningar\n- Nytt krav: Förundersökning\n- Nytt underkapitel med krav på dokumentation för personsäkerhet i tunnlar.\n- Kravet för Geotekniskt PM och Markundersökningsrapport är flyttat och ingår nu i det nya kravet ”Förundersökning”.\n- Ändrat  tidskravet från 2 mån efter slutbesiktning till 3 mån efter slutbesiktning\n- Rättat tidskravet för Personsäkerhet i tunnlar från 3 mån eefter slutbesiktning till 1 mån före ibruktagande, som det står i TDOK 2016:0407"]
[null,null,null,"Flik 5.3 Övriga byggnadsverk \n-  Förtydligat att dokumentation ska vara registrerade och skickade för fastsällelse.\n- Reviderat krav för: Passage/Sidopassage/Överfart: …Trumma som belastas av järnvägstrafik ska ha överfart registrerad.\n- Sammanställningsritning har utgått som eget krav och ingår nu i kravet för Ritningar.\n- Redogörelse för konstruktionens förutsättningar och metoder har förtydligats med text om RKFM\n- Ändrat  tidskravet från 2 mån efter slutbesiktning till 3 mån efter slutbesiktning"]
[null,null,null,"Flik 6.5 Teknikbyggnad\nReviderat krav: Tidigare stod det Driftledningsinstruktion, nu har den fått en ny mall TMALL 1382 Driftinstruktion."]
[null,null,null,"Flik 8.1 Signalsystem\n- Nytt krav: TMALL 1297 Tavla (främst ATC) - ej från Patcy 2 (6 mån före inkoppling)\n- Nytt krav: Programfil (Alex-teknik)\n- Nytt-/förtydligat krav: TRVINFRA 00301, bilaga 4, paket 1 - Pärmarna men allmän information ska levereras till anläggnignen redan vid dagen för inkoppling\n- Ändrat krav: TRVINFRA 00301, bilaga 4, paket 4 har bytt leveranstid från 3 mån efter slutbesiktning till Dagen för inkoppling."]
[null,null,null,"Flik 9.1 Banöverbyggnad\nNytt krav: TMALL 1381 Stoppbock, fällbar (3 v efter inkoppling) (Är utbruten från TMALL 0568 Stoppbock)"]
[null,null,null,"Flik 9.2 Geodetiskt stomnät\nNy text (i en * i fliken) som beskriver den garanti man signerar."]
[null,null,null,"Flik 12.1 Spårnät\nUppgiften om Etapp-/Projektuppgifter ska kvitteras i denna flik (dvs den mörkgrå färgen för den här raden är borttagen)"]
[null,null,null,"Flik 15.1 Admin. o funkt.företeelse \nFOMUL inkl. LÖ spåravstånd: Ingen kvittering i leveransplanen. Uppdaterat med följande text: \"Mätoperatören sköter både registrering och slopning i BIS. Projektet får själv ha kontroll på att detta utförs av mätoperatören.\""]
[null,null,null,"Flik 15.4 Mark\nSlopat krav: Planritning (3 mån efter slutbesiktning)\nFlyttat krav: Driftledningsinstruktion, pumpanläggning är flytta till flik 15.7 Pumpsystem "]
[null,null,null,"Flik 15.5 Miljö\n- Ändrat  tidskravet från 2 mån efter slutbesiktning till 3 mån efter slutbesiktning"]
[null,null,null,"Flik 15.6 Plankorsning\nFliken har uppdaterats i sin helhet."]
[null,null,null,"Flik 15.7 Pumpsystem\nNy flik med nya krav"]
["23.0","2023-05-01",null,"Allmänt: \n- Leveranstiden \"…före möjlig trafikstart\" har bytt namn till \"… före inkoppling\". (Tidskraven återstår, det är bara begreppet som ändrats.)\n- Leveranstiden \"ibruktagande\" har bytt namn till \"… före inkoppling\". (Tidskraven återstår, det är bara begreppet som ändrats.)\n- Alla flikar som har 6 månaders leveranser har fått två nya kolumner \"BIS: Levererat och aviserat ändringar (datum + namn + ärendenr.)\" och \"Godkänt ändring (datum + namn + ärendenr.)\"\n- Uppdaterat texten för kolumnerna \"papperkopior i anläggningen\" till : \nViktigt att dokumentation ute i anläggningen blir uppdaterade med den senaste revideringen.\n\nProjektledaren är ansvarig för att handlingarna blir uppkopierade samt läggs ut i anläggningen.\n\nDet är viktigt att projektet kontaktar berört underhållsdistrikt för att få information om hur många\nexemplar av dokumenten som ska kopieras upp samt var i anläggningen dokumenten ska uppdateras.\n\nDet är av största vikt att detta sker utan dröjsmål så att rätt dokument finns i anläggningen, enligt JvSFS 2007:2, 9§ ”Dokumentationen ska hållas aktuell och vara känd i infrastrukturförvaltarens\norganisation samt vara lätt tillgänglig för berörd personal.”\n\nOBS! Gällande arbetsritningar ska finnas i anläggningen till dess att förvaltningsdata är upprättade och\nutlagda i anläggningen. Ritningarna i anläggningen ska vara enkelsidigt kopierade. ","Maria Davidson, UHjjm"]
[null,null,null,"Flik Definitioner\nSlopat: Ibruktagande och Möjlig trafikstart\nÄndrat: Texten för inkoppling."]
[null,null,null,"Flik Leveranstider\n- Uppdaterat bilden med systemet ABBA-FT samt bytt begreppet till Inkoppling (se kommentart Allmänt ovan)\n- Ny tabell med beskrivning om varför de olika leveranstidskraven finns."]
[null,null,null,"Flik 0 Geografiska modellfiler \nNytt krav:Tele, trafikinformation"]
[null,null,null,"Flik 0 Tågplan \nReviderat krav: Ändrat leveranstidskravet från \"30 november 25-13 månader före inkoppling\" till \"30 september 27-15 månader före inkoppling\"."]
[null,null,null,"Flik 4.1 Bankropp\nNytt krav: Avvattning (nytt område) (3 mån efter slutbesiktning)\nNytt krav: Vattenskydd och dagvattenbehandling (nytt område) (3 mån efter slutbesiktning)"]
[null,null,null,"Flik 5.1 Bro/ Teknisk dokumentation (3 mån efter slutbesiktning)\nFlik 5.2 Tunnel och bergslänt/ Teknisk dokumenation (3 mån efter slutbesiktning)\nFlik 5.3 Övriga byggnadsverk/ Teknisk dokumenation (3 mån efter slutbesiktning)\n- Ändrat kommentarstexten för ”Övriga dokument från en åtgärd”. \n- Slopat krav: Prestandadeklaration, Provningsintyg (Övriga dokument från en åtgärd) Underlag för beredskapsplan och Skyddsanordningar för utsläpp, dagvatten, dagvattendammar etc. (Miljö)\n- Ändrat rubrikerna för kolumnerna Mottagande förvaltning\n- Kompletterat med rad Data och dokumentation enl. TDOK 2016:0407 är komplett. Aktivitet 1-5 enl TDOK 2018:0200 är genomförd.  "]
[null,null,null,"Flik 5.2 Tunnel och bergslänt\nNytt krav: Dokumentation för hantering av avvikelser, tillbud och olyckor (Teknisk dokumentation, 1 mån före inkoppling)\nNytt krav: EG-kontrollintyg (Teknisk dokumentation, 1 mån före inkoppling)\nÄndrat: En del texter i tabellen för ”Personsäkerhet i tunnlar” är aningen ändrad.\nRättat: Leveranstidskraven för ”Personsäkerhet i tunnlar” är rättat från 3 mån efter slutbesiktning till 1 mån före inkoppling"]
[null,null,null,"Flik 5.3 Övriga byggnadsverk\nSlopade krav: Tvärsektion, Detaljritning, Konstruktionsberäkning"]
[null,null,null,"Flik 6.1 Geld inl. RTU:er\nNytt krav: Underhållsinstruktion.\nSlopade krav: Förbindningstabell, Apparatlista, Systembeskrivning."]
[null,null,null,"Flik 6.4 Kraftförsörjningsanläggning\nFliken har bytt namn från Kraftstation till Kraftförsörjningsanläggning"]
[null,null,null,"Flik 6.5 Lågspänning/Teknikbyggnad\nSlopat krav: Bygglovshandling"]
[null,null,null,"Flik 6.6 Matarledningssystem\nHela tabellen är uppdaterad."]
[null,null,null,"Flik 7.2 Tillträdesskydd och brandlarm\n- Fliken har bytt namn från Passagesystem till Tillträdesskydd och brandlarm\n- Nytt krav på Monteringslista för Abloy Cliq-lås (3 mån efter slutbesiktning)"]
[null,null,null,"Flik 8.1 Signalsystem\n- Kompletterat med rader \"Restlista för Signal (ej ATC) och Restlista för Tavla (ej ATC)\" under 3 veckor efter inkoppling.\n- Ändrat krav: SEI_CONFIG, SEI_STATUS_ENUM, SEI_COMMANDS är ersatta med \"Enligt TRVINFRA 00301, bilaga 5, paket 2 (Ställverk 11) (10 v före inkoppling)\n- Nytt krav: Enligt TRVINFRA 00301, bilaga 5, paket 1, 3, 6 (Ställverk 11) (Dagen för inkoppling)\n- Nytt krav: Enligt TRVINFRA 00301, bilaga 5, paket 1, 3, 5 (Ställverk 11) (3 mån efter slutbesiktning)\n- Slopat krav: M95: Paket 4 har utgått."]
[null,null,null,"Flik 9.1 Banöverbyggnad\nKompletterat med rader Restlista för Spårväxel och Restlista för Isolskarv, under 3 veckor efter inkoppling."]
[null,null,null,"Flik 9.2 Geodetiskt stomnät\nSlopade krav: Redogörelse för uppdraget, Punktbeskrivning, Samlad slutredovisning"]
[null,null,null,"Flik 11.1 Trafikinformationsanläggning\nNytt krav: Samtliga tekniska dokument ska levereras vid två tidpunkter. Vid färdig bygghandling… samt vid 3 mån efter slutbesiktning."]
[null,null,null,"Flik 12.1 Övrig BIS-leverans\nFliken har bytt namn från Spårnät till Övrig BIS-leverans"]
[null,null,null,"Flik 15.1 Administrativ och funktionell företeelse\n- Nytt krav: TMALL 1295 ERTMS Hastighetsprofil Normalhuvudspår (6 mån före inkoppling)\n- Nytt krav: TMALL 1296 ERTMS Hastighetsprofil Övriga spår (6 mån före inkoppling)"]
[null,null,null,"Flik 15.4 Mark\n- Slopat Beredskapsplan, Skötselinstruktion skyddsåtgärder för yt- och grundvatten samt Riskanalys för skydd av yt- och grundvatten"]
[null,null,null,"Flik 15.5 Miljö\n- Ändat texten i rubrikkolumn (J och K) från \"För granskning av UHtam\" till \"För granskning av miljökompentens på UH\" resp. \"Godkänd av UHtam\" till \"Godkänd av miljökompetens på UH\".\n- Slopat krav: Underlag för beredskapsplan för vattenskyddsåtgärder samt TMALL 0731 Förteckning Skyddsåtgärder yt- och grundvatten järnväg (Teknisk dokumentation, övrigt om miljö)"]
[null,null,null,"Flik 15.8 Rangerbangård\nSlopat krav: Driftinstruktion  (3 mån efter slutbesiktning)"]
["24.0","2023-11-01",null,"Allmänt\n- Fixat till texter som försvunnit och celler som mist sin logik.\n- Kraftstationer har bytt namn till Kraftförsörjningsanläggning genom hela dokumentet.","Maria Davidson, UHjjm"]
[null,null,null,"Flik Kontaktuppgifter\nReviderad mejladress för Tågplan: trafikplanering.anlaggningsforandringar@trafikverket.se"]
[null,null,null,"Flik Definitioner\nUppdaterad text för begreppet Inkoppling."]
[null,null,null,"Flik Projektuppgifter\nNytt krav: Uppgift om länk till AKJ"]
[null,null,null,"Flik 0 Geografiska modellfiler\n- Tagit bort det förvaltande systemet GAD, då alla modellfiler (undantaget Signal) nu lagars i ProjectWise\n- Reviderat leveransytan till ProjectWise/Förvaltning Järnväg/Förvaltningsdata Leveranser/ _Anläggningsmodeller/Bandel"]
[null,null,null,"Flik 0 Tågplan\n- TMALL 0480 ska inte längre levereras via mejl, utan lagras i projektets leveransyta."]
[null,null,null,"Flik 5.1 Bro, 5.2, Tunnel och bergskärning, 5.3 Övriga byggandsverk\n- Slopat krav: Bärighet (Data för lagring i databas). \n- Reviderad text för Bärighet\nDetta p.g.a. ändrade arbetssätt för att registrera och skicka uppgifter för bärighet i BATMAN. Detta beskrivs nu i TDOK 2023:0079."]
[null,null,null,"Flik 6.4 Kraftförsörjningsanläggning\nSlopat krav: Frånskiljarstation"]
[null,null,null,"Flik 6.5 Lågspänningssystem\nBelysning\n- Reviderat krav: Skåpspecifikation\n- Nytt krav: Kabelberäkning\nDistributionsnät mindre än 1000V\n- Reviderat krav: Skåpspecifikation\n- Nytt krav: Kabelberäkning\nVäxelvärme\n- Reviderat krav: Skåpspecifikation"]
[null,null,null,"Flik 8.1 Signalsystem\nReviderat krav: Leveranser av programfiler ska nu levereras direkt till Ebba, via funktionen \"delleveranser\" i systemet (inte som tidigare, via ProjectWise). (Gäller tiden Dagen för inkoppling samt 1 v efter inkoppling.)"]
[null,null,null,"Flik 11.1 Trafikinformationsanläggning\nSlopat krav: Foto på stativ (trafikinformationsutrustning) (Vid färdig bygghandling)\nReviderat krav: \n - Kravet på modellfiler är rättat. Dessa ska levereras 3 mån efter slutbesiktning inte vid färdig bygghandling.\n - TMALL 0851 har bytt namn från Högtalare-PC till Utropsdator\n - Kraven \"Vid färdig bygghandling, senast 6 månader före inkoppling\" behöver inte längre signeras av mottagande förvaltning.  "]
[null,null,null,"Flik 15.4 Mark\nNytt krav: Sidotrumma (längs med järnväg)"]
[null,null,null,"Flik 15.5 Miljö\n- Ny rad för information om \"Myndighetsbeslut enligt miljölagstiftningen…\"\n- Databas borttaget då krav på databas redan finns under Övrigt om miljö/ Data för lagring i databas\n- Reviderat krav: Kraven för data till MiljöWebb Landskap har tidigare beskrivits i TMALL:ar, dessa är nu utbytta till nya TDOK.\n- Nytt krav: Grod- och kräldjurskonatruktion och Stenmur, till Miljöwebb Landskap"]
["Version","Datum","Flik","Ändring","Gäller ändringen bara nya kontrakt, eller även pågående? Nya krav och ändringar som införs efter projektets tecknande kontrakt, behöver inte tillämpas retroaktivt. Projekt som redan är upphandlade och påbörjade kan genomföras i enlighet med de villkor, krav och specifikationer som gällde vid avtalets början. Eventuella avsteg från detta beskrivs nedan:","Namn"]
["25.0","2024-05-01","Flik Anvisningar","Ny text om : Undantag från hantering av filnamn och länk till levererad fil","Information","Uppdragsansvarig Indatakoordinering Karin Gilén, UHjji"]
[null,null,"Flik Leveranstider","Vid färdig bygghandling, senast 6 månader före inkoppling \nNy text: (OBS! Missvisande tidskrav för Trafikinformation!) Just nu är tidskravet som det är, det kommer att ses över till kommande revideringar. Trafikinformation behöver få information om anläggningen INNAN BYGGSTART. Detta för att hinna kontrollera om anläggningen är projekterad på rätt sätt INNAN byggstart. (Tyvärr händer det att man projekterat på fel sätt och det har lett till fördyringar i projektet.)","Gäller befintliga och nya kontrakt. ","Informationsförvaltare Trafikinformation Daniel Asovic, UHjef"]
[null,null,"Flik Arkivservice - Analog leverans","Förändrad rutin för kassering av slopade handlingar. ","Gäller befintliga och nya kontrakt. ","Sara Mattsson, UHjjm"]
[null,null,"Flik 4.1 Bankropp","Nya krav: Trumma (Krav på dokumentation för trumma har tidigare legat under ”Övriga byggnadsverk, men då kraven har varit svåra att förstå så har det nu förtydligats i denna flik.)","Gäller nya kontrakt. Befintliga kontrakt får gärna införa det nya kravet.","Terence Mcgarvey UHjba"]
[null,null,"Flik 4.1 Bankropp","Nytt krav: Dammanläggning","Gäller nya kontrakt. Befintliga kontrakt får gärna införa det nya kravet.","Ewa Lind, UHjba"]
[null,null,"Flik 4.1 Bankropp","Nytt krav: Området har bytt namn fån Vattenskydd och dagvattenbehandling till Vattenskyddsanläggning, samt reviderade krav.","Gäller nya kontrakt. Befintliga kontrakt får gärna införa det nya kravet.","Ewa Lind, UHjba"]
[null,null,"Flik 4.1 Bankropp","Nytt krav: Avvattning: Skötselbeskrivning","Gäller nya kontrakt. Befintliga kontrakt får gärna införa det nya kravet.","Informationsförvaltare miljö, Anna Henriksson, UHv"]
[null,null,"Flik 5.1 Bro","Reviderat krav: Ny text för ”Övriga dokument från en åtgärd”.","Gäller nya kontrakt. Befintliga kontrakt får gärna införa det reviderade kravet.","Fredrik Olsson, UHvätb"]
[null,null,"Flik 5.1 Bro","Slopat krav: Myndighetsbeslut enligt miljölagstiftning. Dokumenten lagras i Ebba och återfinns under kapitlet Miljö.","Slopat krav","Fredrik Olsson, UHvätb"]
[null,null,"Flik 5.1 Bro","Slopat krav: Materialförteckning (miljö). Materialförteckningen lagras nu bara under kapitlet Miljö","Slopat krav","Fredrik Olsson, UHvätb"]
[null,null,"Flik 5.1 Bro","Slopat krav: Kemikalieförteckning (miljö). Kemikalieförteckningen lagras nu bara under kapitlet Miljö","Slopat krav","Fredrik Olsson, UHvätb"]
[null,null,"Flik 5.2 Tunnel och bergslänt","Reviderat krav: Ny text för ”Övriga dokument från en åtgärd”.","Gäller nya kontrakt. Befintliga kontrakt får gärna införa det reviderade kravet.","Fredrik Olsson, UHvätb"]
[null,null,"Flik 5.2 Tunnel och bergslänt","Slopat krav: Myndighetsbeslut enligt miljölagstiftning. Dokumenten lagras i Ebba och återfinns under kapitlet Miljö.","Slopat krav","Fredrik Olsson, UHvätb"]
[null,null,"Flik 5.2 Tunnel och bergslänt","Slopat krav: Materialförteckning (miljö). Materialförteckningen lagras nu bara under kapitlet Miljö","Slopat krav","Fredrik Olsson, UHvätb"]
[null,null,"Flik 5.2 Tunnel och bergslänt","Slopat krav: Kemikalieförteckning (miljö). Kemikalieförteckningen lagras nu bara under kapitlet Miljö","Slopat krav","Fredrik Olsson, UHvätb"]
[null,null,"Flik 5.3 Övriga byggnadsverk","Reviderat krav: Ny text för ”Övriga dokument från en åtgärd”.","Gäller nya kontrakt. Befintliga kontrakt får gärna införa det reviderade kravet.","Fredrik Olsson, UHvätb"]
[null,null,"Flik 5.3 Övriga byggnadsverk","Slopat krav: Myndighetsbeslut enligt miljölagstiftning. Dokumenten lagras i Ebba och återfinns under kapitlet Miljö.","Slopat krav","Fredrik Olsson, UHvätb"]
[null,null,"Flik 5.3 Övriga byggnadsverk","Slopat krav: Materialförteckning (miljö). Materialförteckningen lagras nu bara under kapitlet Miljö","Slopat krav","Fredrik Olsson, UHvätb"]
[null,null,"Flik 5.3 Övriga byggnadsverk","Slopat krav: Kemikalieförteckning (miljö). Kemikalieförteckningen lagras nu bara under kapitlet Miljö","Slopat krav","Fredrik Olsson, UHvätb"]
[null,null,"Flik 6.1 GELD inklusive RTU","Ny hantering: Projektet ska skicka en avisering till geld.systemförvaltning@trafikverket.se för granskning av framtaget material (Nya kolumner I+J)","Gäller nya kontrakt som använder denna versionen av leveransplan där dessa kolumner är införda. Befintliga kontrakt får gärna föra in dessa kolumner i sina befinliga leveransplaner.","Magnus Karlsson, Uhttö"]
[null,null,"Flik 6.1 GELD inklusive RTU","Rättning: Ny kolumn för kvittering att papperskopior är placerade i anläggningen","Gäller befintliga och nya kontrakt. \n\nKravet är inte nytt, utan finns i TDOK 2016:0407. Kolumnen för kvittens har däremot missats i tidigare verion av leveransplan.","Maria Davidson, UHjjm"]
[null,null,"Flik 6.4 Kraftförsörjningsanläggning","Ändrat mejladressen för granskning från miljounderhall@trafikverket.se till jarnvag_anlaggningmiljo@trafikverket.se","Information","Anna Henriksson, UHjv"]
[null,null,"Flik 6.4 Kraftförsörjningsanläggning","Tagit bort kolumnen I \"Kvalitetssäkring av miljökompetens inom projekt\"","Gäller befintliga och nya kontrakt. ","Anna Henriksson, UHjv"]
[null,null,"Flik 6.4 Kraftförsörjningsanläggning","Lagt till kolumnerna \"Skickat mejl och länk till material för granskning till elkraft@trafikverket.se. För granskning av elkompetens på UH\" samt \"Godkänt av elkompetens på UH\"","Gäller befintliga och nya kontrakt. ","UHjee, UHteh"]
[null,null,"Flik 6.5 Lågspänning","Reviderat avsnittet om Teknikbyggnad. Nu kallas området Elanläggning - Teknikbyggnad. Delars som för själva bygganden är flyttat från fliken. Tabellen är reviderad.","Gäller nya kontrakt. Befintliga kontrakt får gärna införa det reviderade kravet.","Informationsförvaltare John Granberg, UHjel"]
[null,null,"Flik 6.6 Matarledningssystem","Nytt krav: Kontrollprogram (miljö)","Gäller nya kontrakt. Befintliga kontrakt får gärna införa det reviderade kravet.","Anna Henriksson, UHjv"]
[null,null,"Flik 7.1 Resenärsstation","Fliken har bytt namn från Fastighetsteknik till Resenärsstation","Information","Annie Andersson , cUHjef"]
[null,null,"Flik 7.1 Resenärsstation","Uppdaterad tabell","Gäller nya kontrakt. Befintliga kontrakt får gärna införa det reviderade kravet.","Informationsförvaltare Magnus Sandberg, UHjef"]
[null,null,"Flik 7.2 Teknikbyggnad","Ny flik","Information","Sabina Nesimovic, UHjef (genom informations-förvaltaren Jörgen Landström, UHjef) samt Magnus Edfast IKTtaaf"]
[null,null,"Flik 7.2 Teknikbyggnad","Krav om själva byggnaden har flyttat från flik 6.5 Lågspänning till den här fliken. Reviderad tabell","Gäller nya kontrakt. Befintliga kontrakt får gärna införa det reviderade kravet.","Sabina Nesimovic, UHjef (genom informations-förvaltaren Jörgen Landström, UHjef) samt Magnus Edfast IKTtaaf"]
[null,null,"Flik 8.1 Signalsystem","Nytt krav: Besiktningsdokumentationen för signalteknik i form av pappershandlingar (Ska sparas i fem år hos Trafikverkets arkivservice i Mölndal)","Gäller befintliga och nya kontrakt. \n\nEgentligen inget nytt krav, då det finns i TRVINFRA-00301, K161665. Vi har lagt till det i leveransplanen som en del i projektets checklista att detta har blivit levererat. ","Teknisk säkerhetsstyrning Mattias Karlsson, IVttm"]
[null,null,"Flik 8.1 Signalsystem","Ändrade krav: Många kolumnerna för rad 60-69 (Listor från ställverk och tågledningssystem) har gråats ut, dvs projekten behöver inte fylla i något här.","Gäller nya kontrakt som använder denna versionen av leveransplan där dessa kolumner är införda. Befintliga kontrakt får gärna föra in dessa kolumner i sina befinliga leveransplaner.","Uppdragsansvarig BIS\nSara Lindberg, UHjja"]
[null,null,"Flik 9.1 Banöverbyggnad","Nytt krav för Skrav öppningsbar bro.","Gäller nya kontrakt. Befintliga kontrakt får gärna införa det nya kravet.","Informationsförvaltare Sara Nord, UHjbs"]
[null,null,"Flik 9.1 Banöverbyggnad","Tydliggjort tabellen med krav utpekat för respektive objekt.","Information","Informationsförvaltare Sara Nord, UHjbs"]
[null,null,"Flik 9.1 Banöverbyggnad","Nytt krav för +3v Restlista Spårspärr","Gäller nya kontrakt. Befintliga kontrakt får gärna införa det nya kravet.","Informationsförvaltare Sara Nord, UHjbs"]
[null,null,"Flik 9.1 Banöverbyggnad","Nytt krav för +3v Restlista Spårkors","Gäller nya kontrakt. Befintliga kontrakt får gärna införa det nya kravet.","Informationsförvaltare Sara Nord, UHjbs"]
[null,null,"Flik 9.3 Sidoanläggning","Nytt krav: Kontrollprogram (Miljö)","Gäller nya kontrakt. Befintliga kontrakt får gärna införa det nya kravet.","Anna Henriksson, UHjv"]
[null,null,"Flik 10.1 Radio och telefoni","Reviderat krav: Ändrat leveransytan från \"ProjectWise/Förvaltning järnväg/Förvaltningsdata leveranser/_Tele(IKT)_Inleveranser\" till \"Projektets lagringsyta\"","Gäller nya kontrakt. Befintliga kontrakt får gärna införa det reviderade kravet.","Informationsförvaltare telekom, Peter Sjökvist, IKTtsv"]
[null,null,"Flik 10.1 Radio och telefoni","Reviderat krav: Har slopat \"Teknikhus\" och ersatt detta med en text högst upp i fliken som talar om att alla teknikbyggnader ska leveras under flik 7.2 Teknikbyggnad.","Gäller nya kontrakt. Befintliga kontrakt får gärna införa det reviderade kravet.","Magnus Edfast, IKTtaaf"]
[null,null,"Flik 10.2 Siter och kabelanläggning","Reviderat krav: Ändrat leveransytan från \"ProjectWise/Förvaltning järnväg/Förvaltningsdata leveranser/_Tele(IKT)_Inleveranser\" till \"Projektets lagringsyta\"","Gäller nya kontrakt. Befintliga kontrakt får gärna införa det reviderade kravet.","Informationsförvaltare telekom, Peter Sjökvist, IKTtsv"]
[null,null,"Flik 11.1 Trafikinformation","Situationsplan för dynamisk trafikinformationsutrustning samt statiska skyltar ska leveras som dgn, eftersom det är filformatet som gäller för Trafikverkets modellfiler.","Gäller befintliga och nya kontrakt. ","Ett fel som upptäckts av kravskrivare för TDOK 2019:0215, Kristina Eliasson, UHjjm"]
[null,null,"Flik 11.1 Trafikinformation","Förtydligat leveranstidskravet Vid färdig bygghandling, senast 6 månader före inkoppling med följande text: \"Just nu är tidskravet missvisande, det kommer att ses över till kommande revideringar. \nTrafikinformation behöver få information om anläggningen INNAN BYGGSTART. Detta för att hinna kontrollera om anläggningen är projekterad på rätt sätt INNAN byggstart. (Tyvärr händer det att man projekterat på fel sätt och det har lett till fördyringar i projektet.)\"","Information","Informationsförvaltare Daniel Asovic, UHjef"]
[null,null,"Flik 14.1 Fordonsövervakade detektorer","Slopat krav: Kravet på modellfil för situationsplan är borttaget. ","Slopat krav","Informationsförvaltare Roger Byström, UHjes"]
[null,null,"Flik 15.4 Mark","Reviderat krav: Tidigare \"Uppföljning, kontrollprogram\", nu Kontrollprogram (Miljö)","Gäller nya kontrakt. Befintliga kontrakt får gärna införa det reviderade kravet.","Anna Henriksson, UHjv"]
[null,null,"Flik 15.5 Miljö","Ändrat mejladressen för granskning från miljounderhall@trafikverket.se till jarnvag_anlaggningmiljo@trafikverket.se","Gäller befintliga och nya kontrakt. ","Anna Henriksson, UHjv"]
[null,null,"Flik 15.5 Miljö","Tagit bort kolumnen I \"Kvalitetssäkring av miljökompetens inom projekt\"","Gäller befintliga och nya kontrakt. ","Anna Henriksson, UHjv"]
[null,null,"Flik 15.7 Pumpsystem","Nytt krav för 1 v efter inkoppling: TMALL 0659 Teknikbyggnad.","Gäller befintliga och nya kontrakt. \n\nEgentligen inget nytt krav, men det kan ha uppfattats som otydligt att även pumpstationer ska levereras in till BIS, i mallen för Teknikbyggnad. ","Informationsförvaltare John Granberg, UHjel"]
["26.0","2024-11-01","Projektuppgifter","Ett nytt förvaltande system som heter KAKA är infört i tabellen för Kraftförsörjningsanläggning (flik 6.4)","Information","Informationsförvaltare \nJohan Frizell, UHjee"]
[null,null,"Etappbeskrivning","Ny flik ","Gäller befintliga och nya kontrakt. ","Indata/Bandata,\n Karin Gilén, UHjji"]
[null,null,"Flik 0 Geografisk modellfiler","Reviderat krav för Geografiska modellfiler. Modellfilerna har nu det förvaltande systemet Ebba, inte ProjectWise","Gäller befintliga och nya kontrakt. ","Ebba-förvaltare \nKristina Eliasson, UHjjm"]
[null,null,"Flik 5.2 Tunnel och bergslänt","Lagt till krav på underlagsfil för Räddnings- och insatsplaner","Gäller befintliga och nya kontrakt. ","Fredrik Olsson, UHvätb"]
[null,null,"Flik 6.3 Kontaktledning","Samlat krav för AT- och Sugtransformator under rubrik Transformator och ändrat krav för filformat.","Gäller befintliga och nya kontrakt. ","Pontus Sundqvist, UHtek"]
[null,null,"Flik 6.4 Kraftförsörjningsanläggning","Nytt krav: Kopia av TMALL 1069 Apparatförteckning, enligt TDOK 2013:0640","Gäller befintliga och nya kontrakt.  \n\n(Inget nytt krav inom Trafikverket, utan enbart lagt till i denna TDOK)","Informationsförvaltare \nJohan Frizell, UHjee"]
[null,null,"Flik 6.5 Lågspänning","Slopat krav på Kabelberäkning för Belysning och Distributionsnät mindre än 1000V","Slopat krav","Informationsförvaltare \nJohn Granberg, UHjel"]
[null,null,"Flik 6.5 Lågspänning ","Nytt krav: Intyg från installationskontroll av bränsletank/cistern och sekundärt skydd","Gäller nya kontrakt. Befintliga kontrakt får gärna införa det nya kravet.","Informationsförvaltare \nJohn Granberg, UHjel"]
[null,null,"Flik 6.5 Lågspänning ","Nytt krav: Intyg om hur tillsynsmyndighet skriftligen informerats om bränsletank/cistern","Gäller nya kontrakt. Befintliga kontrakt får gärna införa det nya kravet.","Informationsförvaltare \nJohn Granberg, UHjel"]
[null,null,"Flik 7.1 Resenärsstation","Slopat krav: Materialförteckning (Detta eftersom materialförteckning kravställs under kapitel 15.5)","Information","Informationsförvaltare,\n Anna Henriksson, UHv"]
[null,null,"Flik 7.3 Tillträdesskydd o brandlarm","Länk till den plats där beställningsunderlaget ligger","Information","Tillträdesspecialist\nMilton Gagzis, TRpts"]
[null,null,"Flik 8.1 Signal","Reviderat krav för IL-fil, LEU-fil. Leverans av il/leu-filer ska levereras som zip-fil innehållande pdf samt programfil.","Gäller befintliga och nya kontrakt. ","Örjan Jonsson, UHtsi1"]
[null,null,"Flik 10.2 Siter och kabelanläggning","Nytt krav: Schematisk kabelplan ska tas fram även för kopparkabelanläggning.","Gäller nya kontrakt. Befintliga kontrakt får gärna införa det nya kravet.","Informationsförvaltare,\n Peter Sjökvist, IKTtvs"]
[null,null,"Flik 10.2 Siter och kabelanläggning","Information: Koordinatförteckning kabel har bytt namn till Koordinatfil kabel.","Information ","Informationsförvaltare, \nPeter Sjökvist, IKTtvs"]
[null,null,"Flik 12.1 Övrig BIS-leverans","Flyttat krav på etappbeskrivning till egen flik","Information","Indata/Bandata, \nKarin Gilén, UHjji"]
[null,null,"Flik 10.2 Siter och kabelanläggning","Ny text för Koordinatfil kabel: Kommandot ”save settings” ska köras på att koordinatsystem sparas i dgn-filen.","Gäller befintliga och nya kontrakt. ","Informationsförvaltare, \nPeter Sjökvist, IKTtvs"]
[null,null,"Flik 15.5 Miljö","Omstrukturerat för att likna TDOK 2016:0407. Inga nya krav","Information","Anna Henriksson, UHjv"]
[null,null,"Flik 15.5 Miljö","Ny informationstext: OBS! Överlämnanderapport och övriga dokument som berör mer än EN bandel ska det läggas upp i samtliga bandelsmappar i Ebba. Inga dummy-filer ska skapas.","Information","Maria Davidson, UHjjm"]
[null,null,"Flik 15.5 Miljö","TMALL 0007 ”Förteckning Tillstånd, anmälningsärenden. dispenser enligt miljölagstiftningen”, ska inte längre lagras i Ebba utan i Maximo","Gäller befintliga och nya kontrakt. ","Anna Henriksson, UHjv"]
[null,null,"Flik 15.8 Rangerbangård","TMALL 1337 Gångbana har flyttat från denna flik till flik 9.3 Sidoanläggning.","Gäller befintliga och nya kontrakt. ","Informationsförvaltare, \nSara Nord UHjbs"]
[null,"2025-11-01","Anvisningar","Förtydligat att alla ändringar av datum och innehåll ska meddelas Indatakoordinator, enligt TDOK 2016:0411 kap 6.2","Information","Sara Mattsson, UHjjm"]
[null,null,"Flik 0 Modellfiler","Infört \"Linjemodell för signal\".","Gäller befintliga och nya kontrakt. ","Lars Holmgren, UHtsi2"]
["27.0",null,"Flik 4.1 f.d Bankropp, version 25","Borttaget från ändringslogg: \"Nytt krav: Avvattning: Skötselbeskrivning\". Detta är inget krav enligt TDOK 2016:0407 än.","Information","Anna Henriksson, UHjv"]
[null,null,"Flik 4.1 Bankropp","Kraven på trumma (under järnväg) har flyttat från flik 5.3 Övriga byggnadsverk till flik 4.1 Bankropp","Information","Maria Davidson, UHjjm"]
[null,null,"Flik 4.1 Bankropp","Dammanläggning och Vattenskyddsanläggning har utgått som rader i leveransplanen men flyttats till Avvattning/Fördröjningsanläggning","Information","Ewa Lind, UHjba"]
[null,null,"Flik 4.2 Kabelkanalisation","Kabelkanalisation har flyttat till denna nya flik från 5.3","Information","Eva Wallin, UHjba"]
[null,null,"Flik 5.1 Bro","Slopat krav: Passage/Överfart samt Passage/Underfart","Slopat krav","Fredrik Olsson, UHvätb"]
[null,null,"Flik 5.1 Bro","Nytt krav: Konstruktionsmodeller","Gäller nya kontrakt. Befintliga kontrakt får gärna införa det reviderade kravet.","Fredrik Olsson, UHvätb"]
[null,null,"Flik 5.2 Tunnel","Rad tillagd för Kontrollprogram (miljö)","Information","Sara Mattsson, UHjjm"]
[null,null,"Flik 5.2 Tunnel","Slopat krav: Passage/Genomfart/Sidopassage","Slopat krav","Fredrik Olsson, UHvätb"]
[null,null,"Flik 5.3 Övriga byggnadsverk","Kraven på trumma (under järnväg) har flyttat från flik 5.3 Övriga byggnadsverk till flik 4.1 Bankropp","Information","Maria Davidson, UHjjm"]
[null,null,"Flik 5.3 Övriga byggnadsverk","Magasin för dagvatten utfört i stål eller betong flyttat, ingår nu i fördröjningsanläggning kapitel 4.1.","Information","Ewa Lind, UHjba"]
[null,null,"Flik 5.3 Övriga byggnadsverk","Kabelkanalisation har flyttat till en egen flik 4.2","Information","Eva Wallin, UHjba"]
[null,null,"Flik 5.3 Övriga byggnadsverk","Slopat krav: Passage/Sidopassage/Överfart","Slopat krav","Fredrik Olsson, UHvätb"]
[null,null,"Flik 5.3 Övriga byggnadsverk","Nytt krav: Konstruktionsmodeller","Gäller nya kontrakt. Befintliga kontrakt får gärna införa det reviderade kravet.","Fredrik Olsson, UHvätb"]
[null,null,"Flik 6.1 GELD inklusive RTU","Nytt krav: Koordinatfil kabel","Gäller nya kontrakt. Befintliga kontrakt får gärna införa det reviderade kravet.","Maarten Reijm, UHje"]
[null,null,"Flik 6.1 GELD inklusive RTU","Flyttat krav: TMALL 1382 Driftledningsinstruktion återfinns nu här. Låg tidigare under flik 6.5 Lågspänning/ Teknikbyggnad","Information","John Granberg, UHjel"]
[null,null,"Flik 6.3 Kontaktledning","Nytt krav: Koordinatfil kabel","Gäller nya kontrakt. Befintliga kontrakt får gärna införa det reviderade kravet.","Maarten Reijm, UHje"]
[null,null,"Flik 6.4 Kraftförsörjningsanläggning","Nytt krav: Koordinatfil kabel","Gäller nya kontrakt. Befintliga kontrakt får gärna införa det reviderade kravet.","Maarten Reijm, UHje"]
[null,null,"Flik 6.4 Kraftförsörjningsanläggning","Revidering: Nätstation har bytt flik från flik 6.4 Kraftförsörjningsanläggning till flik 6.7 Nätstation","Information","Maria Davidson, UHjjm"]
[null,null,"Flik 6.4 Kraftförsörjningsanläggning","Slopad hantering gällande granskning av material- och kemikalieförteckning, därför har nu kolumn M och N, samt raderna för material- och kemikalieförteckning tagits bort. OBS! Material- och kemikalieförteckning ska fortfarande levereras tillsammans med dokumentationssats 6. ","Gäller befintliga och nya kontrakt. ","Anna Henriksson, UHjv"]
[null,null,"Flik 6.4 Kraftförsörjningsanläggning","Namn på leveransmapp för Relationshandling/Underlag för relationshandling i PW/FJ har ändrats. ","Information","Sara Mattsson, UHjjm"]
[null,null,"Flik 6.5 Lågspänningssystem","Installationsplan för distributionsnät < 1000V kompletterad med El fjärrstyrning, samt modellfil EL_FJR införd ","Gäller befintliga och nya kontrakt. ","Kristina Eliasson, UHjjm"]
[null,null,"Flik 6.5 Lågspänningssystem","Nytt krav: Koordinatfil kabel","Gäller nya kontrakt. Befintliga kontrakt får gärna införa det reviderade kravet.","Maarten Reijm, UHje"]
[null,null,"Flik 6.5 Lågspänningssystem","Flyttat krav: TMALL 1382 Driftledningsinstruktion återfinns nu under kapitel 6.1.1 GELD inklusive RTU:er","Information","John Granberg, UHjel"]
[null,null,"Flik 6.6 Matarledningssystem","Nytt krav: Koordinatfil kabel","Gäller nya kontrakt. Befintliga kontrakt får gärna införa det reviderade kravet.","Maarten Reijm, UHje"]
[null,null,"Flik 6.6 Matarledningssystem","Nytt krav: Relationshandling/Underlag för relationshandling","Gäller befintliga och nya kontrakt. ","Krister Olofsson, UHje"]
[null,null,"Flik 6.6 Matarledningssystem","Ny rutin: Dokumentation för Matarledning ska skickas till elkraft@trafikverket.se för förgranskning. Namn på leveransmapp för Relationshandling/Underlag för relationshandling i PW/FJ har ändrats. ","Gäller befintliga och nya kontrakt. ","Krister Olofsson, UHje"]
[null,null,"Flik 6.7 Nätstation","Tillkommande flik då kraven flyttats från kap. 6.4 Kraftförsörjningsanläggning till kap 6.7 Nätstation.","Information","Maria Davidson, UHjjm"]
[null,null,"Flik 6.7 Nätstation","Nytt krav: Koordinatfil kabel","Gäller nya kontrakt. Befintliga kontrakt får gärna införa det reviderade kravet.","Maarten Reijm, UHje"]
[null,null,"Flik 7.1 Resenärsstation","Nytt krav: Kontrollprogram (miljö)","Gäller nya kontrakt. Befintliga kontrakt får gärna införa det reviderade kravet.","Anna Henriksson, UHjv"]
[null,null,"Flik 7.2 Teknikbyggnad","Uppdelad i två flikar a) Teknikbyggnad Järnväg och b) Teknikbyggnad Telekom","Information","Maria Davidson, UHjjm"]
[null,null,"Flik 7.3 Tillträdesskydd o brandlarm","Ny text: Upphandlad driftleverantör läser in den tekniska dokumentationen i ProjectWise. (Kvitteras inte längre i leveransplanen)","Gäller befintliga och nya kontrakt. ","Karin Åberg Hagekull, Sux"]
[null,null,"Flik 7.3 Tillträdesskydd o brandlarm","Nytt krav: Koordinatfil kabel","Gäller nya kontrakt. Befintliga kontrakt får gärna införa det reviderade kravet.","Maarten Reijm, UHje"]
[null,null,"Flik 8.1 Signalsystem","Nytt krav: Koordinatfil kabel","Gäller nya kontrakt. Befintliga kontrakt får gärna införa det reviderade kravet.","Maarten Reijm, UHje"]
[null,null,"Flik 8.1 Signalsystem","Förtydligat vilka leveranser av balisfiler som ska levereras för ATC och vilka som ska levereras för Eurobaliser","Information","Nid Patrissen, UHtsi1"]
[null,null,"Flik 9.2 Geodetiskt stomnät","Ändring: Dokumentation ska inte längre bifogas i mejl utan läggas upp på en leveransyta i ProjectWise.","Gäller befintliga och nya kontrakt. ","Lars Hedlund, Uhjjm"]
[null,null,"Flik 10.1 Radio och telefoni","Slopat krav på papperskopior i anläggningen för Radio.","Slopat krav","Peter Sjökvist, IKTtvs"]
[null,null,"Flik 10.1 Radio och telefoni","Följande krav flyttade från Radio till Master och torn (kan nu ha en liten annan rubrik):\n- Mastlov\n- Dimensionering vindlastberäkning\n- Karta och situationsplan\n- Grundläggning\n- Torn-/antennfästen","Information","Peter Sjökvist, IKTtvs"]
[null,null,"Flik 10.1 Radio och telefoni","Nya krav för området Master och torn","Gäller nya kontrakt. Befintliga kontrakt får gärna införa det reviderade kravet.","Peter Sjökvist, IKTtvs"]
[null,null,"Flik 10.2 Siter och kabelanläggning","Slopat krav: Kraft-tele/All kraft/Dispositionsritning","Slopat krav","Peter Sjökvist, IKTtvs"]
[null,null,"Flik 10.2 Siter och kabelanläggning","Slopat krav på pappersritningar i anläggningen för allt förutom Kraft-tele/Likriktarsystem 48V/Dispositionsunderlag","Slopat krav","Peter Sjökvist, IKTtvs"]
[null,null,"Flik 10.2 Siter och kabelanläggning","Nytt krav: Kraft-tele/Likriktarsystem 48V/Dispositionsunderlag (Lagkrav enligt elsäkerhetslagen)","Gäller befintliga och nya kontrakt. \nEgentligen inget nytt krav då det är krav enligt elsäkerhetslagen.","Peter Sjökvist, IKTtvs"]
[null,null,"Flik 11.1 Trafikinformation","Nytt krav: Kopplingsschema för högtalare och mikrofoner","Gäller nya kontrakt. Befintliga kontrakt får gärna införa det reviderade kravet.","Daniel Asovic, Uhjef"]
[null,null,"Flik 11.1 Trafikinformation","Nytt krav: Kopplingsschema för stativ (Ljudanläggning)","Gäller nya kontrakt. Befintliga kontrakt får gärna införa det reviderade kravet.","Daniel Asovic, Uhjef"]
[null,null,"Flik 11.1 Trafikinformation","Nytt krav: Situationsplan för ljudanläggning","Gäller nya kontrakt. Befintliga kontrakt får gärna införa det reviderade kravet.","Daniel Asovic, Uhjef"]
[null,null,"Flik 11.1 Trafikinformation","Reviderat krav: Situationsplan för dynamisk trafikinformationsutrustning – ska nu inte innehålla högtalare och mikrofoner)","Gäller nya kontrakt. Befintliga kontrakt får gärna införa det reviderade kravet.","Daniel Asovic, Uhjef"]
[null,null,"Flik 14.2 Kamerabevakning","Ny flik, innebär nya krav","Gäller nya kontrakt. Befintliga kontrakt får gärna införa det reviderade kravet.","Ellinor Höglund, Johanna Holmin, UHjef"]
[null,null,"Flik 15.4 Mark","Slopat krav: Anläggningsbeskrivning","Slopat krav","Terence Mcgarvey UHjba"]
[null,null,"Flik 15.5 Miljöföreteelse","Invasiv art tillagd som Miljöföreteelse nov 2024. ","Gäller samtliga projekt, både befintliga och nya","Anna Henriksson, UHjv"]
[null,null,"Flik 15.5 Miljöföreteelse","Allé tillagd som Miljöföreteelse, med hänvisning till TDOK 2023:0149","Gäller samtliga projekt, både befintliga och nya","Anna Henriksson, UHjv"]
[null,null,"Flik 15.5 Förorenade områden och förorenade massor","Förändrad tabell, med förändrade krav","Gäller samtliga projekt, både befintliga och nya","Ylva Persson, UHjbf"]
[null,null,"Flik 15.12 JNB","Fliken har bytt namn från 0 JNB. Fliken har öven bytt plats.","Information","Maria Davidson, UHjjm"]
[null,null,"Flik 15.13 Tågplan","Fliken har bytt namn från 0 Tågplan. Fliken har öven bytt plats.","Information","Maria Davidson, UHjjm"]

{"sheet":"Ändra inte!","index":56,"n_rows":22,"n_cols":2,"rows_kept":22,"cut":false,"hidden":true,"merged":[[20,1,21,1]]}
[]
[]
[]
[]
["Ny"]
["Uppdaterad"]
["Slopad"]
["Oförändrad"]
[]
[]
["Ja"]
["Nej"]
["?"]
[]
[]
["Ny"]
["Uppdaterad"]
["Slopad"]
[]
[]
["Ja","(Tabell till Geografiska anläggningsmodeller kolumn G)"]
["Nej"]